Workbook

Sheet Examples (hidden)
B1: Teal | C1: Red | D1: Light grey | E1: Mid-grey | F1: Grey | G1: Light teal | H1: Mid-red | I1: Light red | L1: Teal solid | M1: Red solid | N1: Mid-grey | O1: Teal dashes | P1: Red dashes | Q1: Grey dashes | S1: X value | T1: 1st Y value | U1: 2nd Y value | X1: Teal | Y1: Red | Z1: Mid-red | AA1: Mid-grey
A2: 2003-04 | B2: 36.19 | C2: 36.88 | D2: 21.56 | E2: 5.36 | F2: 3.01 | G2: 10 | H2: 3.01 | I2: 10 | K2: 2003-04 | L2: 33.19 | M2: 36.88 | N2: 21.56 | O2: 5.36 | P2: 3.01 | Q2: 10 | S2: 1.8 | T2: 10 | U2: 17 | W2: 2003-04 | X2: 33.19 | Y2: 36.88 | Z2: 21.56 | AA2: 5.36
A3: 2004-05 | B3: 39.39 | C3: 32.02 | D3: 21.6 | E3: 7.01 | F3: 3.36 | G3: 12 | H3: 3.36 | I3: 12 | K3: 2004-05 | L3: 39.39 | M3: 32.02 | N3: 21.6 | O3: 7.01 | P3: 3.36 | Q3: 12 | S3: 2.3 | T3: 12 | U3: 9 | W3: 2004-05 | X3: 39.39 | Y3: 32.02 | Z3: 21.6 | AA3: 7.01
A4: 2005-06 | B4: 42.78 | C4: 29.91 | D4: 18.35 | E4: 6.33 | F4: 2.63 | G4: 14 | H4: 2.63 | I4: 14 | K4: 2005-06 | L4: 42.78 | M4: 29.91 | N4: 18.35 | O4: 6.33 | P4: 2.63 | Q4: 14 | S4: 3.7 | T4: 16 | U4: 14 | W4: 2005-06 | X4: 42.78 | Y4: 29.91 | Z4: 18.35 | AA4: 6.33
A5: 2006-07 | B5: 42.13 | C5: 26.53 | D5: 21.6 | E5: 7.01 | F5: 2.72 | G5: 16 | H5: 2.72 | I5: 16 | K5: 2006-07 | L5: 42.13 | M5: 26.53 | N5: 21.6 | O5: 7.01 | P5: 2.72 | Q5: 16 | S5: 4.1 | T5: 8 | U5: 23 | W5: 2006-07 | X5: 42.13 | Y5: 26.53 | Z5: 21.6 | AA5: 7.01
A6: 2007-08 | B6: 41.69 | C6: 24.76 | D6: 23.98 | E6: 7 | F6: 2.57 | G6: 18 | H6: 2.57 | I6: 18 | K6: 2007-08 | L6: 41.69 | M6: 24.76 | N6: 23.98 | O6: 7 | P6: 2.57 | Q6: 18 | S6: 5.5 | T6: 14 | U6: 27 | W6: 2007-08 | X6: 41.69 | Y6: 24.76 | Z6: 23.98 | AA6: 7
A7: 2008-09 | B7: 39.39 | C7: 32.02 | D7: 21.6 | E7: 7.01 | F7: 3.36 | G7: 12 | H7: 3.36 | I7: 12 | K7: 2008-09 | L7: 39.39 | M7: 32.02 | N7: 21.6 | O7: 7.01 | P7: 3.36 | Q7: 12 | W7: 2008-09 | X7: 39.39 | Y7: 32.02 | Z7: 21.6 | AA7: 7.01
A8: 2009-10 | B8: 42.13 | C8: 26.53 | D8: 21.6 | E8: 7.01 | F8: 2.72 | G8: 16 | H8: 2.72 | I8: 16 | K8: 2009-10 | L8: 42.13 | M8: 26.53 | N8: 21.6 | O8: 7.01 | P8: 2.72 | Q8: 16 | W8: 2009-10 | X8: 42.13 | Y8: 26.53 | Z8: 21.6 | AA8: 7.01
A9: 2010-11 | B9: 45 | C9: 22 | D9: 26 | E9: 8 | F9: 2 | G9: 20 | H9: 2 | I9: 20 | K9: 2010-11 | L9: 45 | M9: 22 | N9: 26 | O9: 8 | P9: 2 | Q9: 20 | W9: 2010-11 | X9: 45 | Y9: 22 | Z9: 26 | AA9: 8
A11: – en rule for when needed
S17: X value | T17: 1st Y value | U17: 2nd Y value | V17: 3rd Y value | W17: 4th Y value | X17: 5th Y value | Y17: 6th Y value
S18: 1.8 | T18: 10 | U18: 17 | V18: 24 | W18: 20 | X18: 22 | Y18: 15
S19: 2.3 | T19: 12 | U19: 9 | V19: 6 | W19: 8 | X19: 14 | Y19: 18
S20: 3.7 | T20: 16 | U20: 14 | V20: 12 | W20: 10 | X20: 8 | Y20: 6
S21: 4.1 | T21: 8 | U21: 23 | V21: 38 | W21: 25 | X21: 30 | Y21: 17
S22: 5.5 | T22: 14 | U22: 27 | V22: 5 | W22: 18 | X22: 31 | Y22: 26

Sheet Instructions
C3: INSTRUCTIONS
C4: The model has been set up to run a scenarios for different refund sharing arrangements.
C6: Steps to use
C7: The steps to use the model are as follows
D8: 1. Enter the inputs for your MRF in the "MRF inputs" worksheet
E9: We have entered approximate inputs, but these will vary considerably across MRFs and will change over time
D10: 2. The Scenarios sheet will then set out some additional factors to decide on and the impacts on the MRF
E11: Items that can be tested include:
E12: * different levels of diversion of household containers away from a MRF
E13: * adjustments to costs and prices
E14: * different shares of costs that are fixed and variable. A variable cost will increase with a higher volume of material and decrease with a lower volume of material.
E15: * whether commercial materials are included, and whether commercial prices are assumed to adjust so that refunds are passed back to those generating the containers
D16: 3. The teal box (click on this Macro, ensuring Macros are enabled) will set the revenue share that maintains the MRF at the same profit level as without the CDS
D17: 4. The red box will run sensitivity analysis on household diversion rates and cost structures
D18: 5. Key results are shown to the right of the Scenarios sheet
C20: There is no need to use other sheets so these have been hidden for ease of use. To unhide these go to Home - Format - Hide and unhide. Cells are also locked to avoid mistakes. The password is TheCIE
C22: Preliminary estimates
C23: Note that estimates included in the model are by their nature preliminary. In particular:
D24: the amount of containers generated by a tonne of inputs does not reflect the eligible container factors that are yet to be determined by the EPA
D25: capital costs are given a very limited treatment where these do not change with the CDS. However, these are relevant for longer term viability of MRFs
D26: the compliance costs for MRFs are early indications and will change as MRFs engage, such as for Assurance Reports
C28: Pre-populated scenarios
C29: We have pre-populated scenarios to show some key areas
D30: 1. The base case with no CDS
D31: 2. All CDS revenue goes to the MRF - both commercial and kerbside
D32: 3. The refund share where a MRF profit is the same as the base case
D33: 4. A refund share of 50%
C35: Colour coding
C36: Inputs
C37: Calculation sheets
C38: Scenario sheet

Sheet MRF inputs
C3: MRF inputs
C5: Product | D5: Share of material outputs from a MRF | E5: Prices received or paid at factory gate | F5: Prices received or paid at factory gate at time of contract start
D6: Per cent | E6: $/tonne | F6: $/tonne
C7: paper and cardboard | D7: 0.474 | E7: 50 | F7: 150
C8: aluminium | D8: 0.007 | E8: 1200 | F8: 1200
C9: other metals | D9: 0.023 | E9: 40 | F9: 40
C10: glass | D10: 0.338 | E10: -70 | F10: -70
C11: plastics - mixed | D11: 0.061 | E11: 200 | F11: 250
C12: plastics - hdpe | D12: 0 | E12: 300 | F12: 430
C13: plastics - PET | D13: 0 | E13: 300 | F13: 380
C14: other | D14: 0 | E14: 100 | F14: 100
C15: waste | D15: 0.097 | E15: -200 | F15: -200
C16: Note: we have applied the same material shares for residential and commercial
C19: Gate fee ($/input tonne) | D19: $/tonne
C20: Residential | D20: 50
C21: Commercial | D21: 100
C24: Operating and maintenance costs (excluding transport and waste) | D24: $/input tonne | E24: 100
C26: Total annual volume | D26: Input tonnes/yr | E26: =SUM(E27:E28) -> 80000 | G26: Volume of individual council (input tonnes per year) | H26: 9000
C27: Total MRF volume from council kerbside collections | D27: Input tonnes/yr | E27: 60000
C28: Commercial volume | D28: Input tonnes/yr | E28: 20000
C29: Capacity | D29: Input tonnes/yr | E29: 90000
C31: Implied average capacity use | D31: Per cent | E31: =E26/E29 -> 0.8888888889
C33: CDS costs
C34: New machinery - capital | D34: $, once off | E34: 0
C35: New machinery - operating | D35: $, annual | E35: 0
C36: General CDS administration and reporting | D36: $, annual | E36: =0.4*50000*1.25 -> 25000
C37: Independent Assurance Report | D37: $, annual | E37: 100000
C38: Compliance with audits
C39: management time | D39: $, annual | E39: =4*16*120*1.25 -> 9600
C40: extra administrative time not covered by FTE | D40: $, annual | E40: =4*16*30*1.25 -> 2400
C41: Software upgrade | D41: $, once off | E41: 0
C42: Software upgrade | D42: $, annual | E42: 0
C44: Total annual cost | D44: $, annual | E44: =SUM(E35:E37,E39:E40,E42)-PMT('Other inputs'!C4,10,'MRF inputs'!E34+'MRF inputs'!E41) -> 137000 | F44: Note: Upfront costs are amortised over 10 years using a 7% real interest rate

Sheet Scenarios
C2: Scenario assumptions | O2: Key results
C3: MRF and modelling assumptions | H3: Container Deposit Scheme impacts | XET3: Do not delete
O4: Impact on MRF of CDS (annual, $m unless noted otherwise) | V4: Statement of CDS costs and revenues (annual, $m) | XET4: Yes | XEU4: No
C5: Choices | H5: Material flows | I5: Share of output materials | J5: Share of containers diverted from MRF | K5: Change in commodity price because of CDS | P5: Base case (1) | Q5: With all CDS refunds going to a MRF (2) | R5: =CONCATENATE("Profit neutral, with ",ROUND(P18*100,1),"% of CDS refunds going to a MRF (3)") -> Profit neutral, with 1.3% of CDS refunds going to a MRF (3) | S5: =CONCATENATE(ROUND(D7*100,1),"% of CDS refunds going to a MRF (4)") -> 50% of CDS refunds going to a MRF (4) | X5: $m | Y5: % of revenue | Z5: Per input tonne | XET5: Low | XEU5: Medium | XEV5: High
I6: Per cent | J6: Per cent | K6: $/tonne | P6: $m | Q6: $m | R6: $m | S6: $m | V6: ='CDS case - no revenue share'!C136 -> 1. Direct CDS administration and compliance costs | X6: ='CDS case - no revenue share'!E136 -> -0.137 | Y6: =X6/$X$14 -> -0.01872669415 | Z6: =X6/$P$11*1000 -> -2.283333333
C7: Revenue share to MRFs - for Scenario 4 | D7: 0.5 | H7: paper and cardboard | I7: ='MRF inputs'!D7 -> 0.474 | J7: 0 | K7: 0 | O7: Revenue | P7: ='Base case'!E110 -> 4.2936 | Q7: ='CDS case - no revenue share'!E110 -> 11.517782 | R7: ='CDS case - revenue share'!E110 -> 4.29599 | S7: ='CDS case - revenue share set'!E110 -> 7.859902 | V7: ='CDS case - no revenue share'!C137 -> 2. Volume changes for kerbside | XET7: Metropolitan | XEU7: Regional
... 6 more rows

Sheet Other outputs (hidden)
B2: Financial statement over operating life of MRF
C3: =Scenarios!P5 -> Base case (1) | D3: =Scenarios!Q5 -> With all CDS refunds going to a MRF (2) | E3: =Scenarios!R5 -> Profit neutral, with 1.3% of CDS refunds going to a MRF (3) | F3: =Scenarios!S5 -> 50% of CDS refunds going to a MRF (4)
C4: $m, present value | D4: $m, present value | E4: $m, present value | F4: $m, present value
B5: Revenue
B6: Gate fees | C6: ='Base case'!D74 -> 20.81234945 | D6: ='CDS case - no revenue share'!D74 -> 19.87849933 | E6: ='CDS case - revenue share'!D74 -> 19.87849933 | F6: ='CDS case - revenue share set'!D74 -> 19.87849933
B7: Sale of outputs | C7: ='Base case'!D75 -> 8.974285084 | D7: ='CDS case - no revenue share'!D75 -> 9.272817425 | E7: ='CDS case - revenue share'!D75 -> 9.272817425 | F7: ='CDS case - revenue share set'!D75 -> 9.272817425
B8: CDS refunds | C8: ='Base case'!D76 -> 0 | D8: ='CDS case - no revenue share'!D76 -> 50.75271788 | E8: ='CDS case - revenue share'!D76 -> 0.6518982845 | F8: ='CDS case - revenue share set'!D76 -> 25.37635894
B9: Costs
B10: Capital costs | C10: ='Base case'!D78 -> -9.153091973 | D10: ='CDS case - no revenue share'!D78 -> -9.153091973 | E10: ='CDS case - revenue share'!D78 -> -9.153091973 | F10: ='CDS case - revenue share set'!D78 -> -9.153091973
B11: Operating costs | C11: ='Base case'!D79 -> -41.62469891 | D11: ='CDS case - no revenue share'!D79 -> -40.69084879 | E11: ='CDS case - revenue share'!D79 -> -40.69084879 | F11: ='CDS case - revenue share set'!D79 -> -40.69084879
B12: Disposal costs | C12: ='Base case'!D80 -> -8.075191588 | D12: ='CDS case - no revenue share'!D80 -> -8.075191588 | E12: ='CDS case - revenue share'!D80 -> -8.075191588 | F12: ='CDS case - revenue share set'!D80 -> -8.075191588
B13: CDS costs | C13: ='Base case'!D81 -> 0 | D13: ='CDS case - no revenue share'!D81 -> -0.9504306251 | E13: ='CDS case - revenue share'!D81 -> -0.9504306251 | F13: ='CDS case - revenue share set'!D81 -> -0.9504306251
B14: Revenue less costs | C14: =SUM(C6:C8)+SUM(C10:C13) -> -29.06634793 | D14: =SUM(D6:D8)+SUM(D10:D13) -> 21.03447167 | E14: =SUM(E6:E8)+SUM(E10:E13) -> -29.06634793 | F14: =SUM(F6:F8)+SUM(F10:F13) -> -4.341887275
B18: Impact on MRF (annual, %)
C19: =D3 -> With all CDS refunds going to a MRF (2) | D19: =E3 -> Profit neutral, with 1.3% of CDS refunds going to a MRF (3) | E19: =F3 -> 50% of CDS refunds going to a MRF (4)
C20: % change | D20: % change | E20: % change
B21: Revenue | C21: ='CDS case - no revenue share'!D110 -> 1.682546581 | D21: ='CDS case - revenue share'!D110 -> 0.0005566424446 | E21: ='CDS case - revenue share set'!D110 -> 0.8306088131
B22: Operating costs | C22: ='CDS case - no revenue share'!D111 -> 0.000333612507 | D22: ='CDS case - revenue share'!D111 -> 0.000333612507 | E22: ='CDS case - revenue share set'!D111 -> 0.000333612507
B23: Operating profit | C23: ='CDS case - no revenue share'!D112 -> -2.515953177 | D23: ='CDS case - revenue share'!D112 -> 0 | E23: ='CDS case - revenue share set'!D112 -> -1.241608138
B25: Tonnes processed | C25: ='CDS assumptions'!D3 -> -0.04487 | D25: =C25 -> -0.04487 | E25: =D25 -> -0.04487
B27: Key material flows
C28: Without CDS | D28: With CDS
B29: Share of input tonnes eligible for CDS
B30: council (%) | C30: ='CDS assumptions'!L36 -> 0.22435 | D30: ='CDS assumptions'!M36 -> 0.17948
B31: commercial (%) | C31: ='CDS assumptions'!L49 -> 0.22435 | D31: ='CDS assumptions'!M49 -> 0.22435

Sheet Sensitivity analysis (hidden)
B1: DO NOT MOVE ROWS OR COLUMNS WITHOUT ADJUSTING MACRO
B3: Diversion rates (same for all products)
C5: Diversion rates for CDS eligible material | D5: Stored | E5: 1 | F5: 2 | G5: 3 | H5: 4 | I5: 5 | J5: 6 | K5: 7 | L5: 8 | M5: 9 | N5: 10 | O5: 11 | P5: 12 | Q5: 13 | R5: 14 | S5: 15 | T5: 16 | U5: 17 | V5: 18 | W5: 19 | X5: 20 | Y5: 21 | Z5: Increment
C6: =Scenarios!H7 -> paper and cardboard | D6: 0 | E6: ='Sensitivity analysis'!E31 -> 0 | F6: =E6+$Z$6 -> 0.0475 | G6: 0.095 | H6: 0.1425 | I6: 0.19 | J6: 0.2375 | K6: 0.285 | L6: 0.3325 | M6: 0.38 | N6: 0.4275 | O6: 0.475 | P6: 0.5225 | Q6: 0.57 | R6: 0.6175 | S6: 0.665 | T6: 0.7125 | U6: 0.76 | V6: 0.8075 | W6: 0.855 | X6: 0.9025 | Y6: ='Sensitivity analysis'!I31 -> 0.95 | Z6: =(Y6-E6)/(Y5-1) -> 0.0475
C7: =Scenarios!H8 -> aluminium | D7: 0.2 | E7: =E6 -> 0 | F7: =F6 -> 0.0475 | G7: 0.095 | H7: 0.1425 | I7: 0.19 | J7: 0.2375 | K7: 0.285 | L7: 0.3325 | M7: 0.38 | N7: 0.4275 | O7: 0.475 | P7: 0.5225 | Q7: 0.57 | R7: 0.6175 | S7: 0.665 | T7: 0.7125 | U7: 0.76 | V7: 0.8075 | W7: 0.855 | X7: 0.9025 | Y7: 0.95
C8: =Scenarios!H9 -> other metals | D8: 0 | E8: =E7 -> 0 | F8: =F7 -> 0.0475 | G8: =G7 -> 0.095 | H8: =H7 -> 0.1425 | I8: =I7 -> 0.19 | J8: =J7 -> 0.2375 | K8: =K7 -> 0.285 | L8: =L7 -> 0.3325 | M8: =M7 -> 0.38 | N8: =N7 -> 0.4275 | O8: =O7 -> 0.475 | P8: =P7 -> 0.5225 | Q8: =Q7 -> 0.57 | R8: =R7 -> 0.6175 | S8: =S7 -> 0.665 | T8: =T7 -> 0.7125 | U8: =U7 -> 0.76 | V8: =V7 -> 0.8075 | W8: =W7 -> 0.855 | X8: =X7 -> 0.9025 | Y8: =Y7 -> 0.95
C9: =Scenarios!H10 -> glass | D9: 0.2 | E9: 0 | F9: 0.0475 | G9: 0.095 | H9: 0.1425 | I9: 0.19 | J9: 0.2375 | K9: 0.285 | L9: 0.3325 | M9: 0.38 | N9: 0.4275 | O9: 0.475 | P9: 0.5225 | Q9: 0.57 | R9: 0.6175 | S9: 0.665 | T9: 0.7125 | U9: 0.76 | V9: 0.8075 | W9: 0.855 | X9: 0.9025 | Y9: 0.95
C10: =Scenarios!H11 -> plastics - mixed | D10: 0.2 | E10: 0 | F10: 0.0475 | G10: 0.095 | H10: 0.1425 | I10: 0.19 | J10: 0.2375 | K10: 0.285 | L10: 0.3325 | M10: 0.38 | N10: 0.4275 | O10: 0.475 | P10: 0.5225 | Q10: 0.57 | R10: 0.6175 | S10: 0.665 | T10: 0.7125 | U10: 0.76 | V10: 0.8075 | W10: 0.855 | X10: 0.9025 | Y10: 0.95
C11: =Scenarios!H12 -> plastics - hdpe | D11: 0.2 | E11: 0 | F11: 0.0475 | G11: 0.095 | H11: 0.1425 | I11: 0.19 | J11: 0.2375 | K11: 0.285 | L11: 0.3325 | M11: 0.38 | N11: 0.4275 | O11: 0.475 | P11: 0.5225 | Q11: 0.57 | R11: 0.6175 | S11: 0.665 | T11: 0.7125 | U11: 0.76 | V11: 0.8075 | W11: 0.855 | X11: 0.9025 | Y11: 0.95
C12: =Scenarios!H13 -> plastics - PET | D12: 0.2 | E12: 0 | F12: 0.0475 | G12: 0.095 | H12: 0.1425 | I12: 0.19 | J12: 0.2375 | K12: 0.285 | L12: 0.3325 | M12: 0.38 | N12: 0.4275 | O12: 0.475 | P12: 0.5225 | Q12: 0.57 | R12: 0.6175 | S12: 0.665 | T12: 0.7125 | U12: 0.76 | V12: 0.8075 | W12: 0.855 | X12: 0.9025 | Y12: 0.95
C13: =Scenarios!H14 -> other | D13: 0.2 | E13: 0 | F13: 0.0475 | G13: 0.095 | H13: 0.1425 | I13: 0.19 | J13: 0.2375 | K13: 0.285 | L13: 0.3325 | M13: 0.38 | N13: 0.4275 | O13: 0.475 | P13: 0.5225 | Q13: 0.57 | R13: 0.6175 | S13: 0.665 | T13: 0.7125 | U13: 0.76 | V13: 0.8075 | W13: 0.855 | X13: 0.9025 | Y13: 0.95
C15: Revenue share to MRF for neutral CDS impact | D15: =Scenarios!$P$18 -> 0.01284459851 | E15: 0.01498135532 | F15: 0.01455512562 | G15: 0.01408415357 | H15: 0.01356100386 | I15: 0.01297649708 | J15: 0.01231916651 | K15: 0.01157449831 | L15: 0.01072384737 | M15: 0.009742854754 | N15: 0.008599077338 | O15: 0.007248330675 | P15: 0.005628849074 | Q15: 0.003651575026 | R15: 0.001183213306 | S15: -0.001985131588 | T15: -0.006200407839 | U15: -0.01208423094 | V15: -0.02087175895 | W15: -0.03541663289 | X15: -0.06413343528 | Y15: -0.1474121622
C16: Revenue share to MRF for neutral CDS impact | D16: =MAX(0%,D15) -> 0.01284459851 | E16: =MAX(0%,E15) -> 0.01498135532 | F16: 0.01455512562 | G16: 0.01408415357 | H16: 0.01356100386 | I16: 0.01297649708 | J16: 0.01231916651 | K16: 0.01157449831 | L16: 0.01072384737 | M16: 0.009742854754 | N16: 0.008599077338 | O16: 0.007248330675 | P16: 0.005628849074 | Q16: 0.003651575026 | R16: 0.001183213306 | S16: 0 | T16: 0 | U16: 0 | V16: 0 | W16: 0 | X16: 0 | Y16: 0
B18: Share of operating costs that are variable
D19: Stored | E19: 1 | F19: 2 | G19: 3 | H19: 4 | I19: 5 | J19: 6 | K19: 7 | L19: 8 | M19: 9 | N19: 10 | O19: 11 | P19: 12 | Q19: 13 | R19: 14 | S19: 15 | T19: 16 | U19: 17 | V19: 18 | W19: 19 | X19: 20 | Y19: 21 | Z19: Increment
C20: Share (per cent) | D20: 0.5 | E20: ='Sensitivity analysis'!$E$33 -> 0 | F20: =E20+$Z$20 -> 0.05 | G20: =F20+$Z$20 -> 0.1 | H20: 0.15 | I20: 0.2 | J20: 0.25 | K20: 0.3 | L20: 0.35 | M20: 0.4 | N20: 0.45 | O20: 0.5 | P20: 0.55 | Q20: 0.6 | R20: 0.65 | S20: 0.7 | T20: 0.75 | U20: 0.8 | V20: 0.85 | W20: 0.9 | X20: 0.95 | Y20: ='Sensitivity analysis'!$I$33 -> 1 | Z20: =(Y20-E20)/(Y19-1) -> 0.05
C22: Revenue share to MRF for neutral CDS impact | D22: =Scenarios!$P$18 -> 0.01284459851 | E22: 0.0312446007 | F22: 0.02940460048 | G22: 0.02756460026 | H22: 0.02572460004 | I22: 0.02388459982 | J22: 0.0220445996 | K22: 0.02020459939 | L22: 0.01836459917 | M22: 0.01652459895 | N22: 0.01468459873 | O22: 0.01284459851 | P22: 0.01100459829 | Q22: 0.009164598073 | R22: 0.007324597854 | S22: 0.005484597636 | T22: 0.003644597417 | U22: 0.001804597198 | V22: -3.540302033e-05 | W22: -0.001875403239 | X22: -0.003715403458 | Y22: -0.005555403676
C23: Revenue share to MRF for neutral CDS impact | D23: =MAX(D22,0%) -> 0.01284459851 | E23: =MAX(E22,0%) -> 0.0312446007 | F23: 0.02940460048 | G23: 0.02756460026 | H23: 0.02572460004 | I23: 0.02388459982 | J23: 0.0220445996 | K23: 0.02020459939 | L23: 0.01836459917 | M23: 0.01652459895 | N23: 0.01468459873 | O23: 0.01284459851 | P23: 0.01100459829 | Q23: 0.009164598073 | R23: 0.007324597854 | S23: 0.005484597636 | T23: 0.003644597417 | U23: 0.001804597198 | V23: 0 | W23: 0 | X23: 0 | Y23: 0
D29: Sensitivity testing
E30: Minimum | I30: Maximum
D31: Diversion rates (same for all products) | E31: 0 | I31: 0.95
D32: Age of facility when CDS introduced | E32: 1 | I32: 15
D33: Share of operating costs that are variable | E33: 0 | I33: 1

Sheet Other inputs (hidden)
B3: Other
B4: Weighted average cost of capital (pre-tax real) | C4: 0.07
B5: Cost estimates | C5: Medium
B6: Commodity price estimates | C6: Medium
B7: Economic life of facility (years) | C7: ='Other inputs'!D14 -> 12
B8: Age of facility when CDS introduced | C8: 1
B10: CDS compliance costs | C10: Medium
B13: Capital costs (upfront) | C13: $/tonne of capacity | D13: 150
B14: Economic life of facility | C14: Years | D14: 12

Sheet Base case (hidden)
B2: Year | F2: 1 | G2: 2 | H2: 3 | I2: 4 | J2: 5 | K2: 6 | L2: 7 | M2: 8 | N2: 9 | O2: 10 | P2: 11 | Q2: 12 | R2: 13 | S2: 14 | T2: 15 | U2: 16 | V2: 17 | W2: 18 | X2: 19 | Y2: 20 | Z2: 21 | AA2: 22 | AB2: 23 | AC2: 24 | AD2: 25 | AE2: 26 | AF2: 27 | AG2: 28 | AH2: 29 | AI2: 30
B3: CDS applied | F3: 0 | G3: 0 | H3: 0 | I3: 0 | J3: 0 | K3: 0 | L3: 0 | M3: 0 | N3: 0 | O3: 0 | P3: 0 | Q3: 0 | R3: 0 | S3: 0 | T3: 0 | U3: 0 | V3: 0 | W3: 0 | X3: 0 | Y3: 0 | Z3: 0 | AA3: 0 | AB3: 0 | AC3: 0 | AD3: 0 | AE3: 0 | AF3: 0 | AG3: 0 | AH3: 0 | AI3: 0
B4: Tonnes input | D4: MTonnes/year | F4: =IF(F2>='Cost assumptions'!$E$4,'Revenue assumptions'!$D$68/1000000*'Revenue assumptions'!$I$5/'Revenue assumptions'!$J$5,0) -> 0 | G4: =IF(G2>='Cost assumptions'!$E$4,'Revenue assumptions'!$D$68/1000000*'Revenue assumptions'!$I$5/'Revenue assumptions'!$J$5,0) -> 0 | H4: =IF(H2>='Cost assumptions'!$E$4,'Revenue assumptions'!$D$68/1000000*'Revenue assumptions'!$I$5/'Revenue assumptions'!$J$5,0) -> 0.06 | I4: =IF(I2>='Cost assumptions'!$E$4,'Revenue assumptions'!$D$68/1000000*'Revenue assumptions'!$I$5/'Revenue assumptions'!$J$5,0) -> 0.06 | J4: =IF(J2>='Cost assumptions'!$E$4,'Revenue assumptions'!$D$68/1000000*'Revenue assumptions'!$I$5/'Revenue assumptions'!$J$5,0) -> 0.06 | K4: =IF(K2>='Cost assumptions'!$E$4,'Revenue assumptions'!$D$68/1000000*'Revenue assumptions'!$I$5/'Revenue assumptions'!$J$5,0) -> 0.06 | L4: =IF(L2>='Cost assumptions'!$E$4,'Revenue assumptions'!$D$68/1000000*'Revenue assumptions'!$I$5/'Revenue assumptions'!$J$5,0) -> 0.06 | M4: =IF(M2>='Cost assumptions'!$E$4,'Revenue assumptions'!$D$68/1000000*'Revenue assumptions'!$I$5/'Revenue assumptions'!$J$5,0) -> 0.06 | N4: =IF(N2>='Cost assumptions'!$E$4,'Revenue assumptions'!$D$68/1000000*'Revenue assumptions'!$I$5/'Revenue assumptions'!$J$5,0) -> 0.06 | O4: =IF(O2>='Cost assumptions'!$E$4,'Revenue assumptions'!$D$68/1000000*'Revenue assumptions'!$I$5/'Revenue assumptions'!$J$5,0) -> 0.06 | P4: =IF(P2>='Cost assumptions'!$E$4,'Revenue assumptions'!$D$68/1000000*'Revenue assumptions'!$I$5/'Revenue assumptions'!$J$5,0) -> 0.06 | Q4: =IF(Q2>='Cost assumptions'!$E$4,'Revenue assumptions'!$D$68/1000000*'Revenue assumptions'!$I$5/'Revenue assumptions'!$J$5,0) -> 0.06 | R4: =IF(R2>='Cost assumptions'!$E$4,'Revenue assumptions'!$D$68/1000000*'Revenue assumptions'!$I$5/'Revenue assumptions'!$J$5,0) -> 0.06 | S4: =IF(S2>='Cost assumptions'!$E$4,'Revenue assumptions'!$D$68/1000000*'Revenue assumptions'!$I$5/'Revenue assumptions'!$J$5,0) -> 0.06 | T4: =IF(T2>='Cost assumptions'!$E$4,'Revenue assumptions'!$D$68/1000000*'Revenue assumptions'!$I$5/'Revenue assumptions'!$J$5,0) -> 0.06 | U4: =IF(U2>='Cost assumptions'!$E$4,'Revenue assumptions'!$D$68/1000000*'Revenue assumptions'!$I$5/'Revenue assumptions'!$J$5,0) -> 0.06 | V4: =IF(V2>='Cost assumptions'!$E$4,'Revenue assumptions'!$D$68/1000000*'Revenue assumptions'!$I$5/'Revenue assumptions'!$J$5,0) -> 0.06 | W4: =IF(W2>='Cost assumptions'!$E$4,'Revenue assumptions'!$D$68/1000000*'Revenue assumptions'!$I$5/'Revenue assumptions'!$J$5,0) -> 0.06 | X4: =IF(X2>='Cost assumptions'!$E$4,'Revenue assumptions'!$D$68/1000000*'Revenue assumptions'!$I$5/'Revenue assumptions'!$J$5,0) -> 0.06 | Y4: =IF(Y2>='Cost assumptions'!$E$4,'Revenue assumptions'!$D$68/1000000*'Revenue assumptions'!$I$5/'Revenue assumptions'!$J$5,0) -> 0.06 | Z4: =IF(Z2>='Cost assumptions'!$E$4,'Revenue assumptions'!$D$68/1000000*'Revenue assumptions'!$I$5/'Revenue assumptions'!$J$5,0) -> 0.06 | AA4: =IF(AA2>='Cost assumptions'!$E$4,'Revenue assumptions'!$D$68/1000000*'Revenue assumptions'!$I$5/'Revenue assumptions'!$J$5,0) -> 0.06 | AB4: =IF(AB2>='Cost assumptions'!$E$4,'Revenue assumptions'!$D$68/1000000*'Revenue assumptions'!$I$5/'Revenue assumptions'!$J$5,0) -> 0.06 | AC4: =IF(AC2>='Cost assumptions'!$E$4,'Revenue assumptions'!$D$68/1000000*'Revenue assumptions'!$I$5/'Revenue assumptions'!$J$5,0) -> 0.06 | AD4: =IF(AD2>='Cost assumptions'!$E$4,'Revenue assumptions'!$D$68/1000000*'Revenue assumptions'!$I$5/'Revenue assumptions'!$J$5,0) -> 0.06 | AE4: =IF(AE2>='Cost assumptions'!$E$4,'Revenue assumptions'!$D$68/1000000*'Revenue assumptions'!$I$5/'Revenue assumptions'!$J$5,0) -> 0.06 | AF4: =IF(AF2>='Cost assumptions'!$E$4,'Revenue assumptions'!$D$68/1000000*'Revenue assumptions'!$I$5/'Revenue assumptions'!$J$5,0) -> 0.06 | AG4: =IF(AG2>='Cost assumptions'!$E$4,'Revenue assumptions'!$D$68/1000000*'Revenue assumptions'!$I$5/'Revenue assumptions'!$J$5,0) -> 0.06 | AH4: =IF(AH2>='Cost assumptions'!$E$4,'Revenue assumptions'!$D$68/1000000*'Revenue assumptions'!$I$5/'Revenue assumptions'!$J$5,0) -> 0.06 | AI4: =IF(AI2>='Cost assumptions'!$E$4,'Revenue assumptions'!$D$68/1000000*'Revenue assumptions'!$I$5/'Revenue assumptions'!$J$5,0) -> 0.06
B5: Capacity | D5: MTonnes/year | F5: =MAX(F4:AI4)/'Cost assumptions'!E15 -> 0.0675 | G5: =F5 -> 0.0675 | H5: =G5 -> 0.0675 | I5: 0.0675 | J5: 0.0675 | K5: 0.0675 | L5: 0.0675 | M5: 0.0675 | N5: 0.0675 | O5: 0.0675 | P5: 0.0675 | Q5: 0.0675 | R5: 0.0675 | S5: 0.0675 | T5: 0.0675 | U5: 0.0675 | V5: 0.0675 | W5: 0.0675 | X5: 0.0675 | Y5: 0.0675 | Z5: 0.0675 | AA5: 0.0675 | AB5: 0.0675 | AC5: 0.0675 | AD5: 0.0675 | AE5: 0.0675 | AF5: 0.0675 | AG5: 0.0675 | AH5: 0.0675 | AI5: 0.0675
B6: Check | F6: =IF(AND(F2<'Cost assumptions'!$E$4,F4>0),"Error","Ok") -> Ok | G6: =IF(AND(G2<'Cost assumptions'!$E$4,G4>0),"Error","Ok") -> Ok | H6: =IF(AND(H2<'Cost assumptions'!$E$4,H4>0),"Error","Ok") -> Ok | I6: =IF(AND(I2<'Cost assumptions'!$E$4,I4>0),"Error","Ok") -> Ok | J6: =IF(AND(J2<'Cost assumptions'!$E$4,J4>0),"Error","Ok") -> Ok | K6: =IF(AND(K2<'Cost assumptions'!$E$4,K4>0),"Error","Ok") -> Ok | L6: =IF(AND(L2<'Cost assumptions'!$E$4,L4>0),"Error","Ok") -> Ok | M6: =IF(AND(M2<'Cost assumptions'!$E$4,M4>0),"Error","Ok") -> Ok | N6: =IF(AND(N2<'Cost assumptions'!$E$4,N4>0),"Error","Ok") -> Ok | O6: =IF(AND(O2<'Cost assumptions'!$E$4,O4>0),"Error","Ok") -> Ok | P6: =IF(AND(P2<'Cost assumptions'!$E$4,P4>0),"Error","Ok") -> Ok | Q6: =IF(AND(Q2<'Cost assumptions'!$E$4,Q4>0),"Error","Ok") -> Ok | R6: =IF(AND(R2<'Cost assumptions'!$E$4,R4>0),"Error","Ok") -> Ok | S6: =IF(AND(S2<'Cost assumptions'!$E$4,S4>0),"Error","Ok") -> Ok | T6: =IF(AND(T2<'Cost assumptions'!$E$4,T4>0),"Error","Ok") -> Ok | U6: =IF(AND(U2<'Cost assumptions'!$E$4,U4>0),"Error","Ok") -> Ok | V6: =IF(AND(V2<'Cost assumptions'!$E$4,V4>0),"Error","Ok") -> Ok | W6: =IF(AND(W2<'Cost assumptions'!$E$4,W4>0),"Error","Ok") -> Ok | X6: =IF(AND(X2<'Cost assumptions'!$E$4,X4>0),"Error","Ok") -> Ok | Y6: =IF(AND(Y2<'Cost assumptions'!$E$4,Y4>0),"Error","Ok") -> Ok | Z6: =IF(AND(Z2<'Cost assumptions'!$E$4,Z4>0),"Error","Ok") -> Ok | AA6: =IF(AND(AA2<'Cost assumptions'!$E$4,AA4>0),"Error","Ok") -> Ok | AB6: =IF(AND(AB2<'Cost assumptions'!$E$4,AB4>0),"Error","Ok") -> Ok | AC6: =IF(AND(AC2<'Cost assumptions'!$E$4,AC4>0),"Error","Ok") -> Ok | AD6: =IF(AND(AD2<'Cost assumptions'!$E$4,AD4>0),"Error","Ok") -> Ok | AE6: =IF(AND(AE2<'Cost assumptions'!$E$4,AE4>0),"Error","Ok") -> Ok | AF6: =IF(AND(AF2<'Cost assumptions'!$E$4,AF4>0),"Error","Ok") -> Ok | AG6: =IF(AND(AG2<'Cost assumptions'!$E$4,AG4>0),"Error","Ok") -> Ok | AH6: =IF(AND(AH2<'Cost assumptions'!$E$4,AH4>0),"Error","Ok") -> Ok | AI6: =IF(AND(AI2<'Cost assumptions'!$E$4,AI4>0),"Error","Ok") -> Ok
B7: Revenue items | D7: Unit
C8: Gate fees - council | D8: $m | F8: =F$4*'Revenue assumptions'!$D$5*'Revenue assumptions'!$E$12 -> 0 | G8: =G$4*'Revenue assumptions'!$D$5*'Revenue assumptions'!$E$12 -> 0 | H8: =H$4*'Revenue assumptions'!$D$5*'Revenue assumptions'!$E$12 -> 3 | I8: =I$4*'Revenue assumptions'!$D$5*'Revenue assumptions'!$E$12 -> 3 | J8: =J$4*'Revenue assumptions'!$D$5*'Revenue assumptions'!$E$12 -> 3 | K8: =K$4*'Revenue assumptions'!$D$5*'Revenue assumptions'!$E$12 -> 3 | L8: =L$4*'Revenue assumptions'!$D$5*'Revenue assumptions'!$E$12 -> 3 | M8: =M$4*'Revenue assumptions'!$D$5*'Revenue assumptions'!$E$12 -> 3 | N8: =N$4*'Revenue assumptions'!$D$5*'Revenue assumptions'!$E$12 -> 3 | O8: =O$4*'Revenue assumptions'!$D$5*'Revenue assumptions'!$E$12 -> 3 | P8: =P$4*'Revenue assumptions'!$D$5*'Revenue assumptions'!$E$12 -> 3 | Q8: =Q$4*'Revenue assumptions'!$D$5*'Revenue assumptions'!$E$12 -> 3 | R8: =R$4*'Revenue assumptions'!$D$5*'Revenue assumptions'!$E$12 -> 3 | S8: =S$4*'Revenue assumptions'!$D$5*'Revenue assumptions'!$E$12 -> 3 | T8: =T$4*'Revenue assumptions'!$D$5*'Revenue assumptions'!$E$12 -> 3 | U8: =U$4*'Revenue assumptions'!$D$5*'Revenue assumptions'!$E$12 -> 3 | V8: =V$4*'Revenue assumptions'!$D$5*'Revenue assumptions'!$E$12 -> 3 | W8: =W$4*'Revenue assumptions'!$D$5*'Revenue assumptions'!$E$12 -> 3 | X8: =X$4*'Revenue assumptions'!$D$5*'Revenue assumptions'!$E$12 -> 3 | Y8: =Y$4*'Revenue assumptions'!$D$5*'Revenue assumptions'!$E$12 -> 3 | Z8: =Z$4*'Revenue assumptions'!$D$5*'Revenue assumptions'!$E$12 -> 3 | AA8: =AA$4*'Revenue assumptions'!$D$5*'Revenue assumptions'!$E$12 -> 3 | AB8: =AB$4*'Revenue assumptions'!$D$5*'Revenue assumptions'!$E$12 -> 3 | AC8: =AC$4*'Revenue assumptions'!$D$5*'Revenue assumptions'!$E$12 -> 3 | AD8: =AD$4*'Revenue assumptions'!$D$5*'Revenue assumptions'!$E$12 -> 3 | AE8: =AE$4*'Revenue assumptions'!$D$5*'Revenue assumptions'!$E$12 -> 3 | AF8: =AF$4*'Revenue assumptions'!$D$5*'Revenue assumptions'!$E$12 -> 3 | AG8: =AG$4*'Revenue assumptions'!$D$5*'Revenue assumptions'!$E$12 -> 3 | AH8: =AH$4*'Revenue assumptions'!$D$5*'Revenue assumptions'!$E$12 -> 3 | AI8: =AI$4*'Revenue assumptions'!$D$5*'Revenue assumptions'!$E$12 -> 3
C9: Gate fees - commercial | D9: $m | F9: =F$4*'Revenue assumptions'!$D$6*'Revenue assumptions'!$E$27 -> 0 | G9: =G$4*'Revenue assumptions'!$D$6*'Revenue assumptions'!$E$27 -> 0 | H9: =H$4*'Revenue assumptions'!$D$6*'Revenue assumptions'!$E$27 -> 0 | I9: =I$4*'Revenue assumptions'!$D$6*'Revenue assumptions'!$E$27 -> 0 | J9: =J$4*'Revenue assumptions'!$D$6*'Revenue assumptions'!$E$27 -> 0 | K9: =K$4*'Revenue assumptions'!$D$6*'Revenue assumptions'!$E$27 -> 0 | L9: =L$4*'Revenue assumptions'!$D$6*'Revenue assumptions'!$E$27 -> 0 | M9: =M$4*'Revenue assumptions'!$D$6*'Revenue assumptions'!$E$27 -> 0 | N9: =N$4*'Revenue assumptions'!$D$6*'Revenue assumptions'!$E$27 -> 0 | O9: =O$4*'Revenue assumptions'!$D$6*'Revenue assumptions'!$E$27 -> 0 | P9: =P$4*'Revenue assumptions'!$D$6*'Revenue assumptions'!$E$27 -> 0 | Q9: =Q$4*'Revenue assumptions'!$D$6*'Revenue assumptions'!$E$27 -> 0 | R9: =R$4*'Revenue assumptions'!$D$6*'Revenue assumptions'!$E$27 -> 0 | S9: =S$4*'Revenue assumptions'!$D$6*'Revenue assumptions'!$E$27 -> 0 | T9: =T$4*'Revenue assumptions'!$D$6*'Revenue assumptions'!$E$27 -> 0 | U9: =U$4*'Revenue assumptions'!$D$6*'Revenue assumptions'!$E$27 -> 0 | V9: =V$4*'Revenue assumptions'!$D$6*'Revenue assumptions'!$E$27 -> 0 | W9: =W$4*'Revenue assumptions'!$D$6*'Revenue assumptions'!$E$27 -> 0 | X9: =X$4*'Revenue assumptions'!$D$6*'Revenue assumptions'!$E$27 -> 0 | Y9: =Y$4*'Revenue assumptions'!$D$6*'Revenue assumptions'!$E$27 -> 0 | Z9: =Z$4*'Revenue assumptions'!$D$6*'Revenue assumptions'!$E$27 -> 0 | AA9: =AA$4*'Revenue assumptions'!$D$6*'Revenue assumptions'!$E$27 -> 0 | AB9: =AB$4*'Revenue assumptions'!$D$6*'Revenue assumptions'!$E$27 -> 0 | AC9: =AC$4*'Revenue assumptions'!$D$6*'Revenue assumptions'!$E$27 -> 0 | AD9: =AD$4*'Revenue assumptions'!$D$6*'Revenue assumptions'!$E$27 -> 0 | AE9: =AE$4*'Revenue assumptions'!$D$6*'Revenue assumptions'!$E$27 -> 0 | AF9: =AF$4*'Revenue assumptions'!$D$6*'Revenue assumptions'!$E$27 -> 0 | AG9: =AG$4*'Revenue assumptions'!$D$6*'Revenue assumptions'!$E$27 -> 0 | AH9: =AH$4*'Revenue assumptions'!$D$6*'Revenue assumptions'!$E$27 -> 0 | AI9: =AI$4*'Revenue assumptions'!$D$6*'Revenue assumptions'!$E$27 -> 0
C10: Product sales - council
C11: =Scenarios!H7 -> paper and cardboard | D11: $m | F11: =F$4*'Revenue assumptions'!$D14*'Revenue assumptions'!$E14*'Revenue assumptions'!$D$5 -> 0 | G11: =G$4*'Revenue assumptions'!$D14*'Revenue assumptions'!$E14*'Revenue assumptions'!$D$5 -> 0 | H11: =H$4*'Revenue assumptions'!$D14*'Revenue assumptions'!$E14*'Revenue assumptions'!$D$5 -> 1.422 | I11: =I$4*'Revenue assumptions'!$D14*'Revenue assumptions'!$E14*'Revenue assumptions'!$D$5 -> 1.422 | J11: =J$4*'Revenue assumptions'!$D14*'Revenue assumptions'!$E14*'Revenue assumptions'!$D$5 -> 1.422 | K11: =K$4*'Revenue assumptions'!$D14*'Revenue assumptions'!$E14*'Revenue assumptions'!$D$5 -> 1.422 | L11: =L$4*'Revenue assumptions'!$D14*'Revenue assumptions'!$E14*'Revenue assumptions'!$D$5 -> 1.422 | M11: =M$4*'Revenue assumptions'!$D14*'Revenue assumptions'!$E14*'Revenue assumptions'!$D$5 -> 1.422 | N11: =N$4*'Revenue assumptions'!$D14*'Revenue assumptions'!$E14*'Revenue assumptions'!$D$5 -> 1.422 | O11: =O$4*'Revenue assumptions'!$D14*'Revenue assumptions'!$E14*'Revenue assumptions'!$D$5 -> 1.422 | P11: =P$4*'Revenue assumptions'!$D14*'Revenue assumptions'!$E14*'Revenue assumptions'!$D$5 -> 1.422 | Q11: =Q$4*'Revenue assumptions'!$D14*'Revenue assumptions'!$E14*'Revenue assumptions'!$D$5 -> 1.422 | R11: =R$4*'Revenue assumptions'!$D14*'Revenue assumptions'!$E14*'Revenue assumptions'!$D$5 -> 1.422 | S11: =S$4*'Revenue assumptions'!$D14*'Revenue assumptions'!$E14*'Revenue assumptions'!$D$5 -> 1.422 | T11: =T$4*'Revenue assumptions'!$D14*'Revenue assumptions'!$E14*'Revenue assumptions'!$D$5 -> 1.422 | U11: =U$4*'Revenue assumptions'!$D14*'Revenue assumptions'!$E14*'Revenue assumptions'!$D$5 -> 1.422 | V11: =V$4*'Revenue assumptions'!$D14*'Revenue assumptions'!$E14*'Revenue assumptions'!$D$5 -> 1.422 | W11: =W$4*'Revenue assumptions'!$D14*'Revenue assumptions'!$E14*'Revenue assumptions'!$D$5 -> 1.422 | X11: =X$4*'Revenue assumptions'!$D14*'Revenue assumptions'!$E14*'Revenue assumptions'!$D$5 -> 1.422 | Y11: =Y$4*'Revenue assumptions'!$D14*'Revenue assumptions'!$E14*'Revenue assumptions'!$D$5 -> 1.422 | Z11: =Z$4*'Revenue assumptions'!$D14*'Revenue assumptions'!$E14*'Revenue assumptions'!$D$5 -> 1.422 | AA11: =AA$4*'Revenue assumptions'!$D14*'Revenue assumptions'!$E14*'Revenue assumptions'!$D$5 -> 1.422 | AB11: =AB$4*'Revenue assumptions'!$D14*'Revenue assumptions'!$E14*'Revenue assumptions'!$D$5 -> 1.422 | AC11: =AC$4*'Revenue assumptions'!$D14*'Revenue assumptions'!$E14*'Revenue assumptions'!$D$5 -> 1.422 | AD11: =AD$4*'Revenue assumptions'!$D14*'Revenue assumptions'!$E14*'Revenue assumptions'!$D$5 -> 1.422 | AE11: =AE$4*'Revenue assumptions'!$D14*'Revenue assumptions'!$E14*'Revenue assumptions'!$D$5 -> 1.422 | AF11: =AF$4*'Revenue assumptions'!$D14*'Revenue assumptions'!$E14*'Revenue assumptions'!$D$5 -> 1.422 | AG11: =AG$4*'Revenue assumptions'!$D14*'Revenue assumptions'!$E14*'Revenue assumptions'!$D$5 -> 1.422 | AH11: =AH$4*'Revenue assumptions'!$D14*'Revenue assumptions'!$E14*'Revenue assumptions'!$D$5 -> 1.422 | AI11: =AI$4*'Revenue assumptions'!$D14*'Revenue assumptions'!$E14*'Revenue assumptions'!$D$5 -> 1.422
C12: =Scenarios!H8 -> aluminium | D12: $m | F12: =F$4*'Revenue assumptions'!$D15*'Revenue assumptions'!$E15*'Revenue assumptions'!$D$5 -> 0 | G12: =G$4*'Revenue assumptions'!$D15*'Revenue assumptions'!$E15*'Revenue assumptions'!$D$5 -> 0 | H12: =H$4*'Revenue assumptions'!$D15*'Revenue assumptions'!$E15*'Revenue assumptions'!$D$5 -> 0.504 | I12: =I$4*'Revenue assumptions'!$D15*'Revenue assumptions'!$E15*'Revenue assumptions'!$D$5 -> 0.504 | J12: =J$4*'Revenue assumptions'!$D15*'Revenue assumptions'!$E15*'Revenue assumptions'!$D$5 -> 0.504 | K12: =K$4*'Revenue assumptions'!$D15*'Revenue assumptions'!$E15*'Revenue assumptions'!$D$5 -> 0.504 | L12: =L$4*'Revenue assumptions'!$D15*'Revenue assumptions'!$E15*'Revenue assumptions'!$D$5 -> 0.504 | M12: =M$4*'Revenue assumptions'!$D15*'Revenue assumptions'!$E15*'Revenue assumptions'!$D$5 -> 0.504 | N12: =N$4*'Revenue assumptions'!$D15*'Revenue assumptions'!$E15*'Revenue assumptions'!$D$5 -> 0.504 | O12: =O$4*'Revenue assumptions'!$D15*'Revenue assumptions'!$E15*'Revenue assumptions'!$D$5 -> 0.504 | P12: =P$4*'Revenue assumptions'!$D15*'Revenue assumptions'!$E15*'Revenue assumptions'!$D$5 -> 0.504 | Q12: =Q$4*'Revenue assumptions'!$D15*'Revenue assumptions'!$E15*'Revenue assumptions'!$D$5 -> 0.504 | R12: =R$4*'Revenue assumptions'!$D15*'Revenue assumptions'!$E15*'Revenue assumptions'!$D$5 -> 0.504 | S12: =S$4*'Revenue assumptions'!$D15*'Revenue assumptions'!$E15*'Revenue assumptions'!$D$5 -> 0.504 | T12: =T$4*'Revenue assumptions'!$D15*'Revenue assumptions'!$E15*'Revenue assumptions'!$D$5 -> 0.504 | U12: =U$4*'Revenue assumptions'!$D15*'Revenue assumptions'!$E15*'Revenue assumptions'!$D$5 -> 0.504 | V12: =V$4*'Revenue assumptions'!$D15*'Revenue assumptions'!$E15*'Revenue assumptions'!$D$5 -> 0.504 | W12: =W$4*'Revenue assumptions'!$D15*'Revenue assumptions'!$E15*'Revenue assumptions'!$D$5 -> 0.504 | X12: =X$4*'Revenue assumptions'!$D15*'Revenue assumptions'!$E15*'Revenue assumptions'!$D$5 -> 0.504 | Y12: =Y$4*'Revenue assumptions'!$D15*'Revenue assumptions'!$E15*'Revenue assumptions'!$D$5 -> 0.504 | Z12: =Z$4*'Revenue assumptions'!$D15*'Revenue assumptions'!$E15*'Revenue assumptions'!$D$5 -> 0.504 | AA12: =AA$4*'Revenue assumptions'!$D15*'Revenue assumptions'!$E15*'Revenue assumptions'!$D$5 -> 0.504 | AB12: =AB$4*'Revenue assumptions'!$D15*'Revenue assumptions'!$E15*'Revenue assumptions'!$D$5 -> 0.504 | AC12: =AC$4*'Revenue assumptions'!$D15*'Revenue assumptions'!$E15*'Revenue assumptions'!$D$5 -> 0.504 | AD12: =AD$4*'Revenue assumptions'!$D15*'Revenue assumptions'!$E15*'Revenue assumptions'!$D$5 -> 0.504 | AE12: =AE$4*'Revenue assumptions'!$D15*'Revenue assumptions'!$E15*'Revenue assumptions'!$D$5 -> 0.504 | AF12: =AF$4*'Revenue assumptions'!$D15*'Revenue assumptions'!$E15*'Revenue assumptions'!$D$5 -> 0.504 | AG12: =AG$4*'Revenue assumptions'!$D15*'Revenue assumptions'!$E15*'Revenue assumptions'!$D$5 -> 0.504 | AH12: =AH$4*'Revenue assumptions'!$D15*'Revenue assumptions'!$E15*'Revenue assumptions'!$D$5 -> 0.504 | AI12: =AI$4*'Revenue assumptions'!$D15*'Revenue assumptions'!$E15*'Revenue assumptions'!$D$5 -> 0.504
C13: =Scenarios!H9 -> other metals | D13: $m | F13: =F$4*'Revenue assumptions'!$D16*'Revenue assumptions'!$E16*'Revenue assumptions'!$D$5 -> 0 | G13: =G$4*'Revenue assumptions'!$D16*'Revenue assumptions'!$E16*'Revenue assumptions'!$D$5 -> 0 | H13: =H$4*'Revenue assumptions'!$D16*'Revenue assumptions'!$E16*'Revenue assumptions'!$D$5 -> 0.0552 | I13: =I$4*'Revenue assumptions'!$D16*'Revenue assumptions'!$E16*'Revenue assumptions'!$D$5 -> 0.0552 | J13: =J$4*'Revenue assumptions'!$D16*'Revenue assumptions'!$E16*'Revenue assumptions'!$D$5 -> 0.0552 | K13: =K$4*'Revenue assumptions'!$D16*'Revenue assumptions'!$E16*'Revenue assumptions'!$D$5 -> 0.0552 | L13: =L$4*'Revenue assumptions'!$D16*'Revenue assumptions'!$E16*'Revenue assumptions'!$D$5 -> 0.0552 | M13: =M$4*'Revenue assumptions'!$D16*'Revenue assumptions'!$E16*'Revenue assumptions'!$D$5 -> 0.0552 | N13: =N$4*'Revenue assumptions'!$D16*'Revenue assumptions'!$E16*'Revenue assumptions'!$D$5 -> 0.0552 | O13: =O$4*'Revenue assumptions'!$D16*'Revenue assumptions'!$E16*'Revenue assumptions'!$D$5 -> 0.0552 | P13: =P$4*'Revenue assumptions'!$D16*'Revenue assumptions'!$E16*'Revenue assumptions'!$D$5 -> 0.0552 | Q13: =Q$4*'Revenue assumptions'!$D16*'Revenue assumptions'!$E16*'Revenue assumptions'!$D$5 -> 0.0552 | R13: =R$4*'Revenue assumptions'!$D16*'Revenue assumptions'!$E16*'Revenue assumptions'!$D$5 -> 0.0552 | S13: =S$4*'Revenue assumptions'!$D16*'Revenue assumptions'!$E16*'Revenue assumptions'!$D$5 -> 0.0552 | T13: =T$4*'Revenue assumptions'!$D16*'Revenue assumptions'!$E16*'Revenue assumptions'!$D$5 -> 0.0552 | U13: =U$4*'Revenue assumptions'!$D16*'Revenue assumptions'!$E16*'Revenue assumptions'!$D$5 -> 0.0552 | V13: =V$4*'Revenue assumptions'!$D16*'Revenue assumptions'!$E16*'Revenue assumptions'!$D$5 -> 0.0552 | W13: =W$4*'Revenue assumptions'!$D16*'Revenue assumptions'!$E16*'Revenue assumptions'!$D$5 -> 0.0552 | X13: =X$4*'Revenue assumptions'!$D16*'Revenue assumptions'!$E16*'Revenue assumptions'!$D$5 -> 0.0552 | Y13: =Y$4*'Revenue assumptions'!$D16*'Revenue assumptions'!$E16*'Revenue assumptions'!$D$5 -> 0.0552 | Z13: =Z$4*'Revenue assumptions'!$D16*'Revenue assumptions'!$E16*'Revenue assumptions'!$D$5 -> 0.0552 | AA13: =AA$4*'Revenue assumptions'!$D16*'Revenue assumptions'!$E16*'Revenue assumptions'!$D$5 -> 0.0552 | AB13: =AB$4*'Revenue assumptions'!$D16*'Revenue assumptions'!$E16*'Revenue assumptions'!$D$5 -> 0.0552 | AC13: =AC$4*'Revenue assumptions'!$D16*'Revenue assumptions'!$E16*'Revenue assumptions'!$D$5 -> 0.0552 | AD13: =AD$4*'Revenue assumptions'!$D16*'Revenue assumptions'!$E16*'Revenue assumptions'!$D$5 -> 0.0552 | AE13: =AE$4*'Revenue assumptions'!$D16*'Revenue assumptions'!$E16*'Revenue assumptions'!$D$5 -> 0.0552 | AF13: =AF$4*'Revenue assumptions'!$D16*'Revenue assumptions'!$E16*'Revenue assumptions'!$D$5 -> 0.0552 | AG13: =AG$4*'Revenue assumptions'!$D16*'Revenue assumptions'!$E16*'Revenue assumptions'!$D$5 -> 0.0552 | AH13: =AH$4*'Revenue assumptions'!$D16*'Revenue assumptions'!$E16*'Revenue assumptions'!$D$5 -> 0.0552 | AI13: =AI$4*'Revenue assumptions'!$D16*'Revenue assumptions'!$E16*'Revenue assumptions'!$D$5 -> 0.0552
C14: =Scenarios!H10 -> glass | D14: $m | F14: =F$4*'Revenue assumptions'!$D17*'Revenue assumptions'!$E17*'Revenue assumptions'!$D$5 -> 0 | G14: =G$4*'Revenue assumptions'!$D17*'Revenue assumptions'!$E17*'Revenue assumptions'!$D$5 -> 0 | H14: =H$4*'Revenue assumptions'!$D17*'Revenue assumptions'!$E17*'Revenue assumptions'!$D$5 -> -1.4196 | I14: =I$4*'Revenue assumptions'!$D17*'Revenue assumptions'!$E17*'Revenue assumptions'!$D$5 -> -1.4196 | J14: =J$4*'Revenue assumptions'!$D17*'Revenue assumptions'!$E17*'Revenue assumptions'!$D$5 -> -1.4196 | K14: =K$4*'Revenue assumptions'!$D17*'Revenue assumptions'!$E17*'Revenue assumptions'!$D$5 -> -1.4196 | L14: =L$4*'Revenue assumptions'!$D17*'Revenue assumptions'!$E17*'Revenue assumptions'!$D$5 -> -1.4196 | M14: =M$4*'Revenue assumptions'!$D17*'Revenue assumptions'!$E17*'Revenue assumptions'!$D$5 -> -1.4196 | N14: =N$4*'Revenue assumptions'!$D17*'Revenue assumptions'!$E17*'Revenue assumptions'!$D$5 -> -1.4196 | O14: =O$4*'Revenue assumptions'!$D17*'Revenue assumptions'!$E17*'Revenue assumptions'!$D$5 -> -1.4196 | P14: =P$4*'Revenue assumptions'!$D17*'Revenue assumptions'!$E17*'Revenue assumptions'!$D$5 -> -1.4196 | Q14: =Q$4*'Revenue assumptions'!$D17*'Revenue assumptions'!$E17*'Revenue assumptions'!$D$5 -> -1.4196 | R14: =R$4*'Revenue assumptions'!$D17*'Revenue assumptions'!$E17*'Revenue assumptions'!$D$5 -> -1.4196 | S14: =S$4*'Revenue assumptions'!$D17*'Revenue assumptions'!$E17*'Revenue assumptions'!$D$5 -> -1.4196 | T14: =T$4*'Revenue assumptions'!$D17*'Revenue assumptions'!$E17*'Revenue assumptions'!$D$5 -> -1.4196 | U14: =U$4*'Revenue assumptions'!$D17*'Revenue assumptions'!$E17*'Revenue assumptions'!$D$5 -> -1.4196 | V14: =V$4*'Revenue assumptions'!$D17*'Revenue assumptions'!$E17*'Revenue assumptions'!$D$5 -> -1.4196 | W14: =W$4*'Revenue assumptions'!$D17*'Revenue assumptions'!$E17*'Revenue assumptions'!$D$5 -> -1.4196 | X14: =X$4*'Revenue assumptions'!$D17*'Revenue assumptions'!$E17*'Revenue assumptions'!$D$5 -> -1.4196 | Y14: =Y$4*'Revenue assumptions'!$D17*'Revenue assumptions'!$E17*'Revenue assumptions'!$D$5 -> -1.4196 | Z14: =Z$4*'Revenue assumptions'!$D17*'Revenue assumptions'!$E17*'Revenue assumptions'!$D$5 -> -1.4196 | AA14: =AA$4*'Revenue assumptions'!$D17*'Revenue assumptions'!$E17*'Revenue assumptions'!$D$5 -> -1.4196 | AB14: =AB$4*'Revenue assumptions'!$D17*'Revenue assumptions'!$E17*'Revenue assumptions'!$D$5 -> -1.4196 | AC14: =AC$4*'Revenue assumptions'!$D17*'Revenue assumptions'!$E17*'Revenue assumptions'!$D$5 -> -1.4196 | AD14: =AD$4*'Revenue assumptions'!$D17*'Revenue assumptions'!$E17*'Revenue assumptions'!$D$5 -> -1.4196 | AE14: =AE$4*'Revenue assumptions'!$D17*'Revenue assumptions'!$E17*'Revenue assumptions'!$D$5 -> -1.4196 | AF14: =AF$4*'Revenue assumptions'!$D17*'Revenue assumptions'!$E17*'Revenue assumptions'!$D$5 -> -1.4196 | AG14: =AG$4*'Revenue assumptions'!$D17*'Revenue assumptions'!$E17*'Revenue assumptions'!$D$5 -> -1.4196 | AH14: =AH$4*'Revenue assumptions'!$D17*'Revenue assumptions'!$E17*'Revenue assumptions'!$D$5 -> -1.4196 | AI14: =AI$4*'Revenue assumptions'!$D17*'Revenue assumptions'!$E17*'Revenue assumptions'!$D$5 -> -1.4196
C15: =Scenarios!H11 -> plastics - mixed | D15: $m | F15: =F$4*'Revenue assumptions'!$D18*'Revenue assumptions'!$E18*'Revenue assumptions'!$D$5 -> 0 | G15: =G$4*'Revenue assumptions'!$D18*'Revenue assumptions'!$E18*'Revenue assumptions'!$D$5 -> 0 | H15: =H$4*'Revenue assumptions'!$D18*'Revenue assumptions'!$E18*'Revenue assumptions'!$D$5 -> 0.732 | I15: =I$4*'Revenue assumptions'!$D18*'Revenue assumptions'!$E18*'Revenue assumptions'!$D$5 -> 0.732 | J15: =J$4*'Revenue assumptions'!$D18*'Revenue assumptions'!$E18*'Revenue assumptions'!$D$5 -> 0.732 | K15: =K$4*'Revenue assumptions'!$D18*'Revenue assumptions'!$E18*'Revenue assumptions'!$D$5 -> 0.732 | L15: =L$4*'Revenue assumptions'!$D18*'Revenue assumptions'!$E18*'Revenue assumptions'!$D$5 -> 0.732 | M15: =M$4*'Revenue assumptions'!$D18*'Revenue assumptions'!$E18*'Revenue assumptions'!$D$5 -> 0.732 | N15: =N$4*'Revenue assumptions'!$D18*'Revenue assumptions'!$E18*'Revenue assumptions'!$D$5 -> 0.732 | O15: =O$4*'Revenue assumptions'!$D18*'Revenue assumptions'!$E18*'Revenue assumptions'!$D$5 -> 0.732 | P15: =P$4*'Revenue assumptions'!$D18*'Revenue assumptions'!$E18*'Revenue assumptions'!$D$5 -> 0.732 | Q15: =Q$4*'Revenue assumptions'!$D18*'Revenue assumptions'!$E18*'Revenue assumptions'!$D$5 -> 0.732 | R15: =R$4*'Revenue assumptions'!$D18*'Revenue assumptions'!$E18*'Revenue assumptions'!$D$5 -> 0.732 | S15: =S$4*'Revenue assumptions'!$D18*'Revenue assumptions'!$E18*'Revenue assumptions'!$D$5 -> 0.732 | T15: =T$4*'Revenue assumptions'!$D18*'Revenue assumptions'!$E18*'Revenue assumptions'!$D$5 -> 0.732 | U15: =U$4*'Revenue assumptions'!$D18*'Revenue assumptions'!$E18*'Revenue assumptions'!$D$5 -> 0.732 | V15: =V$4*'Revenue assumptions'!$D18*'Revenue assumptions'!$E18*'Revenue assumptions'!$D$5 -> 0.732 | W15: =W$4*'Revenue assumptions'!$D18*'Revenue assumptions'!$E18*'Revenue assumptions'!$D$5 -> 0.732 | X15: =X$4*'Revenue assumptions'!$D18*'Revenue assumptions'!$E18*'Revenue assumptions'!$D$5 -> 0.732 | Y15: =Y$4*'Revenue assumptions'!$D18*'Revenue assumptions'!$E18*'Revenue assumptions'!$D$5 -> 0.732 | Z15: =Z$4*'Revenue assumptions'!$D18*'Revenue assumptions'!$E18*'Revenue assumptions'!$D$5 -> 0.732 | AA15: =AA$4*'Revenue assumptions'!$D18*'Revenue assumptions'!$E18*'Revenue assumptions'!$D$5 -> 0.732 | AB15: =AB$4*'Revenue assumptions'!$D18*'Revenue assumptions'!$E18*'Revenue assumptions'!$D$5 -> 0.732 | AC15: =AC$4*'Revenue assumptions'!$D18*'Revenue assumptions'!$E18*'Revenue assumptions'!$D$5 -> 0.732 | AD15: =AD$4*'Revenue assumptions'!$D18*'Revenue assumptions'!$E18*'Revenue assumptions'!$D$5 -> 0.732 | AE15: =AE$4*'Revenue assumptions'!$D18*'Revenue assumptions'!$E18*'Revenue assumptions'!$D$5 -> 0.732 | AF15: =AF$4*'Revenue assumptions'!$D18*'Revenue assumptions'!$E18*'Revenue assumptions'!$D$5 -> 0.732 | AG15: =AG$4*'Revenue assumptions'!$D18*'Revenue assumptions'!$E18*'Revenue assumptions'!$D$5 -> 0.732 | AH15: =AH$4*'Revenue assumptions'!$D18*'Revenue assumptions'!$E18*'Revenue assumptions'!$D$5 -> 0.732 | AI15: =AI$4*'Revenue assumptions'!$D18*'Revenue assumptions'!$E18*'Revenue assumptions'!$D$5 -> 0.732
C16: =Scenarios!H12 -> plastics - hdpe | F16: =F$4*'Revenue assumptions'!$D19*'Revenue assumptions'!$E19*'Revenue assumptions'!$D$5 -> 0 | G16: =G$4*'Revenue assumptions'!$D19*'Revenue assumptions'!$E19*'Revenue assumptions'!$D$5 -> 0 | H16: =H$4*'Revenue assumptions'!$D19*'Revenue assumptions'!$E19*'Revenue assumptions'!$D$5 -> 0 | I16: =I$4*'Revenue assumptions'!$D19*'Revenue assumptions'!$E19*'Revenue assumptions'!$D$5 -> 0 | J16: =J$4*'Revenue assumptions'!$D19*'Revenue assumptions'!$E19*'Revenue assumptions'!$D$5 -> 0 | K16: =K$4*'Revenue assumptions'!$D19*'Revenue assumptions'!$E19*'Revenue assumptions'!$D$5 -> 0 | L16: =L$4*'Revenue assumptions'!$D19*'Revenue assumptions'!$E19*'Revenue assumptions'!$D$5 -> 0 | M16: =M$4*'Revenue assumptions'!$D19*'Revenue assumptions'!$E19*'Revenue assumptions'!$D$5 -> 0 | N16: =N$4*'Revenue assumptions'!$D19*'Revenue assumptions'!$E19*'Revenue assumptions'!$D$5 -> 0 | O16: =O$4*'Revenue assumptions'!$D19*'Revenue assumptions'!$E19*'Revenue assumptions'!$D$5 -> 0 | P16: =P$4*'Revenue assumptions'!$D19*'Revenue assumptions'!$E19*'Revenue assumptions'!$D$5 -> 0 | Q16: =Q$4*'Revenue assumptions'!$D19*'Revenue assumptions'!$E19*'Revenue assumptions'!$D$5 -> 0 | R16: =R$4*'Revenue assumptions'!$D19*'Revenue assumptions'!$E19*'Revenue assumptions'!$D$5 -> 0 | S16: =S$4*'Revenue assumptions'!$D19*'Revenue assumptions'!$E19*'Revenue assumptions'!$D$5 -> 0 | T16: =T$4*'Revenue assumptions'!$D19*'Revenue assumptions'!$E19*'Revenue assumptions'!$D$5 -> 0 | U16: =U$4*'Revenue assumptions'!$D19*'Revenue assumptions'!$E19*'Revenue assumptions'!$D$5 -> 0 | V16: =V$4*'Revenue assumptions'!$D19*'Revenue assumptions'!$E19*'Revenue assumptions'!$D$5 -> 0 | W16: =W$4*'Revenue assumptions'!$D19*'Revenue assumptions'!$E19*'Revenue assumptions'!$D$5 -> 0 | X16: =X$4*'Revenue assumptions'!$D19*'Revenue assumptions'!$E19*'Revenue assumptions'!$D$5 -> 0 | Y16: =Y$4*'Revenue assumptions'!$D19*'Revenue assumptions'!$E19*'Revenue assumptions'!$D$5 -> 0 | Z16: =Z$4*'Revenue assumptions'!$D19*'Revenue assumptions'!$E19*'Revenue assumptions'!$D$5 -> 0 | AA16: =AA$4*'Revenue assumptions'!$D19*'Revenue assumptions'!$E19*'Revenue assumptions'!$D$5 -> 0 | AB16: =AB$4*'Revenue assumptions'!$D19*'Revenue assumptions'!$E19*'Revenue assumptions'!$D$5 -> 0 | AC16: =AC$4*'Revenue assumptions'!$D19*'Revenue assumptions'!$E19*'Revenue assumptions'!$D$5 -> 0 | AD16: =AD$4*'Revenue assumptions'!$D19*'Revenue assumptions'!$E19*'Revenue assumptions'!$D$5 -> 0 | AE16: =AE$4*'Revenue assumptions'!$D19*'Revenue assumptions'!$E19*'Revenue assumptions'!$D$5 -> 0 | AF16: =AF$4*'Revenue assumptions'!$D19*'Revenue assumptions'!$E19*'Revenue assumptions'!$D$5 -> 0 | AG16: =AG$4*'Revenue assumptions'!$D19*'Revenue assumptions'!$E19*'Revenue assumptions'!$D$5 -> 0 | AH16: =AH$4*'Revenue assumptions'!$D19*'Revenue assumptions'!$E19*'Revenue assumptions'!$D$5 -> 0 | AI16: =AI$4*'Revenue assumptions'!$D19*'Revenue assumptions'!$E19*'Revenue assumptions'!$D$5 -> 0
C17: =Scenarios!H13 -> plastics - PET | F17: =F$4*'Revenue assumptions'!$D20*'Revenue assumptions'!$E20*'Revenue assumptions'!$D$5 -> 0 | G17: =G$4*'Revenue assumptions'!$D20*'Revenue assumptions'!$E20*'Revenue assumptions'!$D$5 -> 0 | H17: =H$4*'Revenue assumptions'!$D20*'Revenue assumptions'!$E20*'Revenue assumptions'!$D$5 -> 0 | I17: =I$4*'Revenue assumptions'!$D20*'Revenue assumptions'!$E20*'Revenue assumptions'!$D$5 -> 0 | J17: =J$4*'Revenue assumptions'!$D20*'Revenue assumptions'!$E20*'Revenue assumptions'!$D$5 -> 0 | K17: =K$4*'Revenue assumptions'!$D20*'Revenue assumptions'!$E20*'Revenue assumptions'!$D$5 -> 0 | L17: =L$4*'Revenue assumptions'!$D20*'Revenue assumptions'!$E20*'Revenue assumptions'!$D$5 -> 0 | M17: =M$4*'Revenue assumptions'!$D20*'Revenue assumptions'!$E20*'Revenue assumptions'!$D$5 -> 0 | N17: =N$4*'Revenue assumptions'!$D20*'Revenue assumptions'!$E20*'Revenue assumptions'!$D$5 -> 0 | O17: =O$4*'Revenue assumptions'!$D20*'Revenue assumptions'!$E20*'Revenue assumptions'!$D$5 -> 0 | P17: =P$4*'Revenue assumptions'!$D20*'Revenue assumptions'!$E20*'Revenue assumptions'!$D$5 -> 0 | Q17: =Q$4*'Revenue assumptions'!$D20*'Revenue assumptions'!$E20*'Revenue assumptions'!$D$5 -> 0 | R17: =R$4*'Revenue assumptions'!$D20*'Revenue assumptions'!$E20*'Revenue assumptions'!$D$5 -> 0 | S17: =S$4*'Revenue assumptions'!$D20*'Revenue assumptions'!$E20*'Revenue assumptions'!$D$5 -> 0 | T17: =T$4*'Revenue assumptions'!$D20*'Revenue assumptions'!$E20*'Revenue assumptions'!$D$5 -> 0 | U17: =U$4*'Revenue assumptions'!$D20*'Revenue assumptions'!$E20*'Revenue assumptions'!$D$5 -> 0 | V17: =V$4*'Revenue assumptions'!$D20*'Revenue assumptions'!$E20*'Revenue assumptions'!$D$5 -> 0 | W17: =W$4*'Revenue assumptions'!$D20*'Revenue assumptions'!$E20*'Revenue assumptions'!$D$5 -> 0 | X17: =X$4*'Revenue assumptions'!$D20*'Revenue assumptions'!$E20*'Revenue assumptions'!$D$5 -> 0 | Y17: =Y$4*'Revenue assumptions'!$D20*'Revenue assumptions'!$E20*'Revenue assumptions'!$D$5 -> 0 | Z17: =Z$4*'Revenue assumptions'!$D20*'Revenue assumptions'!$E20*'Revenue assumptions'!$D$5 -> 0 | AA17: =AA$4*'Revenue assumptions'!$D20*'Revenue assumptions'!$E20*'Revenue assumptions'!$D$5 -> 0 | AB17: =AB$4*'Revenue assumptions'!$D20*'Revenue assumptions'!$E20*'Revenue assumptions'!$D$5 -> 0 | AC17: =AC$4*'Revenue assumptions'!$D20*'Revenue assumptions'!$E20*'Revenue assumptions'!$D$5 -> 0 | AD17: =AD$4*'Revenue assumptions'!$D20*'Revenue assumptions'!$E20*'Revenue assumptions'!$D$5 -> 0 | AE17: =AE$4*'Revenue assumptions'!$D20*'Revenue assumptions'!$E20*'Revenue assumptions'!$D$5 -> 0 | AF17: =AF$4*'Revenue assumptions'!$D20*'Revenue assumptions'!$E20*'Revenue assumptions'!$D$5 -> 0 | AG17: =AG$4*'Revenue assumptions'!$D20*'Revenue assumptions'!$E20*'Revenue assumptions'!$D$5 -> 0 | AH17: =AH$4*'Revenue assumptions'!$D20*'Revenue assumptions'!$E20*'Revenue assumptions'!$D$5 -> 0 | AI17: =AI$4*'Revenue assumptions'!$D20*'Revenue assumptions'!$E20*'Revenue assumptions'!$D$5 -> 0
C18: =Scenarios!H14 -> other | D18: $m | F18: =F$4*'Revenue assumptions'!$D21*'Revenue assumptions'!$E21*'Revenue assumptions'!$D$5 -> 0 | G18: =G$4*'Revenue assumptions'!$D21*'Revenue assumptions'!$E21*'Revenue assumptions'!$D$5 -> 0 | H18: =H$4*'Revenue assumptions'!$D21*'Revenue assumptions'!$E21*'Revenue assumptions'!$D$5 -> 0 | I18: =I$4*'Revenue assumptions'!$D21*'Revenue assumptions'!$E21*'Revenue assumptions'!$D$5 -> 0 | J18: =J$4*'Revenue assumptions'!$D21*'Revenue assumptions'!$E21*'Revenue assumptions'!$D$5 -> 0 | K18: =K$4*'Revenue assumptions'!$D21*'Revenue assumptions'!$E21*'Revenue assumptions'!$D$5 -> 0 | L18: =L$4*'Revenue assumptions'!$D21*'Revenue assumptions'!$E21*'Revenue assumptions'!$D$5 -> 0 | M18: =M$4*'Revenue assumptions'!$D21*'Revenue assumptions'!$E21*'Revenue assumptions'!$D$5 -> 0 | N18: =N$4*'Revenue assumptions'!$D21*'Revenue assumptions'!$E21*'Revenue assumptions'!$D$5 -> 0 | O18: =O$4*'Revenue assumptions'!$D21*'Revenue assumptions'!$E21*'Revenue assumptions'!$D$5 -> 0 | P18: =P$4*'Revenue assumptions'!$D21*'Revenue assumptions'!$E21*'Revenue assumptions'!$D$5 -> 0 | Q18: =Q$4*'Revenue assumptions'!$D21*'Revenue assumptions'!$E21*'Revenue assumptions'!$D$5 -> 0 | R18: =R$4*'Revenue assumptions'!$D21*'Revenue assumptions'!$E21*'Revenue assumptions'!$D$5 -> 0 | S18: =S$4*'Revenue assumptions'!$D21*'Revenue assumptions'!$E21*'Revenue assumptions'!$D$5 -> 0 | T18: =T$4*'Revenue assumptions'!$D21*'Revenue assumptions'!$E21*'Revenue assumptions'!$D$5 -> 0 | U18: =U$4*'Revenue assumptions'!$D21*'Revenue assumptions'!$E21*'Revenue assumptions'!$D$5 -> 0 | V18: =V$4*'Revenue assumptions'!$D21*'Revenue assumptions'!$E21*'Revenue assumptions'!$D$5 -> 0 | W18: =W$4*'Revenue assumptions'!$D21*'Revenue assumptions'!$E21*'Revenue assumptions'!$D$5 -> 0 | X18: =X$4*'Revenue assumptions'!$D21*'Revenue assumptions'!$E21*'Revenue assumptions'!$D$5 -> 0 | Y18: =Y$4*'Revenue assumptions'!$D21*'Revenue assumptions'!$E21*'Revenue assumptions'!$D$5 -> 0 | Z18: =Z$4*'Revenue assumptions'!$D21*'Revenue assumptions'!$E21*'Revenue assumptions'!$D$5 -> 0 | AA18: =AA$4*'Revenue assumptions'!$D21*'Revenue assumptions'!$E21*'Revenue assumptions'!$D$5 -> 0 | AB18: =AB$4*'Revenue assumptions'!$D21*'Revenue assumptions'!$E21*'Revenue assumptions'!$D$5 -> 0 | AC18: =AC$4*'Revenue assumptions'!$D21*'Revenue assumptions'!$E21*'Revenue assumptions'!$D$5 -> 0 | AD18: =AD$4*'Revenue assumptions'!$D21*'Revenue assumptions'!$E21*'Revenue assumptions'!$D$5 -> 0 | AE18: =AE$4*'Revenue assumptions'!$D21*'Revenue assumptions'!$E21*'Revenue assumptions'!$D$5 -> 0 | AF18: =AF$4*'Revenue assumptions'!$D21*'Revenue assumptions'!$E21*'Revenue assumptions'!$D$5 -> 0 | AG18: =AG$4*'Revenue assumptions'!$D21*'Revenue assumptions'!$E21*'Revenue assumptions'!$D$5 -> 0 | AH18: =AH$4*'Revenue assumptions'!$D21*'Revenue assumptions'!$E21*'Revenue assumptions'!$D$5 -> 0 | AI18: =AI$4*'Revenue assumptions'!$D21*'Revenue assumptions'!$E21*'Revenue assumptions'!$D$5 -> 0
C19: Product sales - commercial
C20: =C11 -> paper and cardboard | D20: $m | F20: =F$4*'Revenue assumptions'!$D29*'Revenue assumptions'!$E29*'Revenue assumptions'!$D$6 -> 0 | G20: =G$4*'Revenue assumptions'!$D29*'Revenue assumptions'!$E29*'Revenue assumptions'!$D$6 -> 0 | H20: =H$4*'Revenue assumptions'!$D29*'Revenue assumptions'!$E29*'Revenue assumptions'!$D$6 -> 0 | I20: =I$4*'Revenue assumptions'!$D29*'Revenue assumptions'!$E29*'Revenue assumptions'!$D$6 -> 0 | J20: =J$4*'Revenue assumptions'!$D29*'Revenue assumptions'!$E29*'Revenue assumptions'!$D$6 -> 0 | K20: =K$4*'Revenue assumptions'!$D29*'Revenue assumptions'!$E29*'Revenue assumptions'!$D$6 -> 0 | L20: =L$4*'Revenue assumptions'!$D29*'Revenue assumptions'!$E29*'Revenue assumptions'!$D$6 -> 0 | M20: =M$4*'Revenue assumptions'!$D29*'Revenue assumptions'!$E29*'Revenue assumptions'!$D$6 -> 0 | N20: =N$4*'Revenue assumptions'!$D29*'Revenue assumptions'!$E29*'Revenue assumptions'!$D$6 -> 0 | O20: =O$4*'Revenue assumptions'!$D29*'Revenue assumptions'!$E29*'Revenue assumptions'!$D$6 -> 0 | P20: =P$4*'Revenue assumptions'!$D29*'Revenue assumptions'!$E29*'Revenue assumptions'!$D$6 -> 0 | Q20: =Q$4*'Revenue assumptions'!$D29*'Revenue assumptions'!$E29*'Revenue assumptions'!$D$6 -> 0 | R20: =R$4*'Revenue assumptions'!$D29*'Revenue assumptions'!$E29*'Revenue assumptions'!$D$6 -> 0 | S20: =S$4*'Revenue assumptions'!$D29*'Revenue assumptions'!$E29*'Revenue assumptions'!$D$6 -> 0 | T20: =T$4*'Revenue assumptions'!$D29*'Revenue assumptions'!$E29*'Revenue assumptions'!$D$6 -> 0 | U20: =U$4*'Revenue assumptions'!$D29*'Revenue assumptions'!$E29*'Revenue assumptions'!$D$6 -> 0 | V20: =V$4*'Revenue assumptions'!$D29*'Revenue assumptions'!$E29*'Revenue assumptions'!$D$6 -> 0 | W20: =W$4*'Revenue assumptions'!$D29*'Revenue assumptions'!$E29*'Revenue assumptions'!$D$6 -> 0 | X20: =X$4*'Revenue assumptions'!$D29*'Revenue assumptions'!$E29*'Revenue assumptions'!$D$6 -> 0 | Y20: =Y$4*'Revenue assumptions'!$D29*'Revenue assumptions'!$E29*'Revenue assumptions'!$D$6 -> 0 | Z20: =Z$4*'Revenue assumptions'!$D29*'Revenue assumptions'!$E29*'Revenue assumptions'!$D$6 -> 0 | AA20: =AA$4*'Revenue assumptions'!$D29*'Revenue assumptions'!$E29*'Revenue assumptions'!$D$6 -> 0 | AB20: =AB$4*'Revenue assumptions'!$D29*'Revenue assumptions'!$E29*'Revenue assumptions'!$D$6 -> 0 | AC20: =AC$4*'Revenue assumptions'!$D29*'Revenue assumptions'!$E29*'Revenue assumptions'!$D$6 -> 0 | AD20: =AD$4*'Revenue assumptions'!$D29*'Revenue assumptions'!$E29*'Revenue assumptions'!$D$6 -> 0 | AE20: =AE$4*'Revenue assumptions'!$D29*'Revenue assumptions'!$E29*'Revenue assumptions'!$D$6 -> 0 | AF20: =AF$4*'Revenue assumptions'!$D29*'Revenue assumptions'!$E29*'Revenue assumptions'!$D$6 -> 0 | AG20: =AG$4*'Revenue assumptions'!$D29*'Revenue assumptions'!$E29*'Revenue assumptions'!$D$6 -> 0 | AH20: =AH$4*'Revenue assumptions'!$D29*'Revenue assumptions'!$E29*'Revenue assumptions'!$D$6 -> 0 | AI20: =AI$4*'Revenue assumptions'!$D29*'Revenue assumptions'!$E29*'Revenue assumptions'!$D$6 -> 0
C21: aluminium | D21: $m | F21: =F$4*'Revenue assumptions'!$D30*'Revenue assumptions'!$E30*'Revenue assumptions'!$D$6 -> 0 | G21: =G$4*'Revenue assumptions'!$D30*'Revenue assumptions'!$E30*'Revenue assumptions'!$D$6 -> 0 | H21: =H$4*'Revenue assumptions'!$D30*'Revenue assumptions'!$E30*'Revenue assumptions'!$D$6 -> 0 | I21: =I$4*'Revenue assumptions'!$D30*'Revenue assumptions'!$E30*'Revenue assumptions'!$D$6 -> 0 | J21: =J$4*'Revenue assumptions'!$D30*'Revenue assumptions'!$E30*'Revenue assumptions'!$D$6 -> 0 | K21: =K$4*'Revenue assumptions'!$D30*'Revenue assumptions'!$E30*'Revenue assumptions'!$D$6 -> 0 | L21: =L$4*'Revenue assumptions'!$D30*'Revenue assumptions'!$E30*'Revenue assumptions'!$D$6 -> 0 | M21: =M$4*'Revenue assumptions'!$D30*'Revenue assumptions'!$E30*'Revenue assumptions'!$D$6 -> 0 | N21: =N$4*'Revenue assumptions'!$D30*'Revenue assumptions'!$E30*'Revenue assumptions'!$D$6 -> 0 | O21: =O$4*'Revenue assumptions'!$D30*'Revenue assumptions'!$E30*'Revenue assumptions'!$D$6 -> 0 | P21: =P$4*'Revenue assumptions'!$D30*'Revenue assumptions'!$E30*'Revenue assumptions'!$D$6 -> 0 | Q21: =Q$4*'Revenue assumptions'!$D30*'Revenue assumptions'!$E30*'Revenue assumptions'!$D$6 -> 0 | R21: =R$4*'Revenue assumptions'!$D30*'Revenue assumptions'!$E30*'Revenue assumptions'!$D$6 -> 0 | S21: =S$4*'Revenue assumptions'!$D30*'Revenue assumptions'!$E30*'Revenue assumptions'!$D$6 -> 0 | T21: =T$4*'Revenue assumptions'!$D30*'Revenue assumptions'!$E30*'Revenue assumptions'!$D$6 -> 0 | U21: =U$4*'Revenue assumptions'!$D30*'Revenue assumptions'!$E30*'Revenue assumptions'!$D$6 -> 0 | V21: =V$4*'Revenue assumptions'!$D30*'Revenue assumptions'!$E30*'Revenue assumptions'!$D$6 -> 0 | W21: =W$4*'Revenue assumptions'!$D30*'Revenue assumptions'!$E30*'Revenue assumptions'!$D$6 -> 0 | X21: =X$4*'Revenue assumptions'!$D30*'Revenue assumptions'!$E30*'Revenue assumptions'!$D$6 -> 0 | Y21: =Y$4*'Revenue assumptions'!$D30*'Revenue assumptions'!$E30*'Revenue assumptions'!$D$6 -> 0 | Z21: =Z$4*'Revenue assumptions'!$D30*'Revenue assumptions'!$E30*'Revenue assumptions'!$D$6 -> 0 | AA21: =AA$4*'Revenue assumptions'!$D30*'Revenue assumptions'!$E30*'Revenue assumptions'!$D$6 -> 0 | AB21: =AB$4*'Revenue assumptions'!$D30*'Revenue assumptions'!$E30*'Revenue assumptions'!$D$6 -> 0 | AC21: =AC$4*'Revenue assumptions'!$D30*'Revenue assumptions'!$E30*'Revenue assumptions'!$D$6 -> 0 | AD21: =AD$4*'Revenue assumptions'!$D30*'Revenue assumptions'!$E30*'Revenue assumptions'!$D$6 -> 0 | AE21: =AE$4*'Revenue assumptions'!$D30*'Revenue assumptions'!$E30*'Revenue assumptions'!$D$6 -> 0 | AF21: =AF$4*'Revenue assumptions'!$D30*'Revenue assumptions'!$E30*'Revenue assumptions'!$D$6 -> 0 | AG21: =AG$4*'Revenue assumptions'!$D30*'Revenue assumptions'!$E30*'Revenue assumptions'!$D$6 -> 0 | AH21: =AH$4*'Revenue assumptions'!$D30*'Revenue assumptions'!$E30*'Revenue assumptions'!$D$6 -> 0 | AI21: =AI$4*'Revenue assumptions'!$D30*'Revenue assumptions'!$E30*'Revenue assumptions'!$D$6 -> 0
C22: other metals | D22: $m | F22: =F$4*'Revenue assumptions'!$D31*'Revenue assumptions'!$E31*'Revenue assumptions'!$D$6 -> 0 | G22: =G$4*'Revenue assumptions'!$D31*'Revenue assumptions'!$E31*'Revenue assumptions'!$D$6 -> 0 | H22: =H$4*'Revenue assumptions'!$D31*'Revenue assumptions'!$E31*'Revenue assumptions'!$D$6 -> 0 | I22: =I$4*'Revenue assumptions'!$D31*'Revenue assumptions'!$E31*'Revenue assumptions'!$D$6 -> 0 | J22: =J$4*'Revenue assumptions'!$D31*'Revenue assumptions'!$E31*'Revenue assumptions'!$D$6 -> 0 | K22: =K$4*'Revenue assumptions'!$D31*'Revenue assumptions'!$E31*'Revenue assumptions'!$D$6 -> 0 | L22: =L$4*'Revenue assumptions'!$D31*'Revenue assumptions'!$E31*'Revenue assumptions'!$D$6 -> 0 | M22: =M$4*'Revenue assumptions'!$D31*'Revenue assumptions'!$E31*'Revenue assumptions'!$D$6 -> 0 | N22: =N$4*'Revenue assumptions'!$D31*'Revenue assumptions'!$E31*'Revenue assumptions'!$D$6 -> 0 | O22: =O$4*'Revenue assumptions'!$D31*'Revenue assumptions'!$E31*'Revenue assumptions'!$D$6 -> 0 | P22: =P$4*'Revenue assumptions'!$D31*'Revenue assumptions'!$E31*'Revenue assumptions'!$D$6 -> 0 | Q22: =Q$4*'Revenue assumptions'!$D31*'Revenue assumptions'!$E31*'Revenue assumptions'!$D$6 -> 0 | R22: =R$4*'Revenue assumptions'!$D31*'Revenue assumptions'!$E31*'Revenue assumptions'!$D$6 -> 0 | S22: =S$4*'Revenue assumptions'!$D31*'Revenue assumptions'!$E31*'Revenue assumptions'!$D$6 -> 0 | T22: =T$4*'Revenue assumptions'!$D31*'Revenue assumptions'!$E31*'Revenue assumptions'!$D$6 -> 0 | U22: =U$4*'Revenue assumptions'!$D31*'Revenue assumptions'!$E31*'Revenue assumptions'!$D$6 -> 0 | V22: =V$4*'Revenue assumptions'!$D31*'Revenue assumptions'!$E31*'Revenue assumptions'!$D$6 -> 0 | W22: =W$4*'Revenue assumptions'!$D31*'Revenue assumptions'!$E31*'Revenue assumptions'!$D$6 -> 0 | X22: =X$4*'Revenue assumptions'!$D31*'Revenue assumptions'!$E31*'Revenue assumptions'!$D$6 -> 0 | Y22: =Y$4*'Revenue assumptions'!$D31*'Revenue assumptions'!$E31*'Revenue assumptions'!$D$6 -> 0 | Z22: =Z$4*'Revenue assumptions'!$D31*'Revenue assumptions'!$E31*'Revenue assumptions'!$D$6 -> 0 | AA22: =AA$4*'Revenue assumptions'!$D31*'Revenue assumptions'!$E31*'Revenue assumptions'!$D$6 -> 0 | AB22: =AB$4*'Revenue assumptions'!$D31*'Revenue assumptions'!$E31*'Revenue assumptions'!$D$6 -> 0 | AC22: =AC$4*'Revenue assumptions'!$D31*'Revenue assumptions'!$E31*'Revenue assumptions'!$D$6 -> 0 | AD22: =AD$4*'Revenue assumptions'!$D31*'Revenue assumptions'!$E31*'Revenue assumptions'!$D$6 -> 0 | AE22: =AE$4*'Revenue assumptions'!$D31*'Revenue assumptions'!$E31*'Revenue assumptions'!$D$6 -> 0 | AF22: =AF$4*'Revenue assumptions'!$D31*'Revenue assumptions'!$E31*'Revenue assumptions'!$D$6 -> 0 | AG22: =AG$4*'Revenue assumptions'!$D31*'Revenue assumptions'!$E31*'Revenue assumptions'!$D$6 -> 0 | AH22: =AH$4*'Revenue assumptions'!$D31*'Revenue assumptions'!$E31*'Revenue assumptions'!$D$6 -> 0 | AI22: =AI$4*'Revenue assumptions'!$D31*'Revenue assumptions'!$E31*'Revenue assumptions'!$D$6 -> 0
C23: glass | D23: $m | F23: =F$4*'Revenue assumptions'!$D32*'Revenue assumptions'!$E32*'Revenue assumptions'!$D$6 -> 0 | G23: =G$4*'Revenue assumptions'!$D32*'Revenue assumptions'!$E32*'Revenue assumptions'!$D$6 -> 0 | H23: =H$4*'Revenue assumptions'!$D32*'Revenue assumptions'!$E32*'Revenue assumptions'!$D$6 -> 0 | I23: =I$4*'Revenue assumptions'!$D32*'Revenue assumptions'!$E32*'Revenue assumptions'!$D$6 -> 0 | J23: =J$4*'Revenue assumptions'!$D32*'Revenue assumptions'!$E32*'Revenue assumptions'!$D$6 -> 0 | K23: =K$4*'Revenue assumptions'!$D32*'Revenue assumptions'!$E32*'Revenue assumptions'!$D$6 -> 0 | L23: =L$4*'Revenue assumptions'!$D32*'Revenue assumptions'!$E32*'Revenue assumptions'!$D$6 -> 0 | M23: =M$4*'Revenue assumptions'!$D32*'Revenue assumptions'!$E32*'Revenue assumptions'!$D$6 -> 0 | N23: =N$4*'Revenue assumptions'!$D32*'Revenue assumptions'!$E32*'Revenue assumptions'!$D$6 -> 0 | O23: =O$4*'Revenue assumptions'!$D32*'Revenue assumptions'!$E32*'Revenue assumptions'!$D$6 -> 0 | P23: =P$4*'Revenue assumptions'!$D32*'Revenue assumptions'!$E32*'Revenue assumptions'!$D$6 -> 0 | Q23: =Q$4*'Revenue assumptions'!$D32*'Revenue assumptions'!$E32*'Revenue assumptions'!$D$6 -> 0 | R23: =R$4*'Revenue assumptions'!$D32*'Revenue assumptions'!$E32*'Revenue assumptions'!$D$6 -> 0 | S23: =S$4*'Revenue assumptions'!$D32*'Revenue assumptions'!$E32*'Revenue assumptions'!$D$6 -> 0 | T23: =T$4*'Revenue assumptions'!$D32*'Revenue assumptions'!$E32*'Revenue assumptions'!$D$6 -> 0 | U23: =U$4*'Revenue assumptions'!$D32*'Revenue assumptions'!$E32*'Revenue assumptions'!$D$6 -> 0 | V23: =V$4*'Revenue assumptions'!$D32*'Revenue assumptions'!$E32*'Revenue assumptions'!$D$6 -> 0 | W23: =W$4*'Revenue assumptions'!$D32*'Revenue assumptions'!$E32*'Revenue assumptions'!$D$6 -> 0 | X23: =X$4*'Revenue assumptions'!$D32*'Revenue assumptions'!$E32*'Revenue assumptions'!$D$6 -> 0 | Y23: =Y$4*'Revenue assumptions'!$D32*'Revenue assumptions'!$E32*'Revenue assumptions'!$D$6 -> 0 | Z23: =Z$4*'Revenue assumptions'!$D32*'Revenue assumptions'!$E32*'Revenue assumptions'!$D$6 -> 0 | AA23: =AA$4*'Revenue assumptions'!$D32*'Revenue assumptions'!$E32*'Revenue assumptions'!$D$6 -> 0 | AB23: =AB$4*'Revenue assumptions'!$D32*'Revenue assumptions'!$E32*'Revenue assumptions'!$D$6 -> 0 | AC23: =AC$4*'Revenue assumptions'!$D32*'Revenue assumptions'!$E32*'Revenue assumptions'!$D$6 -> 0 | AD23: =AD$4*'Revenue assumptions'!$D32*'Revenue assumptions'!$E32*'Revenue assumptions'!$D$6 -> 0 | AE23: =AE$4*'Revenue assumptions'!$D32*'Revenue assumptions'!$E32*'Revenue assumptions'!$D$6 -> 0 | AF23: =AF$4*'Revenue assumptions'!$D32*'Revenue assumptions'!$E32*'Revenue assumptions'!$D$6 -> 0 | AG23: =AG$4*'Revenue assumptions'!$D32*'Revenue assumptions'!$E32*'Revenue assumptions'!$D$6 -> 0 | AH23: =AH$4*'Revenue assumptions'!$D32*'Revenue assumptions'!$E32*'Revenue assumptions'!$D$6 -> 0 | AI23: =AI$4*'Revenue assumptions'!$D32*'Revenue assumptions'!$E32*'Revenue assumptions'!$D$6 -> 0
C24: plastics - mixed | D24: $m | F24: =F$4*'Revenue assumptions'!$D33*'Revenue assumptions'!$E33*'Revenue assumptions'!$D$6 -> 0 | G24: =G$4*'Revenue assumptions'!$D33*'Revenue assumptions'!$E33*'Revenue assumptions'!$D$6 -> 0 | H24: =H$4*'Revenue assumptions'!$D33*'Revenue assumptions'!$E33*'Revenue assumptions'!$D$6 -> 0 | I24: =I$4*'Revenue assumptions'!$D33*'Revenue assumptions'!$E33*'Revenue assumptions'!$D$6 -> 0 | J24: =J$4*'Revenue assumptions'!$D33*'Revenue assumptions'!$E33*'Revenue assumptions'!$D$6 -> 0 | K24: =K$4*'Revenue assumptions'!$D33*'Revenue assumptions'!$E33*'Revenue assumptions'!$D$6 -> 0 | L24: =L$4*'Revenue assumptions'!$D33*'Revenue assumptions'!$E33*'Revenue assumptions'!$D$6 -> 0 | M24: =M$4*'Revenue assumptions'!$D33*'Revenue assumptions'!$E33*'Revenue assumptions'!$D$6 -> 0 | N24: =N$4*'Revenue assumptions'!$D33*'Revenue assumptions'!$E33*'Revenue assumptions'!$D$6 -> 0 | O24: =O$4*'Revenue assumptions'!$D33*'Revenue assumptions'!$E33*'Revenue assumptions'!$D$6 -> 0 | P24: =P$4*'Revenue assumptions'!$D33*'Revenue assumptions'!$E33*'Revenue assumptions'!$D$6 -> 0 | Q24: =Q$4*'Revenue assumptions'!$D33*'Revenue assumptions'!$E33*'Revenue assumptions'!$D$6 -> 0 | R24: =R$4*'Revenue assumptions'!$D33*'Revenue assumptions'!$E33*'Revenue assumptions'!$D$6 -> 0 | S24: =S$4*'Revenue assumptions'!$D33*'Revenue assumptions'!$E33*'Revenue assumptions'!$D$6 -> 0 | T24: =T$4*'Revenue assumptions'!$D33*'Revenue assumptions'!$E33*'Revenue assumptions'!$D$6 -> 0 | U24: =U$4*'Revenue assumptions'!$D33*'Revenue assumptions'!$E33*'Revenue assumptions'!$D$6 -> 0 | V24: =V$4*'Revenue assumptions'!$D33*'Revenue assumptions'!$E33*'Revenue assumptions'!$D$6 -> 0 | W24: =W$4*'Revenue assumptions'!$D33*'Revenue assumptions'!$E33*'Revenue assumptions'!$D$6 -> 0 | X24: =X$4*'Revenue assumptions'!$D33*'Revenue assumptions'!$E33*'Revenue assumptions'!$D$6 -> 0 | Y24: =Y$4*'Revenue assumptions'!$D33*'Revenue assumptions'!$E33*'Revenue assumptions'!$D$6 -> 0 | Z24: =Z$4*'Revenue assumptions'!$D33*'Revenue assumptions'!$E33*'Revenue assumptions'!$D$6 -> 0 | AA24: =AA$4*'Revenue assumptions'!$D33*'Revenue assumptions'!$E33*'Revenue assumptions'!$D$6 -> 0 | AB24: =AB$4*'Revenue assumptions'!$D33*'Revenue assumptions'!$E33*'Revenue assumptions'!$D$6 -> 0 | AC24: =AC$4*'Revenue assumptions'!$D33*'Revenue assumptions'!$E33*'Revenue assumptions'!$D$6 -> 0 | AD24: =AD$4*'Revenue assumptions'!$D33*'Revenue assumptions'!$E33*'Revenue assumptions'!$D$6 -> 0 | AE24: =AE$4*'Revenue assumptions'!$D33*'Revenue assumptions'!$E33*'Revenue assumptions'!$D$6 -> 0 | AF24: =AF$4*'Revenue assumptions'!$D33*'Revenue assumptions'!$E33*'Revenue assumptions'!$D$6 -> 0 | AG24: =AG$4*'Revenue assumptions'!$D33*'Revenue assumptions'!$E33*'Revenue assumptions'!$D$6 -> 0 | AH24: =AH$4*'Revenue assumptions'!$D33*'Revenue assumptions'!$E33*'Revenue assumptions'!$D$6 -> 0 | AI24: =AI$4*'Revenue assumptions'!$D33*'Revenue assumptions'!$E33*'Revenue assumptions'!$D$6 -> 0
C25: plastics - hdpe | F25: =F$4*'Revenue assumptions'!$D34*'Revenue assumptions'!$E34*'Revenue assumptions'!$D$6 -> 0 | G25: =G$4*'Revenue assumptions'!$D34*'Revenue assumptions'!$E34*'Revenue assumptions'!$D$6 -> 0 | H25: =H$4*'Revenue assumptions'!$D34*'Revenue assumptions'!$E34*'Revenue assumptions'!$D$6 -> 0 | I25: =I$4*'Revenue assumptions'!$D34*'Revenue assumptions'!$E34*'Revenue assumptions'!$D$6 -> 0 | J25: =J$4*'Revenue assumptions'!$D34*'Revenue assumptions'!$E34*'Revenue assumptions'!$D$6 -> 0 | K25: =K$4*'Revenue assumptions'!$D34*'Revenue assumptions'!$E34*'Revenue assumptions'!$D$6 -> 0 | L25: =L$4*'Revenue assumptions'!$D34*'Revenue assumptions'!$E34*'Revenue assumptions'!$D$6 -> 0 | M25: =M$4*'Revenue assumptions'!$D34*'Revenue assumptions'!$E34*'Revenue assumptions'!$D$6 -> 0 | N25: =N$4*'Revenue assumptions'!$D34*'Revenue assumptions'!$E34*'Revenue assumptions'!$D$6 -> 0 | O25: =O$4*'Revenue assumptions'!$D34*'Revenue assumptions'!$E34*'Revenue assumptions'!$D$6 -> 0 | P25: =P$4*'Revenue assumptions'!$D34*'Revenue assumptions'!$E34*'Revenue assumptions'!$D$6 -> 0 | Q25: =Q$4*'Revenue assumptions'!$D34*'Revenue assumptions'!$E34*'Revenue assumptions'!$D$6 -> 0 | R25: =R$4*'Revenue assumptions'!$D34*'Revenue assumptions'!$E34*'Revenue assumptions'!$D$6 -> 0 | S25: =S$4*'Revenue assumptions'!$D34*'Revenue assumptions'!$E34*'Revenue assumptions'!$D$6 -> 0 | T25: =T$4*'Revenue assumptions'!$D34*'Revenue assumptions'!$E34*'Revenue assumptions'!$D$6 -> 0 | U25: =U$4*'Revenue assumptions'!$D34*'Revenue assumptions'!$E34*'Revenue assumptions'!$D$6 -> 0 | V25: =V$4*'Revenue assumptions'!$D34*'Revenue assumptions'!$E34*'Revenue assumptions'!$D$6 -> 0 | W25: =W$4*'Revenue assumptions'!$D34*'Revenue assumptions'!$E34*'Revenue assumptions'!$D$6 -> 0 | X25: =X$4*'Revenue assumptions'!$D34*'Revenue assumptions'!$E34*'Revenue assumptions'!$D$6 -> 0 | Y25: =Y$4*'Revenue assumptions'!$D34*'Revenue assumptions'!$E34*'Revenue assumptions'!$D$6 -> 0 | Z25: =Z$4*'Revenue assumptions'!$D34*'Revenue assumptions'!$E34*'Revenue assumptions'!$D$6 -> 0 | AA25: =AA$4*'Revenue assumptions'!$D34*'Revenue assumptions'!$E34*'Revenue assumptions'!$D$6 -> 0 | AB25: =AB$4*'Revenue assumptions'!$D34*'Revenue assumptions'!$E34*'Revenue assumptions'!$D$6 -> 0 | AC25: =AC$4*'Revenue assumptions'!$D34*'Revenue assumptions'!$E34*'Revenue assumptions'!$D$6 -> 0 | AD25: =AD$4*'Revenue assumptions'!$D34*'Revenue assumptions'!$E34*'Revenue assumptions'!$D$6 -> 0 | AE25: =AE$4*'Revenue assumptions'!$D34*'Revenue assumptions'!$E34*'Revenue assumptions'!$D$6 -> 0 | AF25: =AF$4*'Revenue assumptions'!$D34*'Revenue assumptions'!$E34*'Revenue assumptions'!$D$6 -> 0 | AG25: =AG$4*'Revenue assumptions'!$D34*'Revenue assumptions'!$E34*'Revenue assumptions'!$D$6 -> 0 | AH25: =AH$4*'Revenue assumptions'!$D34*'Revenue assumptions'!$E34*'Revenue assumptions'!$D$6 -> 0 | AI25: =AI$4*'Revenue assumptions'!$D34*'Revenue assumptions'!$E34*'Revenue assumptions'!$D$6 -> 0
C26: plastics - PET | F26: =F$4*'Revenue assumptions'!$D35*'Revenue assumptions'!$E35*'Revenue assumptions'!$D$6 -> 0 | G26: =G$4*'Revenue assumptions'!$D35*'Revenue assumptions'!$E35*'Revenue assumptions'!$D$6 -> 0 | H26: =H$4*'Revenue assumptions'!$D35*'Revenue assumptions'!$E35*'Revenue assumptions'!$D$6 -> 0 | I26: =I$4*'Revenue assumptions'!$D35*'Revenue assumptions'!$E35*'Revenue assumptions'!$D$6 -> 0 | J26: =J$4*'Revenue assumptions'!$D35*'Revenue assumptions'!$E35*'Revenue assumptions'!$D$6 -> 0 | K26: =K$4*'Revenue assumptions'!$D35*'Revenue assumptions'!$E35*'Revenue assumptions'!$D$6 -> 0 | L26: =L$4*'Revenue assumptions'!$D35*'Revenue assumptions'!$E35*'Revenue assumptions'!$D$6 -> 0 | M26: =M$4*'Revenue assumptions'!$D35*'Revenue assumptions'!$E35*'Revenue assumptions'!$D$6 -> 0 | N26: =N$4*'Revenue assumptions'!$D35*'Revenue assumptions'!$E35*'Revenue assumptions'!$D$6 -> 0 | O26: =O$4*'Revenue assumptions'!$D35*'Revenue assumptions'!$E35*'Revenue assumptions'!$D$6 -> 0 | P26: =P$4*'Revenue assumptions'!$D35*'Revenue assumptions'!$E35*'Revenue assumptions'!$D$6 -> 0 | Q26: =Q$4*'Revenue assumptions'!$D35*'Revenue assumptions'!$E35*'Revenue assumptions'!$D$6 -> 0 | R26: =R$4*'Revenue assumptions'!$D35*'Revenue assumptions'!$E35*'Revenue assumptions'!$D$6 -> 0 | S26: =S$4*'Revenue assumptions'!$D35*'Revenue assumptions'!$E35*'Revenue assumptions'!$D$6 -> 0 | T26: =T$4*'Revenue assumptions'!$D35*'Revenue assumptions'!$E35*'Revenue assumptions'!$D$6 -> 0 | U26: =U$4*'Revenue assumptions'!$D35*'Revenue assumptions'!$E35*'Revenue assumptions'!$D$6 -> 0 | V26: =V$4*'Revenue assumptions'!$D35*'Revenue assumptions'!$E35*'Revenue assumptions'!$D$6 -> 0 | W26: =W$4*'Revenue assumptions'!$D35*'Revenue assumptions'!$E35*'Revenue assumptions'!$D$6 -> 0 | X26: =X$4*'Revenue assumptions'!$D35*'Revenue assumptions'!$E35*'Revenue assumptions'!$D$6 -> 0 | Y26: =Y$4*'Revenue assumptions'!$D35*'Revenue assumptions'!$E35*'Revenue assumptions'!$D$6 -> 0 | Z26: =Z$4*'Revenue assumptions'!$D35*'Revenue assumptions'!$E35*'Revenue assumptions'!$D$6 -> 0 | AA26: =AA$4*'Revenue assumptions'!$D35*'Revenue assumptions'!$E35*'Revenue assumptions'!$D$6 -> 0 | AB26: =AB$4*'Revenue assumptions'!$D35*'Revenue assumptions'!$E35*'Revenue assumptions'!$D$6 -> 0 | AC26: =AC$4*'Revenue assumptions'!$D35*'Revenue assumptions'!$E35*'Revenue assumptions'!$D$6 -> 0 | AD26: =AD$4*'Revenue assumptions'!$D35*'Revenue assumptions'!$E35*'Revenue assumptions'!$D$6 -> 0 | AE26: =AE$4*'Revenue assumptions'!$D35*'Revenue assumptions'!$E35*'Revenue assumptions'!$D$6 -> 0 | AF26: =AF$4*'Revenue assumptions'!$D35*'Revenue assumptions'!$E35*'Revenue assumptions'!$D$6 -> 0 | AG26: =AG$4*'Revenue assumptions'!$D35*'Revenue assumptions'!$E35*'Revenue assumptions'!$D$6 -> 0 | AH26: =AH$4*'Revenue assumptions'!$D35*'Revenue assumptions'!$E35*'Revenue assumptions'!$D$6 -> 0 | AI26: =AI$4*'Revenue assumptions'!$D35*'Revenue assumptions'!$E35*'Revenue assumptions'!$D$6 -> 0
C27: other | D27: $m | F27: =F$4*'Revenue assumptions'!$D36*'Revenue assumptions'!$E36*'Revenue assumptions'!$D$6 -> 0 | G27: =G$4*'Revenue assumptions'!$D36*'Revenue assumptions'!$E36*'Revenue assumptions'!$D$6 -> 0 | H27: =H$4*'Revenue assumptions'!$D36*'Revenue assumptions'!$E36*'Revenue assumptions'!$D$6 -> 0 | I27: =I$4*'Revenue assumptions'!$D36*'Revenue assumptions'!$E36*'Revenue assumptions'!$D$6 -> 0 | J27: =J$4*'Revenue assumptions'!$D36*'Revenue assumptions'!$E36*'Revenue assumptions'!$D$6 -> 0 | K27: =K$4*'Revenue assumptions'!$D36*'Revenue assumptions'!$E36*'Revenue assumptions'!$D$6 -> 0 | L27: =L$4*'Revenue assumptions'!$D36*'Revenue assumptions'!$E36*'Revenue assumptions'!$D$6 -> 0 | M27: =M$4*'Revenue assumptions'!$D36*'Revenue assumptions'!$E36*'Revenue assumptions'!$D$6 -> 0 | N27: =N$4*'Revenue assumptions'!$D36*'Revenue assumptions'!$E36*'Revenue assumptions'!$D$6 -> 0 | O27: =O$4*'Revenue assumptions'!$D36*'Revenue assumptions'!$E36*'Revenue assumptions'!$D$6 -> 0 | P27: =P$4*'Revenue assumptions'!$D36*'Revenue assumptions'!$E36*'Revenue assumptions'!$D$6 -> 0 | Q27: =Q$4*'Revenue assumptions'!$D36*'Revenue assumptions'!$E36*'Revenue assumptions'!$D$6 -> 0 | R27: =R$4*'Revenue assumptions'!$D36*'Revenue assumptions'!$E36*'Revenue assumptions'!$D$6 -> 0 | S27: =S$4*'Revenue assumptions'!$D36*'Revenue assumptions'!$E36*'Revenue assumptions'!$D$6 -> 0 | T27: =T$4*'Revenue assumptions'!$D36*'Revenue assumptions'!$E36*'Revenue assumptions'!$D$6 -> 0 | U27: =U$4*'Revenue assumptions'!$D36*'Revenue assumptions'!$E36*'Revenue assumptions'!$D$6 -> 0 | V27: =V$4*'Revenue assumptions'!$D36*'Revenue assumptions'!$E36*'Revenue assumptions'!$D$6 -> 0 | W27: =W$4*'Revenue assumptions'!$D36*'Revenue assumptions'!$E36*'Revenue assumptions'!$D$6 -> 0 | X27: =X$4*'Revenue assumptions'!$D36*'Revenue assumptions'!$E36*'Revenue assumptions'!$D$6 -> 0 | Y27: =Y$4*'Revenue assumptions'!$D36*'Revenue assumptions'!$E36*'Revenue assumptions'!$D$6 -> 0 | Z27: =Z$4*'Revenue assumptions'!$D36*'Revenue assumptions'!$E36*'Revenue assumptions'!$D$6 -> 0 | AA27: =AA$4*'Revenue assumptions'!$D36*'Revenue assumptions'!$E36*'Revenue assumptions'!$D$6 -> 0 | AB27: =AB$4*'Revenue assumptions'!$D36*'Revenue assumptions'!$E36*'Revenue assumptions'!$D$6 -> 0 | AC27: =AC$4*'Revenue assumptions'!$D36*'Revenue assumptions'!$E36*'Revenue assumptions'!$D$6 -> 0 | AD27: =AD$4*'Revenue assumptions'!$D36*'Revenue assumptions'!$E36*'Revenue assumptions'!$D$6 -> 0 | AE27: =AE$4*'Revenue assumptions'!$D36*'Revenue assumptions'!$E36*'Revenue assumptions'!$D$6 -> 0 | AF27: =AF$4*'Revenue assumptions'!$D36*'Revenue assumptions'!$E36*'Revenue assumptions'!$D$6 -> 0 | AG27: =AG$4*'Revenue assumptions'!$D36*'Revenue assumptions'!$E36*'Revenue assumptions'!$D$6 -> 0 | AH27: =AH$4*'Revenue assumptions'!$D36*'Revenue assumptions'!$E36*'Revenue assumptions'!$D$6 -> 0 | AI27: =AI$4*'Revenue assumptions'!$D36*'Revenue assumptions'!$E36*'Revenue assumptions'!$D$6 -> 0
C28: CDS revenue - council
C29: =C11 -> paper and cardboard | D29: $m | F29: 0 | G29: 0 | H29: 0 | I29: 0 | J29: 0 | K29: 0 | L29: 0 | M29: 0 | N29: 0 | O29: 0 | P29: 0 | Q29: 0 | R29: 0 | S29: 0 | T29: 0 | U29: 0 | V29: 0 | W29: 0 | X29: 0 | Y29: 0 | Z29: 0 | AA29: 0 | AB29: 0 | AC29: 0 | AD29: 0 | AE29: 0 | AF29: 0 | AG29: 0 | AH29: 0 | AI29: 0
C30: aluminium | D30: $m | F30: 0 | G30: 0 | H30: 0 | I30: 0 | J30: 0 | K30: 0 | L30: 0 | M30: 0 | N30: 0 | O30: 0 | P30: 0 | Q30: 0 | R30: 0 | S30: 0 | T30: 0 | U30: 0 | V30: 0 | W30: 0 | X30: 0 | Y30: 0 | Z30: 0 | AA30: 0 | AB30: 0 | AC30: 0 | AD30: 0 | AE30: 0 | AF30: 0 | AG30: 0 | AH30: 0 | AI30: 0
C31: other metals | D31: $m | F31: 0 | G31: 0 | H31: 0 | I31: 0 | J31: 0 | K31: 0 | L31: 0 | M31: 0 | N31: 0 | O31: 0 | P31: 0 | Q31: 0 | R31: 0 | S31: 0 | T31: 0 | U31: 0 | V31: 0 | W31: 0 | X31: 0 | Y31: 0 | Z31: 0 | AA31: 0 | AB31: 0 | AC31: 0 | AD31: 0 | AE31: 0 | AF31: 0 | AG31: 0 | AH31: 0 | AI31: 0
C32: glass | D32: $m | F32: 0 | G32: 0 | H32: 0 | I32: 0 | J32: 0 | K32: 0 | L32: 0 | M32: 0 | N32: 0 | O32: 0 | P32: 0 | Q32: 0 | R32: 0 | S32: 0 | T32: 0 | U32: 0 | V32: 0 | W32: 0 | X32: 0 | Y32: 0 | Z32: 0 | AA32: 0 | AB32: 0 | AC32: 0 | AD32: 0 | AE32: 0 | AF32: 0 | AG32: 0 | AH32: 0 | AI32: 0
C33: plastics - mixed | D33: $m | F33: 0 | G33: 0 | H33: 0 | I33: 0 | J33: 0 | K33: 0 | L33: 0 | M33: 0 | N33: 0 | O33: 0 | P33: 0 | Q33: 0 | R33: 0 | S33: 0 | T33: 0 | U33: 0 | V33: 0 | W33: 0 | X33: 0 | Y33: 0 | Z33: 0 | AA33: 0 | AB33: 0 | AC33: 0 | AD33: 0 | AE33: 0 | AF33: 0 | AG33: 0 | AH33: 0 | AI33: 0
C34: plastics - hdpe | F34: 0 | G34: 0 | H34: 0 | I34: 0 | J34: 0 | K34: 0 | L34: 0 | M34: 0 | N34: 0 | O34: 0 | P34: 0 | Q34: 0 | R34: 0 | S34: 0 | T34: 0 | U34: 0 | V34: 0 | W34: 0 | X34: 0 | Y34: 0 | Z34: 0 | AA34: 0 | AB34: 0 | AC34: 0 | AD34: 0 | AE34: 0 | AF34: 0 | AG34: 0 | AH34: 0 | AI34: 0
C35: plastics - PET | F35: 0 | G35: 0 | H35: 0 | I35: 0 | J35: 0 | K35: 0 | L35: 0 | M35: 0 | N35: 0 | O35: 0 | P35: 0 | Q35: 0 | R35: 0 | S35: 0 | T35: 0 | U35: 0 | V35: 0 | W35: 0 | X35: 0 | Y35: 0 | Z35: 0 | AA35: 0 | AB35: 0 | AC35: 0 | AD35: 0 | AE35: 0 | AF35: 0 | AG35: 0 | AH35: 0 | AI35: 0
C36: other | D36: $m | F36: 0 | G36: 0 | H36: 0 | I36: 0 | J36: 0 | K36: 0 | L36: 0 | M36: 0 | N36: 0 | O36: 0 | P36: 0 | Q36: 0 | R36: 0 | S36: 0 | T36: 0 | U36: 0 | V36: 0 | W36: 0 | X36: 0 | Y36: 0 | Z36: 0 | AA36: 0 | AB36: 0 | AC36: 0 | AD36: 0 | AE36: 0 | AF36: 0 | AG36: 0 | AH36: 0 | AI36: 0
C37: CDS revenue - commercial
C38: =C11 -> paper and cardboard | D38: $m | F38: 0 | G38: 0 | H38: 0 | I38: 0 | J38: 0 | K38: 0 | L38: 0 | M38: 0 | N38: 0 | O38: 0 | P38: 0 | Q38: 0 | R38: 0 | S38: 0 | T38: 0 | U38: 0 | V38: 0 | W38: 0 | X38: 0 | Y38: 0 | Z38: 0 | AA38: 0 | AB38: 0 | AC38: 0 | AD38: 0 | AE38: 0 | AF38: 0 | AG38: 0 | AH38: 0 | AI38: 0
C39: aluminium | D39: $m | F39: 0 | G39: 0 | H39: 0 | I39: 0 | J39: 0 | K39: 0 | L39: 0 | M39: 0 | N39: 0 | O39: 0 | P39: 0 | Q39: 0 | R39: 0 | S39: 0 | T39: 0 | U39: 0 | V39: 0 | W39: 0 | X39: 0 | Y39: 0 | Z39: 0 | AA39: 0 | AB39: 0 | AC39: 0 | AD39: 0 | AE39: 0 | AF39: 0 | AG39: 0 | AH39: 0 | AI39: 0
C40: other metals | D40: $m | F40: 0 | G40: 0 | H40: 0 | I40: 0 | J40: 0 | K40: 0 | L40: 0 | M40: 0 | N40: 0 | O40: 0 | P40: 0 | Q40: 0 | R40: 0 | S40: 0 | T40: 0 | U40: 0 | V40: 0 | W40: 0 | X40: 0 | Y40: 0 | Z40: 0 | AA40: 0 | AB40: 0 | AC40: 0 | AD40: 0 | AE40: 0 | AF40: 0 | AG40: 0 | AH40: 0 | AI40: 0
C41: glass | D41: $m | F41: 0 | G41: 0 | H41: 0 | I41: 0 | J41: 0 | K41: 0 | L41: 0 | M41: 0 | N41: 0 | O41: 0 | P41: 0 | Q41: 0 | R41: 0 | S41: 0 | T41: 0 | U41: 0 | V41: 0 | W41: 0 | X41: 0 | Y41: 0 | Z41: 0 | AA41: 0 | AB41: 0 | AC41: 0 | AD41: 0 | AE41: 0 | AF41: 0 | AG41: 0 | AH41: 0 | AI41: 0
C42: plastics - mixed | D42: $m | F42: 0 | G42: 0 | H42: 0 | I42: 0 | J42: 0 | K42: 0 | L42: 0 | M42: 0 | N42: 0 | O42: 0 | P42: 0 | Q42: 0 | R42: 0 | S42: 0 | T42: 0 | U42: 0 | V42: 0 | W42: 0 | X42: 0 | Y42: 0 | Z42: 0 | AA42: 0 | AB42: 0 | AC42: 0 | AD42: 0 | AE42: 0 | AF42: 0 | AG42: 0 | AH42: 0 | AI42: 0
C43: plastics - hdpe | F43: 0 | G43: 0 | H43: 0 | I43: 0 | J43: 0 | K43: 0 | L43: 0 | M43: 0 | N43: 0 | O43: 0 | P43: 0 | Q43: 0 | R43: 0 | S43: 0 | T43: 0 | U43: 0 | V43: 0 | W43: 0 | X43: 0 | Y43: 0 | Z43: 0 | AA43: 0 | AB43: 0 | AC43: 0 | AD43: 0 | AE43: 0 | AF43: 0 | AG43: 0 | AH43: 0 | AI43: 0
C44: plastics - PET | F44: 0 | G44: 0 | H44: 0 | I44: 0 | J44: 0 | K44: 0 | L44: 0 | M44: 0 | N44: 0 | O44: 0 | P44: 0 | Q44: 0 | R44: 0 | S44: 0 | T44: 0 | U44: 0 | V44: 0 | W44: 0 | X44: 0 | Y44: 0 | Z44: 0 | AA44: 0 | AB44: 0 | AC44: 0 | AD44: 0 | AE44: 0 | AF44: 0 | AG44: 0 | AH44: 0 | AI44: 0
C45: other | D45: $m | F45: 0 | G45: 0 | H45: 0 | I45: 0 | J45: 0 | K45: 0 | L45: 0 | M45: 0 | N45: 0 | O45: 0 | P45: 0 | Q45: 0 | R45: 0 | S45: 0 | T45: 0 | U45: 0 | V45: 0 | W45: 0 | X45: 0 | Y45: 0 | Z45: 0 | AA45: 0 | AB45: 0 | AC45: 0 | AD45: 0 | AE45: 0 | AF45: 0 | AG45: 0 | AH45: 0 | AI45: 0
C46: Total | F46: =SUM(F8:F27,F29:F45) -> 0 | G46: =SUM(G8:G27,G29:G45) -> 0 | H46: 4.2936 | I46: 4.2936 | J46: 4.2936 | K46: 4.2936 | L46: 4.2936 | M46: 4.2936 | N46: 4.2936 | O46: 4.2936 | P46: 4.2936 | Q46: 4.2936 | R46: 4.2936 | S46: 4.2936 | T46: 4.2936 | U46: 4.2936 | V46: 4.2936 | W46: 4.2936 | X46: 4.2936 | Y46: 4.2936 | Z46: 4.2936 | AA46: 4.2936 | AB46: 4.2936 | AC46: 4.2936 | AD46: 4.2936 | AE46: 4.2936 | AF46: 4.2936 | AG46: 4.2936 | AH46: 4.2936 | AI46: 4.2936
B48: Cost items
C49: Capital costs | D49: $m | F49: =-IF(F2<'Cost assumptions'!$E$4,'Cost assumptions'!$E$9/'Cost assumptions'!$E$6*F5,0) -> -5.0625 | G49: =-IF(G2<'Cost assumptions'!$E$4,'Cost assumptions'!$E$9/'Cost assumptions'!$E$6*G5,0) -> -5.0625 | H49: =-IF(H2<'Cost assumptions'!$E$4,'Cost assumptions'!$E$9/'Cost assumptions'!$E$6*H5,0) -> 0 | I49: =-IF(I2<'Cost assumptions'!$E$4,'Cost assumptions'!$E$9/'Cost assumptions'!$E$6*I5,0) -> 0 | J49: =-IF(J2<'Cost assumptions'!$E$4,'Cost assumptions'!$E$9/'Cost assumptions'!$E$6*J5,0) -> 0 | K49: =-IF(K2<'Cost assumptions'!$E$4,'Cost assumptions'!$E$9/'Cost assumptions'!$E$6*K5,0) -> 0 | L49: =-IF(L2<'Cost assumptions'!$E$4,'Cost assumptions'!$E$9/'Cost assumptions'!$E$6*L5,0) -> 0 | M49: =-IF(M2<'Cost assumptions'!$E$4,'Cost assumptions'!$E$9/'Cost assumptions'!$E$6*M5,0) -> 0 | N49: =-IF(N2<'Cost assumptions'!$E$4,'Cost assumptions'!$E$9/'Cost assumptions'!$E$6*N5,0) -> 0 | O49: =-IF(O2<'Cost assumptions'!$E$4,'Cost assumptions'!$E$9/'Cost assumptions'!$E$6*O5,0) -> 0 | P49: =-IF(P2<'Cost assumptions'!$E$4,'Cost assumptions'!$E$9/'Cost assumptions'!$E$6*P5,0) -> 0 | Q49: =-IF(Q2<'Cost assumptions'!$E$4,'Cost assumptions'!$E$9/'Cost assumptions'!$E$6*Q5,0) -> 0 | R49: =-IF(R2<'Cost assumptions'!$E$4,'Cost assumptions'!$E$9/'Cost assumptions'!$E$6*R5,0) -> 0 | S49: =-IF(S2<'Cost assumptions'!$E$4,'Cost assumptions'!$E$9/'Cost assumptions'!$E$6*S5,0) -> 0 | T49: =-IF(T2<'Cost assumptions'!$E$4,'Cost assumptions'!$E$9/'Cost assumptions'!$E$6*T5,0) -> 0 | U49: =-IF(U2<'Cost assumptions'!$E$4,'Cost assumptions'!$E$9/'Cost assumptions'!$E$6*U5,0) -> 0 | V49: =-IF(V2<'Cost assumptions'!$E$4,'Cost assumptions'!$E$9/'Cost assumptions'!$E$6*V5,0) -> 0 | W49: =-IF(W2<'Cost assumptions'!$E$4,'Cost assumptions'!$E$9/'Cost assumptions'!$E$6*W5,0) -> 0 | X49: =-IF(X2<'Cost assumptions'!$E$4,'Cost assumptions'!$E$9/'Cost assumptions'!$E$6*X5,0) -> 0 | Y49: =-IF(Y2<'Cost assumptions'!$E$4,'Cost assumptions'!$E$9/'Cost assumptions'!$E$6*Y5,0) -> 0 | Z49: =-IF(Z2<'Cost assumptions'!$E$4,'Cost assumptions'!$E$9/'Cost assumptions'!$E$6*Z5,0) -> 0 | AA49: =-IF(AA2<'Cost assumptions'!$E$4,'Cost assumptions'!$E$9/'Cost assumptions'!$E$6*AA5,0) -> 0 | AB49: =-IF(AB2<'Cost assumptions'!$E$4,'Cost assumptions'!$E$9/'Cost assumptions'!$E$6*AB5,0) -> 0 | AC49: =-IF(AC2<'Cost assumptions'!$E$4,'Cost assumptions'!$E$9/'Cost assumptions'!$E$6*AC5,0) -> 0 | AD49: =-IF(AD2<'Cost assumptions'!$E$4,'Cost assumptions'!$E$9/'Cost assumptions'!$E$6*AD5,0) -> 0 | AE49: =-IF(AE2<'Cost assumptions'!$E$4,'Cost assumptions'!$E$9/'Cost assumptions'!$E$6*AE5,0) -> 0 | AF49: =-IF(AF2<'Cost assumptions'!$E$4,'Cost assumptions'!$E$9/'Cost assumptions'!$E$6*AF5,0) -> 0 | AG49: =-IF(AG2<'Cost assumptions'!$E$4,'Cost assumptions'!$E$9/'Cost assumptions'!$E$6*AG5,0) -> 0 | AH49: =-IF(AH2<'Cost assumptions'!$E$4,'Cost assumptions'!$E$9/'Cost assumptions'!$E$6*AH5,0) -> 0 | AI49: =-IF(AI2<'Cost assumptions'!$E$4,'Cost assumptions'!$E$9/'Cost assumptions'!$E$6*AI5,0) -> 0
C50: Operating costs
C51: fixed | D51: $m | F51: =-IF(F2<'Cost assumptions'!$E$4,0,'Cost assumptions'!$E$11*F5) -> 0 | G51: =-IF(G2<'Cost assumptions'!$E$4,0,'Cost assumptions'!$E$11*G5) -> 0 | H51: =-IF(H2<'Cost assumptions'!$E$4,0,'Cost assumptions'!$E$11*H5) -> -3 | I51: =-IF(I2<'Cost assumptions'!$E$4,0,'Cost assumptions'!$E$11*I5) -> -3 | J51: =-IF(J2<'Cost assumptions'!$E$4,0,'Cost assumptions'!$E$11*J5) -> -3 | K51: =-IF(K2<'Cost assumptions'!$E$4,0,'Cost assumptions'!$E$11*K5) -> -3 | L51: =-IF(L2<'Cost assumptions'!$E$4,0,'Cost assumptions'!$E$11*L5) -> -3 | M51: =-IF(M2<'Cost assumptions'!$E$4,0,'Cost assumptions'!$E$11*M5) -> -3 | N51: =-IF(N2<'Cost assumptions'!$E$4,0,'Cost assumptions'!$E$11*N5) -> -3 | O51: =-IF(O2<'Cost assumptions'!$E$4,0,'Cost assumptions'!$E$11*O5) -> -3 | P51: =-IF(P2<'Cost assumptions'!$E$4,0,'Cost assumptions'!$E$11*P5) -> -3 | Q51: =-IF(Q2<'Cost assumptions'!$E$4,0,'Cost assumptions'!$E$11*Q5) -> -3 | R51: =-IF(R2<'Cost assumptions'!$E$4,0,'Cost assumptions'!$E$11*R5) -> -3 | S51: =-IF(S2<'Cost assumptions'!$E$4,0,'Cost assumptions'!$E$11*S5) -> -3 | T51: =-IF(T2<'Cost assumptions'!$E$4,0,'Cost assumptions'!$E$11*T5) -> -3 | U51: =-IF(U2<'Cost assumptions'!$E$4,0,'Cost assumptions'!$E$11*U5) -> -3 | V51: =-IF(V2<'Cost assumptions'!$E$4,0,'Cost assumptions'!$E$11*V5) -> -3 | W51: =-IF(W2<'Cost assumptions'!$E$4,0,'Cost assumptions'!$E$11*W5) -> -3 | X51: =-IF(X2<'Cost assumptions'!$E$4,0,'Cost assumptions'!$E$11*X5) -> -3 | Y51: =-IF(Y2<'Cost assumptions'!$E$4,0,'Cost assumptions'!$E$11*Y5) -> -3 | Z51: =-IF(Z2<'Cost assumptions'!$E$4,0,'Cost assumptions'!$E$11*Z5) -> -3 | AA51: =-IF(AA2<'Cost assumptions'!$E$4,0,'Cost assumptions'!$E$11*AA5) -> -3 | AB51: =-IF(AB2<'Cost assumptions'!$E$4,0,'Cost assumptions'!$E$11*AB5) -> -3 | AC51: =-IF(AC2<'Cost assumptions'!$E$4,0,'Cost assumptions'!$E$11*AC5) -> -3 | AD51: =-IF(AD2<'Cost assumptions'!$E$4,0,'Cost assumptions'!$E$11*AD5) -> -3 | AE51: =-IF(AE2<'Cost assumptions'!$E$4,0,'Cost assumptions'!$E$11*AE5) -> -3 | AF51: =-IF(AF2<'Cost assumptions'!$E$4,0,'Cost assumptions'!$E$11*AF5) -> -3 | AG51: =-IF(AG2<'Cost assumptions'!$E$4,0,'Cost assumptions'!$E$11*AG5) -> -3 | AH51: =-IF(AH2<'Cost assumptions'!$E$4,0,'Cost assumptions'!$E$11*AH5) -> -3 | AI51: =-IF(AI2<'Cost assumptions'!$E$4,0,'Cost assumptions'!$E$11*AI5) -> -3
C52: variable | D52: $m | F52: =-F4*'Cost assumptions'!$E$12 -> 0 | G52: =-G4*'Cost assumptions'!$E$12 -> 0 | H52: =-H4*'Cost assumptions'!$E$12 -> -3 | I52: =-I4*'Cost assumptions'!$E$12 -> -3 | J52: =-J4*'Cost assumptions'!$E$12 -> -3 | K52: =-K4*'Cost assumptions'!$E$12 -> -3 | L52: =-L4*'Cost assumptions'!$E$12 -> -3 | M52: =-M4*'Cost assumptions'!$E$12 -> -3 | N52: =-N4*'Cost assumptions'!$E$12 -> -3 | O52: =-O4*'Cost assumptions'!$E$12 -> -3 | P52: =-P4*'Cost assumptions'!$E$12 -> -3 | Q52: =-Q4*'Cost assumptions'!$E$12 -> -3 | R52: =-R4*'Cost assumptions'!$E$12 -> -3 | S52: =-S4*'Cost assumptions'!$E$12 -> -3 | T52: =-T4*'Cost assumptions'!$E$12 -> -3 | U52: =-U4*'Cost assumptions'!$E$12 -> -3 | V52: =-V4*'Cost assumptions'!$E$12 -> -3 | W52: =-W4*'Cost assumptions'!$E$12 -> -3 | X52: =-X4*'Cost assumptions'!$E$12 -> -3 | Y52: =-Y4*'Cost assumptions'!$E$12 -> -3 | Z52: =-Z4*'Cost assumptions'!$E$12 -> -3 | AA52: =-AA4*'Cost assumptions'!$E$12 -> -3 | AB52: =-AB4*'Cost assumptions'!$E$12 -> -3 | AC52: =-AC4*'Cost assumptions'!$E$12 -> -3 | AD52: =-AD4*'Cost assumptions'!$E$12 -> -3 | AE52: =-AE4*'Cost assumptions'!$E$12 -> -3 | AF52: =-AF4*'Cost assumptions'!$E$12 -> -3 | AG52: =-AG4*'Cost assumptions'!$E$12 -> -3 | AH52: =-AH4*'Cost assumptions'!$E$12 -> -3 | AI52: =-AI4*'Cost assumptions'!$E$12 -> -3
C53: Disposal costs | D53: $m | F53: =F4*'Revenue assumptions'!$D$22*'Revenue assumptions'!$E$22 -> 0 | G53: =G4*'Revenue assumptions'!$D$22*'Revenue assumptions'!$E$22 -> 0 | H53: =H4*'Revenue assumptions'!$D$22*'Revenue assumptions'!$E$22 -> -1.164 | I53: =I4*'Revenue assumptions'!$D$22*'Revenue assumptions'!$E$22 -> -1.164 | J53: =J4*'Revenue assumptions'!$D$22*'Revenue assumptions'!$E$22 -> -1.164 | K53: =K4*'Revenue assumptions'!$D$22*'Revenue assumptions'!$E$22 -> -1.164 | L53: =L4*'Revenue assumptions'!$D$22*'Revenue assumptions'!$E$22 -> -1.164 | M53: =M4*'Revenue assumptions'!$D$22*'Revenue assumptions'!$E$22 -> -1.164 | N53: =N4*'Revenue assumptions'!$D$22*'Revenue assumptions'!$E$22 -> -1.164 | O53: =O4*'Revenue assumptions'!$D$22*'Revenue assumptions'!$E$22 -> -1.164 | P53: =P4*'Revenue assumptions'!$D$22*'Revenue assumptions'!$E$22 -> -1.164 | Q53: =Q4*'Revenue assumptions'!$D$22*'Revenue assumptions'!$E$22 -> -1.164 | R53: =R4*'Revenue assumptions'!$D$22*'Revenue assumptions'!$E$22 -> -1.164 | S53: =S4*'Revenue assumptions'!$D$22*'Revenue assumptions'!$E$22 -> -1.164 | T53: =T4*'Revenue assumptions'!$D$22*'Revenue assumptions'!$E$22 -> -1.164 | U53: =U4*'Revenue assumptions'!$D$22*'Revenue assumptions'!$E$22 -> -1.164 | V53: =V4*'Revenue assumptions'!$D$22*'Revenue assumptions'!$E$22 -> -1.164 | W53: =W4*'Revenue assumptions'!$D$22*'Revenue assumptions'!$E$22 -> -1.164 | X53: =X4*'Revenue assumptions'!$D$22*'Revenue assumptions'!$E$22 -> -1.164 | Y53: =Y4*'Revenue assumptions'!$D$22*'Revenue assumptions'!$E$22 -> -1.164 | Z53: =Z4*'Revenue assumptions'!$D$22*'Revenue assumptions'!$E$22 -> -1.164 | AA53: =AA4*'Revenue assumptions'!$D$22*'Revenue assumptions'!$E$22 -> -1.164 | AB53: =AB4*'Revenue assumptions'!$D$22*'Revenue assumptions'!$E$22 -> -1.164 | AC53: =AC4*'Revenue assumptions'!$D$22*'Revenue assumptions'!$E$22 -> -1.164 | AD53: =AD4*'Revenue assumptions'!$D$22*'Revenue assumptions'!$E$22 -> -1.164 | AE53: =AE4*'Revenue assumptions'!$D$22*'Revenue assumptions'!$E$22 -> -1.164 | AF53: =AF4*'Revenue assumptions'!$D$22*'Revenue assumptions'!$E$22 -> -1.164 | AG53: =AG4*'Revenue assumptions'!$D$22*'Revenue assumptions'!$E$22 -> -1.164 | AH53: =AH4*'Revenue assumptions'!$D$22*'Revenue assumptions'!$E$22 -> -1.164 | AI53: =AI4*'Revenue assumptions'!$D$22*'Revenue assumptions'!$E$22 -> -1.164
C54: CDS costs | D54: $m | F54: 0 | G54: 0 | H54: 0 | I54: 0 | J54: 0 | K54: 0 | L54: 0 | M54: 0 | N54: 0 | O54: 0 | P54: 0 | Q54: 0 | R54: 0 | S54: 0 | T54: 0 | U54: 0 | V54: 0 | W54: 0 | X54: 0 | Y54: 0 | Z54: 0 | AA54: 0 | AB54: 0 | AC54: 0 | AD54: 0 | AE54: 0 | AF54: 0 | AG54: 0 | AH54: 0 | AI54: 0
C57: Total costs | D57: $m | F57: =SUM(F49:F54) -> -5.0625 | G57: =SUM(G49:G54) -> -5.0625 | H57: -7.164 | I57: -7.164 | J57: -7.164 | K57: -7.164 | L57: -7.164 | M57: -7.164 | N57: -7.164 | O57: -7.164 | P57: -7.164 | Q57: -7.164 | R57: -7.164 | S57: -7.164 | T57: -7.164 | U57: -7.164 | V57: -7.164 | W57: -7.164 | X57: -7.164 | Y57: -7.164 | Z57: -7.164 | AA57: -7.164 | AB57: -7.164 | AC57: -7.164 | AD57: -7.164 | AE57: -7.164 | AF57: -7.164 | AG57: -7.164 | AH57: -7.164 | AI57: -7.164
B59: Financial metrics
C60: Net revenue | F60: =IF(F2<'Cost assumptions'!$E$3+'Cost assumptions'!$E$4,F46+F57,0) -> -5.0625 | G60: =IF(G2<'Cost assumptions'!$E$3+'Cost assumptions'!$E$4,G46+G57,0) -> -5.0625 | H60: =IF(H2<'Cost assumptions'!$E$3+'Cost assumptions'!$E$4,H46+H57,0) -> -2.8704 | I60: =IF(I2<'Cost assumptions'!$E$3+'Cost assumptions'!$E$4,I46+I57,0) -> -2.8704 | J60: =IF(J2<'Cost assumptions'!$E$3+'Cost assumptions'!$E$4,J46+J57,0) -> -2.8704 | K60: =IF(K2<'Cost assumptions'!$E$3+'Cost assumptions'!$E$4,K46+K57,0) -> -2.8704 | L60: =IF(L2<'Cost assumptions'!$E$3+'Cost assumptions'!$E$4,L46+L57,0) -> -2.8704 | M60: =IF(M2<'Cost assumptions'!$E$3+'Cost assumptions'!$E$4,M46+M57,0) -> -2.8704 | N60: =IF(N2<'Cost assumptions'!$E$3+'Cost assumptions'!$E$4,N46+N57,0) -> -2.8704 | O60: =IF(O2<'Cost assumptions'!$E$3+'Cost assumptions'!$E$4,O46+O57,0) -> -2.8704 | P60: =IF(P2<'Cost assumptions'!$E$3+'Cost assumptions'!$E$4,P46+P57,0) -> -2.8704 | Q60: =IF(Q2<'Cost assumptions'!$E$3+'Cost assumptions'!$E$4,Q46+Q57,0) -> -2.8704 | R60: =IF(R2<'Cost assumptions'!$E$3+'Cost assumptions'!$E$4,R46+R57,0) -> -2.8704 | S60: =IF(S2<'Cost assumptions'!$E$3+'Cost assumptions'!$E$4,S46+S57,0) -> -2.8704 | T60: =IF(T2<'Cost assumptions'!$E$3+'Cost assumptions'!$E$4,T46+T57,0) -> 0 | U60: =IF(U2<'Cost assumptions'!$E$3+'Cost assumptions'!$E$4,U46+U57,0) -> 0 | V60: =IF(V2<'Cost assumptions'!$E$3+'Cost assumptions'!$E$4,V46+V57,0) -> 0 | W60: =IF(W2<'Cost assumptions'!$E$3+'Cost assumptions'!$E$4,W46+W57,0) -> 0 | X60: =IF(X2<'Cost assumptions'!$E$3+'Cost assumptions'!$E$4,X46+X57,0) -> 0 | Y60: =IF(Y2<'Cost assumptions'!$E$3+'Cost assumptions'!$E$4,Y46+Y57,0) -> 0 | Z60: =IF(Z2<'Cost assumptions'!$E$3+'Cost assumptions'!$E$4,Z46+Z57,0) -> 0 | AA60: =IF(AA2<'Cost assumptions'!$E$3+'Cost assumptions'!$E$4,AA46+AA57,0) -> 0 | AB60: =IF(AB2<'Cost assumptions'!$E$3+'Cost assumptions'!$E$4,AB46+AB57,0) -> 0 | AC60: =IF(AC2<'Cost assumptions'!$E$3+'Cost assumptions'!$E$4,AC46+AC57,0) -> 0 | AD60: =IF(AD2<'Cost assumptions'!$E$3+'Cost assumptions'!$E$4,AD46+AD57,0) -> 0 | AE60: =IF(AE2<'Cost assumptions'!$E$3+'Cost assumptions'!$E$4,AE46+AE57,0) -> 0 | AF60: =IF(AF2<'Cost assumptions'!$E$3+'Cost assumptions'!$E$4,AF46+AF57,0) -> 0 | AG60: =IF(AG2<'Cost assumptions'!$E$3+'Cost assumptions'!$E$4,AG46+AG57,0) -> 0 | AH60: =IF(AH2<'Cost assumptions'!$E$3+'Cost assumptions'!$E$4,AH46+AH57,0) -> 0 | AI60: =IF(AI2<'Cost assumptions'!$E$3+'Cost assumptions'!$E$4,AI46+AI57,0) -> 0
C61: Internal rate of return | D61: Per cent | F61: =IRR(F60:AI60,7%) -> 
C62: Net profit | D62: $m | F62: =NPV('Cost assumptions'!$E$5,'Base case'!F60:AI60) -> -29.06634793
C63: Operating margin (year 10) | D63: Per cent | F63: =(O46+O57)/ABS(O57) -> -0.4006700168
B72: NPV summary | D72: $m, pv
C73: Revenue
C74: Gate fees | D74: =NPV('Cost assumptions'!$E$5,F74:AI74) -> 20.81234945 | F74: =IF(F$2<'Cost assumptions'!$E$3+'Cost assumptions'!$E$4,F8+F9,0) -> 0 | G74: =IF(G$2<'Cost assumptions'!$E$3+'Cost assumptions'!$E$4,G8+G9,0) -> 0 | H74: =IF(H$2<'Cost assumptions'!$E$3+'Cost assumptions'!$E$4,H8+H9,0) -> 3 | I74: =IF(I$2<'Cost assumptions'!$E$3+'Cost assumptions'!$E$4,I8+I9,0) -> 3 | J74: =IF(J$2<'Cost assumptions'!$E$3+'Cost assumptions'!$E$4,J8+J9,0) -> 3 | K74: =IF(K$2<'Cost assumptions'!$E$3+'Cost assumptions'!$E$4,K8+K9,0) -> 3 | L74: =IF(L$2<'Cost assumptions'!$E$3+'Cost assumptions'!$E$4,L8+L9,0) -> 3 | M74: =IF(M$2<'Cost assumptions'!$E$3+'Cost assumptions'!$E$4,M8+M9,0) -> 3 | N74: =IF(N$2<'Cost assumptions'!$E$3+'Cost assumptions'!$E$4,N8+N9,0) -> 3 | O74: =IF(O$2<'Cost assumptions'!$E$3+'Cost assumptions'!$E$4,O8+O9,0) -> 3 | P74: =IF(P$2<'Cost assumptions'!$E$3+'Cost assumptions'!$E$4,P8+P9,0) -> 3 | Q74: =IF(Q$2<'Cost assumptions'!$E$3+'Cost assumptions'!$E$4,Q8+Q9,0) -> 3 | R74: =IF(R$2<'Cost assumptions'!$E$3+'Cost assumptions'!$E$4,R8+R9,0) -> 3 | S74: =IF(S$2<'Cost assumptions'!$E$3+'Cost assumptions'!$E$4,S8+S9,0) -> 3 | T74: =IF(T$2<'Cost assumptions'!$E$3+'Cost assumptions'!$E$4,T8+T9,0) -> 0 | U74: =IF(U$2<'Cost assumptions'!$E$3+'Cost assumptions'!$E$4,U8+U9,0) -> 0 | V74: =IF(V$2<'Cost assumptions'!$E$3+'Cost assumptions'!$E$4,V8+V9,0) -> 0 | W74: =IF(W$2<'Cost assumptions'!$E$3+'Cost assumptions'!$E$4,W8+W9,0) -> 0 | X74: =IF(X$2<'Cost assumptions'!$E$3+'Cost assumptions'!$E$4,X8+X9,0) -> 0 | Y74: =IF(Y$2<'Cost assumptions'!$E$3+'Cost assumptions'!$E$4,Y8+Y9,0) -> 0 | Z74: =IF(Z$2<'Cost assumptions'!$E$3+'Cost assumptions'!$E$4,Z8+Z9,0) -> 0 | AA74: =IF(AA$2<'Cost assumptions'!$E$3+'Cost assumptions'!$E$4,AA8+AA9,0) -> 0 | AB74: =IF(AB$2<'Cost assumptions'!$E$3+'Cost assumptions'!$E$4,AB8+AB9,0) -> 0 | AC74: =IF(AC$2<'Cost assumptions'!$E$3+'Cost assumptions'!$E$4,AC8+AC9,0) -> 0 | AD74: =IF(AD$2<'Cost assumptions'!$E$3+'Cost assumptions'!$E$4,AD8+AD9,0) -> 0 | AE74: =IF(AE$2<'Cost assumptions'!$E$3+'Cost assumptions'!$E$4,AE8+AE9,0) -> 0 | AF74: =IF(AF$2<'Cost assumptions'!$E$3+'Cost assumptions'!$E$4,AF8+AF9,0) -> 0 | AG74: =IF(AG$2<'Cost assumptions'!$E$3+'Cost assumptions'!$E$4,AG8+AG9,0) -> 0 | AH74: =IF(AH$2<'Cost assumptions'!$E$3+'Cost assumptions'!$E$4,AH8+AH9,0) -> 0 | AI74: =IF(AI$2<'Cost assumptions'!$E$3+'Cost assumptions'!$E$4,AI8+AI9,0) -> 0
C75: Sale of outputs | D75: =NPV('Cost assumptions'!$E$5,F75:AI75) -> 8.974285084 | F75: =IF(F$2<'Cost assumptions'!$E$3+'Cost assumptions'!$E$4,SUM(F11:F27),0) -> 0 | G75: =IF(G$2<'Cost assumptions'!$E$3+'Cost assumptions'!$E$4,SUM(G11:G27),0) -> 0 | H75: =IF(H$2<'Cost assumptions'!$E$3+'Cost assumptions'!$E$4,SUM(H11:H27),0) -> 1.2936 | I75: =IF(I$2<'Cost assumptions'!$E$3+'Cost assumptions'!$E$4,SUM(I11:I27),0) -> 1.2936 | J75: =IF(J$2<'Cost assumptions'!$E$3+'Cost assumptions'!$E$4,SUM(J11:J27),0) -> 1.2936 | K75: =IF(K$2<'Cost assumptions'!$E$3+'Cost assumptions'!$E$4,SUM(K11:K27),0) -> 1.2936 | L75: =IF(L$2<'Cost assumptions'!$E$3+'Cost assumptions'!$E$4,SUM(L11:L27),0) -> 1.2936 | M75: =IF(M$2<'Cost assumptions'!$E$3+'Cost assumptions'!$E$4,SUM(M11:M27),0) -> 1.2936 | N75: =IF(N$2<'Cost assumptions'!$E$3+'Cost assumptions'!$E$4,SUM(N11:N27),0) -> 1.2936 | O75: =IF(O$2<'Cost assumptions'!$E$3+'Cost assumptions'!$E$4,SUM(O11:O27),0) -> 1.2936 | P75: =IF(P$2<'Cost assumptions'!$E$3+'Cost assumptions'!$E$4,SUM(P11:P27),0) -> 1.2936 | Q75: =IF(Q$2<'Cost assumptions'!$E$3+'Cost assumptions'!$E$4,SUM(Q11:Q27),0) -> 1.2936 | R75: =IF(R$2<'Cost assumptions'!$E$3+'Cost assumptions'!$E$4,SUM(R11:R27),0) -> 1.2936 | S75: =IF(S$2<'Cost assumptions'!$E$3+'Cost assumptions'!$E$4,SUM(S11:S27),0) -> 1.2936 | T75: =IF(T$2<'Cost assumptions'!$E$3+'Cost assumptions'!$E$4,SUM(T11:T27),0) -> 0 | U75: =IF(U$2<'Cost assumptions'!$E$3+'Cost assumptions'!$E$4,SUM(U11:U27),0) -> 0 | V75: =IF(V$2<'Cost assumptions'!$E$3+'Cost assumptions'!$E$4,SUM(V11:V27),0) -> 0 | W75: =IF(W$2<'Cost assumptions'!$E$3+'Cost assumptions'!$E$4,SUM(W11:W27),0) -> 0 | X75: =IF(X$2<'Cost assumptions'!$E$3+'Cost assumptions'!$E$4,SUM(X11:X27),0) -> 0 | Y75: =IF(Y$2<'Cost assumptions'!$E$3+'Cost assumptions'!$E$4,SUM(Y11:Y27),0) -> 0 | Z75: =IF(Z$2<'Cost assumptions'!$E$3+'Cost assumptions'!$E$4,SUM(Z11:Z27),0) -> 0 | AA75: =IF(AA$2<'Cost assumptions'!$E$3+'Cost assumptions'!$E$4,SUM(AA11:AA27),0) -> 0 | AB75: =IF(AB$2<'Cost assumptions'!$E$3+'Cost assumptions'!$E$4,SUM(AB11:AB27),0) -> 0 | AC75: =IF(AC$2<'Cost assumptions'!$E$3+'Cost assumptions'!$E$4,SUM(AC11:AC27),0) -> 0 | AD75: =IF(AD$2<'Cost assumptions'!$E$3+'Cost assumptions'!$E$4,SUM(AD11:AD27),0) -> 0 | AE75: =IF(AE$2<'Cost assumptions'!$E$3+'Cost assumptions'!$E$4,SUM(AE11:AE27),0) -> 0 | AF75: =IF(AF$2<'Cost assumptions'!$E$3+'Cost assumptions'!$E$4,SUM(AF11:AF27),0) -> 0 | AG75: =IF(AG$2<'Cost assumptions'!$E$3+'Cost assumptions'!$E$4,SUM(AG11:AG27),0) -> 0 | AH75: =IF(AH$2<'Cost assumptions'!$E$3+'Cost assumptions'!$E$4,SUM(AH11:AH27),0) -> 0 | AI75: =IF(AI$2<'Cost assumptions'!$E$3+'Cost assumptions'!$E$4,SUM(AI11:AI27),0) -> 0
C76: CDS refunds | D76: =NPV('Cost assumptions'!$E$5,F76:AI76) -> 0 | F76: =IF(F$2<'Cost assumptions'!$E$3+'Cost assumptions'!$E$4,SUM(F29:F45),0) -> 0 | G76: =IF(G$2<'Cost assumptions'!$E$3+'Cost assumptions'!$E$4,SUM(G29:G45),0) -> 0 | H76: =IF(H$2<'Cost assumptions'!$E$3+'Cost assumptions'!$E$4,SUM(H29:H45),0) -> 0 | I76: =IF(I$2<'Cost assumptions'!$E$3+'Cost assumptions'!$E$4,SUM(I29:I45),0) -> 0 | J76: =IF(J$2<'Cost assumptions'!$E$3+'Cost assumptions'!$E$4,SUM(J29:J45),0) -> 0 | K76: =IF(K$2<'Cost assumptions'!$E$3+'Cost assumptions'!$E$4,SUM(K29:K45),0) -> 0 | L76: =IF(L$2<'Cost assumptions'!$E$3+'Cost assumptions'!$E$4,SUM(L29:L45),0) -> 0 | M76: =IF(M$2<'Cost assumptions'!$E$3+'Cost assumptions'!$E$4,SUM(M29:M45),0) -> 0 | N76: =IF(N$2<'Cost assumptions'!$E$3+'Cost assumptions'!$E$4,SUM(N29:N45),0) -> 0 | O76: =IF(O$2<'Cost assumptions'!$E$3+'Cost assumptions'!$E$4,SUM(O29:O45),0) -> 0 | P76: =IF(P$2<'Cost assumptions'!$E$3+'Cost assumptions'!$E$4,SUM(P29:P45),0) -> 0 | Q76: =IF(Q$2<'Cost assumptions'!$E$3+'Cost assumptions'!$E$4,SUM(Q29:Q45),0) -> 0 | R76: =IF(R$2<'Cost assumptions'!$E$3+'Cost assumptions'!$E$4,SUM(R29:R45),0) -> 0 | S76: =IF(S$2<'Cost assumptions'!$E$3+'Cost assumptions'!$E$4,SUM(S29:S45),0) -> 0 | T76: =IF(T$2<'Cost assumptions'!$E$3+'Cost assumptions'!$E$4,SUM(T29:T45),0) -> 0 | U76: =IF(U$2<'Cost assumptions'!$E$3+'Cost assumptions'!$E$4,SUM(U29:U45),0) -> 0 | V76: =IF(V$2<'Cost assumptions'!$E$3+'Cost assumptions'!$E$4,SUM(V29:V45),0) -> 0 | W76: =IF(W$2<'Cost assumptions'!$E$3+'Cost assumptions'!$E$4,SUM(W29:W45),0) -> 0 | X76: =IF(X$2<'Cost assumptions'!$E$3+'Cost assumptions'!$E$4,SUM(X29:X45),0) -> 0 | Y76: =IF(Y$2<'Cost assumptions'!$E$3+'Cost assumptions'!$E$4,SUM(Y29:Y45),0) -> 0 | Z76: =IF(Z$2<'Cost assumptions'!$E$3+'Cost assumptions'!$E$4,SUM(Z29:Z45),0) -> 0 | AA76: =IF(AA$2<'Cost assumptions'!$E$3+'Cost assumptions'!$E$4,SUM(AA29:AA45),0) -> 0 | AB76: =IF(AB$2<'Cost assumptions'!$E$3+'Cost assumptions'!$E$4,SUM(AB29:AB45),0) -> 0 | AC76: =IF(AC$2<'Cost assumptions'!$E$3+'Cost assumptions'!$E$4,SUM(AC29:AC45),0) -> 0 | AD76: =IF(AD$2<'Cost assumptions'!$E$3+'Cost assumptions'!$E$4,SUM(AD29:AD45),0) -> 0 | AE76: =IF(AE$2<'Cost assumptions'!$E$3+'Cost assumptions'!$E$4,SUM(AE29:AE45),0) -> 0 | AF76: =IF(AF$2<'Cost assumptions'!$E$3+'Cost assumptions'!$E$4,SUM(AF29:AF45),0) -> 0 | AG76: =IF(AG$2<'Cost assumptions'!$E$3+'Cost assumptions'!$E$4,SUM(AG29:AG45),0) -> 0 | AH76: =IF(AH$2<'Cost assumptions'!$E$3+'Cost assumptions'!$E$4,SUM(AH29:AH45),0) -> 0 | AI76: =IF(AI$2<'Cost assumptions'!$E$3+'Cost assumptions'!$E$4,SUM(AI29:AI45),0) -> 0
C77: Costs
C78: Capital costs | D78: =NPV('Cost assumptions'!$E$5,F78:AI78) -> -9.153091973 | F78: =IF(F$2<'Cost assumptions'!$E$3+'Cost assumptions'!$E$4,F49,0) -> -5.0625 | G78: =IF(G$2<'Cost assumptions'!$E$3+'Cost assumptions'!$E$4,G49,0) -> -5.0625 | H78: =IF(H$2<'Cost assumptions'!$E$3+'Cost assumptions'!$E$4,H49,0) -> 0 | I78: =IF(I$2<'Cost assumptions'!$E$3+'Cost assumptions'!$E$4,I49,0) -> 0 | J78: =IF(J$2<'Cost assumptions'!$E$3+'Cost assumptions'!$E$4,J49,0) -> 0 | K78: =IF(K$2<'Cost assumptions'!$E$3+'Cost assumptions'!$E$4,K49,0) -> 0 | L78: =IF(L$2<'Cost assumptions'!$E$3+'Cost assumptions'!$E$4,L49,0) -> 0 | M78: =IF(M$2<'Cost assumptions'!$E$3+'Cost assumptions'!$E$4,M49,0) -> 0 | N78: =IF(N$2<'Cost assumptions'!$E$3+'Cost assumptions'!$E$4,N49,0) -> 0 | O78: =IF(O$2<'Cost assumptions'!$E$3+'Cost assumptions'!$E$4,O49,0) -> 0 | P78: =IF(P$2<'Cost assumptions'!$E$3+'Cost assumptions'!$E$4,P49,0) -> 0 | Q78: =IF(Q$2<'Cost assumptions'!$E$3+'Cost assumptions'!$E$4,Q49,0) -> 0 | R78: =IF(R$2<'Cost assumptions'!$E$3+'Cost assumptions'!$E$4,R49,0) -> 0 | S78: =IF(S$2<'Cost assumptions'!$E$3+'Cost assumptions'!$E$4,S49,0) -> 0 | T78: =IF(T$2<'Cost assumptions'!$E$3+'Cost assumptions'!$E$4,T49,0) -> 0 | U78: =IF(U$2<'Cost assumptions'!$E$3+'Cost assumptions'!$E$4,U49,0) -> 0 | V78: =IF(V$2<'Cost assumptions'!$E$3+'Cost assumptions'!$E$4,V49,0) -> 0 | W78: =IF(W$2<'Cost assumptions'!$E$3+'Cost assumptions'!$E$4,W49,0) -> 0 | X78: =IF(X$2<'Cost assumptions'!$E$3+'Cost assumptions'!$E$4,X49,0) -> 0 | Y78: =IF(Y$2<'Cost assumptions'!$E$3+'Cost assumptions'!$E$4,Y49,0) -> 0 | Z78: =IF(Z$2<'Cost assumptions'!$E$3+'Cost assumptions'!$E$4,Z49,0) -> 0 | AA78: =IF(AA$2<'Cost assumptions'!$E$3+'Cost assumptions'!$E$4,AA49,0) -> 0 | AB78: =IF(AB$2<'Cost assumptions'!$E$3+'Cost assumptions'!$E$4,AB49,0) -> 0 | AC78: =IF(AC$2<'Cost assumptions'!$E$3+'Cost assumptions'!$E$4,AC49,0) -> 0 | AD78: =IF(AD$2<'Cost assumptions'!$E$3+'Cost assumptions'!$E$4,AD49,0) -> 0 | AE78: =IF(AE$2<'Cost assumptions'!$E$3+'Cost assumptions'!$E$4,AE49,0) -> 0 | AF78: =IF(AF$2<'Cost assumptions'!$E$3+'Cost assumptions'!$E$4,AF49,0) -> 0 | AG78: =IF(AG$2<'Cost assumptions'!$E$3+'Cost assumptions'!$E$4,AG49,0) -> 0 | AH78: =IF(AH$2<'Cost assumptions'!$E$3+'Cost assumptions'!$E$4,AH49,0) -> 0 | AI78: =IF(AI$2<'Cost assumptions'!$E$3+'Cost assumptions'!$E$4,AI49,0) -> 0
C79: Operating costs | D79: =NPV('Cost assumptions'!$E$5,F79:AI79) -> -41.62469891 | F79: =IF(F$2<'Cost assumptions'!$E$3+'Cost assumptions'!$E$4,F51+F52,0) -> 0 | G79: =IF(G$2<'Cost assumptions'!$E$3+'Cost assumptions'!$E$4,G51+G52,0) -> 0 | H79: =IF(H$2<'Cost assumptions'!$E$3+'Cost assumptions'!$E$4,H51+H52,0) -> -6 | I79: =IF(I$2<'Cost assumptions'!$E$3+'Cost assumptions'!$E$4,I51+I52,0) -> -6 | J79: =IF(J$2<'Cost assumptions'!$E$3+'Cost assumptions'!$E$4,J51+J52,0) -> -6 | K79: =IF(K$2<'Cost assumptions'!$E$3+'Cost assumptions'!$E$4,K51+K52,0) -> -6 | L79: =IF(L$2<'Cost assumptions'!$E$3+'Cost assumptions'!$E$4,L51+L52,0) -> -6 | M79: =IF(M$2<'Cost assumptions'!$E$3+'Cost assumptions'!$E$4,M51+M52,0) -> -6 | N79: =IF(N$2<'Cost assumptions'!$E$3+'Cost assumptions'!$E$4,N51+N52,0) -> -6 | O79: =IF(O$2<'Cost assumptions'!$E$3+'Cost assumptions'!$E$4,O51+O52,0) -> -6 | P79: =IF(P$2<'Cost assumptions'!$E$3+'Cost assumptions'!$E$4,P51+P52,0) -> -6 | Q79: =IF(Q$2<'Cost assumptions'!$E$3+'Cost assumptions'!$E$4,Q51+Q52,0) -> -6 | R79: =IF(R$2<'Cost assumptions'!$E$3+'Cost assumptions'!$E$4,R51+R52,0) -> -6 | S79: =IF(S$2<'Cost assumptions'!$E$3+'Cost assumptions'!$E$4,S51+S52,0) -> -6 | T79: =IF(T$2<'Cost assumptions'!$E$3+'Cost assumptions'!$E$4,T51+T52,0) -> 0 | U79: =IF(U$2<'Cost assumptions'!$E$3+'Cost assumptions'!$E$4,U51+U52,0) -> 0 | V79: =IF(V$2<'Cost assumptions'!$E$3+'Cost assumptions'!$E$4,V51+V52,0) -> 0 | W79: =IF(W$2<'Cost assumptions'!$E$3+'Cost assumptions'!$E$4,W51+W52,0) -> 0 | X79: =IF(X$2<'Cost assumptions'!$E$3+'Cost assumptions'!$E$4,X51+X52,0) -> 0 | Y79: =IF(Y$2<'Cost assumptions'!$E$3+'Cost assumptions'!$E$4,Y51+Y52,0) -> 0 | Z79: =IF(Z$2<'Cost assumptions'!$E$3+'Cost assumptions'!$E$4,Z51+Z52,0) -> 0 | AA79: =IF(AA$2<'Cost assumptions'!$E$3+'Cost assumptions'!$E$4,AA51+AA52,0) -> 0 | AB79: =IF(AB$2<'Cost assumptions'!$E$3+'Cost assumptions'!$E$4,AB51+AB52,0) -> 0 | AC79: =IF(AC$2<'Cost assumptions'!$E$3+'Cost assumptions'!$E$4,AC51+AC52,0) -> 0 | AD79: =IF(AD$2<'Cost assumptions'!$E$3+'Cost assumptions'!$E$4,AD51+AD52,0) -> 0 | AE79: =IF(AE$2<'Cost assumptions'!$E$3+'Cost assumptions'!$E$4,AE51+AE52,0) -> 0 | AF79: =IF(AF$2<'Cost assumptions'!$E$3+'Cost assumptions'!$E$4,AF51+AF52,0) -> 0 | AG79: =IF(AG$2<'Cost assumptions'!$E$3+'Cost assumptions'!$E$4,AG51+AG52,0) -> 0 | AH79: =IF(AH$2<'Cost assumptions'!$E$3+'Cost assumptions'!$E$4,AH51+AH52,0) -> 0 | AI79: =IF(AI$2<'Cost assumptions'!$E$3+'Cost assumptions'!$E$4,AI51+AI52,0) -> 0
C80: Disposal costs | D80: =NPV('Cost assumptions'!$E$5,F80:AI80) -> -8.075191588 | F80: =IF(F$2<'Cost assumptions'!$E$3+'Cost assumptions'!$E$4,F53,0) -> 0 | G80: =IF(G$2<'Cost assumptions'!$E$3+'Cost assumptions'!$E$4,G53,0) -> 0 | H80: =IF(H$2<'Cost assumptions'!$E$3+'Cost assumptions'!$E$4,H53,0) -> -1.164 | I80: =IF(I$2<'Cost assumptions'!$E$3+'Cost assumptions'!$E$4,I53,0) -> -1.164 | J80: =IF(J$2<'Cost assumptions'!$E$3+'Cost assumptions'!$E$4,J53,0) -> -1.164 | K80: =IF(K$2<'Cost assumptions'!$E$3+'Cost assumptions'!$E$4,K53,0) -> -1.164 | L80: =IF(L$2<'Cost assumptions'!$E$3+'Cost assumptions'!$E$4,L53,0) -> -1.164 | M80: =IF(M$2<'Cost assumptions'!$E$3+'Cost assumptions'!$E$4,M53,0) -> -1.164 | N80: =IF(N$2<'Cost assumptions'!$E$3+'Cost assumptions'!$E$4,N53,0) -> -1.164 | O80: =IF(O$2<'Cost assumptions'!$E$3+'Cost assumptions'!$E$4,O53,0) -> -1.164 | P80: =IF(P$2<'Cost assumptions'!$E$3+'Cost assumptions'!$E$4,P53,0) -> -1.164 | Q80: =IF(Q$2<'Cost assumptions'!$E$3+'Cost assumptions'!$E$4,Q53,0) -> -1.164 | R80: =IF(R$2<'Cost assumptions'!$E$3+'Cost assumptions'!$E$4,R53,0) -> -1.164 | S80: =IF(S$2<'Cost assumptions'!$E$3+'Cost assumptions'!$E$4,S53,0) -> -1.164 | T80: =IF(T$2<'Cost assumptions'!$E$3+'Cost assumptions'!$E$4,T53,0) -> 0 | U80: =IF(U$2<'Cost assumptions'!$E$3+'Cost assumptions'!$E$4,U53,0) -> 0 | V80: =IF(V$2<'Cost assumptions'!$E$3+'Cost assumptions'!$E$4,V53,0) -> 0 | W80: =IF(W$2<'Cost assumptions'!$E$3+'Cost assumptions'!$E$4,W53,0) -> 0 | X80: =IF(X$2<'Cost assumptions'!$E$3+'Cost assumptions'!$E$4,X53,0) -> 0 | Y80: =IF(Y$2<'Cost assumptions'!$E$3+'Cost assumptions'!$E$4,Y53,0) -> 0 | Z80: =IF(Z$2<'Cost assumptions'!$E$3+'Cost assumptions'!$E$4,Z53,0) -> 0 | AA80: =IF(AA$2<'Cost assumptions'!$E$3+'Cost assumptions'!$E$4,AA53,0) -> 0 | AB80: =IF(AB$2<'Cost assumptions'!$E$3+'Cost assumptions'!$E$4,AB53,0) -> 0 | AC80: =IF(AC$2<'Cost assumptions'!$E$3+'Cost assumptions'!$E$4,AC53,0) -> 0 | AD80: =IF(AD$2<'Cost assumptions'!$E$3+'Cost assumptions'!$E$4,AD53,0) -> 0 | AE80: =IF(AE$2<'Cost assumptions'!$E$3+'Cost assumptions'!$E$4,AE53,0) -> 0 | AF80: =IF(AF$2<'Cost assumptions'!$E$3+'Cost assumptions'!$E$4,AF53,0) -> 0 | AG80: =IF(AG$2<'Cost assumptions'!$E$3+'Cost assumptions'!$E$4,AG53,0) -> 0 | AH80: =IF(AH$2<'Cost assumptions'!$E$3+'Cost assumptions'!$E$4,AH53,0) -> 0 | AI80: =IF(AI$2<'Cost assumptions'!$E$3+'Cost assumptions'!$E$4,AI53,0) -> 0
C81: CDS costs | D81: =NPV('Cost assumptions'!$E$5,F81:AI81) -> 0 | F81: =IF(F$2<'Cost assumptions'!$E$3+'Cost assumptions'!$E$4,F54,0) -> 0 | G81: =IF(G$2<'Cost assumptions'!$E$3+'Cost assumptions'!$E$4,G54,0) -> 0 | H81: =IF(H$2<'Cost assumptions'!$E$3+'Cost assumptions'!$E$4,H54,0) -> 0 | I81: =IF(I$2<'Cost assumptions'!$E$3+'Cost assumptions'!$E$4,I54,0) -> 0 | J81: =IF(J$2<'Cost assumptions'!$E$3+'Cost assumptions'!$E$4,J54,0) -> 0 | K81: =IF(K$2<'Cost assumptions'!$E$3+'Cost assumptions'!$E$4,K54,0) -> 0 | L81: =IF(L$2<'Cost assumptions'!$E$3+'Cost assumptions'!$E$4,L54,0) -> 0 | M81: =IF(M$2<'Cost assumptions'!$E$3+'Cost assumptions'!$E$4,M54,0) -> 0 | N81: =IF(N$2<'Cost assumptions'!$E$3+'Cost assumptions'!$E$4,N54,0) -> 0 | O81: =IF(O$2<'Cost assumptions'!$E$3+'Cost assumptions'!$E$4,O54,0) -> 0 | P81: =IF(P$2<'Cost assumptions'!$E$3+'Cost assumptions'!$E$4,P54,0) -> 0 | Q81: =IF(Q$2<'Cost assumptions'!$E$3+'Cost assumptions'!$E$4,Q54,0) -> 0 | R81: =IF(R$2<'Cost assumptions'!$E$3+'Cost assumptions'!$E$4,R54,0) -> 0 | S81: =IF(S$2<'Cost assumptions'!$E$3+'Cost assumptions'!$E$4,S54,0) -> 0 | T81: =IF(T$2<'Cost assumptions'!$E$3+'Cost assumptions'!$E$4,T54,0) -> 0 | U81: =IF(U$2<'Cost assumptions'!$E$3+'Cost assumptions'!$E$4,U54,0) -> 0 | V81: =IF(V$2<'Cost assumptions'!$E$3+'Cost assumptions'!$E$4,V54,0) -> 0 | W81: =IF(W$2<'Cost assumptions'!$E$3+'Cost assumptions'!$E$4,W54,0) -> 0 | X81: =IF(X$2<'Cost assumptions'!$E$3+'Cost assumptions'!$E$4,X54,0) -> 0 | Y81: =IF(Y$2<'Cost assumptions'!$E$3+'Cost assumptions'!$E$4,Y54,0) -> 0 | Z81: =IF(Z$2<'Cost assumptions'!$E$3+'Cost assumptions'!$E$4,Z54,0) -> 0 | AA81: =IF(AA$2<'Cost assumptions'!$E$3+'Cost assumptions'!$E$4,AA54,0) -> 0 | AB81: =IF(AB$2<'Cost assumptions'!$E$3+'Cost assumptions'!$E$4,AB54,0) -> 0 | AC81: =IF(AC$2<'Cost assumptions'!$E$3+'Cost assumptions'!$E$4,AC54,0) -> 0 | AD81: =IF(AD$2<'Cost assumptions'!$E$3+'Cost assumptions'!$E$4,AD54,0) -> 0 | AE81: =IF(AE$2<'Cost assumptions'!$E$3+'Cost assumptions'!$E$4,AE54,0) -> 0 | AF81: =IF(AF$2<'Cost assumptions'!$E$3+'Cost assumptions'!$E$4,AF54,0) -> 0 | AG81: =IF(AG$2<'Cost assumptions'!$E$3+'Cost assumptions'!$E$4,AG54,0) -> 0 | AH81: =IF(AH$2<'Cost assumptions'!$E$3+'Cost assumptions'!$E$4,AH54,0) -> 0 | AI81: =IF(AI$2<'Cost assumptions'!$E$3+'Cost assumptions'!$E$4,AI54,0) -> 0
B84: Comemrcial neutrality calculations
C86: Revenue
C87: Gate fees | D87: $m | F87: =SUM(F9) -> 0 | G87: =SUM(G9) -> 0 | H87: 0 | I87: 0 | J87: 0 | K87: 0 | L87: 0 | M87: 0 | N87: 0 | O87: 0 | P87: 0 | Q87: 0 | R87: 0 | S87: 0 | T87: 0 | U87: 0 | V87: 0 | W87: 0 | X87: 0 | Y87: 0 | Z87: 0 | AA87: 0 | AB87: 0 | AC87: 0 | AD87: 0 | AE87: 0 | AF87: 0 | AG87: 0 | AH87: 0 | AI87: 0
C88: Product sales | D88: $m | F88: =SUM(F20:F27) -> 0 | G88: =SUM(G20:G27) -> 0 | H88: 0 | I88: 0 | J88: 0 | K88: 0 | L88: 0 | M88: 0 | N88: 0 | O88: 0 | P88: 0 | Q88: 0 | R88: 0 | S88: 0 | T88: 0 | U88: 0 | V88: 0 | W88: 0 | X88: 0 | Y88: 0 | Z88: 0 | AA88: 0 | AB88: 0 | AC88: 0 | AD88: 0 | AE88: 0 | AF88: 0 | AG88: 0 | AH88: 0 | AI88: 0
C89: CDS | D89: $m | F89: =SUM(F38:F45) -> 0 | G89: =SUM(G38:G45) -> 0 | H89: 0 | I89: 0 | J89: 0 | K89: 0 | L89: 0 | M89: 0 | N89: 0 | O89: 0 | P89: 0 | Q89: 0 | R89: 0 | S89: 0 | T89: 0 | U89: 0 | V89: 0 | W89: 0 | X89: 0 | Y89: 0 | Z89: 0 | AA89: 0 | AB89: 0 | AC89: 0 | AD89: 0 | AE89: 0 | AF89: 0 | AG89: 0 | AH89: 0 | AI89: 0
C91: Costs
C92: Operating costs | D92: $m | F92: =F52*((1-F$3)*'Revenue assumptions'!$D$6+F$3*'CDS assumptions'!$I$5) -> 0 | G92: =G52*((1-G$3)*'Revenue assumptions'!$D$6+G$3*'CDS assumptions'!$I$5) -> 0 | H92: =H52*((1-H$3)*'Revenue assumptions'!$D$6+H$3*'CDS assumptions'!$I$5) -> 0 | I92: =I52*((1-I$3)*'Revenue assumptions'!$D$6+I$3*'CDS assumptions'!$I$5) -> 0 | J92: =J52*((1-J$3)*'Revenue assumptions'!$D$6+J$3*'CDS assumptions'!$I$5) -> 0 | K92: =K52*((1-K$3)*'Revenue assumptions'!$D$6+K$3*'CDS assumptions'!$I$5) -> 0 | L92: =L52*((1-L$3)*'Revenue assumptions'!$D$6+L$3*'CDS assumptions'!$I$5) -> 0 | M92: =M52*((1-M$3)*'Revenue assumptions'!$D$6+M$3*'CDS assumptions'!$I$5) -> 0 | N92: =N52*((1-N$3)*'Revenue assumptions'!$D$6+N$3*'CDS assumptions'!$I$5) -> 0 | O92: =O52*((1-O$3)*'Revenue assumptions'!$D$6+O$3*'CDS assumptions'!$I$5) -> 0 | P92: =P52*((1-P$3)*'Revenue assumptions'!$D$6+P$3*'CDS assumptions'!$I$5) -> 0 | Q92: =Q52*((1-Q$3)*'Revenue assumptions'!$D$6+Q$3*'CDS assumptions'!$I$5) -> 0 | R92: =R52*((1-R$3)*'Revenue assumptions'!$D$6+R$3*'CDS assumptions'!$I$5) -> 0 | S92: =S52*((1-S$3)*'Revenue assumptions'!$D$6+S$3*'CDS assumptions'!$I$5) -> 0 | T92: =T52*((1-T$3)*'Revenue assumptions'!$D$6+T$3*'CDS assumptions'!$I$5) -> 0 | U92: =U52*((1-U$3)*'Revenue assumptions'!$D$6+U$3*'CDS assumptions'!$I$5) -> 0 | V92: =V52*((1-V$3)*'Revenue assumptions'!$D$6+V$3*'CDS assumptions'!$I$5) -> 0 | W92: =W52*((1-W$3)*'Revenue assumptions'!$D$6+W$3*'CDS assumptions'!$I$5) -> 0 | X92: =X52*((1-X$3)*'Revenue assumptions'!$D$6+X$3*'CDS assumptions'!$I$5) -> 0 | Y92: =Y52*((1-Y$3)*'Revenue assumptions'!$D$6+Y$3*'CDS assumptions'!$I$5) -> 0 | Z92: =Z52*((1-Z$3)*'Revenue assumptions'!$D$6+Z$3*'CDS assumptions'!$I$5) -> 0 | AA92: =AA52*((1-AA$3)*'Revenue assumptions'!$D$6+AA$3*'CDS assumptions'!$I$5) -> 0 | AB92: =AB52*((1-AB$3)*'Revenue assumptions'!$D$6+AB$3*'CDS assumptions'!$I$5) -> 0 | AC92: =AC52*((1-AC$3)*'Revenue assumptions'!$D$6+AC$3*'CDS assumptions'!$I$5) -> 0 | AD92: =AD52*((1-AD$3)*'Revenue assumptions'!$D$6+AD$3*'CDS assumptions'!$I$5) -> 0 | AE92: =AE52*((1-AE$3)*'Revenue assumptions'!$D$6+AE$3*'CDS assumptions'!$I$5) -> 0 | AF92: =AF52*((1-AF$3)*'Revenue assumptions'!$D$6+AF$3*'CDS assumptions'!$I$5) -> 0 | AG92: =AG52*((1-AG$3)*'Revenue assumptions'!$D$6+AG$3*'CDS assumptions'!$I$5) -> 0 | AH92: =AH52*((1-AH$3)*'Revenue assumptions'!$D$6+AH$3*'CDS assumptions'!$I$5) -> 0 | AI92: =AI52*((1-AI$3)*'Revenue assumptions'!$D$6+AI$3*'CDS assumptions'!$I$5) -> 0
C93: Disposal costs | D93: $m | F93: =F53*((1-F$3)*'Revenue assumptions'!$E$6+F$3*'CDS assumptions'!$J$5) -> 0 | G93: =G53*((1-G$3)*'Revenue assumptions'!$E$6+G$3*'CDS assumptions'!$J$5) -> 0 | H93: =H53*((1-H$3)*'Revenue assumptions'!$E$6+H$3*'CDS assumptions'!$J$5) -> 0 | I93: =I53*((1-I$3)*'Revenue assumptions'!$E$6+I$3*'CDS assumptions'!$J$5) -> 0 | J93: =J53*((1-J$3)*'Revenue assumptions'!$E$6+J$3*'CDS assumptions'!$J$5) -> 0 | K93: =K53*((1-K$3)*'Revenue assumptions'!$E$6+K$3*'CDS assumptions'!$J$5) -> 0 | L93: =L53*((1-L$3)*'Revenue assumptions'!$E$6+L$3*'CDS assumptions'!$J$5) -> 0 | M93: =M53*((1-M$3)*'Revenue assumptions'!$E$6+M$3*'CDS assumptions'!$J$5) -> 0 | N93: =N53*((1-N$3)*'Revenue assumptions'!$E$6+N$3*'CDS assumptions'!$J$5) -> 0 | O93: =O53*((1-O$3)*'Revenue assumptions'!$E$6+O$3*'CDS assumptions'!$J$5) -> 0 | P93: =P53*((1-P$3)*'Revenue assumptions'!$E$6+P$3*'CDS assumptions'!$J$5) -> 0 | Q93: =Q53*((1-Q$3)*'Revenue assumptions'!$E$6+Q$3*'CDS assumptions'!$J$5) -> 0 | R93: =R53*((1-R$3)*'Revenue assumptions'!$E$6+R$3*'CDS assumptions'!$J$5) -> 0 | S93: =S53*((1-S$3)*'Revenue assumptions'!$E$6+S$3*'CDS assumptions'!$J$5) -> 0 | T93: =T53*((1-T$3)*'Revenue assumptions'!$E$6+T$3*'CDS assumptions'!$J$5) -> 0 | U93: =U53*((1-U$3)*'Revenue assumptions'!$E$6+U$3*'CDS assumptions'!$J$5) -> 0 | V93: =V53*((1-V$3)*'Revenue assumptions'!$E$6+V$3*'CDS assumptions'!$J$5) -> 0 | W93: =W53*((1-W$3)*'Revenue assumptions'!$E$6+W$3*'CDS assumptions'!$J$5) -> 0 | X93: =X53*((1-X$3)*'Revenue assumptions'!$E$6+X$3*'CDS assumptions'!$J$5) -> 0 | Y93: =Y53*((1-Y$3)*'Revenue assumptions'!$E$6+Y$3*'CDS assumptions'!$J$5) -> 0 | Z93: =Z53*((1-Z$3)*'Revenue assumptions'!$E$6+Z$3*'CDS assumptions'!$J$5) -> 0 | AA93: =AA53*((1-AA$3)*'Revenue assumptions'!$E$6+AA$3*'CDS assumptions'!$J$5) -> 0 | AB93: =AB53*((1-AB$3)*'Revenue assumptions'!$E$6+AB$3*'CDS assumptions'!$J$5) -> 0 | AC93: =AC53*((1-AC$3)*'Revenue assumptions'!$E$6+AC$3*'CDS assumptions'!$J$5) -> 0 | AD93: =AD53*((1-AD$3)*'Revenue assumptions'!$E$6+AD$3*'CDS assumptions'!$J$5) -> 0 | AE93: =AE53*((1-AE$3)*'Revenue assumptions'!$E$6+AE$3*'CDS assumptions'!$J$5) -> 0 | AF93: =AF53*((1-AF$3)*'Revenue assumptions'!$E$6+AF$3*'CDS assumptions'!$J$5) -> 0 | AG93: =AG53*((1-AG$3)*'Revenue assumptions'!$E$6+AG$3*'CDS assumptions'!$J$5) -> 0 | AH93: =AH53*((1-AH$3)*'Revenue assumptions'!$E$6+AH$3*'CDS assumptions'!$J$5) -> 0 | AI93: =AI53*((1-AI$3)*'Revenue assumptions'!$E$6+AI$3*'CDS assumptions'!$J$5) -> 0
D94: $m, pv
C95: Net operating profit (excl fixed operating costs) | D95: =NPV('Cost assumptions'!$E$5,F95:AI95) -> 0 | F95: =IF(F$2<'Cost assumptions'!$E$3+'Cost assumptions'!$E$4,SUM(F87:F93),0) -> 0 | G95: =IF(G$2<'Cost assumptions'!$E$3+'Cost assumptions'!$E$4,SUM(G87:G93),0) -> 0 | H95: =IF(H$2<'Cost assumptions'!$E$3+'Cost assumptions'!$E$4,SUM(H87:H93),0) -> 0 | I95: =IF(I$2<'Cost assumptions'!$E$3+'Cost assumptions'!$E$4,SUM(I87:I93),0) -> 0 | J95: =IF(J$2<'Cost assumptions'!$E$3+'Cost assumptions'!$E$4,SUM(J87:J93),0) -> 0 | K95: =IF(K$2<'Cost assumptions'!$E$3+'Cost assumptions'!$E$4,SUM(K87:K93),0) -> 0 | L95: =IF(L$2<'Cost assumptions'!$E$3+'Cost assumptions'!$E$4,SUM(L87:L93),0) -> 0 | M95: =IF(M$2<'Cost assumptions'!$E$3+'Cost assumptions'!$E$4,SUM(M87:M93),0) -> 0 | N95: =IF(N$2<'Cost assumptions'!$E$3+'Cost assumptions'!$E$4,SUM(N87:N93),0) -> 0 | O95: =IF(O$2<'Cost assumptions'!$E$3+'Cost assumptions'!$E$4,SUM(O87:O93),0) -> 0 | P95: =IF(P$2<'Cost assumptions'!$E$3+'Cost assumptions'!$E$4,SUM(P87:P93),0) -> 0 | Q95: =IF(Q$2<'Cost assumptions'!$E$3+'Cost assumptions'!$E$4,SUM(Q87:Q93),0) -> 0 | R95: =IF(R$2<'Cost assumptions'!$E$3+'Cost assumptions'!$E$4,SUM(R87:R93),0) -> 0 | S95: =IF(S$2<'Cost assumptions'!$E$3+'Cost assumptions'!$E$4,SUM(S87:S93),0) -> 0 | T95: =IF(T$2<'Cost assumptions'!$E$3+'Cost assumptions'!$E$4,SUM(T87:T93),0) -> 0 | U95: =IF(U$2<'Cost assumptions'!$E$3+'Cost assumptions'!$E$4,SUM(U87:U93),0) -> 0 | V95: =IF(V$2<'Cost assumptions'!$E$3+'Cost assumptions'!$E$4,SUM(V87:V93),0) -> 0 | W95: =IF(W$2<'Cost assumptions'!$E$3+'Cost assumptions'!$E$4,SUM(W87:W93),0) -> 0 | X95: =IF(X$2<'Cost assumptions'!$E$3+'Cost assumptions'!$E$4,SUM(X87:X93),0) -> 0 | Y95: =IF(Y$2<'Cost assumptions'!$E$3+'Cost assumptions'!$E$4,SUM(Y87:Y93),0) -> 0 | Z95: =IF(Z$2<'Cost assumptions'!$E$3+'Cost assumptions'!$E$4,SUM(Z87:Z93),0) -> 0 | AA95: =IF(AA$2<'Cost assumptions'!$E$3+'Cost assumptions'!$E$4,SUM(AA87:AA93),0) -> 0 | AB95: =IF(AB$2<'Cost assumptions'!$E$3+'Cost assumptions'!$E$4,SUM(AB87:AB93),0) -> 0 | AC95: =IF(AC$2<'Cost assumptions'!$E$3+'Cost assumptions'!$E$4,SUM(AC87:AC93),0) -> 0 | AD95: =IF(AD$2<'Cost assumptions'!$E$3+'Cost assumptions'!$E$4,SUM(AD87:AD93),0) -> 0 | AE95: =IF(AE$2<'Cost assumptions'!$E$3+'Cost assumptions'!$E$4,SUM(AE87:AE93),0) -> 0 | AF95: =IF(AF$2<'Cost assumptions'!$E$3+'Cost assumptions'!$E$4,SUM(AF87:AF93),0) -> 0 | AG95: =IF(AG$2<'Cost assumptions'!$E$3+'Cost assumptions'!$E$4,SUM(AG87:AG93),0) -> 0 | AH95: =IF(AH$2<'Cost assumptions'!$E$3+'Cost assumptions'!$E$4,SUM(AH87:AH93),0) -> 0 | AI95: =IF(AI$2<'Cost assumptions'!$E$3+'Cost assumptions'!$E$4,SUM(AI87:AI93),0) -> 0
D107: Base case | E107: =D107 -> Base case | F107: Year for look-up | G107: =INDEX(F2:AI2,1,MATCH(1,'CDS case - no revenue share'!F3:AI3,0)) -> 3
D108: % change | E108: $m
C110: Revenue | D110: =INDEX($F$46:$AI$46,1,$G$107)/INDEX('Base case'!$F$46:$AI$46,1,$G$107)-1 -> 0 | E110: =INDEX($F$46:$AI$46,1,$G$107) -> 4.2936
C111: Operating costs (all) | D111: =INDEX($F$57:$AI$57,1,$G$107)/INDEX('Base case'!$F$57:$AI$57,1,$G$107)-1 -> 0 | E111: =INDEX($F$57:$AI$57,1,$G$107) -> -7.164
C112: Operating profit | D112: =INDEX($F$60:$AI$60,1,$G$107)/INDEX('Base case'!$F$60:$AI$60,1,$G$107)-1 -> 0 | E112: =INDEX($F$60:$AI$60,1,$G$107) -> -2.8704

Sheet CDS case - no revenue share (hidden)
B2: Year | F2: 1 | G2: 2 | H2: 3 | I2: 4 | J2: 5 | K2: 6 | L2: 7 | M2: 8 | N2: 9 | O2: 10 | P2: 11 | Q2: 12 | R2: 13 | S2: 14 | T2: 15 | U2: 16 | V2: 17 | W2: 18 | X2: 19 | Y2: 20 | Z2: 21 | AA2: 22 | AB2: 23 | AC2: 24 | AD2: 25 | AE2: 26 | AF2: 27 | AG2: 28 | AH2: 29 | AI2: 30
B3: CDS applied | F3: =IF(F2<'CDS assumptions'!$C$63,0,1) -> 0 | G3: =IF(G2<'CDS assumptions'!$C$63,0,1) -> 0 | H3: =IF(H2<'CDS assumptions'!$C$63,0,1) -> 1 | I3: =IF(I2<'CDS assumptions'!$C$63,0,1) -> 1 | J3: =IF(J2<'CDS assumptions'!$C$63,0,1) -> 1 | K3: =IF(K2<'CDS assumptions'!$C$63,0,1) -> 1 | L3: =IF(L2<'CDS assumptions'!$C$63,0,1) -> 1 | M3: =IF(M2<'CDS assumptions'!$C$63,0,1) -> 1 | N3: =IF(N2<'CDS assumptions'!$C$63,0,1) -> 1 | O3: =IF(O2<'CDS assumptions'!$C$63,0,1) -> 1 | P3: =IF(P2<'CDS assumptions'!$C$63,0,1) -> 1 | Q3: =IF(Q2<'CDS assumptions'!$C$63,0,1) -> 1 | R3: =IF(R2<'CDS assumptions'!$C$63,0,1) -> 1 | S3: =IF(S2<'CDS assumptions'!$C$63,0,1) -> 1 | T3: =IF(T2<'CDS assumptions'!$C$63,0,1) -> 1 | U3: =IF(U2<'CDS assumptions'!$C$63,0,1) -> 1 | V3: =IF(V2<'CDS assumptions'!$C$63,0,1) -> 1 | W3: =IF(W2<'CDS assumptions'!$C$63,0,1) -> 1 | X3: =IF(X2<'CDS assumptions'!$C$63,0,1) -> 1 | Y3: =IF(Y2<'CDS assumptions'!$C$63,0,1) -> 1 | Z3: =IF(Z2<'CDS assumptions'!$C$63,0,1) -> 1 | AA3: =IF(AA2<'CDS assumptions'!$C$63,0,1) -> 1 | AB3: =IF(AB2<'CDS assumptions'!$C$63,0,1) -> 1 | AC3: =IF(AC2<'CDS assumptions'!$C$63,0,1) -> 1 | AD3: =IF(AD2<'CDS assumptions'!$C$63,0,1) -> 1 | AE3: =IF(AE2<'CDS assumptions'!$C$63,0,1) -> 1 | AF3: =IF(AF2<'CDS assumptions'!$C$63,0,1) -> 1 | AG3: =IF(AG2<'CDS assumptions'!$C$63,0,1) -> 1 | AH3: =IF(AH2<'CDS assumptions'!$C$63,0,1) -> 1 | AI3: =IF(AI2<'CDS assumptions'!$C$63,0,1) -> 1
B4: Tonnes input | D4: MTonnes/year | F4: ='Base case'!F4*(1+'CDS assumptions'!$D$3*F$3) -> 0 | G4: ='Base case'!G4*(1+'CDS assumptions'!$D$3*G$3) -> 0 | H4: ='Base case'!H4*(1+'CDS assumptions'!$D$3*H$3) -> 0.0573078 | I4: ='Base case'!I4*(1+'CDS assumptions'!$D$3*I$3) -> 0.0573078 | J4: ='Base case'!J4*(1+'CDS assumptions'!$D$3*J$3) -> 0.0573078 | K4: ='Base case'!K4*(1+'CDS assumptions'!$D$3*K$3) -> 0.0573078 | L4: ='Base case'!L4*(1+'CDS assumptions'!$D$3*L$3) -> 0.0573078 | M4: ='Base case'!M4*(1+'CDS assumptions'!$D$3*M$3) -> 0.0573078 | N4: ='Base case'!N4*(1+'CDS assumptions'!$D$3*N$3) -> 0.0573078 | O4: ='Base case'!O4*(1+'CDS assumptions'!$D$3*O$3) -> 0.0573078 | P4: ='Base case'!P4*(1+'CDS assumptions'!$D$3*P$3) -> 0.0573078 | Q4: ='Base case'!Q4*(1+'CDS assumptions'!$D$3*Q$3) -> 0.0573078 | R4: ='Base case'!R4*(1+'CDS assumptions'!$D$3*R$3) -> 0.0573078 | S4: ='Base case'!S4*(1+'CDS assumptions'!$D$3*S$3) -> 0.0573078 | T4: ='Base case'!T4*(1+'CDS assumptions'!$D$3*T$3) -> 0.0573078 | U4: ='Base case'!U4*(1+'CDS assumptions'!$D$3*U$3) -> 0.0573078 | V4: ='Base case'!V4*(1+'CDS assumptions'!$D$3*V$3) -> 0.0573078 | W4: ='Base case'!W4*(1+'CDS assumptions'!$D$3*W$3) -> 0.0573078 | X4: ='Base case'!X4*(1+'CDS assumptions'!$D$3*X$3) -> 0.0573078 | Y4: ='Base case'!Y4*(1+'CDS assumptions'!$D$3*Y$3) -> 0.0573078 | Z4: ='Base case'!Z4*(1+'CDS assumptions'!$D$3*Z$3) -> 0.0573078 | AA4: ='Base case'!AA4*(1+'CDS assumptions'!$D$3*AA$3) -> 0.0573078 | AB4: ='Base case'!AB4*(1+'CDS assumptions'!$D$3*AB$3) -> 0.0573078 | AC4: ='Base case'!AC4*(1+'CDS assumptions'!$D$3*AC$3) -> 0.0573078 | AD4: ='Base case'!AD4*(1+'CDS assumptions'!$D$3*AD$3) -> 0.0573078 | AE4: ='Base case'!AE4*(1+'CDS assumptions'!$D$3*AE$3) -> 0.0573078 | AF4: ='Base case'!AF4*(1+'CDS assumptions'!$D$3*AF$3) -> 0.0573078 | AG4: ='Base case'!AG4*(1+'CDS assumptions'!$D$3*AG$3) -> 0.0573078 | AH4: ='Base case'!AH4*(1+'CDS assumptions'!$D$3*AH$3) -> 0.0573078 | AI4: ='Base case'!AI4*(1+'CDS assumptions'!$D$3*AI$3) -> 0.0573078
B5: Capacity | D5: MTonnes/year | F5: ='Base case'!F5 -> 0.0675 | G5: ='Base case'!G5 -> 0.0675 | H5: ='Base case'!H5 -> 0.0675 | I5: ='Base case'!I5 -> 0.0675 | J5: ='Base case'!J5 -> 0.0675 | K5: ='Base case'!K5 -> 0.0675 | L5: ='Base case'!L5 -> 0.0675 | M5: ='Base case'!M5 -> 0.0675 | N5: ='Base case'!N5 -> 0.0675 | O5: ='Base case'!O5 -> 0.0675 | P5: ='Base case'!P5 -> 0.0675 | Q5: ='Base case'!Q5 -> 0.0675 | R5: ='Base case'!R5 -> 0.0675 | S5: ='Base case'!S5 -> 0.0675 | T5: ='Base case'!T5 -> 0.0675 | U5: ='Base case'!U5 -> 0.0675 | V5: ='Base case'!V5 -> 0.0675 | W5: ='Base case'!W5 -> 0.0675 | X5: ='Base case'!X5 -> 0.0675 | Y5: ='Base case'!Y5 -> 0.0675 | Z5: ='Base case'!Z5 -> 0.0675 | AA5: ='Base case'!AA5 -> 0.0675 | AB5: ='Base case'!AB5 -> 0.0675 | AC5: ='Base case'!AC5 -> 0.0675 | AD5: ='Base case'!AD5 -> 0.0675 | AE5: ='Base case'!AE5 -> 0.0675 | AF5: ='Base case'!AF5 -> 0.0675 | AG5: ='Base case'!AG5 -> 0.0675 | AH5: ='Base case'!AH5 -> 0.0675 | AI5: ='Base case'!AI5 -> 0.0675
B6: Check | F6: =IF(AND(F2<'Cost assumptions'!$E$4,F4>0),"Error","Ok") -> Ok | G6: =IF(AND(G2<'Cost assumptions'!$E$4,G4>0),"Error","Ok") -> Ok | H6: =IF(AND(H2<'Cost assumptions'!$E$4,H4>0),"Error","Ok") -> Ok | I6: =IF(AND(I2<'Cost assumptions'!$E$4,I4>0),"Error","Ok") -> Ok | J6: =IF(AND(J2<'Cost assumptions'!$E$4,J4>0),"Error","Ok") -> Ok | K6: =IF(AND(K2<'Cost assumptions'!$E$4,K4>0),"Error","Ok") -> Ok | L6: =IF(AND(L2<'Cost assumptions'!$E$4,L4>0),"Error","Ok") -> Ok | M6: =IF(AND(M2<'Cost assumptions'!$E$4,M4>0),"Error","Ok") -> Ok | N6: =IF(AND(N2<'Cost assumptions'!$E$4,N4>0),"Error","Ok") -> Ok | O6: =IF(AND(O2<'Cost assumptions'!$E$4,O4>0),"Error","Ok") -> Ok | P6: =IF(AND(P2<'Cost assumptions'!$E$4,P4>0),"Error","Ok") -> Ok | Q6: =IF(AND(Q2<'Cost assumptions'!$E$4,Q4>0),"Error","Ok") -> Ok | R6: =IF(AND(R2<'Cost assumptions'!$E$4,R4>0),"Error","Ok") -> Ok | S6: =IF(AND(S2<'Cost assumptions'!$E$4,S4>0),"Error","Ok") -> Ok | T6: =IF(AND(T2<'Cost assumptions'!$E$4,T4>0),"Error","Ok") -> Ok | U6: =IF(AND(U2<'Cost assumptions'!$E$4,U4>0),"Error","Ok") -> Ok | V6: =IF(AND(V2<'Cost assumptions'!$E$4,V4>0),"Error","Ok") -> Ok | W6: =IF(AND(W2<'Cost assumptions'!$E$4,W4>0),"Error","Ok") -> Ok | X6: =IF(AND(X2<'Cost assumptions'!$E$4,X4>0),"Error","Ok") -> Ok | Y6: =IF(AND(Y2<'Cost assumptions'!$E$4,Y4>0),"Error","Ok") -> Ok | Z6: =IF(AND(Z2<'Cost assumptions'!$E$4,Z4>0),"Error","Ok") -> Ok | AA6: =IF(AND(AA2<'Cost assumptions'!$E$4,AA4>0),"Error","Ok") -> Ok | AB6: =IF(AND(AB2<'Cost assumptions'!$E$4,AB4>0),"Error","Ok") -> Ok | AC6: =IF(AND(AC2<'Cost assumptions'!$E$4,AC4>0),"Error","Ok") -> Ok | AD6: =IF(AND(AD2<'Cost assumptions'!$E$4,AD4>0),"Error","Ok") -> Ok | AE6: =IF(AND(AE2<'Cost assumptions'!$E$4,AE4>0),"Error","Ok") -> Ok | AF6: =IF(AND(AF2<'Cost assumptions'!$E$4,AF4>0),"Error","Ok") -> Ok | AG6: =IF(AND(AG2<'Cost assumptions'!$E$4,AG4>0),"Error","Ok") -> Ok | AH6: =IF(AND(AH2<'Cost assumptions'!$E$4,AH4>0),"Error","Ok") -> Ok | AI6: =IF(AND(AI2<'Cost assumptions'!$E$4,AI4>0),"Error","Ok") -> Ok
B7: Revenue items | D7: Unit
C8: Gate fees - council | D8: $m | F8: =F$4*('Revenue assumptions'!$D$5*(1-F$3)+'CDS assumptions'!$I$4*F$3)*'Revenue assumptions'!$E$12 -> 0 | G8: =G$4*('Revenue assumptions'!$D$5*(1-G$3)+'CDS assumptions'!$I$4*G$3)*'Revenue assumptions'!$E$12 -> 0 | H8: =H$4*('Revenue assumptions'!$D$5*(1-H$3)+'CDS assumptions'!$I$4*H$3)*'Revenue assumptions'!$E$12 -> 2.86539 | I8: =I$4*('Revenue assumptions'!$D$5*(1-I$3)+'CDS assumptions'!$I$4*I$3)*'Revenue assumptions'!$E$12 -> 2.86539 | J8: =J$4*('Revenue assumptions'!$D$5*(1-J$3)+'CDS assumptions'!$I$4*J$3)*'Revenue assumptions'!$E$12 -> 2.86539 | K8: =K$4*('Revenue assumptions'!$D$5*(1-K$3)+'CDS assumptions'!$I$4*K$3)*'Revenue assumptions'!$E$12 -> 2.86539 | L8: =L$4*('Revenue assumptions'!$D$5*(1-L$3)+'CDS assumptions'!$I$4*L$3)*'Revenue assumptions'!$E$12 -> 2.86539 | M8: =M$4*('Revenue assumptions'!$D$5*(1-M$3)+'CDS assumptions'!$I$4*M$3)*'Revenue assumptions'!$E$12 -> 2.86539 | N8: =N$4*('Revenue assumptions'!$D$5*(1-N$3)+'CDS assumptions'!$I$4*N$3)*'Revenue assumptions'!$E$12 -> 2.86539 | O8: =O$4*('Revenue assumptions'!$D$5*(1-O$3)+'CDS assumptions'!$I$4*O$3)*'Revenue assumptions'!$E$12 -> 2.86539 | P8: =P$4*('Revenue assumptions'!$D$5*(1-P$3)+'CDS assumptions'!$I$4*P$3)*'Revenue assumptions'!$E$12 -> 2.86539 | Q8: =Q$4*('Revenue assumptions'!$D$5*(1-Q$3)+'CDS assumptions'!$I$4*Q$3)*'Revenue assumptions'!$E$12 -> 2.86539 | R8: =R$4*('Revenue assumptions'!$D$5*(1-R$3)+'CDS assumptions'!$I$4*R$3)*'Revenue assumptions'!$E$12 -> 2.86539 | S8: =S$4*('Revenue assumptions'!$D$5*(1-S$3)+'CDS assumptions'!$I$4*S$3)*'Revenue assumptions'!$E$12 -> 2.86539 | T8: =T$4*('Revenue assumptions'!$D$5*(1-T$3)+'CDS assumptions'!$I$4*T$3)*'Revenue assumptions'!$E$12 -> 2.86539 | U8: =U$4*('Revenue assumptions'!$D$5*(1-U$3)+'CDS assumptions'!$I$4*U$3)*'Revenue assumptions'!$E$12 -> 2.86539 | V8: =V$4*('Revenue assumptions'!$D$5*(1-V$3)+'CDS assumptions'!$I$4*V$3)*'Revenue assumptions'!$E$12 -> 2.86539 | W8: =W$4*('Revenue assumptions'!$D$5*(1-W$3)+'CDS assumptions'!$I$4*W$3)*'Revenue assumptions'!$E$12 -> 2.86539 | X8: =X$4*('Revenue assumptions'!$D$5*(1-X$3)+'CDS assumptions'!$I$4*X$3)*'Revenue assumptions'!$E$12 -> 2.86539 | Y8: =Y$4*('Revenue assumptions'!$D$5*(1-Y$3)+'CDS assumptions'!$I$4*Y$3)*'Revenue assumptions'!$E$12 -> 2.86539 | Z8: =Z$4*('Revenue assumptions'!$D$5*(1-Z$3)+'CDS assumptions'!$I$4*Z$3)*'Revenue assumptions'!$E$12 -> 2.86539 | AA8: =AA$4*('Revenue assumptions'!$D$5*(1-AA$3)+'CDS assumptions'!$I$4*AA$3)*'Revenue assumptions'!$E$12 -> 2.86539 | AB8: =AB$4*('Revenue assumptions'!$D$5*(1-AB$3)+'CDS assumptions'!$I$4*AB$3)*'Revenue assumptions'!$E$12 -> 2.86539 | AC8: =AC$4*('Revenue assumptions'!$D$5*(1-AC$3)+'CDS assumptions'!$I$4*AC$3)*'Revenue assumptions'!$E$12 -> 2.86539 | AD8: =AD$4*('Revenue assumptions'!$D$5*(1-AD$3)+'CDS assumptions'!$I$4*AD$3)*'Revenue assumptions'!$E$12 -> 2.86539 | AE8: =AE$4*('Revenue assumptions'!$D$5*(1-AE$3)+'CDS assumptions'!$I$4*AE$3)*'Revenue assumptions'!$E$12 -> 2.86539 | AF8: =AF$4*('Revenue assumptions'!$D$5*(1-AF$3)+'CDS assumptions'!$I$4*AF$3)*'Revenue assumptions'!$E$12 -> 2.86539 | AG8: =AG$4*('Revenue assumptions'!$D$5*(1-AG$3)+'CDS assumptions'!$I$4*AG$3)*'Revenue assumptions'!$E$12 -> 2.86539 | AH8: =AH$4*('Revenue assumptions'!$D$5*(1-AH$3)+'CDS assumptions'!$I$4*AH$3)*'Revenue assumptions'!$E$12 -> 2.86539 | AI8: =AI$4*('Revenue assumptions'!$D$5*(1-AI$3)+'CDS assumptions'!$I$4*AI$3)*'Revenue assumptions'!$E$12 -> 2.86539
C9: Gate fees - commercial | D9: $m | F9: =F$4*('Revenue assumptions'!$D$6*(1-F$3)+'CDS assumptions'!$I$5*F$3)*'Revenue assumptions'!$E$27 -> 0 | G9: =G$4*('Revenue assumptions'!$D$6*(1-G$3)+'CDS assumptions'!$I$5*G$3)*'Revenue assumptions'!$E$27 -> 0 | H9: =H$4*('Revenue assumptions'!$D$6*(1-H$3)+'CDS assumptions'!$I$5*H$3)*'Revenue assumptions'!$E$27 -> 0 | I9: =I$4*('Revenue assumptions'!$D$6*(1-I$3)+'CDS assumptions'!$I$5*I$3)*'Revenue assumptions'!$E$27 -> 0 | J9: =J$4*('Revenue assumptions'!$D$6*(1-J$3)+'CDS assumptions'!$I$5*J$3)*'Revenue assumptions'!$E$27 -> 0 | K9: =K$4*('Revenue assumptions'!$D$6*(1-K$3)+'CDS assumptions'!$I$5*K$3)*'Revenue assumptions'!$E$27 -> 0 | L9: =L$4*('Revenue assumptions'!$D$6*(1-L$3)+'CDS assumptions'!$I$5*L$3)*'Revenue assumptions'!$E$27 -> 0 | M9: =M$4*('Revenue assumptions'!$D$6*(1-M$3)+'CDS assumptions'!$I$5*M$3)*'Revenue assumptions'!$E$27 -> 0 | N9: =N$4*('Revenue assumptions'!$D$6*(1-N$3)+'CDS assumptions'!$I$5*N$3)*'Revenue assumptions'!$E$27 -> 0 | O9: =O$4*('Revenue assumptions'!$D$6*(1-O$3)+'CDS assumptions'!$I$5*O$3)*'Revenue assumptions'!$E$27 -> 0 | P9: =P$4*('Revenue assumptions'!$D$6*(1-P$3)+'CDS assumptions'!$I$5*P$3)*'Revenue assumptions'!$E$27 -> 0 | Q9: =Q$4*('Revenue assumptions'!$D$6*(1-Q$3)+'CDS assumptions'!$I$5*Q$3)*'Revenue assumptions'!$E$27 -> 0 | R9: =R$4*('Revenue assumptions'!$D$6*(1-R$3)+'CDS assumptions'!$I$5*R$3)*'Revenue assumptions'!$E$27 -> 0 | S9: =S$4*('Revenue assumptions'!$D$6*(1-S$3)+'CDS assumptions'!$I$5*S$3)*'Revenue assumptions'!$E$27 -> 0 | T9: =T$4*('Revenue assumptions'!$D$6*(1-T$3)+'CDS assumptions'!$I$5*T$3)*'Revenue assumptions'!$E$27 -> 0 | U9: =U$4*('Revenue assumptions'!$D$6*(1-U$3)+'CDS assumptions'!$I$5*U$3)*'Revenue assumptions'!$E$27 -> 0 | V9: =V$4*('Revenue assumptions'!$D$6*(1-V$3)+'CDS assumptions'!$I$5*V$3)*'Revenue assumptions'!$E$27 -> 0 | W9: =W$4*('Revenue assumptions'!$D$6*(1-W$3)+'CDS assumptions'!$I$5*W$3)*'Revenue assumptions'!$E$27 -> 0 | X9: =X$4*('Revenue assumptions'!$D$6*(1-X$3)+'CDS assumptions'!$I$5*X$3)*'Revenue assumptions'!$E$27 -> 0 | Y9: =Y$4*('Revenue assumptions'!$D$6*(1-Y$3)+'CDS assumptions'!$I$5*Y$3)*'Revenue assumptions'!$E$27 -> 0 | Z9: =Z$4*('Revenue assumptions'!$D$6*(1-Z$3)+'CDS assumptions'!$I$5*Z$3)*'Revenue assumptions'!$E$27 -> 0 | AA9: =AA$4*('Revenue assumptions'!$D$6*(1-AA$3)+'CDS assumptions'!$I$5*AA$3)*'Revenue assumptions'!$E$27 -> 0 | AB9: =AB$4*('Revenue assumptions'!$D$6*(1-AB$3)+'CDS assumptions'!$I$5*AB$3)*'Revenue assumptions'!$E$27 -> 0 | AC9: =AC$4*('Revenue assumptions'!$D$6*(1-AC$3)+'CDS assumptions'!$I$5*AC$3)*'Revenue assumptions'!$E$27 -> 0 | AD9: =AD$4*('Revenue assumptions'!$D$6*(1-AD$3)+'CDS assumptions'!$I$5*AD$3)*'Revenue assumptions'!$E$27 -> 0 | AE9: =AE$4*('Revenue assumptions'!$D$6*(1-AE$3)+'CDS assumptions'!$I$5*AE$3)*'Revenue assumptions'!$E$27 -> 0 | AF9: =AF$4*('Revenue assumptions'!$D$6*(1-AF$3)+'CDS assumptions'!$I$5*AF$3)*'Revenue assumptions'!$E$27 -> 0 | AG9: =AG$4*('Revenue assumptions'!$D$6*(1-AG$3)+'CDS assumptions'!$I$5*AG$3)*'Revenue assumptions'!$E$27 -> 0 | AH9: =AH$4*('Revenue assumptions'!$D$6*(1-AH$3)+'CDS assumptions'!$I$5*AH$3)*'Revenue assumptions'!$E$27 -> 0 | AI9: =AI$4*('Revenue assumptions'!$D$6*(1-AI$3)+'CDS assumptions'!$I$5*AI$3)*'Revenue assumptions'!$E$27 -> 0
C10: Product sales - council
C11: =Scenarios!H7 -> paper and cardboard | D11: $m | F11: ='Base case'!F11*(1+F$3*'CDS assumptions'!$D7)*(1+F$3*'CDS assumptions'!$F7) -> 0 | G11: ='Base case'!G11*(1+G$3*'CDS assumptions'!$D7)*(1+G$3*'CDS assumptions'!$F7) -> 0 | H11: ='Base case'!H11*(1+H$3*'CDS assumptions'!$D7)*(1+H$3*'CDS assumptions'!$F7) -> 1.422 | I11: ='Base case'!I11*(1+I$3*'CDS assumptions'!$D7)*(1+I$3*'CDS assumptions'!$F7) -> 1.422 | J11: ='Base case'!J11*(1+J$3*'CDS assumptions'!$D7)*(1+J$3*'CDS assumptions'!$F7) -> 1.422 | K11: ='Base case'!K11*(1+K$3*'CDS assumptions'!$D7)*(1+K$3*'CDS assumptions'!$F7) -> 1.422 | L11: ='Base case'!L11*(1+L$3*'CDS assumptions'!$D7)*(1+L$3*'CDS assumptions'!$F7) -> 1.422 | M11: ='Base case'!M11*(1+M$3*'CDS assumptions'!$D7)*(1+M$3*'CDS assumptions'!$F7) -> 1.422 | N11: ='Base case'!N11*(1+N$3*'CDS assumptions'!$D7)*(1+N$3*'CDS assumptions'!$F7) -> 1.422 | O11: ='Base case'!O11*(1+O$3*'CDS assumptions'!$D7)*(1+O$3*'CDS assumptions'!$F7) -> 1.422 | P11: ='Base case'!P11*(1+P$3*'CDS assumptions'!$D7)*(1+P$3*'CDS assumptions'!$F7) -> 1.422 | Q11: ='Base case'!Q11*(1+Q$3*'CDS assumptions'!$D7)*(1+Q$3*'CDS assumptions'!$F7) -> 1.422 | R11: ='Base case'!R11*(1+R$3*'CDS assumptions'!$D7)*(1+R$3*'CDS assumptions'!$F7) -> 1.422 | S11: ='Base case'!S11*(1+S$3*'CDS assumptions'!$D7)*(1+S$3*'CDS assumptions'!$F7) -> 1.422 | T11: ='Base case'!T11*(1+T$3*'CDS assumptions'!$D7)*(1+T$3*'CDS assumptions'!$F7) -> 1.422 | U11: ='Base case'!U11*(1+U$3*'CDS assumptions'!$D7)*(1+U$3*'CDS assumptions'!$F7) -> 1.422 | V11: ='Base case'!V11*(1+V$3*'CDS assumptions'!$D7)*(1+V$3*'CDS assumptions'!$F7) -> 1.422 | W11: ='Base case'!W11*(1+W$3*'CDS assumptions'!$D7)*(1+W$3*'CDS assumptions'!$F7) -> 1.422 | X11: ='Base case'!X11*(1+X$3*'CDS assumptions'!$D7)*(1+X$3*'CDS assumptions'!$F7) -> 1.422 | Y11: ='Base case'!Y11*(1+Y$3*'CDS assumptions'!$D7)*(1+Y$3*'CDS assumptions'!$F7) -> 1.422 | Z11: ='Base case'!Z11*(1+Z$3*'CDS assumptions'!$D7)*(1+Z$3*'CDS assumptions'!$F7) -> 1.422 | AA11: ='Base case'!AA11*(1+AA$3*'CDS assumptions'!$D7)*(1+AA$3*'CDS assumptions'!$F7) -> 1.422 | AB11: ='Base case'!AB11*(1+AB$3*'CDS assumptions'!$D7)*(1+AB$3*'CDS assumptions'!$F7) -> 1.422 | AC11: ='Base case'!AC11*(1+AC$3*'CDS assumptions'!$D7)*(1+AC$3*'CDS assumptions'!$F7) -> 1.422 | AD11: ='Base case'!AD11*(1+AD$3*'CDS assumptions'!$D7)*(1+AD$3*'CDS assumptions'!$F7) -> 1.422 | AE11: ='Base case'!AE11*(1+AE$3*'CDS assumptions'!$D7)*(1+AE$3*'CDS assumptions'!$F7) -> 1.422 | AF11: ='Base case'!AF11*(1+AF$3*'CDS assumptions'!$D7)*(1+AF$3*'CDS assumptions'!$F7) -> 1.422 | AG11: ='Base case'!AG11*(1+AG$3*'CDS assumptions'!$D7)*(1+AG$3*'CDS assumptions'!$F7) -> 1.422 | AH11: ='Base case'!AH11*(1+AH$3*'CDS assumptions'!$D7)*(1+AH$3*'CDS assumptions'!$F7) -> 1.422 | AI11: ='Base case'!AI11*(1+AI$3*'CDS assumptions'!$D7)*(1+AI$3*'CDS assumptions'!$F7) -> 1.422
C12: =Scenarios!H8 -> aluminium | D12: $m | F12: ='Base case'!F12*(1+F$3*'CDS assumptions'!$D8)*(1+F$3*'CDS assumptions'!$F8) -> 0 | G12: ='Base case'!G12*(1+G$3*'CDS assumptions'!$D8)*(1+G$3*'CDS assumptions'!$F8) -> 0 | H12: ='Base case'!H12*(1+H$3*'CDS assumptions'!$D8)*(1+H$3*'CDS assumptions'!$F8) -> 0.41328 | I12: ='Base case'!I12*(1+I$3*'CDS assumptions'!$D8)*(1+I$3*'CDS assumptions'!$F8) -> 0.41328 | J12: ='Base case'!J12*(1+J$3*'CDS assumptions'!$D8)*(1+J$3*'CDS assumptions'!$F8) -> 0.41328 | K12: ='Base case'!K12*(1+K$3*'CDS assumptions'!$D8)*(1+K$3*'CDS assumptions'!$F8) -> 0.41328 | L12: ='Base case'!L12*(1+L$3*'CDS assumptions'!$D8)*(1+L$3*'CDS assumptions'!$F8) -> 0.41328 | M12: ='Base case'!M12*(1+M$3*'CDS assumptions'!$D8)*(1+M$3*'CDS assumptions'!$F8) -> 0.41328 | N12: ='Base case'!N12*(1+N$3*'CDS assumptions'!$D8)*(1+N$3*'CDS assumptions'!$F8) -> 0.41328 | O12: ='Base case'!O12*(1+O$3*'CDS assumptions'!$D8)*(1+O$3*'CDS assumptions'!$F8) -> 0.41328 | P12: ='Base case'!P12*(1+P$3*'CDS assumptions'!$D8)*(1+P$3*'CDS assumptions'!$F8) -> 0.41328 | Q12: ='Base case'!Q12*(1+Q$3*'CDS assumptions'!$D8)*(1+Q$3*'CDS assumptions'!$F8) -> 0.41328 | R12: ='Base case'!R12*(1+R$3*'CDS assumptions'!$D8)*(1+R$3*'CDS assumptions'!$F8) -> 0.41328 | S12: ='Base case'!S12*(1+S$3*'CDS assumptions'!$D8)*(1+S$3*'CDS assumptions'!$F8) -> 0.41328 | T12: ='Base case'!T12*(1+T$3*'CDS assumptions'!$D8)*(1+T$3*'CDS assumptions'!$F8) -> 0.41328 | U12: ='Base case'!U12*(1+U$3*'CDS assumptions'!$D8)*(1+U$3*'CDS assumptions'!$F8) -> 0.41328 | V12: ='Base case'!V12*(1+V$3*'CDS assumptions'!$D8)*(1+V$3*'CDS assumptions'!$F8) -> 0.41328 | W12: ='Base case'!W12*(1+W$3*'CDS assumptions'!$D8)*(1+W$3*'CDS assumptions'!$F8) -> 0.41328 | X12: ='Base case'!X12*(1+X$3*'CDS assumptions'!$D8)*(1+X$3*'CDS assumptions'!$F8) -> 0.41328 | Y12: ='Base case'!Y12*(1+Y$3*'CDS assumptions'!$D8)*(1+Y$3*'CDS assumptions'!$F8) -> 0.41328 | Z12: ='Base case'!Z12*(1+Z$3*'CDS assumptions'!$D8)*(1+Z$3*'CDS assumptions'!$F8) -> 0.41328 | AA12: ='Base case'!AA12*(1+AA$3*'CDS assumptions'!$D8)*(1+AA$3*'CDS assumptions'!$F8) -> 0.41328 | AB12: ='Base case'!AB12*(1+AB$3*'CDS assumptions'!$D8)*(1+AB$3*'CDS assumptions'!$F8) -> 0.41328 | AC12: ='Base case'!AC12*(1+AC$3*'CDS assumptions'!$D8)*(1+AC$3*'CDS assumptions'!$F8) -> 0.41328 | AD12: ='Base case'!AD12*(1+AD$3*'CDS assumptions'!$D8)*(1+AD$3*'CDS assumptions'!$F8) -> 0.41328 | AE12: ='Base case'!AE12*(1+AE$3*'CDS assumptions'!$D8)*(1+AE$3*'CDS assumptions'!$F8) -> 0.41328 | AF12: ='Base case'!AF12*(1+AF$3*'CDS assumptions'!$D8)*(1+AF$3*'CDS assumptions'!$F8) -> 0.41328 | AG12: ='Base case'!AG12*(1+AG$3*'CDS assumptions'!$D8)*(1+AG$3*'CDS assumptions'!$F8) -> 0.41328 | AH12: ='Base case'!AH12*(1+AH$3*'CDS assumptions'!$D8)*(1+AH$3*'CDS assumptions'!$F8) -> 0.41328 | AI12: ='Base case'!AI12*(1+AI$3*'CDS assumptions'!$D8)*(1+AI$3*'CDS assumptions'!$F8) -> 0.41328
C13: =Scenarios!H9 -> other metals | D13: $m | F13: ='Base case'!F13*(1+F$3*'CDS assumptions'!$D9)*(1+F$3*'CDS assumptions'!$F9) -> 0 | G13: ='Base case'!G13*(1+G$3*'CDS assumptions'!$D9)*(1+G$3*'CDS assumptions'!$F9) -> 0 | H13: ='Base case'!H13*(1+H$3*'CDS assumptions'!$D9)*(1+H$3*'CDS assumptions'!$F9) -> 0.0552 | I13: ='Base case'!I13*(1+I$3*'CDS assumptions'!$D9)*(1+I$3*'CDS assumptions'!$F9) -> 0.0552 | J13: ='Base case'!J13*(1+J$3*'CDS assumptions'!$D9)*(1+J$3*'CDS assumptions'!$F9) -> 0.0552 | K13: ='Base case'!K13*(1+K$3*'CDS assumptions'!$D9)*(1+K$3*'CDS assumptions'!$F9) -> 0.0552 | L13: ='Base case'!L13*(1+L$3*'CDS assumptions'!$D9)*(1+L$3*'CDS assumptions'!$F9) -> 0.0552 | M13: ='Base case'!M13*(1+M$3*'CDS assumptions'!$D9)*(1+M$3*'CDS assumptions'!$F9) -> 0.0552 | N13: ='Base case'!N13*(1+N$3*'CDS assumptions'!$D9)*(1+N$3*'CDS assumptions'!$F9) -> 0.0552 | O13: ='Base case'!O13*(1+O$3*'CDS assumptions'!$D9)*(1+O$3*'CDS assumptions'!$F9) -> 0.0552 | P13: ='Base case'!P13*(1+P$3*'CDS assumptions'!$D9)*(1+P$3*'CDS assumptions'!$F9) -> 0.0552 | Q13: ='Base case'!Q13*(1+Q$3*'CDS assumptions'!$D9)*(1+Q$3*'CDS assumptions'!$F9) -> 0.0552 | R13: ='Base case'!R13*(1+R$3*'CDS assumptions'!$D9)*(1+R$3*'CDS assumptions'!$F9) -> 0.0552 | S13: ='Base case'!S13*(1+S$3*'CDS assumptions'!$D9)*(1+S$3*'CDS assumptions'!$F9) -> 0.0552 | T13: ='Base case'!T13*(1+T$3*'CDS assumptions'!$D9)*(1+T$3*'CDS assumptions'!$F9) -> 0.0552 | U13: ='Base case'!U13*(1+U$3*'CDS assumptions'!$D9)*(1+U$3*'CDS assumptions'!$F9) -> 0.0552 | V13: ='Base case'!V13*(1+V$3*'CDS assumptions'!$D9)*(1+V$3*'CDS assumptions'!$F9) -> 0.0552 | W13: ='Base case'!W13*(1+W$3*'CDS assumptions'!$D9)*(1+W$3*'CDS assumptions'!$F9) -> 0.0552 | X13: ='Base case'!X13*(1+X$3*'CDS assumptions'!$D9)*(1+X$3*'CDS assumptions'!$F9) -> 0.0552 | Y13: ='Base case'!Y13*(1+Y$3*'CDS assumptions'!$D9)*(1+Y$3*'CDS assumptions'!$F9) -> 0.0552 | Z13: ='Base case'!Z13*(1+Z$3*'CDS assumptions'!$D9)*(1+Z$3*'CDS assumptions'!$F9) -> 0.0552 | AA13: ='Base case'!AA13*(1+AA$3*'CDS assumptions'!$D9)*(1+AA$3*'CDS assumptions'!$F9) -> 0.0552 | AB13: ='Base case'!AB13*(1+AB$3*'CDS assumptions'!$D9)*(1+AB$3*'CDS assumptions'!$F9) -> 0.0552 | AC13: ='Base case'!AC13*(1+AC$3*'CDS assumptions'!$D9)*(1+AC$3*'CDS assumptions'!$F9) -> 0.0552 | AD13: ='Base case'!AD13*(1+AD$3*'CDS assumptions'!$D9)*(1+AD$3*'CDS assumptions'!$F9) -> 0.0552 | AE13: ='Base case'!AE13*(1+AE$3*'CDS assumptions'!$D9)*(1+AE$3*'CDS assumptions'!$F9) -> 0.0552 | AF13: ='Base case'!AF13*(1+AF$3*'CDS assumptions'!$D9)*(1+AF$3*'CDS assumptions'!$F9) -> 0.0552 | AG13: ='Base case'!AG13*(1+AG$3*'CDS assumptions'!$D9)*(1+AG$3*'CDS assumptions'!$F9) -> 0.0552 | AH13: ='Base case'!AH13*(1+AH$3*'CDS assumptions'!$D9)*(1+AH$3*'CDS assumptions'!$F9) -> 0.0552 | AI13: ='Base case'!AI13*(1+AI$3*'CDS assumptions'!$D9)*(1+AI$3*'CDS assumptions'!$F9) -> 0.0552
C14: =Scenarios!H10 -> glass | D14: $m | F14: ='Base case'!F14*(1+F$3*'CDS assumptions'!$D10)*(1+F$3*'CDS assumptions'!$F10) -> 0 | G14: ='Base case'!G14*(1+G$3*'CDS assumptions'!$D10)*(1+G$3*'CDS assumptions'!$F10) -> 0 | H14: ='Base case'!H14*(1+H$3*'CDS assumptions'!$D10)*(1+H$3*'CDS assumptions'!$F10) -> -1.249248 | I14: ='Base case'!I14*(1+I$3*'CDS assumptions'!$D10)*(1+I$3*'CDS assumptions'!$F10) -> -1.249248 | J14: ='Base case'!J14*(1+J$3*'CDS assumptions'!$D10)*(1+J$3*'CDS assumptions'!$F10) -> -1.249248 | K14: ='Base case'!K14*(1+K$3*'CDS assumptions'!$D10)*(1+K$3*'CDS assumptions'!$F10) -> -1.249248 | L14: ='Base case'!L14*(1+L$3*'CDS assumptions'!$D10)*(1+L$3*'CDS assumptions'!$F10) -> -1.249248 | M14: ='Base case'!M14*(1+M$3*'CDS assumptions'!$D10)*(1+M$3*'CDS assumptions'!$F10) -> -1.249248 | N14: ='Base case'!N14*(1+N$3*'CDS assumptions'!$D10)*(1+N$3*'CDS assumptions'!$F10) -> -1.249248 | O14: ='Base case'!O14*(1+O$3*'CDS assumptions'!$D10)*(1+O$3*'CDS assumptions'!$F10) -> -1.249248 | P14: ='Base case'!P14*(1+P$3*'CDS assumptions'!$D10)*(1+P$3*'CDS assumptions'!$F10) -> -1.249248 | Q14: ='Base case'!Q14*(1+Q$3*'CDS assumptions'!$D10)*(1+Q$3*'CDS assumptions'!$F10) -> -1.249248 | R14: ='Base case'!R14*(1+R$3*'CDS assumptions'!$D10)*(1+R$3*'CDS assumptions'!$F10) -> -1.249248 | S14: ='Base case'!S14*(1+S$3*'CDS assumptions'!$D10)*(1+S$3*'CDS assumptions'!$F10) -> -1.249248 | T14: ='Base case'!T14*(1+T$3*'CDS assumptions'!$D10)*(1+T$3*'CDS assumptions'!$F10) -> -1.249248 | U14: ='Base case'!U14*(1+U$3*'CDS assumptions'!$D10)*(1+U$3*'CDS assumptions'!$F10) -> -1.249248 | V14: ='Base case'!V14*(1+V$3*'CDS assumptions'!$D10)*(1+V$3*'CDS assumptions'!$F10) -> -1.249248 | W14: ='Base case'!W14*(1+W$3*'CDS assumptions'!$D10)*(1+W$3*'CDS assumptions'!$F10) -> -1.249248 | X14: ='Base case'!X14*(1+X$3*'CDS assumptions'!$D10)*(1+X$3*'CDS assumptions'!$F10) -> -1.249248 | Y14: ='Base case'!Y14*(1+Y$3*'CDS assumptions'!$D10)*(1+Y$3*'CDS assumptions'!$F10) -> -1.249248 | Z14: ='Base case'!Z14*(1+Z$3*'CDS assumptions'!$D10)*(1+Z$3*'CDS assumptions'!$F10) -> -1.249248 | AA14: ='Base case'!AA14*(1+AA$3*'CDS assumptions'!$D10)*(1+AA$3*'CDS assumptions'!$F10) -> -1.249248 | AB14: ='Base case'!AB14*(1+AB$3*'CDS assumptions'!$D10)*(1+AB$3*'CDS assumptions'!$F10) -> -1.249248 | AC14: ='Base case'!AC14*(1+AC$3*'CDS assumptions'!$D10)*(1+AC$3*'CDS assumptions'!$F10) -> -1.249248 | AD14: ='Base case'!AD14*(1+AD$3*'CDS assumptions'!$D10)*(1+AD$3*'CDS assumptions'!$F10) -> -1.249248 | AE14: ='Base case'!AE14*(1+AE$3*'CDS assumptions'!$D10)*(1+AE$3*'CDS assumptions'!$F10) -> -1.249248 | AF14: ='Base case'!AF14*(1+AF$3*'CDS assumptions'!$D10)*(1+AF$3*'CDS assumptions'!$F10) -> -1.249248 | AG14: ='Base case'!AG14*(1+AG$3*'CDS assumptions'!$D10)*(1+AG$3*'CDS assumptions'!$F10) -> -1.249248 | AH14: ='Base case'!AH14*(1+AH$3*'CDS assumptions'!$D10)*(1+AH$3*'CDS assumptions'!$F10) -> -1.249248 | AI14: ='Base case'!AI14*(1+AI$3*'CDS assumptions'!$D10)*(1+AI$3*'CDS assumptions'!$F10) -> -1.249248
C15: =Scenarios!H11 -> plastics - mixed | D15: $m | F15: ='Base case'!F15*(1+F$3*'CDS assumptions'!$D11)*(1+F$3*'CDS assumptions'!$F11) -> 0 | G15: ='Base case'!G15*(1+G$3*'CDS assumptions'!$D11)*(1+G$3*'CDS assumptions'!$F11) -> 0 | H15: ='Base case'!H15*(1+H$3*'CDS assumptions'!$D11)*(1+H$3*'CDS assumptions'!$F11) -> 0.6954 | I15: ='Base case'!I15*(1+I$3*'CDS assumptions'!$D11)*(1+I$3*'CDS assumptions'!$F11) -> 0.6954 | J15: ='Base case'!J15*(1+J$3*'CDS assumptions'!$D11)*(1+J$3*'CDS assumptions'!$F11) -> 0.6954 | K15: ='Base case'!K15*(1+K$3*'CDS assumptions'!$D11)*(1+K$3*'CDS assumptions'!$F11) -> 0.6954 | L15: ='Base case'!L15*(1+L$3*'CDS assumptions'!$D11)*(1+L$3*'CDS assumptions'!$F11) -> 0.6954 | M15: ='Base case'!M15*(1+M$3*'CDS assumptions'!$D11)*(1+M$3*'CDS assumptions'!$F11) -> 0.6954 | N15: ='Base case'!N15*(1+N$3*'CDS assumptions'!$D11)*(1+N$3*'CDS assumptions'!$F11) -> 0.6954 | O15: ='Base case'!O15*(1+O$3*'CDS assumptions'!$D11)*(1+O$3*'CDS assumptions'!$F11) -> 0.6954 | P15: ='Base case'!P15*(1+P$3*'CDS assumptions'!$D11)*(1+P$3*'CDS assumptions'!$F11) -> 0.6954 | Q15: ='Base case'!Q15*(1+Q$3*'CDS assumptions'!$D11)*(1+Q$3*'CDS assumptions'!$F11) -> 0.6954 | R15: ='Base case'!R15*(1+R$3*'CDS assumptions'!$D11)*(1+R$3*'CDS assumptions'!$F11) -> 0.6954 | S15: ='Base case'!S15*(1+S$3*'CDS assumptions'!$D11)*(1+S$3*'CDS assumptions'!$F11) -> 0.6954 | T15: ='Base case'!T15*(1+T$3*'CDS assumptions'!$D11)*(1+T$3*'CDS assumptions'!$F11) -> 0.6954 | U15: ='Base case'!U15*(1+U$3*'CDS assumptions'!$D11)*(1+U$3*'CDS assumptions'!$F11) -> 0.6954 | V15: ='Base case'!V15*(1+V$3*'CDS assumptions'!$D11)*(1+V$3*'CDS assumptions'!$F11) -> 0.6954 | W15: ='Base case'!W15*(1+W$3*'CDS assumptions'!$D11)*(1+W$3*'CDS assumptions'!$F11) -> 0.6954 | X15: ='Base case'!X15*(1+X$3*'CDS assumptions'!$D11)*(1+X$3*'CDS assumptions'!$F11) -> 0.6954 | Y15: ='Base case'!Y15*(1+Y$3*'CDS assumptions'!$D11)*(1+Y$3*'CDS assumptions'!$F11) -> 0.6954 | Z15: ='Base case'!Z15*(1+Z$3*'CDS assumptions'!$D11)*(1+Z$3*'CDS assumptions'!$F11) -> 0.6954 | AA15: ='Base case'!AA15*(1+AA$3*'CDS assumptions'!$D11)*(1+AA$3*'CDS assumptions'!$F11) -> 0.6954 | AB15: ='Base case'!AB15*(1+AB$3*'CDS assumptions'!$D11)*(1+AB$3*'CDS assumptions'!$F11) -> 0.6954 | AC15: ='Base case'!AC15*(1+AC$3*'CDS assumptions'!$D11)*(1+AC$3*'CDS assumptions'!$F11) -> 0.6954 | AD15: ='Base case'!AD15*(1+AD$3*'CDS assumptions'!$D11)*(1+AD$3*'CDS assumptions'!$F11) -> 0.6954 | AE15: ='Base case'!AE15*(1+AE$3*'CDS assumptions'!$D11)*(1+AE$3*'CDS assumptions'!$F11) -> 0.6954 | AF15: ='Base case'!AF15*(1+AF$3*'CDS assumptions'!$D11)*(1+AF$3*'CDS assumptions'!$F11) -> 0.6954 | AG15: ='Base case'!AG15*(1+AG$3*'CDS assumptions'!$D11)*(1+AG$3*'CDS assumptions'!$F11) -> 0.6954 | AH15: ='Base case'!AH15*(1+AH$3*'CDS assumptions'!$D11)*(1+AH$3*'CDS assumptions'!$F11) -> 0.6954 | AI15: ='Base case'!AI15*(1+AI$3*'CDS assumptions'!$D11)*(1+AI$3*'CDS assumptions'!$F11) -> 0.6954
C16: =Scenarios!H12 -> plastics - hdpe | D16: $m | F16: ='Base case'!F16*(1+F$3*'CDS assumptions'!$D12)*(1+F$3*'CDS assumptions'!$F12) -> 0 | G16: ='Base case'!G16*(1+G$3*'CDS assumptions'!$D12)*(1+G$3*'CDS assumptions'!$F12) -> 0 | H16: ='Base case'!H16*(1+H$3*'CDS assumptions'!$D12)*(1+H$3*'CDS assumptions'!$F12) -> 0 | I16: ='Base case'!I16*(1+I$3*'CDS assumptions'!$D12)*(1+I$3*'CDS assumptions'!$F12) -> 0 | J16: ='Base case'!J16*(1+J$3*'CDS assumptions'!$D12)*(1+J$3*'CDS assumptions'!$F12) -> 0 | K16: ='Base case'!K16*(1+K$3*'CDS assumptions'!$D12)*(1+K$3*'CDS assumptions'!$F12) -> 0 | L16: ='Base case'!L16*(1+L$3*'CDS assumptions'!$D12)*(1+L$3*'CDS assumptions'!$F12) -> 0 | M16: ='Base case'!M16*(1+M$3*'CDS assumptions'!$D12)*(1+M$3*'CDS assumptions'!$F12) -> 0 | N16: ='Base case'!N16*(1+N$3*'CDS assumptions'!$D12)*(1+N$3*'CDS assumptions'!$F12) -> 0 | O16: ='Base case'!O16*(1+O$3*'CDS assumptions'!$D12)*(1+O$3*'CDS assumptions'!$F12) -> 0 | P16: ='Base case'!P16*(1+P$3*'CDS assumptions'!$D12)*(1+P$3*'CDS assumptions'!$F12) -> 0 | Q16: ='Base case'!Q16*(1+Q$3*'CDS assumptions'!$D12)*(1+Q$3*'CDS assumptions'!$F12) -> 0 | R16: ='Base case'!R16*(1+R$3*'CDS assumptions'!$D12)*(1+R$3*'CDS assumptions'!$F12) -> 0 | S16: ='Base case'!S16*(1+S$3*'CDS assumptions'!$D12)*(1+S$3*'CDS assumptions'!$F12) -> 0 | T16: ='Base case'!T16*(1+T$3*'CDS assumptions'!$D12)*(1+T$3*'CDS assumptions'!$F12) -> 0 | U16: ='Base case'!U16*(1+U$3*'CDS assumptions'!$D12)*(1+U$3*'CDS assumptions'!$F12) -> 0 | V16: ='Base case'!V16*(1+V$3*'CDS assumptions'!$D12)*(1+V$3*'CDS assumptions'!$F12) -> 0 | W16: ='Base case'!W16*(1+W$3*'CDS assumptions'!$D12)*(1+W$3*'CDS assumptions'!$F12) -> 0 | X16: ='Base case'!X16*(1+X$3*'CDS assumptions'!$D12)*(1+X$3*'CDS assumptions'!$F12) -> 0 | Y16: ='Base case'!Y16*(1+Y$3*'CDS assumptions'!$D12)*(1+Y$3*'CDS assumptions'!$F12) -> 0 | Z16: ='Base case'!Z16*(1+Z$3*'CDS assumptions'!$D12)*(1+Z$3*'CDS assumptions'!$F12) -> 0 | AA16: ='Base case'!AA16*(1+AA$3*'CDS assumptions'!$D12)*(1+AA$3*'CDS assumptions'!$F12) -> 0 | AB16: ='Base case'!AB16*(1+AB$3*'CDS assumptions'!$D12)*(1+AB$3*'CDS assumptions'!$F12) -> 0 | AC16: ='Base case'!AC16*(1+AC$3*'CDS assumptions'!$D12)*(1+AC$3*'CDS assumptions'!$F12) -> 0 | AD16: ='Base case'!AD16*(1+AD$3*'CDS assumptions'!$D12)*(1+AD$3*'CDS assumptions'!$F12) -> 0 | AE16: ='Base case'!AE16*(1+AE$3*'CDS assumptions'!$D12)*(1+AE$3*'CDS assumptions'!$F12) -> 0 | AF16: ='Base case'!AF16*(1+AF$3*'CDS assumptions'!$D12)*(1+AF$3*'CDS assumptions'!$F12) -> 0 | AG16: ='Base case'!AG16*(1+AG$3*'CDS assumptions'!$D12)*(1+AG$3*'CDS assumptions'!$F12) -> 0 | AH16: ='Base case'!AH16*(1+AH$3*'CDS assumptions'!$D12)*(1+AH$3*'CDS assumptions'!$F12) -> 0 | AI16: ='Base case'!AI16*(1+AI$3*'CDS assumptions'!$D12)*(1+AI$3*'CDS assumptions'!$F12) -> 0
C17: =Scenarios!H13 -> plastics - PET | D17: $m | F17: ='Base case'!F17*(1+F$3*'CDS assumptions'!$D13)*(1+F$3*'CDS assumptions'!$F13) -> 0 | G17: ='Base case'!G17*(1+G$3*'CDS assumptions'!$D13)*(1+G$3*'CDS assumptions'!$F13) -> 0 | H17: ='Base case'!H17*(1+H$3*'CDS assumptions'!$D13)*(1+H$3*'CDS assumptions'!$F13) -> 0 | I17: ='Base case'!I17*(1+I$3*'CDS assumptions'!$D13)*(1+I$3*'CDS assumptions'!$F13) -> 0 | J17: ='Base case'!J17*(1+J$3*'CDS assumptions'!$D13)*(1+J$3*'CDS assumptions'!$F13) -> 0 | K17: ='Base case'!K17*(1+K$3*'CDS assumptions'!$D13)*(1+K$3*'CDS assumptions'!$F13) -> 0 | L17: ='Base case'!L17*(1+L$3*'CDS assumptions'!$D13)*(1+L$3*'CDS assumptions'!$F13) -> 0 | M17: ='Base case'!M17*(1+M$3*'CDS assumptions'!$D13)*(1+M$3*'CDS assumptions'!$F13) -> 0 | N17: ='Base case'!N17*(1+N$3*'CDS assumptions'!$D13)*(1+N$3*'CDS assumptions'!$F13) -> 0 | O17: ='Base case'!O17*(1+O$3*'CDS assumptions'!$D13)*(1+O$3*'CDS assumptions'!$F13) -> 0 | P17: ='Base case'!P17*(1+P$3*'CDS assumptions'!$D13)*(1+P$3*'CDS assumptions'!$F13) -> 0 | Q17: ='Base case'!Q17*(1+Q$3*'CDS assumptions'!$D13)*(1+Q$3*'CDS assumptions'!$F13) -> 0 | R17: ='Base case'!R17*(1+R$3*'CDS assumptions'!$D13)*(1+R$3*'CDS assumptions'!$F13) -> 0 | S17: ='Base case'!S17*(1+S$3*'CDS assumptions'!$D13)*(1+S$3*'CDS assumptions'!$F13) -> 0 | T17: ='Base case'!T17*(1+T$3*'CDS assumptions'!$D13)*(1+T$3*'CDS assumptions'!$F13) -> 0 | U17: ='Base case'!U17*(1+U$3*'CDS assumptions'!$D13)*(1+U$3*'CDS assumptions'!$F13) -> 0 | V17: ='Base case'!V17*(1+V$3*'CDS assumptions'!$D13)*(1+V$3*'CDS assumptions'!$F13) -> 0 | W17: ='Base case'!W17*(1+W$3*'CDS assumptions'!$D13)*(1+W$3*'CDS assumptions'!$F13) -> 0 | X17: ='Base case'!X17*(1+X$3*'CDS assumptions'!$D13)*(1+X$3*'CDS assumptions'!$F13) -> 0 | Y17: ='Base case'!Y17*(1+Y$3*'CDS assumptions'!$D13)*(1+Y$3*'CDS assumptions'!$F13) -> 0 | Z17: ='Base case'!Z17*(1+Z$3*'CDS assumptions'!$D13)*(1+Z$3*'CDS assumptions'!$F13) -> 0 | AA17: ='Base case'!AA17*(1+AA$3*'CDS assumptions'!$D13)*(1+AA$3*'CDS assumptions'!$F13) -> 0 | AB17: ='Base case'!AB17*(1+AB$3*'CDS assumptions'!$D13)*(1+AB$3*'CDS assumptions'!$F13) -> 0 | AC17: ='Base case'!AC17*(1+AC$3*'CDS assumptions'!$D13)*(1+AC$3*'CDS assumptions'!$F13) -> 0 | AD17: ='Base case'!AD17*(1+AD$3*'CDS assumptions'!$D13)*(1+AD$3*'CDS assumptions'!$F13) -> 0 | AE17: ='Base case'!AE17*(1+AE$3*'CDS assumptions'!$D13)*(1+AE$3*'CDS assumptions'!$F13) -> 0 | AF17: ='Base case'!AF17*(1+AF$3*'CDS assumptions'!$D13)*(1+AF$3*'CDS assumptions'!$F13) -> 0 | AG17: ='Base case'!AG17*(1+AG$3*'CDS assumptions'!$D13)*(1+AG$3*'CDS assumptions'!$F13) -> 0 | AH17: ='Base case'!AH17*(1+AH$3*'CDS assumptions'!$D13)*(1+AH$3*'CDS assumptions'!$F13) -> 0 | AI17: ='Base case'!AI17*(1+AI$3*'CDS assumptions'!$D13)*(1+AI$3*'CDS assumptions'!$F13) -> 0
C18: =Scenarios!H14 -> other | D18: $m | F18: ='Base case'!F18*(1+F$3*'CDS assumptions'!$D14)*(1+F$3*'CDS assumptions'!$F14) -> 0 | G18: ='Base case'!G18*(1+G$3*'CDS assumptions'!$D14)*(1+G$3*'CDS assumptions'!$F14) -> 0 | H18: ='Base case'!H18*(1+H$3*'CDS assumptions'!$D14)*(1+H$3*'CDS assumptions'!$F14) -> 0 | I18: ='Base case'!I18*(1+I$3*'CDS assumptions'!$D14)*(1+I$3*'CDS assumptions'!$F14) -> 0 | J18: ='Base case'!J18*(1+J$3*'CDS assumptions'!$D14)*(1+J$3*'CDS assumptions'!$F14) -> 0 | K18: ='Base case'!K18*(1+K$3*'CDS assumptions'!$D14)*(1+K$3*'CDS assumptions'!$F14) -> 0 | L18: ='Base case'!L18*(1+L$3*'CDS assumptions'!$D14)*(1+L$3*'CDS assumptions'!$F14) -> 0 | M18: ='Base case'!M18*(1+M$3*'CDS assumptions'!$D14)*(1+M$3*'CDS assumptions'!$F14) -> 0 | N18: ='Base case'!N18*(1+N$3*'CDS assumptions'!$D14)*(1+N$3*'CDS assumptions'!$F14) -> 0 | O18: ='Base case'!O18*(1+O$3*'CDS assumptions'!$D14)*(1+O$3*'CDS assumptions'!$F14) -> 0 | P18: ='Base case'!P18*(1+P$3*'CDS assumptions'!$D14)*(1+P$3*'CDS assumptions'!$F14) -> 0 | Q18: ='Base case'!Q18*(1+Q$3*'CDS assumptions'!$D14)*(1+Q$3*'CDS assumptions'!$F14) -> 0 | R18: ='Base case'!R18*(1+R$3*'CDS assumptions'!$D14)*(1+R$3*'CDS assumptions'!$F14) -> 0 | S18: ='Base case'!S18*(1+S$3*'CDS assumptions'!$D14)*(1+S$3*'CDS assumptions'!$F14) -> 0 | T18: ='Base case'!T18*(1+T$3*'CDS assumptions'!$D14)*(1+T$3*'CDS assumptions'!$F14) -> 0 | U18: ='Base case'!U18*(1+U$3*'CDS assumptions'!$D14)*(1+U$3*'CDS assumptions'!$F14) -> 0 | V18: ='Base case'!V18*(1+V$3*'CDS assumptions'!$D14)*(1+V$3*'CDS assumptions'!$F14) -> 0 | W18: ='Base case'!W18*(1+W$3*'CDS assumptions'!$D14)*(1+W$3*'CDS assumptions'!$F14) -> 0 | X18: ='Base case'!X18*(1+X$3*'CDS assumptions'!$D14)*(1+X$3*'CDS assumptions'!$F14) -> 0 | Y18: ='Base case'!Y18*(1+Y$3*'CDS assumptions'!$D14)*(1+Y$3*'CDS assumptions'!$F14) -> 0 | Z18: ='Base case'!Z18*(1+Z$3*'CDS assumptions'!$D14)*(1+Z$3*'CDS assumptions'!$F14) -> 0 | AA18: ='Base case'!AA18*(1+AA$3*'CDS assumptions'!$D14)*(1+AA$3*'CDS assumptions'!$F14) -> 0 | AB18: ='Base case'!AB18*(1+AB$3*'CDS assumptions'!$D14)*(1+AB$3*'CDS assumptions'!$F14) -> 0 | AC18: ='Base case'!AC18*(1+AC$3*'CDS assumptions'!$D14)*(1+AC$3*'CDS assumptions'!$F14) -> 0 | AD18: ='Base case'!AD18*(1+AD$3*'CDS assumptions'!$D14)*(1+AD$3*'CDS assumptions'!$F14) -> 0 | AE18: ='Base case'!AE18*(1+AE$3*'CDS assumptions'!$D14)*(1+AE$3*'CDS assumptions'!$F14) -> 0 | AF18: ='Base case'!AF18*(1+AF$3*'CDS assumptions'!$D14)*(1+AF$3*'CDS assumptions'!$F14) -> 0 | AG18: ='Base case'!AG18*(1+AG$3*'CDS assumptions'!$D14)*(1+AG$3*'CDS assumptions'!$F14) -> 0 | AH18: ='Base case'!AH18*(1+AH$3*'CDS assumptions'!$D14)*(1+AH$3*'CDS assumptions'!$F14) -> 0 | AI18: ='Base case'!AI18*(1+AI$3*'CDS assumptions'!$D14)*(1+AI$3*'CDS assumptions'!$F14) -> 0
C19: Product sales - commercial
C20: =C11 -> paper and cardboard | D20: $m | F20: ='Base case'!F20*(1+F$3*'CDS assumptions'!$F17) -> 0 | G20: ='Base case'!G20*(1+G$3*'CDS assumptions'!$F17) -> 0 | H20: ='Base case'!H20*(1+H$3*'CDS assumptions'!$F17) -> 0 | I20: ='Base case'!I20*(1+I$3*'CDS assumptions'!$F17) -> 0 | J20: ='Base case'!J20*(1+J$3*'CDS assumptions'!$F17) -> 0 | K20: ='Base case'!K20*(1+K$3*'CDS assumptions'!$F17) -> 0 | L20: ='Base case'!L20*(1+L$3*'CDS assumptions'!$F17) -> 0 | M20: ='Base case'!M20*(1+M$3*'CDS assumptions'!$F17) -> 0 | N20: ='Base case'!N20*(1+N$3*'CDS assumptions'!$F17) -> 0 | O20: ='Base case'!O20*(1+O$3*'CDS assumptions'!$F17) -> 0 | P20: ='Base case'!P20*(1+P$3*'CDS assumptions'!$F17) -> 0 | Q20: ='Base case'!Q20*(1+Q$3*'CDS assumptions'!$F17) -> 0 | R20: ='Base case'!R20*(1+R$3*'CDS assumptions'!$F17) -> 0 | S20: ='Base case'!S20*(1+S$3*'CDS assumptions'!$F17) -> 0 | T20: ='Base case'!T20*(1+T$3*'CDS assumptions'!$F17) -> 0 | U20: ='Base case'!U20*(1+U$3*'CDS assumptions'!$F17) -> 0 | V20: ='Base case'!V20*(1+V$3*'CDS assumptions'!$F17) -> 0 | W20: ='Base case'!W20*(1+W$3*'CDS assumptions'!$F17) -> 0 | X20: ='Base case'!X20*(1+X$3*'CDS assumptions'!$F17) -> 0 | Y20: ='Base case'!Y20*(1+Y$3*'CDS assumptions'!$F17) -> 0 | Z20: ='Base case'!Z20*(1+Z$3*'CDS assumptions'!$F17) -> 0 | AA20: ='Base case'!AA20*(1+AA$3*'CDS assumptions'!$F17) -> 0 | AB20: ='Base case'!AB20*(1+AB$3*'CDS assumptions'!$F17) -> 0 | AC20: ='Base case'!AC20*(1+AC$3*'CDS assumptions'!$F17) -> 0 | AD20: ='Base case'!AD20*(1+AD$3*'CDS assumptions'!$F17) -> 0 | AE20: ='Base case'!AE20*(1+AE$3*'CDS assumptions'!$F17) -> 0 | AF20: ='Base case'!AF20*(1+AF$3*'CDS assumptions'!$F17) -> 0 | AG20: ='Base case'!AG20*(1+AG$3*'CDS assumptions'!$F17) -> 0 | AH20: ='Base case'!AH20*(1+AH$3*'CDS assumptions'!$F17) -> 0 | AI20: ='Base case'!AI20*(1+AI$3*'CDS assumptions'!$F17) -> 0
C21: aluminium | D21: $m | F21: ='Base case'!F21*(1+F$3*'CDS assumptions'!$F18) -> 0 | G21: ='Base case'!G21*(1+G$3*'CDS assumptions'!$F18) -> 0 | H21: ='Base case'!H21*(1+H$3*'CDS assumptions'!$F18) -> 0 | I21: ='Base case'!I21*(1+I$3*'CDS assumptions'!$F18) -> 0 | J21: ='Base case'!J21*(1+J$3*'CDS assumptions'!$F18) -> 0 | K21: ='Base case'!K21*(1+K$3*'CDS assumptions'!$F18) -> 0 | L21: ='Base case'!L21*(1+L$3*'CDS assumptions'!$F18) -> 0 | M21: ='Base case'!M21*(1+M$3*'CDS assumptions'!$F18) -> 0 | N21: ='Base case'!N21*(1+N$3*'CDS assumptions'!$F18) -> 0 | O21: ='Base case'!O21*(1+O$3*'CDS assumptions'!$F18) -> 0 | P21: ='Base case'!P21*(1+P$3*'CDS assumptions'!$F18) -> 0 | Q21: ='Base case'!Q21*(1+Q$3*'CDS assumptions'!$F18) -> 0 | R21: ='Base case'!R21*(1+R$3*'CDS assumptions'!$F18) -> 0 | S21: ='Base case'!S21*(1+S$3*'CDS assumptions'!$F18) -> 0 | T21: ='Base case'!T21*(1+T$3*'CDS assumptions'!$F18) -> 0 | U21: ='Base case'!U21*(1+U$3*'CDS assumptions'!$F18) -> 0 | V21: ='Base case'!V21*(1+V$3*'CDS assumptions'!$F18) -> 0 | W21: ='Base case'!W21*(1+W$3*'CDS assumptions'!$F18) -> 0 | X21: ='Base case'!X21*(1+X$3*'CDS assumptions'!$F18) -> 0 | Y21: ='Base case'!Y21*(1+Y$3*'CDS assumptions'!$F18) -> 0 | Z21: ='Base case'!Z21*(1+Z$3*'CDS assumptions'!$F18) -> 0 | AA21: ='Base case'!AA21*(1+AA$3*'CDS assumptions'!$F18) -> 0 | AB21: ='Base case'!AB21*(1+AB$3*'CDS assumptions'!$F18) -> 0 | AC21: ='Base case'!AC21*(1+AC$3*'CDS assumptions'!$F18) -> 0 | AD21: ='Base case'!AD21*(1+AD$3*'CDS assumptions'!$F18) -> 0 | AE21: ='Base case'!AE21*(1+AE$3*'CDS assumptions'!$F18) -> 0 | AF21: ='Base case'!AF21*(1+AF$3*'CDS assumptions'!$F18) -> 0 | AG21: ='Base case'!AG21*(1+AG$3*'CDS assumptions'!$F18) -> 0 | AH21: ='Base case'!AH21*(1+AH$3*'CDS assumptions'!$F18) -> 0 | AI21: ='Base case'!AI21*(1+AI$3*'CDS assumptions'!$F18) -> 0
C22: other metals | D22: $m | F22: ='Base case'!F22*(1+F$3*'CDS assumptions'!$F19) -> 0 | G22: ='Base case'!G22*(1+G$3*'CDS assumptions'!$F19) -> 0 | H22: ='Base case'!H22*(1+H$3*'CDS assumptions'!$F19) -> 0 | I22: ='Base case'!I22*(1+I$3*'CDS assumptions'!$F19) -> 0 | J22: ='Base case'!J22*(1+J$3*'CDS assumptions'!$F19) -> 0 | K22: ='Base case'!K22*(1+K$3*'CDS assumptions'!$F19) -> 0 | L22: ='Base case'!L22*(1+L$3*'CDS assumptions'!$F19) -> 0 | M22: ='Base case'!M22*(1+M$3*'CDS assumptions'!$F19) -> 0 | N22: ='Base case'!N22*(1+N$3*'CDS assumptions'!$F19) -> 0 | O22: ='Base case'!O22*(1+O$3*'CDS assumptions'!$F19) -> 0 | P22: ='Base case'!P22*(1+P$3*'CDS assumptions'!$F19) -> 0 | Q22: ='Base case'!Q22*(1+Q$3*'CDS assumptions'!$F19) -> 0 | R22: ='Base case'!R22*(1+R$3*'CDS assumptions'!$F19) -> 0 | S22: ='Base case'!S22*(1+S$3*'CDS assumptions'!$F19) -> 0 | T22: ='Base case'!T22*(1+T$3*'CDS assumptions'!$F19) -> 0 | U22: ='Base case'!U22*(1+U$3*'CDS assumptions'!$F19) -> 0 | V22: ='Base case'!V22*(1+V$3*'CDS assumptions'!$F19) -> 0 | W22: ='Base case'!W22*(1+W$3*'CDS assumptions'!$F19) -> 0 | X22: ='Base case'!X22*(1+X$3*'CDS assumptions'!$F19) -> 0 | Y22: ='Base case'!Y22*(1+Y$3*'CDS assumptions'!$F19) -> 0 | Z22: ='Base case'!Z22*(1+Z$3*'CDS assumptions'!$F19) -> 0 | AA22: ='Base case'!AA22*(1+AA$3*'CDS assumptions'!$F19) -> 0 | AB22: ='Base case'!AB22*(1+AB$3*'CDS assumptions'!$F19) -> 0 | AC22: ='Base case'!AC22*(1+AC$3*'CDS assumptions'!$F19) -> 0 | AD22: ='Base case'!AD22*(1+AD$3*'CDS assumptions'!$F19) -> 0 | AE22: ='Base case'!AE22*(1+AE$3*'CDS assumptions'!$F19) -> 0 | AF22: ='Base case'!AF22*(1+AF$3*'CDS assumptions'!$F19) -> 0 | AG22: ='Base case'!AG22*(1+AG$3*'CDS assumptions'!$F19) -> 0 | AH22: ='Base case'!AH22*(1+AH$3*'CDS assumptions'!$F19) -> 0 | AI22: ='Base case'!AI22*(1+AI$3*'CDS assumptions'!$F19) -> 0
C23: glass | D23: $m | F23: ='Base case'!F23*(1+F$3*'CDS assumptions'!$F20) -> 0 | G23: ='Base case'!G23*(1+G$3*'CDS assumptions'!$F20) -> 0 | H23: ='Base case'!H23*(1+H$3*'CDS assumptions'!$F20) -> 0 | I23: ='Base case'!I23*(1+I$3*'CDS assumptions'!$F20) -> 0 | J23: ='Base case'!J23*(1+J$3*'CDS assumptions'!$F20) -> 0 | K23: ='Base case'!K23*(1+K$3*'CDS assumptions'!$F20) -> 0 | L23: ='Base case'!L23*(1+L$3*'CDS assumptions'!$F20) -> 0 | M23: ='Base case'!M23*(1+M$3*'CDS assumptions'!$F20) -> 0 | N23: ='Base case'!N23*(1+N$3*'CDS assumptions'!$F20) -> 0 | O23: ='Base case'!O23*(1+O$3*'CDS assumptions'!$F20) -> 0 | P23: ='Base case'!P23*(1+P$3*'CDS assumptions'!$F20) -> 0 | Q23: ='Base case'!Q23*(1+Q$3*'CDS assumptions'!$F20) -> 0 | R23: ='Base case'!R23*(1+R$3*'CDS assumptions'!$F20) -> 0 | S23: ='Base case'!S23*(1+S$3*'CDS assumptions'!$F20) -> 0 | T23: ='Base case'!T23*(1+T$3*'CDS assumptions'!$F20) -> 0 | U23: ='Base case'!U23*(1+U$3*'CDS assumptions'!$F20) -> 0 | V23: ='Base case'!V23*(1+V$3*'CDS assumptions'!$F20) -> 0 | W23: ='Base case'!W23*(1+W$3*'CDS assumptions'!$F20) -> 0 | X23: ='Base case'!X23*(1+X$3*'CDS assumptions'!$F20) -> 0 | Y23: ='Base case'!Y23*(1+Y$3*'CDS assumptions'!$F20) -> 0 | Z23: ='Base case'!Z23*(1+Z$3*'CDS assumptions'!$F20) -> 0 | AA23: ='Base case'!AA23*(1+AA$3*'CDS assumptions'!$F20) -> 0 | AB23: ='Base case'!AB23*(1+AB$3*'CDS assumptions'!$F20) -> 0 | AC23: ='Base case'!AC23*(1+AC$3*'CDS assumptions'!$F20) -> 0 | AD23: ='Base case'!AD23*(1+AD$3*'CDS assumptions'!$F20) -> 0 | AE23: ='Base case'!AE23*(1+AE$3*'CDS assumptions'!$F20) -> 0 | AF23: ='Base case'!AF23*(1+AF$3*'CDS assumptions'!$F20) -> 0 | AG23: ='Base case'!AG23*(1+AG$3*'CDS assumptions'!$F20) -> 0 | AH23: ='Base case'!AH23*(1+AH$3*'CDS assumptions'!$F20) -> 0 | AI23: ='Base case'!AI23*(1+AI$3*'CDS assumptions'!$F20) -> 0
C24: plastics - mixed | D24: $m | F24: ='Base case'!F24*(1+F$3*'CDS assumptions'!$F21) -> 0 | G24: ='Base case'!G24*(1+G$3*'CDS assumptions'!$F21) -> 0 | H24: ='Base case'!H24*(1+H$3*'CDS assumptions'!$F21) -> 0 | I24: ='Base case'!I24*(1+I$3*'CDS assumptions'!$F21) -> 0 | J24: ='Base case'!J24*(1+J$3*'CDS assumptions'!$F21) -> 0 | K24: ='Base case'!K24*(1+K$3*'CDS assumptions'!$F21) -> 0 | L24: ='Base case'!L24*(1+L$3*'CDS assumptions'!$F21) -> 0 | M24: ='Base case'!M24*(1+M$3*'CDS assumptions'!$F21) -> 0 | N24: ='Base case'!N24*(1+N$3*'CDS assumptions'!$F21) -> 0 | O24: ='Base case'!O24*(1+O$3*'CDS assumptions'!$F21) -> 0 | P24: ='Base case'!P24*(1+P$3*'CDS assumptions'!$F21) -> 0 | Q24: ='Base case'!Q24*(1+Q$3*'CDS assumptions'!$F21) -> 0 | R24: ='Base case'!R24*(1+R$3*'CDS assumptions'!$F21) -> 0 | S24: ='Base case'!S24*(1+S$3*'CDS assumptions'!$F21) -> 0 | T24: ='Base case'!T24*(1+T$3*'CDS assumptions'!$F21) -> 0 | U24: ='Base case'!U24*(1+U$3*'CDS assumptions'!$F21) -> 0 | V24: ='Base case'!V24*(1+V$3*'CDS assumptions'!$F21) -> 0 | W24: ='Base case'!W24*(1+W$3*'CDS assumptions'!$F21) -> 0 | X24: ='Base case'!X24*(1+X$3*'CDS assumptions'!$F21) -> 0 | Y24: ='Base case'!Y24*(1+Y$3*'CDS assumptions'!$F21) -> 0 | Z24: ='Base case'!Z24*(1+Z$3*'CDS assumptions'!$F21) -> 0 | AA24: ='Base case'!AA24*(1+AA$3*'CDS assumptions'!$F21) -> 0 | AB24: ='Base case'!AB24*(1+AB$3*'CDS assumptions'!$F21) -> 0 | AC24: ='Base case'!AC24*(1+AC$3*'CDS assumptions'!$F21) -> 0 | AD24: ='Base case'!AD24*(1+AD$3*'CDS assumptions'!$F21) -> 0 | AE24: ='Base case'!AE24*(1+AE$3*'CDS assumptions'!$F21) -> 0 | AF24: ='Base case'!AF24*(1+AF$3*'CDS assumptions'!$F21) -> 0 | AG24: ='Base case'!AG24*(1+AG$3*'CDS assumptions'!$F21) -> 0 | AH24: ='Base case'!AH24*(1+AH$3*'CDS assumptions'!$F21) -> 0 | AI24: ='Base case'!AI24*(1+AI$3*'CDS assumptions'!$F21) -> 0
C25: plastics - hdpe | D25: $m | F25: ='Base case'!F25*(1+F$3*'CDS assumptions'!$F22) -> 0 | G25: ='Base case'!G25*(1+G$3*'CDS assumptions'!$F22) -> 0 | H25: ='Base case'!H25*(1+H$3*'CDS assumptions'!$F22) -> 0 | I25: ='Base case'!I25*(1+I$3*'CDS assumptions'!$F22) -> 0 | J25: ='Base case'!J25*(1+J$3*'CDS assumptions'!$F22) -> 0 | K25: ='Base case'!K25*(1+K$3*'CDS assumptions'!$F22) -> 0 | L25: ='Base case'!L25*(1+L$3*'CDS assumptions'!$F22) -> 0 | M25: ='Base case'!M25*(1+M$3*'CDS assumptions'!$F22) -> 0 | N25: ='Base case'!N25*(1+N$3*'CDS assumptions'!$F22) -> 0 | O25: ='Base case'!O25*(1+O$3*'CDS assumptions'!$F22) -> 0 | P25: ='Base case'!P25*(1+P$3*'CDS assumptions'!$F22) -> 0 | Q25: ='Base case'!Q25*(1+Q$3*'CDS assumptions'!$F22) -> 0 | R25: ='Base case'!R25*(1+R$3*'CDS assumptions'!$F22) -> 0 | S25: ='Base case'!S25*(1+S$3*'CDS assumptions'!$F22) -> 0 | T25: ='Base case'!T25*(1+T$3*'CDS assumptions'!$F22) -> 0 | U25: ='Base case'!U25*(1+U$3*'CDS assumptions'!$F22) -> 0 | V25: ='Base case'!V25*(1+V$3*'CDS assumptions'!$F22) -> 0 | W25: ='Base case'!W25*(1+W$3*'CDS assumptions'!$F22) -> 0 | X25: ='Base case'!X25*(1+X$3*'CDS assumptions'!$F22) -> 0 | Y25: ='Base case'!Y25*(1+Y$3*'CDS assumptions'!$F22) -> 0 | Z25: ='Base case'!Z25*(1+Z$3*'CDS assumptions'!$F22) -> 0 | AA25: ='Base case'!AA25*(1+AA$3*'CDS assumptions'!$F22) -> 0 | AB25: ='Base case'!AB25*(1+AB$3*'CDS assumptions'!$F22) -> 0 | AC25: ='Base case'!AC25*(1+AC$3*'CDS assumptions'!$F22) -> 0 | AD25: ='Base case'!AD25*(1+AD$3*'CDS assumptions'!$F22) -> 0 | AE25: ='Base case'!AE25*(1+AE$3*'CDS assumptions'!$F22) -> 0 | AF25: ='Base case'!AF25*(1+AF$3*'CDS assumptions'!$F22) -> 0 | AG25: ='Base case'!AG25*(1+AG$3*'CDS assumptions'!$F22) -> 0 | AH25: ='Base case'!AH25*(1+AH$3*'CDS assumptions'!$F22) -> 0 | AI25: ='Base case'!AI25*(1+AI$3*'CDS assumptions'!$F22) -> 0
C26: plastics - PET | D26: $m | F26: ='Base case'!F26*(1+F$3*'CDS assumptions'!$F23) -> 0 | G26: ='Base case'!G26*(1+G$3*'CDS assumptions'!$F23) -> 0 | H26: ='Base case'!H26*(1+H$3*'CDS assumptions'!$F23) -> 0 | I26: ='Base case'!I26*(1+I$3*'CDS assumptions'!$F23) -> 0 | J26: ='Base case'!J26*(1+J$3*'CDS assumptions'!$F23) -> 0 | K26: ='Base case'!K26*(1+K$3*'CDS assumptions'!$F23) -> 0 | L26: ='Base case'!L26*(1+L$3*'CDS assumptions'!$F23) -> 0 | M26: ='Base case'!M26*(1+M$3*'CDS assumptions'!$F23) -> 0 | N26: ='Base case'!N26*(1+N$3*'CDS assumptions'!$F23) -> 0 | O26: ='Base case'!O26*(1+O$3*'CDS assumptions'!$F23) -> 0 | P26: ='Base case'!P26*(1+P$3*'CDS assumptions'!$F23) -> 0 | Q26: ='Base case'!Q26*(1+Q$3*'CDS assumptions'!$F23) -> 0 | R26: ='Base case'!R26*(1+R$3*'CDS assumptions'!$F23) -> 0 | S26: ='Base case'!S26*(1+S$3*'CDS assumptions'!$F23) -> 0 | T26: ='Base case'!T26*(1+T$3*'CDS assumptions'!$F23) -> 0 | U26: ='Base case'!U26*(1+U$3*'CDS assumptions'!$F23) -> 0 | V26: ='Base case'!V26*(1+V$3*'CDS assumptions'!$F23) -> 0 | W26: ='Base case'!W26*(1+W$3*'CDS assumptions'!$F23) -> 0 | X26: ='Base case'!X26*(1+X$3*'CDS assumptions'!$F23) -> 0 | Y26: ='Base case'!Y26*(1+Y$3*'CDS assumptions'!$F23) -> 0 | Z26: ='Base case'!Z26*(1+Z$3*'CDS assumptions'!$F23) -> 0 | AA26: ='Base case'!AA26*(1+AA$3*'CDS assumptions'!$F23) -> 0 | AB26: ='Base case'!AB26*(1+AB$3*'CDS assumptions'!$F23) -> 0 | AC26: ='Base case'!AC26*(1+AC$3*'CDS assumptions'!$F23) -> 0 | AD26: ='Base case'!AD26*(1+AD$3*'CDS assumptions'!$F23) -> 0 | AE26: ='Base case'!AE26*(1+AE$3*'CDS assumptions'!$F23) -> 0 | AF26: ='Base case'!AF26*(1+AF$3*'CDS assumptions'!$F23) -> 0 | AG26: ='Base case'!AG26*(1+AG$3*'CDS assumptions'!$F23) -> 0 | AH26: ='Base case'!AH26*(1+AH$3*'CDS assumptions'!$F23) -> 0 | AI26: ='Base case'!AI26*(1+AI$3*'CDS assumptions'!$F23) -> 0
C27: other | D27: $m | F27: ='Base case'!F27*(1+F$3*'CDS assumptions'!$F24) -> 0 | G27: ='Base case'!G27*(1+G$3*'CDS assumptions'!$F24) -> 0 | H27: ='Base case'!H27*(1+H$3*'CDS assumptions'!$F24) -> 0 | I27: ='Base case'!I27*(1+I$3*'CDS assumptions'!$F24) -> 0 | J27: ='Base case'!J27*(1+J$3*'CDS assumptions'!$F24) -> 0 | K27: ='Base case'!K27*(1+K$3*'CDS assumptions'!$F24) -> 0 | L27: ='Base case'!L27*(1+L$3*'CDS assumptions'!$F24) -> 0 | M27: ='Base case'!M27*(1+M$3*'CDS assumptions'!$F24) -> 0 | N27: ='Base case'!N27*(1+N$3*'CDS assumptions'!$F24) -> 0 | O27: ='Base case'!O27*(1+O$3*'CDS assumptions'!$F24) -> 0 | P27: ='Base case'!P27*(1+P$3*'CDS assumptions'!$F24) -> 0 | Q27: ='Base case'!Q27*(1+Q$3*'CDS assumptions'!$F24) -> 0 | R27: ='Base case'!R27*(1+R$3*'CDS assumptions'!$F24) -> 0 | S27: ='Base case'!S27*(1+S$3*'CDS assumptions'!$F24) -> 0 | T27: ='Base case'!T27*(1+T$3*'CDS assumptions'!$F24) -> 0 | U27: ='Base case'!U27*(1+U$3*'CDS assumptions'!$F24) -> 0 | V27: ='Base case'!V27*(1+V$3*'CDS assumptions'!$F24) -> 0 | W27: ='Base case'!W27*(1+W$3*'CDS assumptions'!$F24) -> 0 | X27: ='Base case'!X27*(1+X$3*'CDS assumptions'!$F24) -> 0 | Y27: ='Base case'!Y27*(1+Y$3*'CDS assumptions'!$F24) -> 0 | Z27: ='Base case'!Z27*(1+Z$3*'CDS assumptions'!$F24) -> 0 | AA27: ='Base case'!AA27*(1+AA$3*'CDS assumptions'!$F24) -> 0 | AB27: ='Base case'!AB27*(1+AB$3*'CDS assumptions'!$F24) -> 0 | AC27: ='Base case'!AC27*(1+AC$3*'CDS assumptions'!$F24) -> 0 | AD27: ='Base case'!AD27*(1+AD$3*'CDS assumptions'!$F24) -> 0 | AE27: ='Base case'!AE27*(1+AE$3*'CDS assumptions'!$F24) -> 0 | AF27: ='Base case'!AF27*(1+AF$3*'CDS assumptions'!$F24) -> 0 | AG27: ='Base case'!AG27*(1+AG$3*'CDS assumptions'!$F24) -> 0 | AH27: ='Base case'!AH27*(1+AH$3*'CDS assumptions'!$F24) -> 0 | AI27: ='Base case'!AI27*(1+AI$3*'CDS assumptions'!$F24) -> 0
C28: CDS revenue - council
C29: =C11 -> paper and cardboard | D29: $m | F29: ='Base case'!F$4*'Revenue assumptions'!$D14*(1+'CDS assumptions'!$D7)*'CDS assumptions'!$F38*F$3*'Revenue assumptions'!$D$5 -> 0 | G29: ='Base case'!G$4*'Revenue assumptions'!$D14*(1+'CDS assumptions'!$D7)*'CDS assumptions'!$F38*G$3*'Revenue assumptions'!$D$5 -> 0 | H29: ='Base case'!H$4*'Revenue assumptions'!$D14*(1+'CDS assumptions'!$D7)*'CDS assumptions'!$F38*H$3*'Revenue assumptions'!$D$5 -> 0 | I29: ='Base case'!I$4*'Revenue assumptions'!$D14*(1+'CDS assumptions'!$D7)*'CDS assumptions'!$F38*I$3*'Revenue assumptions'!$D$5 -> 0 | J29: ='Base case'!J$4*'Revenue assumptions'!$D14*(1+'CDS assumptions'!$D7)*'CDS assumptions'!$F38*J$3*'Revenue assumptions'!$D$5 -> 0 | K29: ='Base case'!K$4*'Revenue assumptions'!$D14*(1+'CDS assumptions'!$D7)*'CDS assumptions'!$F38*K$3*'Revenue assumptions'!$D$5 -> 0 | L29: ='Base case'!L$4*'Revenue assumptions'!$D14*(1+'CDS assumptions'!$D7)*'CDS assumptions'!$F38*L$3*'Revenue assumptions'!$D$5 -> 0 | M29: ='Base case'!M$4*'Revenue assumptions'!$D14*(1+'CDS assumptions'!$D7)*'CDS assumptions'!$F38*M$3*'Revenue assumptions'!$D$5 -> 0 | N29: ='Base case'!N$4*'Revenue assumptions'!$D14*(1+'CDS assumptions'!$D7)*'CDS assumptions'!$F38*N$3*'Revenue assumptions'!$D$5 -> 0 | O29: ='Base case'!O$4*'Revenue assumptions'!$D14*(1+'CDS assumptions'!$D7)*'CDS assumptions'!$F38*O$3*'Revenue assumptions'!$D$5 -> 0 | P29: ='Base case'!P$4*'Revenue assumptions'!$D14*(1+'CDS assumptions'!$D7)*'CDS assumptions'!$F38*P$3*'Revenue assumptions'!$D$5 -> 0 | Q29: ='Base case'!Q$4*'Revenue assumptions'!$D14*(1+'CDS assumptions'!$D7)*'CDS assumptions'!$F38*Q$3*'Revenue assumptions'!$D$5 -> 0 | R29: ='Base case'!R$4*'Revenue assumptions'!$D14*(1+'CDS assumptions'!$D7)*'CDS assumptions'!$F38*R$3*'Revenue assumptions'!$D$5 -> 0 | S29: ='Base case'!S$4*'Revenue assumptions'!$D14*(1+'CDS assumptions'!$D7)*'CDS assumptions'!$F38*S$3*'Revenue assumptions'!$D$5 -> 0 | T29: ='Base case'!T$4*'Revenue assumptions'!$D14*(1+'CDS assumptions'!$D7)*'CDS assumptions'!$F38*T$3*'Revenue assumptions'!$D$5 -> 0 | U29: ='Base case'!U$4*'Revenue assumptions'!$D14*(1+'CDS assumptions'!$D7)*'CDS assumptions'!$F38*U$3*'Revenue assumptions'!$D$5 -> 0 | V29: ='Base case'!V$4*'Revenue assumptions'!$D14*(1+'CDS assumptions'!$D7)*'CDS assumptions'!$F38*V$3*'Revenue assumptions'!$D$5 -> 0 | W29: ='Base case'!W$4*'Revenue assumptions'!$D14*(1+'CDS assumptions'!$D7)*'CDS assumptions'!$F38*W$3*'Revenue assumptions'!$D$5 -> 0 | X29: ='Base case'!X$4*'Revenue assumptions'!$D14*(1+'CDS assumptions'!$D7)*'CDS assumptions'!$F38*X$3*'Revenue assumptions'!$D$5 -> 0 | Y29: ='Base case'!Y$4*'Revenue assumptions'!$D14*(1+'CDS assumptions'!$D7)*'CDS assumptions'!$F38*Y$3*'Revenue assumptions'!$D$5 -> 0 | Z29: ='Base case'!Z$4*'Revenue assumptions'!$D14*(1+'CDS assumptions'!$D7)*'CDS assumptions'!$F38*Z$3*'Revenue assumptions'!$D$5 -> 0 | AA29: ='Base case'!AA$4*'Revenue assumptions'!$D14*(1+'CDS assumptions'!$D7)*'CDS assumptions'!$F38*AA$3*'Revenue assumptions'!$D$5 -> 0 | AB29: ='Base case'!AB$4*'Revenue assumptions'!$D14*(1+'CDS assumptions'!$D7)*'CDS assumptions'!$F38*AB$3*'Revenue assumptions'!$D$5 -> 0 | AC29: ='Base case'!AC$4*'Revenue assumptions'!$D14*(1+'CDS assumptions'!$D7)*'CDS assumptions'!$F38*AC$3*'Revenue assumptions'!$D$5 -> 0 | AD29: ='Base case'!AD$4*'Revenue assumptions'!$D14*(1+'CDS assumptions'!$D7)*'CDS assumptions'!$F38*AD$3*'Revenue assumptions'!$D$5 -> 0 | AE29: ='Base case'!AE$4*'Revenue assumptions'!$D14*(1+'CDS assumptions'!$D7)*'CDS assumptions'!$F38*AE$3*'Revenue assumptions'!$D$5 -> 0 | AF29: ='Base case'!AF$4*'Revenue assumptions'!$D14*(1+'CDS assumptions'!$D7)*'CDS assumptions'!$F38*AF$3*'Revenue assumptions'!$D$5 -> 0 | AG29: ='Base case'!AG$4*'Revenue assumptions'!$D14*(1+'CDS assumptions'!$D7)*'CDS assumptions'!$F38*AG$3*'Revenue assumptions'!$D$5 -> 0 | AH29: ='Base case'!AH$4*'Revenue assumptions'!$D14*(1+'CDS assumptions'!$D7)*'CDS assumptions'!$F38*AH$3*'Revenue assumptions'!$D$5 -> 0 | AI29: ='Base case'!AI$4*'Revenue assumptions'!$D14*(1+'CDS assumptions'!$D7)*'CDS assumptions'!$F38*AI$3*'Revenue assumptions'!$D$5 -> 0
C30: aluminium | D30: $m | F30: ='Base case'!F$4*'Revenue assumptions'!$D15*(1+'CDS assumptions'!$D8)*'CDS assumptions'!$F39*F$3*'Revenue assumptions'!$D$5 -> 0 | G30: ='Base case'!G$4*'Revenue assumptions'!$D15*(1+'CDS assumptions'!$D8)*'CDS assumptions'!$F39*G$3*'Revenue assumptions'!$D$5 -> 0 | H30: ='Base case'!H$4*'Revenue assumptions'!$D15*(1+'CDS assumptions'!$D8)*'CDS assumptions'!$F39*H$3*'Revenue assumptions'!$D$5 -> 1.9152 | I30: ='Base case'!I$4*'Revenue assumptions'!$D15*(1+'CDS assumptions'!$D8)*'CDS assumptions'!$F39*I$3*'Revenue assumptions'!$D$5 -> 1.9152 | J30: ='Base case'!J$4*'Revenue assumptions'!$D15*(1+'CDS assumptions'!$D8)*'CDS assumptions'!$F39*J$3*'Revenue assumptions'!$D$5 -> 1.9152 | K30: ='Base case'!K$4*'Revenue assumptions'!$D15*(1+'CDS assumptions'!$D8)*'CDS assumptions'!$F39*K$3*'Revenue assumptions'!$D$5 -> 1.9152 | L30: ='Base case'!L$4*'Revenue assumptions'!$D15*(1+'CDS assumptions'!$D8)*'CDS assumptions'!$F39*L$3*'Revenue assumptions'!$D$5 -> 1.9152 | M30: ='Base case'!M$4*'Revenue assumptions'!$D15*(1+'CDS assumptions'!$D8)*'CDS assumptions'!$F39*M$3*'Revenue assumptions'!$D$5 -> 1.9152 | N30: ='Base case'!N$4*'Revenue assumptions'!$D15*(1+'CDS assumptions'!$D8)*'CDS assumptions'!$F39*N$3*'Revenue assumptions'!$D$5 -> 1.9152 | O30: ='Base case'!O$4*'Revenue assumptions'!$D15*(1+'CDS assumptions'!$D8)*'CDS assumptions'!$F39*O$3*'Revenue assumptions'!$D$5 -> 1.9152 | P30: ='Base case'!P$4*'Revenue assumptions'!$D15*(1+'CDS assumptions'!$D8)*'CDS assumptions'!$F39*P$3*'Revenue assumptions'!$D$5 -> 1.9152 | Q30: ='Base case'!Q$4*'Revenue assumptions'!$D15*(1+'CDS assumptions'!$D8)*'CDS assumptions'!$F39*Q$3*'Revenue assumptions'!$D$5 -> 1.9152 | R30: ='Base case'!R$4*'Revenue assumptions'!$D15*(1+'CDS assumptions'!$D8)*'CDS assumptions'!$F39*R$3*'Revenue assumptions'!$D$5 -> 1.9152 | S30: ='Base case'!S$4*'Revenue assumptions'!$D15*(1+'CDS assumptions'!$D8)*'CDS assumptions'!$F39*S$3*'Revenue assumptions'!$D$5 -> 1.9152 | T30: ='Base case'!T$4*'Revenue assumptions'!$D15*(1+'CDS assumptions'!$D8)*'CDS assumptions'!$F39*T$3*'Revenue assumptions'!$D$5 -> 1.9152 | U30: ='Base case'!U$4*'Revenue assumptions'!$D15*(1+'CDS assumptions'!$D8)*'CDS assumptions'!$F39*U$3*'Revenue assumptions'!$D$5 -> 1.9152 | V30: ='Base case'!V$4*'Revenue assumptions'!$D15*(1+'CDS assumptions'!$D8)*'CDS assumptions'!$F39*V$3*'Revenue assumptions'!$D$5 -> 1.9152 | W30: ='Base case'!W$4*'Revenue assumptions'!$D15*(1+'CDS assumptions'!$D8)*'CDS assumptions'!$F39*W$3*'Revenue assumptions'!$D$5 -> 1.9152 | X30: ='Base case'!X$4*'Revenue assumptions'!$D15*(1+'CDS assumptions'!$D8)*'CDS assumptions'!$F39*X$3*'Revenue assumptions'!$D$5 -> 1.9152 | Y30: ='Base case'!Y$4*'Revenue assumptions'!$D15*(1+'CDS assumptions'!$D8)*'CDS assumptions'!$F39*Y$3*'Revenue assumptions'!$D$5 -> 1.9152 | Z30: ='Base case'!Z$4*'Revenue assumptions'!$D15*(1+'CDS assumptions'!$D8)*'CDS assumptions'!$F39*Z$3*'Revenue assumptions'!$D$5 -> 1.9152 | AA30: ='Base case'!AA$4*'Revenue assumptions'!$D15*(1+'CDS assumptions'!$D8)*'CDS assumptions'!$F39*AA$3*'Revenue assumptions'!$D$5 -> 1.9152 | AB30: ='Base case'!AB$4*'Revenue assumptions'!$D15*(1+'CDS assumptions'!$D8)*'CDS assumptions'!$F39*AB$3*'Revenue assumptions'!$D$5 -> 1.9152 | AC30: ='Base case'!AC$4*'Revenue assumptions'!$D15*(1+'CDS assumptions'!$D8)*'CDS assumptions'!$F39*AC$3*'Revenue assumptions'!$D$5 -> 1.9152 | AD30: ='Base case'!AD$4*'Revenue assumptions'!$D15*(1+'CDS assumptions'!$D8)*'CDS assumptions'!$F39*AD$3*'Revenue assumptions'!$D$5 -> 1.9152 | AE30: ='Base case'!AE$4*'Revenue assumptions'!$D15*(1+'CDS assumptions'!$D8)*'CDS assumptions'!$F39*AE$3*'Revenue assumptions'!$D$5 -> 1.9152 | AF30: ='Base case'!AF$4*'Revenue assumptions'!$D15*(1+'CDS assumptions'!$D8)*'CDS assumptions'!$F39*AF$3*'Revenue assumptions'!$D$5 -> 1.9152 | AG30: ='Base case'!AG$4*'Revenue assumptions'!$D15*(1+'CDS assumptions'!$D8)*'CDS assumptions'!$F39*AG$3*'Revenue assumptions'!$D$5 -> 1.9152 | AH30: ='Base case'!AH$4*'Revenue assumptions'!$D15*(1+'CDS assumptions'!$D8)*'CDS assumptions'!$F39*AH$3*'Revenue assumptions'!$D$5 -> 1.9152 | AI30: ='Base case'!AI$4*'Revenue assumptions'!$D15*(1+'CDS assumptions'!$D8)*'CDS assumptions'!$F39*AI$3*'Revenue assumptions'!$D$5 -> 1.9152
C31: other metals | D31: $m | F31: ='Base case'!F$4*'Revenue assumptions'!$D16*(1+'CDS assumptions'!$D9)*'CDS assumptions'!$F40*F$3*'Revenue assumptions'!$D$5 -> 0 | G31: ='Base case'!G$4*'Revenue assumptions'!$D16*(1+'CDS assumptions'!$D9)*'CDS assumptions'!$F40*G$3*'Revenue assumptions'!$D$5 -> 0 | H31: ='Base case'!H$4*'Revenue assumptions'!$D16*(1+'CDS assumptions'!$D9)*'CDS assumptions'!$F40*H$3*'Revenue assumptions'!$D$5 -> 0 | I31: ='Base case'!I$4*'Revenue assumptions'!$D16*(1+'CDS assumptions'!$D9)*'CDS assumptions'!$F40*I$3*'Revenue assumptions'!$D$5 -> 0 | J31: ='Base case'!J$4*'Revenue assumptions'!$D16*(1+'CDS assumptions'!$D9)*'CDS assumptions'!$F40*J$3*'Revenue assumptions'!$D$5 -> 0 | K31: ='Base case'!K$4*'Revenue assumptions'!$D16*(1+'CDS assumptions'!$D9)*'CDS assumptions'!$F40*K$3*'Revenue assumptions'!$D$5 -> 0 | L31: ='Base case'!L$4*'Revenue assumptions'!$D16*(1+'CDS assumptions'!$D9)*'CDS assumptions'!$F40*L$3*'Revenue assumptions'!$D$5 -> 0 | M31: ='Base case'!M$4*'Revenue assumptions'!$D16*(1+'CDS assumptions'!$D9)*'CDS assumptions'!$F40*M$3*'Revenue assumptions'!$D$5 -> 0 | N31: ='Base case'!N$4*'Revenue assumptions'!$D16*(1+'CDS assumptions'!$D9)*'CDS assumptions'!$F40*N$3*'Revenue assumptions'!$D$5 -> 0 | O31: ='Base case'!O$4*'Revenue assumptions'!$D16*(1+'CDS assumptions'!$D9)*'CDS assumptions'!$F40*O$3*'Revenue assumptions'!$D$5 -> 0 | P31: ='Base case'!P$4*'Revenue assumptions'!$D16*(1+'CDS assumptions'!$D9)*'CDS assumptions'!$F40*P$3*'Revenue assumptions'!$D$5 -> 0 | Q31: ='Base case'!Q$4*'Revenue assumptions'!$D16*(1+'CDS assumptions'!$D9)*'CDS assumptions'!$F40*Q$3*'Revenue assumptions'!$D$5 -> 0 | R31: ='Base case'!R$4*'Revenue assumptions'!$D16*(1+'CDS assumptions'!$D9)*'CDS assumptions'!$F40*R$3*'Revenue assumptions'!$D$5 -> 0 | S31: ='Base case'!S$4*'Revenue assumptions'!$D16*(1+'CDS assumptions'!$D9)*'CDS assumptions'!$F40*S$3*'Revenue assumptions'!$D$5 -> 0 | T31: ='Base case'!T$4*'Revenue assumptions'!$D16*(1+'CDS assumptions'!$D9)*'CDS assumptions'!$F40*T$3*'Revenue assumptions'!$D$5 -> 0 | U31: ='Base case'!U$4*'Revenue assumptions'!$D16*(1+'CDS assumptions'!$D9)*'CDS assumptions'!$F40*U$3*'Revenue assumptions'!$D$5 -> 0 | V31: ='Base case'!V$4*'Revenue assumptions'!$D16*(1+'CDS assumptions'!$D9)*'CDS assumptions'!$F40*V$3*'Revenue assumptions'!$D$5 -> 0 | W31: ='Base case'!W$4*'Revenue assumptions'!$D16*(1+'CDS assumptions'!$D9)*'CDS assumptions'!$F40*W$3*'Revenue assumptions'!$D$5 -> 0 | X31: ='Base case'!X$4*'Revenue assumptions'!$D16*(1+'CDS assumptions'!$D9)*'CDS assumptions'!$F40*X$3*'Revenue assumptions'!$D$5 -> 0 | Y31: ='Base case'!Y$4*'Revenue assumptions'!$D16*(1+'CDS assumptions'!$D9)*'CDS assumptions'!$F40*Y$3*'Revenue assumptions'!$D$5 -> 0 | Z31: ='Base case'!Z$4*'Revenue assumptions'!$D16*(1+'CDS assumptions'!$D9)*'CDS assumptions'!$F40*Z$3*'Revenue assumptions'!$D$5 -> 0 | AA31: ='Base case'!AA$4*'Revenue assumptions'!$D16*(1+'CDS assumptions'!$D9)*'CDS assumptions'!$F40*AA$3*'Revenue assumptions'!$D$5 -> 0 | AB31: ='Base case'!AB$4*'Revenue assumptions'!$D16*(1+'CDS assumptions'!$D9)*'CDS assumptions'!$F40*AB$3*'Revenue assumptions'!$D$5 -> 0 | AC31: ='Base case'!AC$4*'Revenue assumptions'!$D16*(1+'CDS assumptions'!$D9)*'CDS assumptions'!$F40*AC$3*'Revenue assumptions'!$D$5 -> 0 | AD31: ='Base case'!AD$4*'Revenue assumptions'!$D16*(1+'CDS assumptions'!$D9)*'CDS assumptions'!$F40*AD$3*'Revenue assumptions'!$D$5 -> 0 | AE31: ='Base case'!AE$4*'Revenue assumptions'!$D16*(1+'CDS assumptions'!$D9)*'CDS assumptions'!$F40*AE$3*'Revenue assumptions'!$D$5 -> 0 | AF31: ='Base case'!AF$4*'Revenue assumptions'!$D16*(1+'CDS assumptions'!$D9)*'CDS assumptions'!$F40*AF$3*'Revenue assumptions'!$D$5 -> 0 | AG31: ='Base case'!AG$4*'Revenue assumptions'!$D16*(1+'CDS assumptions'!$D9)*'CDS assumptions'!$F40*AG$3*'Revenue assumptions'!$D$5 -> 0 | AH31: ='Base case'!AH$4*'Revenue assumptions'!$D16*(1+'CDS assumptions'!$D9)*'CDS assumptions'!$F40*AH$3*'Revenue assumptions'!$D$5 -> 0 | AI31: ='Base case'!AI$4*'Revenue assumptions'!$D16*(1+'CDS assumptions'!$D9)*'CDS assumptions'!$F40*AI$3*'Revenue assumptions'!$D$5 -> 0
C32: glass | D32: $m | F32: ='Base case'!F$4*'Revenue assumptions'!$D17*(1+'CDS assumptions'!$D10)*'CDS assumptions'!$F41*F$3*'Revenue assumptions'!$D$5 -> 0 | G32: ='Base case'!G$4*'Revenue assumptions'!$D17*(1+'CDS assumptions'!$D10)*'CDS assumptions'!$F41*G$3*'Revenue assumptions'!$D$5 -> 0 | H32: ='Base case'!H$4*'Revenue assumptions'!$D17*(1+'CDS assumptions'!$D10)*'CDS assumptions'!$F41*H$3*'Revenue assumptions'!$D$5 -> 3.08256 | I32: ='Base case'!I$4*'Revenue assumptions'!$D17*(1+'CDS assumptions'!$D10)*'CDS assumptions'!$F41*I$3*'Revenue assumptions'!$D$5 -> 3.08256 | J32: ='Base case'!J$4*'Revenue assumptions'!$D17*(1+'CDS assumptions'!$D10)*'CDS assumptions'!$F41*J$3*'Revenue assumptions'!$D$5 -> 3.08256 | K32: ='Base case'!K$4*'Revenue assumptions'!$D17*(1+'CDS assumptions'!$D10)*'CDS assumptions'!$F41*K$3*'Revenue assumptions'!$D$5 -> 3.08256 | L32: ='Base case'!L$4*'Revenue assumptions'!$D17*(1+'CDS assumptions'!$D10)*'CDS assumptions'!$F41*L$3*'Revenue assumptions'!$D$5 -> 3.08256 | M32: ='Base case'!M$4*'Revenue assumptions'!$D17*(1+'CDS assumptions'!$D10)*'CDS assumptions'!$F41*M$3*'Revenue assumptions'!$D$5 -> 3.08256 | N32: ='Base case'!N$4*'Revenue assumptions'!$D17*(1+'CDS assumptions'!$D10)*'CDS assumptions'!$F41*N$3*'Revenue assumptions'!$D$5 -> 3.08256 | O32: ='Base case'!O$4*'Revenue assumptions'!$D17*(1+'CDS assumptions'!$D10)*'CDS assumptions'!$F41*O$3*'Revenue assumptions'!$D$5 -> 3.08256 | P32: ='Base case'!P$4*'Revenue assumptions'!$D17*(1+'CDS assumptions'!$D10)*'CDS assumptions'!$F41*P$3*'Revenue assumptions'!$D$5 -> 3.08256 | Q32: ='Base case'!Q$4*'Revenue assumptions'!$D17*(1+'CDS assumptions'!$D10)*'CDS assumptions'!$F41*Q$3*'Revenue assumptions'!$D$5 -> 3.08256 | R32: ='Base case'!R$4*'Revenue assumptions'!$D17*(1+'CDS assumptions'!$D10)*'CDS assumptions'!$F41*R$3*'Revenue assumptions'!$D$5 -> 3.08256 | S32: ='Base case'!S$4*'Revenue assumptions'!$D17*(1+'CDS assumptions'!$D10)*'CDS assumptions'!$F41*S$3*'Revenue assumptions'!$D$5 -> 3.08256 | T32: ='Base case'!T$4*'Revenue assumptions'!$D17*(1+'CDS assumptions'!$D10)*'CDS assumptions'!$F41*T$3*'Revenue assumptions'!$D$5 -> 3.08256 | U32: ='Base case'!U$4*'Revenue assumptions'!$D17*(1+'CDS assumptions'!$D10)*'CDS assumptions'!$F41*U$3*'Revenue assumptions'!$D$5 -> 3.08256 | V32: ='Base case'!V$4*'Revenue assumptions'!$D17*(1+'CDS assumptions'!$D10)*'CDS assumptions'!$F41*V$3*'Revenue assumptions'!$D$5 -> 3.08256 | W32: ='Base case'!W$4*'Revenue assumptions'!$D17*(1+'CDS assumptions'!$D10)*'CDS assumptions'!$F41*W$3*'Revenue assumptions'!$D$5 -> 3.08256 | X32: ='Base case'!X$4*'Revenue assumptions'!$D17*(1+'CDS assumptions'!$D10)*'CDS assumptions'!$F41*X$3*'Revenue assumptions'!$D$5 -> 3.08256 | Y32: ='Base case'!Y$4*'Revenue assumptions'!$D17*(1+'CDS assumptions'!$D10)*'CDS assumptions'!$F41*Y$3*'Revenue assumptions'!$D$5 -> 3.08256 | Z32: ='Base case'!Z$4*'Revenue assumptions'!$D17*(1+'CDS assumptions'!$D10)*'CDS assumptions'!$F41*Z$3*'Revenue assumptions'!$D$5 -> 3.08256 | AA32: ='Base case'!AA$4*'Revenue assumptions'!$D17*(1+'CDS assumptions'!$D10)*'CDS assumptions'!$F41*AA$3*'Revenue assumptions'!$D$5 -> 3.08256 | AB32: ='Base case'!AB$4*'Revenue assumptions'!$D17*(1+'CDS assumptions'!$D10)*'CDS assumptions'!$F41*AB$3*'Revenue assumptions'!$D$5 -> 3.08256 | AC32: ='Base case'!AC$4*'Revenue assumptions'!$D17*(1+'CDS assumptions'!$D10)*'CDS assumptions'!$F41*AC$3*'Revenue assumptions'!$D$5 -> 3.08256 | AD32: ='Base case'!AD$4*'Revenue assumptions'!$D17*(1+'CDS assumptions'!$D10)*'CDS assumptions'!$F41*AD$3*'Revenue assumptions'!$D$5 -> 3.08256 | AE32: ='Base case'!AE$4*'Revenue assumptions'!$D17*(1+'CDS assumptions'!$D10)*'CDS assumptions'!$F41*AE$3*'Revenue assumptions'!$D$5 -> 3.08256 | AF32: ='Base case'!AF$4*'Revenue assumptions'!$D17*(1+'CDS assumptions'!$D10)*'CDS assumptions'!$F41*AF$3*'Revenue assumptions'!$D$5 -> 3.08256 | AG32: ='Base case'!AG$4*'Revenue assumptions'!$D17*(1+'CDS assumptions'!$D10)*'CDS assumptions'!$F41*AG$3*'Revenue assumptions'!$D$5 -> 3.08256 | AH32: ='Base case'!AH$4*'Revenue assumptions'!$D17*(1+'CDS assumptions'!$D10)*'CDS assumptions'!$F41*AH$3*'Revenue assumptions'!$D$5 -> 3.08256 | AI32: ='Base case'!AI$4*'Revenue assumptions'!$D17*(1+'CDS assumptions'!$D10)*'CDS assumptions'!$F41*AI$3*'Revenue assumptions'!$D$5 -> 3.08256
C33: plastics - mixed | D33: $m | F33: ='Base case'!F$4*'Revenue assumptions'!$D18*(1+'CDS assumptions'!$D11)*'CDS assumptions'!$F42*F$3*'Revenue assumptions'!$D$5 -> 0 | G33: ='Base case'!G$4*'Revenue assumptions'!$D18*(1+'CDS assumptions'!$D11)*'CDS assumptions'!$F42*G$3*'Revenue assumptions'!$D$5 -> 0 | H33: ='Base case'!H$4*'Revenue assumptions'!$D18*(1+'CDS assumptions'!$D11)*'CDS assumptions'!$F42*H$3*'Revenue assumptions'!$D$5 -> 2.318 | I33: ='Base case'!I$4*'Revenue assumptions'!$D18*(1+'CDS assumptions'!$D11)*'CDS assumptions'!$F42*I$3*'Revenue assumptions'!$D$5 -> 2.318 | J33: ='Base case'!J$4*'Revenue assumptions'!$D18*(1+'CDS assumptions'!$D11)*'CDS assumptions'!$F42*J$3*'Revenue assumptions'!$D$5 -> 2.318 | K33: ='Base case'!K$4*'Revenue assumptions'!$D18*(1+'CDS assumptions'!$D11)*'CDS assumptions'!$F42*K$3*'Revenue assumptions'!$D$5 -> 2.318 | L33: ='Base case'!L$4*'Revenue assumptions'!$D18*(1+'CDS assumptions'!$D11)*'CDS assumptions'!$F42*L$3*'Revenue assumptions'!$D$5 -> 2.318 | M33: ='Base case'!M$4*'Revenue assumptions'!$D18*(1+'CDS assumptions'!$D11)*'CDS assumptions'!$F42*M$3*'Revenue assumptions'!$D$5 -> 2.318 | N33: ='Base case'!N$4*'Revenue assumptions'!$D18*(1+'CDS assumptions'!$D11)*'CDS assumptions'!$F42*N$3*'Revenue assumptions'!$D$5 -> 2.318 | O33: ='Base case'!O$4*'Revenue assumptions'!$D18*(1+'CDS assumptions'!$D11)*'CDS assumptions'!$F42*O$3*'Revenue assumptions'!$D$5 -> 2.318 | P33: ='Base case'!P$4*'Revenue assumptions'!$D18*(1+'CDS assumptions'!$D11)*'CDS assumptions'!$F42*P$3*'Revenue assumptions'!$D$5 -> 2.318 | Q33: ='Base case'!Q$4*'Revenue assumptions'!$D18*(1+'CDS assumptions'!$D11)*'CDS assumptions'!$F42*Q$3*'Revenue assumptions'!$D$5 -> 2.318 | R33: ='Base case'!R$4*'Revenue assumptions'!$D18*(1+'CDS assumptions'!$D11)*'CDS assumptions'!$F42*R$3*'Revenue assumptions'!$D$5 -> 2.318 | S33: ='Base case'!S$4*'Revenue assumptions'!$D18*(1+'CDS assumptions'!$D11)*'CDS assumptions'!$F42*S$3*'Revenue assumptions'!$D$5 -> 2.318 | T33: ='Base case'!T$4*'Revenue assumptions'!$D18*(1+'CDS assumptions'!$D11)*'CDS assumptions'!$F42*T$3*'Revenue assumptions'!$D$5 -> 2.318 | U33: ='Base case'!U$4*'Revenue assumptions'!$D18*(1+'CDS assumptions'!$D11)*'CDS assumptions'!$F42*U$3*'Revenue assumptions'!$D$5 -> 2.318 | V33: ='Base case'!V$4*'Revenue assumptions'!$D18*(1+'CDS assumptions'!$D11)*'CDS assumptions'!$F42*V$3*'Revenue assumptions'!$D$5 -> 2.318 | W33: ='Base case'!W$4*'Revenue assumptions'!$D18*(1+'CDS assumptions'!$D11)*'CDS assumptions'!$F42*W$3*'Revenue assumptions'!$D$5 -> 2.318 | X33: ='Base case'!X$4*'Revenue assumptions'!$D18*(1+'CDS assumptions'!$D11)*'CDS assumptions'!$F42*X$3*'Revenue assumptions'!$D$5 -> 2.318 | Y33: ='Base case'!Y$4*'Revenue assumptions'!$D18*(1+'CDS assumptions'!$D11)*'CDS assumptions'!$F42*Y$3*'Revenue assumptions'!$D$5 -> 2.318 | Z33: ='Base case'!Z$4*'Revenue assumptions'!$D18*(1+'CDS assumptions'!$D11)*'CDS assumptions'!$F42*Z$3*'Revenue assumptions'!$D$5 -> 2.318 | AA33: ='Base case'!AA$4*'Revenue assumptions'!$D18*(1+'CDS assumptions'!$D11)*'CDS assumptions'!$F42*AA$3*'Revenue assumptions'!$D$5 -> 2.318 | AB33: ='Base case'!AB$4*'Revenue assumptions'!$D18*(1+'CDS assumptions'!$D11)*'CDS assumptions'!$F42*AB$3*'Revenue assumptions'!$D$5 -> 2.318 | AC33: ='Base case'!AC$4*'Revenue assumptions'!$D18*(1+'CDS assumptions'!$D11)*'CDS assumptions'!$F42*AC$3*'Revenue assumptions'!$D$5 -> 2.318 | AD33: ='Base case'!AD$4*'Revenue assumptions'!$D18*(1+'CDS assumptions'!$D11)*'CDS assumptions'!$F42*AD$3*'Revenue assumptions'!$D$5 -> 2.318 | AE33: ='Base case'!AE$4*'Revenue assumptions'!$D18*(1+'CDS assumptions'!$D11)*'CDS assumptions'!$F42*AE$3*'Revenue assumptions'!$D$5 -> 2.318 | AF33: ='Base case'!AF$4*'Revenue assumptions'!$D18*(1+'CDS assumptions'!$D11)*'CDS assumptions'!$F42*AF$3*'Revenue assumptions'!$D$5 -> 2.318 | AG33: ='Base case'!AG$4*'Revenue assumptions'!$D18*(1+'CDS assumptions'!$D11)*'CDS assumptions'!$F42*AG$3*'Revenue assumptions'!$D$5 -> 2.318 | AH33: ='Base case'!AH$4*'Revenue assumptions'!$D18*(1+'CDS assumptions'!$D11)*'CDS assumptions'!$F42*AH$3*'Revenue assumptions'!$D$5 -> 2.318 | AI33: ='Base case'!AI$4*'Revenue assumptions'!$D18*(1+'CDS assumptions'!$D11)*'CDS assumptions'!$F42*AI$3*'Revenue assumptions'!$D$5 -> 2.318
C34: plastics - hdpe | D34: $m | F34: ='Base case'!F$4*'Revenue assumptions'!$D19*(1+'CDS assumptions'!$D12)*'CDS assumptions'!$F43*F$3*'Revenue assumptions'!$D$5 -> 0 | G34: ='Base case'!G$4*'Revenue assumptions'!$D19*(1+'CDS assumptions'!$D12)*'CDS assumptions'!$F43*G$3*'Revenue assumptions'!$D$5 -> 0 | H34: ='Base case'!H$4*'Revenue assumptions'!$D19*(1+'CDS assumptions'!$D12)*'CDS assumptions'!$F43*H$3*'Revenue assumptions'!$D$5 -> 0 | I34: ='Base case'!I$4*'Revenue assumptions'!$D19*(1+'CDS assumptions'!$D12)*'CDS assumptions'!$F43*I$3*'Revenue assumptions'!$D$5 -> 0 | J34: ='Base case'!J$4*'Revenue assumptions'!$D19*(1+'CDS assumptions'!$D12)*'CDS assumptions'!$F43*J$3*'Revenue assumptions'!$D$5 -> 0 | K34: ='Base case'!K$4*'Revenue assumptions'!$D19*(1+'CDS assumptions'!$D12)*'CDS assumptions'!$F43*K$3*'Revenue assumptions'!$D$5 -> 0 | L34: ='Base case'!L$4*'Revenue assumptions'!$D19*(1+'CDS assumptions'!$D12)*'CDS assumptions'!$F43*L$3*'Revenue assumptions'!$D$5 -> 0 | M34: ='Base case'!M$4*'Revenue assumptions'!$D19*(1+'CDS assumptions'!$D12)*'CDS assumptions'!$F43*M$3*'Revenue assumptions'!$D$5 -> 0 | N34: ='Base case'!N$4*'Revenue assumptions'!$D19*(1+'CDS assumptions'!$D12)*'CDS assumptions'!$F43*N$3*'Revenue assumptions'!$D$5 -> 0 | O34: ='Base case'!O$4*'Revenue assumptions'!$D19*(1+'CDS assumptions'!$D12)*'CDS assumptions'!$F43*O$3*'Revenue assumptions'!$D$5 -> 0 | P34: ='Base case'!P$4*'Revenue assumptions'!$D19*(1+'CDS assumptions'!$D12)*'CDS assumptions'!$F43*P$3*'Revenue assumptions'!$D$5 -> 0 | Q34: ='Base case'!Q$4*'Revenue assumptions'!$D19*(1+'CDS assumptions'!$D12)*'CDS assumptions'!$F43*Q$3*'Revenue assumptions'!$D$5 -> 0 | R34: ='Base case'!R$4*'Revenue assumptions'!$D19*(1+'CDS assumptions'!$D12)*'CDS assumptions'!$F43*R$3*'Revenue assumptions'!$D$5 -> 0 | S34: ='Base case'!S$4*'Revenue assumptions'!$D19*(1+'CDS assumptions'!$D12)*'CDS assumptions'!$F43*S$3*'Revenue assumptions'!$D$5 -> 0 | T34: ='Base case'!T$4*'Revenue assumptions'!$D19*(1+'CDS assumptions'!$D12)*'CDS assumptions'!$F43*T$3*'Revenue assumptions'!$D$5 -> 0 | U34: ='Base case'!U$4*'Revenue assumptions'!$D19*(1+'CDS assumptions'!$D12)*'CDS assumptions'!$F43*U$3*'Revenue assumptions'!$D$5 -> 0 | V34: ='Base case'!V$4*'Revenue assumptions'!$D19*(1+'CDS assumptions'!$D12)*'CDS assumptions'!$F43*V$3*'Revenue assumptions'!$D$5 -> 0 | W34: ='Base case'!W$4*'Revenue assumptions'!$D19*(1+'CDS assumptions'!$D12)*'CDS assumptions'!$F43*W$3*'Revenue assumptions'!$D$5 -> 0 | X34: ='Base case'!X$4*'Revenue assumptions'!$D19*(1+'CDS assumptions'!$D12)*'CDS assumptions'!$F43*X$3*'Revenue assumptions'!$D$5 -> 0 | Y34: ='Base case'!Y$4*'Revenue assumptions'!$D19*(1+'CDS assumptions'!$D12)*'CDS assumptions'!$F43*Y$3*'Revenue assumptions'!$D$5 -> 0 | Z34: ='Base case'!Z$4*'Revenue assumptions'!$D19*(1+'CDS assumptions'!$D12)*'CDS assumptions'!$F43*Z$3*'Revenue assumptions'!$D$5 -> 0 | AA34: ='Base case'!AA$4*'Revenue assumptions'!$D19*(1+'CDS assumptions'!$D12)*'CDS assumptions'!$F43*AA$3*'Revenue assumptions'!$D$5 -> 0 | AB34: ='Base case'!AB$4*'Revenue assumptions'!$D19*(1+'CDS assumptions'!$D12)*'CDS assumptions'!$F43*AB$3*'Revenue assumptions'!$D$5 -> 0 | AC34: ='Base case'!AC$4*'Revenue assumptions'!$D19*(1+'CDS assumptions'!$D12)*'CDS assumptions'!$F43*AC$3*'Revenue assumptions'!$D$5 -> 0 | AD34: ='Base case'!AD$4*'Revenue assumptions'!$D19*(1+'CDS assumptions'!$D12)*'CDS assumptions'!$F43*AD$3*'Revenue assumptions'!$D$5 -> 0 | AE34: ='Base case'!AE$4*'Revenue assumptions'!$D19*(1+'CDS assumptions'!$D12)*'CDS assumptions'!$F43*AE$3*'Revenue assumptions'!$D$5 -> 0 | AF34: ='Base case'!AF$4*'Revenue assumptions'!$D19*(1+'CDS assumptions'!$D12)*'CDS assumptions'!$F43*AF$3*'Revenue assumptions'!$D$5 -> 0 | AG34: ='Base case'!AG$4*'Revenue assumptions'!$D19*(1+'CDS assumptions'!$D12)*'CDS assumptions'!$F43*AG$3*'Revenue assumptions'!$D$5 -> 0 | AH34: ='Base case'!AH$4*'Revenue assumptions'!$D19*(1+'CDS assumptions'!$D12)*'CDS assumptions'!$F43*AH$3*'Revenue assumptions'!$D$5 -> 0 | AI34: ='Base case'!AI$4*'Revenue assumptions'!$D19*(1+'CDS assumptions'!$D12)*'CDS assumptions'!$F43*AI$3*'Revenue assumptions'!$D$5 -> 0
C35: plastics - PET | D35: $m | F35: ='Base case'!F$4*'Revenue assumptions'!$D20*(1+'CDS assumptions'!$D13)*'CDS assumptions'!$F44*F$3*'Revenue assumptions'!$D$5 -> 0 | G35: ='Base case'!G$4*'Revenue assumptions'!$D20*(1+'CDS assumptions'!$D13)*'CDS assumptions'!$F44*G$3*'Revenue assumptions'!$D$5 -> 0 | H35: ='Base case'!H$4*'Revenue assumptions'!$D20*(1+'CDS assumptions'!$D13)*'CDS assumptions'!$F44*H$3*'Revenue assumptions'!$D$5 -> 0 | I35: ='Base case'!I$4*'Revenue assumptions'!$D20*(1+'CDS assumptions'!$D13)*'CDS assumptions'!$F44*I$3*'Revenue assumptions'!$D$5 -> 0 | J35: ='Base case'!J$4*'Revenue assumptions'!$D20*(1+'CDS assumptions'!$D13)*'CDS assumptions'!$F44*J$3*'Revenue assumptions'!$D$5 -> 0 | K35: ='Base case'!K$4*'Revenue assumptions'!$D20*(1+'CDS assumptions'!$D13)*'CDS assumptions'!$F44*K$3*'Revenue assumptions'!$D$5 -> 0 | L35: ='Base case'!L$4*'Revenue assumptions'!$D20*(1+'CDS assumptions'!$D13)*'CDS assumptions'!$F44*L$3*'Revenue assumptions'!$D$5 -> 0 | M35: ='Base case'!M$4*'Revenue assumptions'!$D20*(1+'CDS assumptions'!$D13)*'CDS assumptions'!$F44*M$3*'Revenue assumptions'!$D$5 -> 0 | N35: ='Base case'!N$4*'Revenue assumptions'!$D20*(1+'CDS assumptions'!$D13)*'CDS assumptions'!$F44*N$3*'Revenue assumptions'!$D$5 -> 0 | O35: ='Base case'!O$4*'Revenue assumptions'!$D20*(1+'CDS assumptions'!$D13)*'CDS assumptions'!$F44*O$3*'Revenue assumptions'!$D$5 -> 0 | P35: ='Base case'!P$4*'Revenue assumptions'!$D20*(1+'CDS assumptions'!$D13)*'CDS assumptions'!$F44*P$3*'Revenue assumptions'!$D$5 -> 0 | Q35: ='Base case'!Q$4*'Revenue assumptions'!$D20*(1+'CDS assumptions'!$D13)*'CDS assumptions'!$F44*Q$3*'Revenue assumptions'!$D$5 -> 0 | R35: ='Base case'!R$4*'Revenue assumptions'!$D20*(1+'CDS assumptions'!$D13)*'CDS assumptions'!$F44*R$3*'Revenue assumptions'!$D$5 -> 0 | S35: ='Base case'!S$4*'Revenue assumptions'!$D20*(1+'CDS assumptions'!$D13)*'CDS assumptions'!$F44*S$3*'Revenue assumptions'!$D$5 -> 0 | T35: ='Base case'!T$4*'Revenue assumptions'!$D20*(1+'CDS assumptions'!$D13)*'CDS assumptions'!$F44*T$3*'Revenue assumptions'!$D$5 -> 0 | U35: ='Base case'!U$4*'Revenue assumptions'!$D20*(1+'CDS assumptions'!$D13)*'CDS assumptions'!$F44*U$3*'Revenue assumptions'!$D$5 -> 0 | V35: ='Base case'!V$4*'Revenue assumptions'!$D20*(1+'CDS assumptions'!$D13)*'CDS assumptions'!$F44*V$3*'Revenue assumptions'!$D$5 -> 0 | W35: ='Base case'!W$4*'Revenue assumptions'!$D20*(1+'CDS assumptions'!$D13)*'CDS assumptions'!$F44*W$3*'Revenue assumptions'!$D$5 -> 0 | X35: ='Base case'!X$4*'Revenue assumptions'!$D20*(1+'CDS assumptions'!$D13)*'CDS assumptions'!$F44*X$3*'Revenue assumptions'!$D$5 -> 0 | Y35: ='Base case'!Y$4*'Revenue assumptions'!$D20*(1+'CDS assumptions'!$D13)*'CDS assumptions'!$F44*Y$3*'Revenue assumptions'!$D$5 -> 0 | Z35: ='Base case'!Z$4*'Revenue assumptions'!$D20*(1+'CDS assumptions'!$D13)*'CDS assumptions'!$F44*Z$3*'Revenue assumptions'!$D$5 -> 0 | AA35: ='Base case'!AA$4*'Revenue assumptions'!$D20*(1+'CDS assumptions'!$D13)*'CDS assumptions'!$F44*AA$3*'Revenue assumptions'!$D$5 -> 0 | AB35: ='Base case'!AB$4*'Revenue assumptions'!$D20*(1+'CDS assumptions'!$D13)*'CDS assumptions'!$F44*AB$3*'Revenue assumptions'!$D$5 -> 0 | AC35: ='Base case'!AC$4*'Revenue assumptions'!$D20*(1+'CDS assumptions'!$D13)*'CDS assumptions'!$F44*AC$3*'Revenue assumptions'!$D$5 -> 0 | AD35: ='Base case'!AD$4*'Revenue assumptions'!$D20*(1+'CDS assumptions'!$D13)*'CDS assumptions'!$F44*AD$3*'Revenue assumptions'!$D$5 -> 0 | AE35: ='Base case'!AE$4*'Revenue assumptions'!$D20*(1+'CDS assumptions'!$D13)*'CDS assumptions'!$F44*AE$3*'Revenue assumptions'!$D$5 -> 0 | AF35: ='Base case'!AF$4*'Revenue assumptions'!$D20*(1+'CDS assumptions'!$D13)*'CDS assumptions'!$F44*AF$3*'Revenue assumptions'!$D$5 -> 0 | AG35: ='Base case'!AG$4*'Revenue assumptions'!$D20*(1+'CDS assumptions'!$D13)*'CDS assumptions'!$F44*AG$3*'Revenue assumptions'!$D$5 -> 0 | AH35: ='Base case'!AH$4*'Revenue assumptions'!$D20*(1+'CDS assumptions'!$D13)*'CDS assumptions'!$F44*AH$3*'Revenue assumptions'!$D$5 -> 0 | AI35: ='Base case'!AI$4*'Revenue assumptions'!$D20*(1+'CDS assumptions'!$D13)*'CDS assumptions'!$F44*AI$3*'Revenue assumptions'!$D$5 -> 0
C36: other | D36: $m | F36: ='Base case'!F$4*'Revenue assumptions'!$D21*(1+'CDS assumptions'!$D14)*'CDS assumptions'!$F45*F$3*'Revenue assumptions'!$D$5 -> 0 | G36: ='Base case'!G$4*'Revenue assumptions'!$D21*(1+'CDS assumptions'!$D14)*'CDS assumptions'!$F45*G$3*'Revenue assumptions'!$D$5 -> 0 | H36: ='Base case'!H$4*'Revenue assumptions'!$D21*(1+'CDS assumptions'!$D14)*'CDS assumptions'!$F45*H$3*'Revenue assumptions'!$D$5 -> 0 | I36: ='Base case'!I$4*'Revenue assumptions'!$D21*(1+'CDS assumptions'!$D14)*'CDS assumptions'!$F45*I$3*'Revenue assumptions'!$D$5 -> 0 | J36: ='Base case'!J$4*'Revenue assumptions'!$D21*(1+'CDS assumptions'!$D14)*'CDS assumptions'!$F45*J$3*'Revenue assumptions'!$D$5 -> 0 | K36: ='Base case'!K$4*'Revenue assumptions'!$D21*(1+'CDS assumptions'!$D14)*'CDS assumptions'!$F45*K$3*'Revenue assumptions'!$D$5 -> 0 | L36: ='Base case'!L$4*'Revenue assumptions'!$D21*(1+'CDS assumptions'!$D14)*'CDS assumptions'!$F45*L$3*'Revenue assumptions'!$D$5 -> 0 | M36: ='Base case'!M$4*'Revenue assumptions'!$D21*(1+'CDS assumptions'!$D14)*'CDS assumptions'!$F45*M$3*'Revenue assumptions'!$D$5 -> 0 | N36: ='Base case'!N$4*'Revenue assumptions'!$D21*(1+'CDS assumptions'!$D14)*'CDS assumptions'!$F45*N$3*'Revenue assumptions'!$D$5 -> 0 | O36: ='Base case'!O$4*'Revenue assumptions'!$D21*(1+'CDS assumptions'!$D14)*'CDS assumptions'!$F45*O$3*'Revenue assumptions'!$D$5 -> 0 | P36: ='Base case'!P$4*'Revenue assumptions'!$D21*(1+'CDS assumptions'!$D14)*'CDS assumptions'!$F45*P$3*'Revenue assumptions'!$D$5 -> 0 | Q36: ='Base case'!Q$4*'Revenue assumptions'!$D21*(1+'CDS assumptions'!$D14)*'CDS assumptions'!$F45*Q$3*'Revenue assumptions'!$D$5 -> 0 | R36: ='Base case'!R$4*'Revenue assumptions'!$D21*(1+'CDS assumptions'!$D14)*'CDS assumptions'!$F45*R$3*'Revenue assumptions'!$D$5 -> 0 | S36: ='Base case'!S$4*'Revenue assumptions'!$D21*(1+'CDS assumptions'!$D14)*'CDS assumptions'!$F45*S$3*'Revenue assumptions'!$D$5 -> 0 | T36: ='Base case'!T$4*'Revenue assumptions'!$D21*(1+'CDS assumptions'!$D14)*'CDS assumptions'!$F45*T$3*'Revenue assumptions'!$D$5 -> 0 | U36: ='Base case'!U$4*'Revenue assumptions'!$D21*(1+'CDS assumptions'!$D14)*'CDS assumptions'!$F45*U$3*'Revenue assumptions'!$D$5 -> 0 | V36: ='Base case'!V$4*'Revenue assumptions'!$D21*(1+'CDS assumptions'!$D14)*'CDS assumptions'!$F45*V$3*'Revenue assumptions'!$D$5 -> 0 | W36: ='Base case'!W$4*'Revenue assumptions'!$D21*(1+'CDS assumptions'!$D14)*'CDS assumptions'!$F45*W$3*'Revenue assumptions'!$D$5 -> 0 | X36: ='Base case'!X$4*'Revenue assumptions'!$D21*(1+'CDS assumptions'!$D14)*'CDS assumptions'!$F45*X$3*'Revenue assumptions'!$D$5 -> 0 | Y36: ='Base case'!Y$4*'Revenue assumptions'!$D21*(1+'CDS assumptions'!$D14)*'CDS assumptions'!$F45*Y$3*'Revenue assumptions'!$D$5 -> 0 | Z36: ='Base case'!Z$4*'Revenue assumptions'!$D21*(1+'CDS assumptions'!$D14)*'CDS assumptions'!$F45*Z$3*'Revenue assumptions'!$D$5 -> 0 | AA36: ='Base case'!AA$4*'Revenue assumptions'!$D21*(1+'CDS assumptions'!$D14)*'CDS assumptions'!$F45*AA$3*'Revenue assumptions'!$D$5 -> 0 | AB36: ='Base case'!AB$4*'Revenue assumptions'!$D21*(1+'CDS assumptions'!$D14)*'CDS assumptions'!$F45*AB$3*'Revenue assumptions'!$D$5 -> 0 | AC36: ='Base case'!AC$4*'Revenue assumptions'!$D21*(1+'CDS assumptions'!$D14)*'CDS assumptions'!$F45*AC$3*'Revenue assumptions'!$D$5 -> 0 | AD36: ='Base case'!AD$4*'Revenue assumptions'!$D21*(1+'CDS assumptions'!$D14)*'CDS assumptions'!$F45*AD$3*'Revenue assumptions'!$D$5 -> 0 | AE36: ='Base case'!AE$4*'Revenue assumptions'!$D21*(1+'CDS assumptions'!$D14)*'CDS assumptions'!$F45*AE$3*'Revenue assumptions'!$D$5 -> 0 | AF36: ='Base case'!AF$4*'Revenue assumptions'!$D21*(1+'CDS assumptions'!$D14)*'CDS assumptions'!$F45*AF$3*'Revenue assumptions'!$D$5 -> 0 | AG36: ='Base case'!AG$4*'Revenue assumptions'!$D21*(1+'CDS assumptions'!$D14)*'CDS assumptions'!$F45*AG$3*'Revenue assumptions'!$D$5 -> 0 | AH36: ='Base case'!AH$4*'Revenue assumptions'!$D21*(1+'CDS assumptions'!$D14)*'CDS assumptions'!$F45*AH$3*'Revenue assumptions'!$D$5 -> 0 | AI36: ='Base case'!AI$4*'Revenue assumptions'!$D21*(1+'CDS assumptions'!$D14)*'CDS assumptions'!$F45*AI$3*'Revenue assumptions'!$D$5 -> 0
C37: CDS revenue - commercial
C38: =C11 -> paper and cardboard | D38: $m | F38: ='Base case'!F$4*'Revenue assumptions'!$D29*(1+'CDS assumptions'!$D17)*'CDS assumptions'!$F51*F$3*(1-'Revenue assumptions'!$D$5) -> 0 | G38: ='Base case'!G$4*'Revenue assumptions'!$D29*(1+'CDS assumptions'!$D17)*'CDS assumptions'!$F51*G$3*(1-'Revenue assumptions'!$D$5) -> 0 | H38: ='Base case'!H$4*'Revenue assumptions'!$D29*(1+'CDS assumptions'!$D17)*'CDS assumptions'!$F51*H$3*(1-'Revenue assumptions'!$D$5) -> 0 | I38: ='Base case'!I$4*'Revenue assumptions'!$D29*(1+'CDS assumptions'!$D17)*'CDS assumptions'!$F51*I$3*(1-'Revenue assumptions'!$D$5) -> 0 | J38: ='Base case'!J$4*'Revenue assumptions'!$D29*(1+'CDS assumptions'!$D17)*'CDS assumptions'!$F51*J$3*(1-'Revenue assumptions'!$D$5) -> 0 | K38: ='Base case'!K$4*'Revenue assumptions'!$D29*(1+'CDS assumptions'!$D17)*'CDS assumptions'!$F51*K$3*(1-'Revenue assumptions'!$D$5) -> 0 | L38: ='Base case'!L$4*'Revenue assumptions'!$D29*(1+'CDS assumptions'!$D17)*'CDS assumptions'!$F51*L$3*(1-'Revenue assumptions'!$D$5) -> 0 | M38: ='Base case'!M$4*'Revenue assumptions'!$D29*(1+'CDS assumptions'!$D17)*'CDS assumptions'!$F51*M$3*(1-'Revenue assumptions'!$D$5) -> 0 | N38: ='Base case'!N$4*'Revenue assumptions'!$D29*(1+'CDS assumptions'!$D17)*'CDS assumptions'!$F51*N$3*(1-'Revenue assumptions'!$D$5) -> 0 | O38: ='Base case'!O$4*'Revenue assumptions'!$D29*(1+'CDS assumptions'!$D17)*'CDS assumptions'!$F51*O$3*(1-'Revenue assumptions'!$D$5) -> 0 | P38: ='Base case'!P$4*'Revenue assumptions'!$D29*(1+'CDS assumptions'!$D17)*'CDS assumptions'!$F51*P$3*(1-'Revenue assumptions'!$D$5) -> 0 | Q38: ='Base case'!Q$4*'Revenue assumptions'!$D29*(1+'CDS assumptions'!$D17)*'CDS assumptions'!$F51*Q$3*(1-'Revenue assumptions'!$D$5) -> 0 | R38: ='Base case'!R$4*'Revenue assumptions'!$D29*(1+'CDS assumptions'!$D17)*'CDS assumptions'!$F51*R$3*(1-'Revenue assumptions'!$D$5) -> 0 | S38: ='Base case'!S$4*'Revenue assumptions'!$D29*(1+'CDS assumptions'!$D17)*'CDS assumptions'!$F51*S$3*(1-'Revenue assumptions'!$D$5) -> 0 | T38: ='Base case'!T$4*'Revenue assumptions'!$D29*(1+'CDS assumptions'!$D17)*'CDS assumptions'!$F51*T$3*(1-'Revenue assumptions'!$D$5) -> 0 | U38: ='Base case'!U$4*'Revenue assumptions'!$D29*(1+'CDS assumptions'!$D17)*'CDS assumptions'!$F51*U$3*(1-'Revenue assumptions'!$D$5) -> 0 | V38: ='Base case'!V$4*'Revenue assumptions'!$D29*(1+'CDS assumptions'!$D17)*'CDS assumptions'!$F51*V$3*(1-'Revenue assumptions'!$D$5) -> 0 | W38: ='Base case'!W$4*'Revenue assumptions'!$D29*(1+'CDS assumptions'!$D17)*'CDS assumptions'!$F51*W$3*(1-'Revenue assumptions'!$D$5) -> 0 | X38: ='Base case'!X$4*'Revenue assumptions'!$D29*(1+'CDS assumptions'!$D17)*'CDS assumptions'!$F51*X$3*(1-'Revenue assumptions'!$D$5) -> 0 | Y38: ='Base case'!Y$4*'Revenue assumptions'!$D29*(1+'CDS assumptions'!$D17)*'CDS assumptions'!$F51*Y$3*(1-'Revenue assumptions'!$D$5) -> 0 | Z38: ='Base case'!Z$4*'Revenue assumptions'!$D29*(1+'CDS assumptions'!$D17)*'CDS assumptions'!$F51*Z$3*(1-'Revenue assumptions'!$D$5) -> 0 | AA38: ='Base case'!AA$4*'Revenue assumptions'!$D29*(1+'CDS assumptions'!$D17)*'CDS assumptions'!$F51*AA$3*(1-'Revenue assumptions'!$D$5) -> 0 | AB38: ='Base case'!AB$4*'Revenue assumptions'!$D29*(1+'CDS assumptions'!$D17)*'CDS assumptions'!$F51*AB$3*(1-'Revenue assumptions'!$D$5) -> 0 | AC38: ='Base case'!AC$4*'Revenue assumptions'!$D29*(1+'CDS assumptions'!$D17)*'CDS assumptions'!$F51*AC$3*(1-'Revenue assumptions'!$D$5) -> 0 | AD38: ='Base case'!AD$4*'Revenue assumptions'!$D29*(1+'CDS assumptions'!$D17)*'CDS assumptions'!$F51*AD$3*(1-'Revenue assumptions'!$D$5) -> 0 | AE38: ='Base case'!AE$4*'Revenue assumptions'!$D29*(1+'CDS assumptions'!$D17)*'CDS assumptions'!$F51*AE$3*(1-'Revenue assumptions'!$D$5) -> 0 | AF38: ='Base case'!AF$4*'Revenue assumptions'!$D29*(1+'CDS assumptions'!$D17)*'CDS assumptions'!$F51*AF$3*(1-'Revenue assumptions'!$D$5) -> 0 | AG38: ='Base case'!AG$4*'Revenue assumptions'!$D29*(1+'CDS assumptions'!$D17)*'CDS assumptions'!$F51*AG$3*(1-'Revenue assumptions'!$D$5) -> 0 | AH38: ='Base case'!AH$4*'Revenue assumptions'!$D29*(1+'CDS assumptions'!$D17)*'CDS assumptions'!$F51*AH$3*(1-'Revenue assumptions'!$D$5) -> 0 | AI38: ='Base case'!AI$4*'Revenue assumptions'!$D29*(1+'CDS assumptions'!$D17)*'CDS assumptions'!$F51*AI$3*(1-'Revenue assumptions'!$D$5) -> 0
C39: aluminium | D39: $m | F39: ='Base case'!F$4*'Revenue assumptions'!$D30*(1+'CDS assumptions'!$D18)*'CDS assumptions'!$F52*F$3*(1-'Revenue assumptions'!$D$5) -> 0 | G39: ='Base case'!G$4*'Revenue assumptions'!$D30*(1+'CDS assumptions'!$D18)*'CDS assumptions'!$F52*G$3*(1-'Revenue assumptions'!$D$5) -> 0 | H39: ='Base case'!H$4*'Revenue assumptions'!$D30*(1+'CDS assumptions'!$D18)*'CDS assumptions'!$F52*H$3*(1-'Revenue assumptions'!$D$5) -> 0 | I39: ='Base case'!I$4*'Revenue assumptions'!$D30*(1+'CDS assumptions'!$D18)*'CDS assumptions'!$F52*I$3*(1-'Revenue assumptions'!$D$5) -> 0 | J39: ='Base case'!J$4*'Revenue assumptions'!$D30*(1+'CDS assumptions'!$D18)*'CDS assumptions'!$F52*J$3*(1-'Revenue assumptions'!$D$5) -> 0 | K39: ='Base case'!K$4*'Revenue assumptions'!$D30*(1+'CDS assumptions'!$D18)*'CDS assumptions'!$F52*K$3*(1-'Revenue assumptions'!$D$5) -> 0 | L39: ='Base case'!L$4*'Revenue assumptions'!$D30*(1+'CDS assumptions'!$D18)*'CDS assumptions'!$F52*L$3*(1-'Revenue assumptions'!$D$5) -> 0 | M39: ='Base case'!M$4*'Revenue assumptions'!$D30*(1+'CDS assumptions'!$D18)*'CDS assumptions'!$F52*M$3*(1-'Revenue assumptions'!$D$5) -> 0 | N39: ='Base case'!N$4*'Revenue assumptions'!$D30*(1+'CDS assumptions'!$D18)*'CDS assumptions'!$F52*N$3*(1-'Revenue assumptions'!$D$5) -> 0 | O39: ='Base case'!O$4*'Revenue assumptions'!$D30*(1+'CDS assumptions'!$D18)*'CDS assumptions'!$F52*O$3*(1-'Revenue assumptions'!$D$5) -> 0 | P39: ='Base case'!P$4*'Revenue assumptions'!$D30*(1+'CDS assumptions'!$D18)*'CDS assumptions'!$F52*P$3*(1-'Revenue assumptions'!$D$5) -> 0 | Q39: ='Base case'!Q$4*'Revenue assumptions'!$D30*(1+'CDS assumptions'!$D18)*'CDS assumptions'!$F52*Q$3*(1-'Revenue assumptions'!$D$5) -> 0 | R39: ='Base case'!R$4*'Revenue assumptions'!$D30*(1+'CDS assumptions'!$D18)*'CDS assumptions'!$F52*R$3*(1-'Revenue assumptions'!$D$5) -> 0 | S39: ='Base case'!S$4*'Revenue assumptions'!$D30*(1+'CDS assumptions'!$D18)*'CDS assumptions'!$F52*S$3*(1-'Revenue assumptions'!$D$5) -> 0 | T39: ='Base case'!T$4*'Revenue assumptions'!$D30*(1+'CDS assumptions'!$D18)*'CDS assumptions'!$F52*T$3*(1-'Revenue assumptions'!$D$5) -> 0 | U39: ='Base case'!U$4*'Revenue assumptions'!$D30*(1+'CDS assumptions'!$D18)*'CDS assumptions'!$F52*U$3*(1-'Revenue assumptions'!$D$5) -> 0 | V39: ='Base case'!V$4*'Revenue assumptions'!$D30*(1+'CDS assumptions'!$D18)*'CDS assumptions'!$F52*V$3*(1-'Revenue assumptions'!$D$5) -> 0 | W39: ='Base case'!W$4*'Revenue assumptions'!$D30*(1+'CDS assumptions'!$D18)*'CDS assumptions'!$F52*W$3*(1-'Revenue assumptions'!$D$5) -> 0 | X39: ='Base case'!X$4*'Revenue assumptions'!$D30*(1+'CDS assumptions'!$D18)*'CDS assumptions'!$F52*X$3*(1-'Revenue assumptions'!$D$5) -> 0 | Y39: ='Base case'!Y$4*'Revenue assumptions'!$D30*(1+'CDS assumptions'!$D18)*'CDS assumptions'!$F52*Y$3*(1-'Revenue assumptions'!$D$5) -> 0 | Z39: ='Base case'!Z$4*'Revenue assumptions'!$D30*(1+'CDS assumptions'!$D18)*'CDS assumptions'!$F52*Z$3*(1-'Revenue assumptions'!$D$5) -> 0 | AA39: ='Base case'!AA$4*'Revenue assumptions'!$D30*(1+'CDS assumptions'!$D18)*'CDS assumptions'!$F52*AA$3*(1-'Revenue assumptions'!$D$5) -> 0 | AB39: ='Base case'!AB$4*'Revenue assumptions'!$D30*(1+'CDS assumptions'!$D18)*'CDS assumptions'!$F52*AB$3*(1-'Revenue assumptions'!$D$5) -> 0 | AC39: ='Base case'!AC$4*'Revenue assumptions'!$D30*(1+'CDS assumptions'!$D18)*'CDS assumptions'!$F52*AC$3*(1-'Revenue assumptions'!$D$5) -> 0 | AD39: ='Base case'!AD$4*'Revenue assumptions'!$D30*(1+'CDS assumptions'!$D18)*'CDS assumptions'!$F52*AD$3*(1-'Revenue assumptions'!$D$5) -> 0 | AE39: ='Base case'!AE$4*'Revenue assumptions'!$D30*(1+'CDS assumptions'!$D18)*'CDS assumptions'!$F52*AE$3*(1-'Revenue assumptions'!$D$5) -> 0 | AF39: ='Base case'!AF$4*'Revenue assumptions'!$D30*(1+'CDS assumptions'!$D18)*'CDS assumptions'!$F52*AF$3*(1-'Revenue assumptions'!$D$5) -> 0 | AG39: ='Base case'!AG$4*'Revenue assumptions'!$D30*(1+'CDS assumptions'!$D18)*'CDS assumptions'!$F52*AG$3*(1-'Revenue assumptions'!$D$5) -> 0 | AH39: ='Base case'!AH$4*'Revenue assumptions'!$D30*(1+'CDS assumptions'!$D18)*'CDS assumptions'!$F52*AH$3*(1-'Revenue assumptions'!$D$5) -> 0 | AI39: ='Base case'!AI$4*'Revenue assumptions'!$D30*(1+'CDS assumptions'!$D18)*'CDS assumptions'!$F52*AI$3*(1-'Revenue assumptions'!$D$5) -> 0
C40: other metals | D40: $m | F40: ='Base case'!F$4*'Revenue assumptions'!$D31*(1+'CDS assumptions'!$D19)*'CDS assumptions'!$F53*F$3*(1-'Revenue assumptions'!$D$5) -> 0 | G40: ='Base case'!G$4*'Revenue assumptions'!$D31*(1+'CDS assumptions'!$D19)*'CDS assumptions'!$F53*G$3*(1-'Revenue assumptions'!$D$5) -> 0 | H40: ='Base case'!H$4*'Revenue assumptions'!$D31*(1+'CDS assumptions'!$D19)*'CDS assumptions'!$F53*H$3*(1-'Revenue assumptions'!$D$5) -> 0 | I40: ='Base case'!I$4*'Revenue assumptions'!$D31*(1+'CDS assumptions'!$D19)*'CDS assumptions'!$F53*I$3*(1-'Revenue assumptions'!$D$5) -> 0 | J40: ='Base case'!J$4*'Revenue assumptions'!$D31*(1+'CDS assumptions'!$D19)*'CDS assumptions'!$F53*J$3*(1-'Revenue assumptions'!$D$5) -> 0 | K40: ='Base case'!K$4*'Revenue assumptions'!$D31*(1+'CDS assumptions'!$D19)*'CDS assumptions'!$F53*K$3*(1-'Revenue assumptions'!$D$5) -> 0 | L40: ='Base case'!L$4*'Revenue assumptions'!$D31*(1+'CDS assumptions'!$D19)*'CDS assumptions'!$F53*L$3*(1-'Revenue assumptions'!$D$5) -> 0 | M40: ='Base case'!M$4*'Revenue assumptions'!$D31*(1+'CDS assumptions'!$D19)*'CDS assumptions'!$F53*M$3*(1-'Revenue assumptions'!$D$5) -> 0 | N40: ='Base case'!N$4*'Revenue assumptions'!$D31*(1+'CDS assumptions'!$D19)*'CDS assumptions'!$F53*N$3*(1-'Revenue assumptions'!$D$5) -> 0 | O40: ='Base case'!O$4*'Revenue assumptions'!$D31*(1+'CDS assumptions'!$D19)*'CDS assumptions'!$F53*O$3*(1-'Revenue assumptions'!$D$5) -> 0 | P40: ='Base case'!P$4*'Revenue assumptions'!$D31*(1+'CDS assumptions'!$D19)*'CDS assumptions'!$F53*P$3*(1-'Revenue assumptions'!$D$5) -> 0 | Q40: ='Base case'!Q$4*'Revenue assumptions'!$D31*(1+'CDS assumptions'!$D19)*'CDS assumptions'!$F53*Q$3*(1-'Revenue assumptions'!$D$5) -> 0 | R40: ='Base case'!R$4*'Revenue assumptions'!$D31*(1+'CDS assumptions'!$D19)*'CDS assumptions'!$F53*R$3*(1-'Revenue assumptions'!$D$5) -> 0 | S40: ='Base case'!S$4*'Revenue assumptions'!$D31*(1+'CDS assumptions'!$D19)*'CDS assumptions'!$F53*S$3*(1-'Revenue assumptions'!$D$5) -> 0 | T40: ='Base case'!T$4*'Revenue assumptions'!$D31*(1+'CDS assumptions'!$D19)*'CDS assumptions'!$F53*T$3*(1-'Revenue assumptions'!$D$5) -> 0 | U40: ='Base case'!U$4*'Revenue assumptions'!$D31*(1+'CDS assumptions'!$D19)*'CDS assumptions'!$F53*U$3*(1-'Revenue assumptions'!$D$5) -> 0 | V40: ='Base case'!V$4*'Revenue assumptions'!$D31*(1+'CDS assumptions'!$D19)*'CDS assumptions'!$F53*V$3*(1-'Revenue assumptions'!$D$5) -> 0 | W40: ='Base case'!W$4*'Revenue assumptions'!$D31*(1+'CDS assumptions'!$D19)*'CDS assumptions'!$F53*W$3*(1-'Revenue assumptions'!$D$5) -> 0 | X40: ='Base case'!X$4*'Revenue assumptions'!$D31*(1+'CDS assumptions'!$D19)*'CDS assumptions'!$F53*X$3*(1-'Revenue assumptions'!$D$5) -> 0 | Y40: ='Base case'!Y$4*'Revenue assumptions'!$D31*(1+'CDS assumptions'!$D19)*'CDS assumptions'!$F53*Y$3*(1-'Revenue assumptions'!$D$5) -> 0 | Z40: ='Base case'!Z$4*'Revenue assumptions'!$D31*(1+'CDS assumptions'!$D19)*'CDS assumptions'!$F53*Z$3*(1-'Revenue assumptions'!$D$5) -> 0 | AA40: ='Base case'!AA$4*'Revenue assumptions'!$D31*(1+'CDS assumptions'!$D19)*'CDS assumptions'!$F53*AA$3*(1-'Revenue assumptions'!$D$5) -> 0 | AB40: ='Base case'!AB$4*'Revenue assumptions'!$D31*(1+'CDS assumptions'!$D19)*'CDS assumptions'!$F53*AB$3*(1-'Revenue assumptions'!$D$5) -> 0 | AC40: ='Base case'!AC$4*'Revenue assumptions'!$D31*(1+'CDS assumptions'!$D19)*'CDS assumptions'!$F53*AC$3*(1-'Revenue assumptions'!$D$5) -> 0 | AD40: ='Base case'!AD$4*'Revenue assumptions'!$D31*(1+'CDS assumptions'!$D19)*'CDS assumptions'!$F53*AD$3*(1-'Revenue assumptions'!$D$5) -> 0 | AE40: ='Base case'!AE$4*'Revenue assumptions'!$D31*(1+'CDS assumptions'!$D19)*'CDS assumptions'!$F53*AE$3*(1-'Revenue assumptions'!$D$5) -> 0 | AF40: ='Base case'!AF$4*'Revenue assumptions'!$D31*(1+'CDS assumptions'!$D19)*'CDS assumptions'!$F53*AF$3*(1-'Revenue assumptions'!$D$5) -> 0 | AG40: ='Base case'!AG$4*'Revenue assumptions'!$D31*(1+'CDS assumptions'!$D19)*'CDS assumptions'!$F53*AG$3*(1-'Revenue assumptions'!$D$5) -> 0 | AH40: ='Base case'!AH$4*'Revenue assumptions'!$D31*(1+'CDS assumptions'!$D19)*'CDS assumptions'!$F53*AH$3*(1-'Revenue assumptions'!$D$5) -> 0 | AI40: ='Base case'!AI$4*'Revenue assumptions'!$D31*(1+'CDS assumptions'!$D19)*'CDS assumptions'!$F53*AI$3*(1-'Revenue assumptions'!$D$5) -> 0
C41: glass | D41: $m | F41: ='Base case'!F$4*'Revenue assumptions'!$D32*(1+'CDS assumptions'!$D20)*'CDS assumptions'!$F54*F$3*(1-'Revenue assumptions'!$D$5) -> 0 | G41: ='Base case'!G$4*'Revenue assumptions'!$D32*(1+'CDS assumptions'!$D20)*'CDS assumptions'!$F54*G$3*(1-'Revenue assumptions'!$D$5) -> 0 | H41: ='Base case'!H$4*'Revenue assumptions'!$D32*(1+'CDS assumptions'!$D20)*'CDS assumptions'!$F54*H$3*(1-'Revenue assumptions'!$D$5) -> 0 | I41: ='Base case'!I$4*'Revenue assumptions'!$D32*(1+'CDS assumptions'!$D20)*'CDS assumptions'!$F54*I$3*(1-'Revenue assumptions'!$D$5) -> 0 | J41: ='Base case'!J$4*'Revenue assumptions'!$D32*(1+'CDS assumptions'!$D20)*'CDS assumptions'!$F54*J$3*(1-'Revenue assumptions'!$D$5) -> 0 | K41: ='Base case'!K$4*'Revenue assumptions'!$D32*(1+'CDS assumptions'!$D20)*'CDS assumptions'!$F54*K$3*(1-'Revenue assumptions'!$D$5) -> 0 | L41: ='Base case'!L$4*'Revenue assumptions'!$D32*(1+'CDS assumptions'!$D20)*'CDS assumptions'!$F54*L$3*(1-'Revenue assumptions'!$D$5) -> 0 | M41: ='Base case'!M$4*'Revenue assumptions'!$D32*(1+'CDS assumptions'!$D20)*'CDS assumptions'!$F54*M$3*(1-'Revenue assumptions'!$D$5) -> 0 | N41: ='Base case'!N$4*'Revenue assumptions'!$D32*(1+'CDS assumptions'!$D20)*'CDS assumptions'!$F54*N$3*(1-'Revenue assumptions'!$D$5) -> 0 | O41: ='Base case'!O$4*'Revenue assumptions'!$D32*(1+'CDS assumptions'!$D20)*'CDS assumptions'!$F54*O$3*(1-'Revenue assumptions'!$D$5) -> 0 | P41: ='Base case'!P$4*'Revenue assumptions'!$D32*(1+'CDS assumptions'!$D20)*'CDS assumptions'!$F54*P$3*(1-'Revenue assumptions'!$D$5) -> 0 | Q41: ='Base case'!Q$4*'Revenue assumptions'!$D32*(1+'CDS assumptions'!$D20)*'CDS assumptions'!$F54*Q$3*(1-'Revenue assumptions'!$D$5) -> 0 | R41: ='Base case'!R$4*'Revenue assumptions'!$D32*(1+'CDS assumptions'!$D20)*'CDS assumptions'!$F54*R$3*(1-'Revenue assumptions'!$D$5) -> 0 | S41: ='Base case'!S$4*'Revenue assumptions'!$D32*(1+'CDS assumptions'!$D20)*'CDS assumptions'!$F54*S$3*(1-'Revenue assumptions'!$D$5) -> 0 | T41: ='Base case'!T$4*'Revenue assumptions'!$D32*(1+'CDS assumptions'!$D20)*'CDS assumptions'!$F54*T$3*(1-'Revenue assumptions'!$D$5) -> 0 | U41: ='Base case'!U$4*'Revenue assumptions'!$D32*(1+'CDS assumptions'!$D20)*'CDS assumptions'!$F54*U$3*(1-'Revenue assumptions'!$D$5) -> 0 | V41: ='Base case'!V$4*'Revenue assumptions'!$D32*(1+'CDS assumptions'!$D20)*'CDS assumptions'!$F54*V$3*(1-'Revenue assumptions'!$D$5) -> 0 | W41: ='Base case'!W$4*'Revenue assumptions'!$D32*(1+'CDS assumptions'!$D20)*'CDS assumptions'!$F54*W$3*(1-'Revenue assumptions'!$D$5) -> 0 | X41: ='Base case'!X$4*'Revenue assumptions'!$D32*(1+'CDS assumptions'!$D20)*'CDS assumptions'!$F54*X$3*(1-'Revenue assumptions'!$D$5) -> 0 | Y41: ='Base case'!Y$4*'Revenue assumptions'!$D32*(1+'CDS assumptions'!$D20)*'CDS assumptions'!$F54*Y$3*(1-'Revenue assumptions'!$D$5) -> 0 | Z41: ='Base case'!Z$4*'Revenue assumptions'!$D32*(1+'CDS assumptions'!$D20)*'CDS assumptions'!$F54*Z$3*(1-'Revenue assumptions'!$D$5) -> 0 | AA41: ='Base case'!AA$4*'Revenue assumptions'!$D32*(1+'CDS assumptions'!$D20)*'CDS assumptions'!$F54*AA$3*(1-'Revenue assumptions'!$D$5) -> 0 | AB41: ='Base case'!AB$4*'Revenue assumptions'!$D32*(1+'CDS assumptions'!$D20)*'CDS assumptions'!$F54*AB$3*(1-'Revenue assumptions'!$D$5) -> 0 | AC41: ='Base case'!AC$4*'Revenue assumptions'!$D32*(1+'CDS assumptions'!$D20)*'CDS assumptions'!$F54*AC$3*(1-'Revenue assumptions'!$D$5) -> 0 | AD41: ='Base case'!AD$4*'Revenue assumptions'!$D32*(1+'CDS assumptions'!$D20)*'CDS assumptions'!$F54*AD$3*(1-'Revenue assumptions'!$D$5) -> 0 | AE41: ='Base case'!AE$4*'Revenue assumptions'!$D32*(1+'CDS assumptions'!$D20)*'CDS assumptions'!$F54*AE$3*(1-'Revenue assumptions'!$D$5) -> 0 | AF41: ='Base case'!AF$4*'Revenue assumptions'!$D32*(1+'CDS assumptions'!$D20)*'CDS assumptions'!$F54*AF$3*(1-'Revenue assumptions'!$D$5) -> 0 | AG41: ='Base case'!AG$4*'Revenue assumptions'!$D32*(1+'CDS assumptions'!$D20)*'CDS assumptions'!$F54*AG$3*(1-'Revenue assumptions'!$D$5) -> 0 | AH41: ='Base case'!AH$4*'Revenue assumptions'!$D32*(1+'CDS assumptions'!$D20)*'CDS assumptions'!$F54*AH$3*(1-'Revenue assumptions'!$D$5) -> 0 | AI41: ='Base case'!AI$4*'Revenue assumptions'!$D32*(1+'CDS assumptions'!$D20)*'CDS assumptions'!$F54*AI$3*(1-'Revenue assumptions'!$D$5) -> 0
C42: plastics - mixed | D42: $m | F42: ='Base case'!F$4*'Revenue assumptions'!$D33*(1+'CDS assumptions'!$D21)*'CDS assumptions'!$F55*F$3*(1-'Revenue assumptions'!$D$5) -> 0 | G42: ='Base case'!G$4*'Revenue assumptions'!$D33*(1+'CDS assumptions'!$D21)*'CDS assumptions'!$F55*G$3*(1-'Revenue assumptions'!$D$5) -> 0 | H42: ='Base case'!H$4*'Revenue assumptions'!$D33*(1+'CDS assumptions'!$D21)*'CDS assumptions'!$F55*H$3*(1-'Revenue assumptions'!$D$5) -> 0 | I42: ='Base case'!I$4*'Revenue assumptions'!$D33*(1+'CDS assumptions'!$D21)*'CDS assumptions'!$F55*I$3*(1-'Revenue assumptions'!$D$5) -> 0 | J42: ='Base case'!J$4*'Revenue assumptions'!$D33*(1+'CDS assumptions'!$D21)*'CDS assumptions'!$F55*J$3*(1-'Revenue assumptions'!$D$5) -> 0 | K42: ='Base case'!K$4*'Revenue assumptions'!$D33*(1+'CDS assumptions'!$D21)*'CDS assumptions'!$F55*K$3*(1-'Revenue assumptions'!$D$5) -> 0 | L42: ='Base case'!L$4*'Revenue assumptions'!$D33*(1+'CDS assumptions'!$D21)*'CDS assumptions'!$F55*L$3*(1-'Revenue assumptions'!$D$5) -> 0 | M42: ='Base case'!M$4*'Revenue assumptions'!$D33*(1+'CDS assumptions'!$D21)*'CDS assumptions'!$F55*M$3*(1-'Revenue assumptions'!$D$5) -> 0 | N42: ='Base case'!N$4*'Revenue assumptions'!$D33*(1+'CDS assumptions'!$D21)*'CDS assumptions'!$F55*N$3*(1-'Revenue assumptions'!$D$5) -> 0 | O42: ='Base case'!O$4*'Revenue assumptions'!$D33*(1+'CDS assumptions'!$D21)*'CDS assumptions'!$F55*O$3*(1-'Revenue assumptions'!$D$5) -> 0 | P42: ='Base case'!P$4*'Revenue assumptions'!$D33*(1+'CDS assumptions'!$D21)*'CDS assumptions'!$F55*P$3*(1-'Revenue assumptions'!$D$5) -> 0 | Q42: ='Base case'!Q$4*'Revenue assumptions'!$D33*(1+'CDS assumptions'!$D21)*'CDS assumptions'!$F55*Q$3*(1-'Revenue assumptions'!$D$5) -> 0 | R42: ='Base case'!R$4*'Revenue assumptions'!$D33*(1+'CDS assumptions'!$D21)*'CDS assumptions'!$F55*R$3*(1-'Revenue assumptions'!$D$5) -> 0 | S42: ='Base case'!S$4*'Revenue assumptions'!$D33*(1+'CDS assumptions'!$D21)*'CDS assumptions'!$F55*S$3*(1-'Revenue assumptions'!$D$5) -> 0 | T42: ='Base case'!T$4*'Revenue assumptions'!$D33*(1+'CDS assumptions'!$D21)*'CDS assumptions'!$F55*T$3*(1-'Revenue assumptions'!$D$5) -> 0 | U42: ='Base case'!U$4*'Revenue assumptions'!$D33*(1+'CDS assumptions'!$D21)*'CDS assumptions'!$F55*U$3*(1-'Revenue assumptions'!$D$5) -> 0 | V42: ='Base case'!V$4*'Revenue assumptions'!$D33*(1+'CDS assumptions'!$D21)*'CDS assumptions'!$F55*V$3*(1-'Revenue assumptions'!$D$5) -> 0 | W42: ='Base case'!W$4*'Revenue assumptions'!$D33*(1+'CDS assumptions'!$D21)*'CDS assumptions'!$F55*W$3*(1-'Revenue assumptions'!$D$5) -> 0 | X42: ='Base case'!X$4*'Revenue assumptions'!$D33*(1+'CDS assumptions'!$D21)*'CDS assumptions'!$F55*X$3*(1-'Revenue assumptions'!$D$5) -> 0 | Y42: ='Base case'!Y$4*'Revenue assumptions'!$D33*(1+'CDS assumptions'!$D21)*'CDS assumptions'!$F55*Y$3*(1-'Revenue assumptions'!$D$5) -> 0 | Z42: ='Base case'!Z$4*'Revenue assumptions'!$D33*(1+'CDS assumptions'!$D21)*'CDS assumptions'!$F55*Z$3*(1-'Revenue assumptions'!$D$5) -> 0 | AA42: ='Base case'!AA$4*'Revenue assumptions'!$D33*(1+'CDS assumptions'!$D21)*'CDS assumptions'!$F55*AA$3*(1-'Revenue assumptions'!$D$5) -> 0 | AB42: ='Base case'!AB$4*'Revenue assumptions'!$D33*(1+'CDS assumptions'!$D21)*'CDS assumptions'!$F55*AB$3*(1-'Revenue assumptions'!$D$5) -> 0 | AC42: ='Base case'!AC$4*'Revenue assumptions'!$D33*(1+'CDS assumptions'!$D21)*'CDS assumptions'!$F55*AC$3*(1-'Revenue assumptions'!$D$5) -> 0 | AD42: ='Base case'!AD$4*'Revenue assumptions'!$D33*(1+'CDS assumptions'!$D21)*'CDS assumptions'!$F55*AD$3*(1-'Revenue assumptions'!$D$5) -> 0 | AE42: ='Base case'!AE$4*'Revenue assumptions'!$D33*(1+'CDS assumptions'!$D21)*'CDS assumptions'!$F55*AE$3*(1-'Revenue assumptions'!$D$5) -> 0 | AF42: ='Base case'!AF$4*'Revenue assumptions'!$D33*(1+'CDS assumptions'!$D21)*'CDS assumptions'!$F55*AF$3*(1-'Revenue assumptions'!$D$5) -> 0 | AG42: ='Base case'!AG$4*'Revenue assumptions'!$D33*(1+'CDS assumptions'!$D21)*'CDS assumptions'!$F55*AG$3*(1-'Revenue assumptions'!$D$5) -> 0 | AH42: ='Base case'!AH$4*'Revenue assumptions'!$D33*(1+'CDS assumptions'!$D21)*'CDS assumptions'!$F55*AH$3*(1-'Revenue assumptions'!$D$5) -> 0 | AI42: ='Base case'!AI$4*'Revenue assumptions'!$D33*(1+'CDS assumptions'!$D21)*'CDS assumptions'!$F55*AI$3*(1-'Revenue assumptions'!$D$5) -> 0
C43: plastics - hdpe | D43: $m | F43: ='Base case'!F$4*'Revenue assumptions'!$D34*(1+'CDS assumptions'!$D22)*'CDS assumptions'!$F56*F$3*(1-'Revenue assumptions'!$D$5) -> 0 | G43: ='Base case'!G$4*'Revenue assumptions'!$D34*(1+'CDS assumptions'!$D22)*'CDS assumptions'!$F56*G$3*(1-'Revenue assumptions'!$D$5) -> 0 | H43: ='Base case'!H$4*'Revenue assumptions'!$D34*(1+'CDS assumptions'!$D22)*'CDS assumptions'!$F56*H$3*(1-'Revenue assumptions'!$D$5) -> 0 | I43: ='Base case'!I$4*'Revenue assumptions'!$D34*(1+'CDS assumptions'!$D22)*'CDS assumptions'!$F56*I$3*(1-'Revenue assumptions'!$D$5) -> 0 | J43: ='Base case'!J$4*'Revenue assumptions'!$D34*(1+'CDS assumptions'!$D22)*'CDS assumptions'!$F56*J$3*(1-'Revenue assumptions'!$D$5) -> 0 | K43: ='Base case'!K$4*'Revenue assumptions'!$D34*(1+'CDS assumptions'!$D22)*'CDS assumptions'!$F56*K$3*(1-'Revenue assumptions'!$D$5) -> 0 | L43: ='Base case'!L$4*'Revenue assumptions'!$D34*(1+'CDS assumptions'!$D22)*'CDS assumptions'!$F56*L$3*(1-'Revenue assumptions'!$D$5) -> 0 | M43: ='Base case'!M$4*'Revenue assumptions'!$D34*(1+'CDS assumptions'!$D22)*'CDS assumptions'!$F56*M$3*(1-'Revenue assumptions'!$D$5) -> 0 | N43: ='Base case'!N$4*'Revenue assumptions'!$D34*(1+'CDS assumptions'!$D22)*'CDS assumptions'!$F56*N$3*(1-'Revenue assumptions'!$D$5) -> 0 | O43: ='Base case'!O$4*'Revenue assumptions'!$D34*(1+'CDS assumptions'!$D22)*'CDS assumptions'!$F56*O$3*(1-'Revenue assumptions'!$D$5) -> 0 | P43: ='Base case'!P$4*'Revenue assumptions'!$D34*(1+'CDS assumptions'!$D22)*'CDS assumptions'!$F56*P$3*(1-'Revenue assumptions'!$D$5) -> 0 | Q43: ='Base case'!Q$4*'Revenue assumptions'!$D34*(1+'CDS assumptions'!$D22)*'CDS assumptions'!$F56*Q$3*(1-'Revenue assumptions'!$D$5) -> 0 | R43: ='Base case'!R$4*'Revenue assumptions'!$D34*(1+'CDS assumptions'!$D22)*'CDS assumptions'!$F56*R$3*(1-'Revenue assumptions'!$D$5) -> 0 | S43: ='Base case'!S$4*'Revenue assumptions'!$D34*(1+'CDS assumptions'!$D22)*'CDS assumptions'!$F56*S$3*(1-'Revenue assumptions'!$D$5) -> 0 | T43: ='Base case'!T$4*'Revenue assumptions'!$D34*(1+'CDS assumptions'!$D22)*'CDS assumptions'!$F56*T$3*(1-'Revenue assumptions'!$D$5) -> 0 | U43: ='Base case'!U$4*'Revenue assumptions'!$D34*(1+'CDS assumptions'!$D22)*'CDS assumptions'!$F56*U$3*(1-'Revenue assumptions'!$D$5) -> 0 | V43: ='Base case'!V$4*'Revenue assumptions'!$D34*(1+'CDS assumptions'!$D22)*'CDS assumptions'!$F56*V$3*(1-'Revenue assumptions'!$D$5) -> 0 | W43: ='Base case'!W$4*'Revenue assumptions'!$D34*(1+'CDS assumptions'!$D22)*'CDS assumptions'!$F56*W$3*(1-'Revenue assumptions'!$D$5) -> 0 | X43: ='Base case'!X$4*'Revenue assumptions'!$D34*(1+'CDS assumptions'!$D22)*'CDS assumptions'!$F56*X$3*(1-'Revenue assumptions'!$D$5) -> 0 | Y43: ='Base case'!Y$4*'Revenue assumptions'!$D34*(1+'CDS assumptions'!$D22)*'CDS assumptions'!$F56*Y$3*(1-'Revenue assumptions'!$D$5) -> 0 | Z43: ='Base case'!Z$4*'Revenue assumptions'!$D34*(1+'CDS assumptions'!$D22)*'CDS assumptions'!$F56*Z$3*(1-'Revenue assumptions'!$D$5) -> 0 | AA43: ='Base case'!AA$4*'Revenue assumptions'!$D34*(1+'CDS assumptions'!$D22)*'CDS assumptions'!$F56*AA$3*(1-'Revenue assumptions'!$D$5) -> 0 | AB43: ='Base case'!AB$4*'Revenue assumptions'!$D34*(1+'CDS assumptions'!$D22)*'CDS assumptions'!$F56*AB$3*(1-'Revenue assumptions'!$D$5) -> 0 | AC43: ='Base case'!AC$4*'Revenue assumptions'!$D34*(1+'CDS assumptions'!$D22)*'CDS assumptions'!$F56*AC$3*(1-'Revenue assumptions'!$D$5) -> 0 | AD43: ='Base case'!AD$4*'Revenue assumptions'!$D34*(1+'CDS assumptions'!$D22)*'CDS assumptions'!$F56*AD$3*(1-'Revenue assumptions'!$D$5) -> 0 | AE43: ='Base case'!AE$4*'Revenue assumptions'!$D34*(1+'CDS assumptions'!$D22)*'CDS assumptions'!$F56*AE$3*(1-'Revenue assumptions'!$D$5) -> 0 | AF43: ='Base case'!AF$4*'Revenue assumptions'!$D34*(1+'CDS assumptions'!$D22)*'CDS assumptions'!$F56*AF$3*(1-'Revenue assumptions'!$D$5) -> 0 | AG43: ='Base case'!AG$4*'Revenue assumptions'!$D34*(1+'CDS assumptions'!$D22)*'CDS assumptions'!$F56*AG$3*(1-'Revenue assumptions'!$D$5) -> 0 | AH43: ='Base case'!AH$4*'Revenue assumptions'!$D34*(1+'CDS assumptions'!$D22)*'CDS assumptions'!$F56*AH$3*(1-'Revenue assumptions'!$D$5) -> 0 | AI43: ='Base case'!AI$4*'Revenue assumptions'!$D34*(1+'CDS assumptions'!$D22)*'CDS assumptions'!$F56*AI$3*(1-'Revenue assumptions'!$D$5) -> 0
C44: plastics - PET | D44: $m | F44: ='Base case'!F$4*'Revenue assumptions'!$D35*(1+'CDS assumptions'!$D23)*'CDS assumptions'!$F57*F$3*(1-'Revenue assumptions'!$D$5) -> 0 | G44: ='Base case'!G$4*'Revenue assumptions'!$D35*(1+'CDS assumptions'!$D23)*'CDS assumptions'!$F57*G$3*(1-'Revenue assumptions'!$D$5) -> 0 | H44: ='Base case'!H$4*'Revenue assumptions'!$D35*(1+'CDS assumptions'!$D23)*'CDS assumptions'!$F57*H$3*(1-'Revenue assumptions'!$D$5) -> 0 | I44: ='Base case'!I$4*'Revenue assumptions'!$D35*(1+'CDS assumptions'!$D23)*'CDS assumptions'!$F57*I$3*(1-'Revenue assumptions'!$D$5) -> 0 | J44: ='Base case'!J$4*'Revenue assumptions'!$D35*(1+'CDS assumptions'!$D23)*'CDS assumptions'!$F57*J$3*(1-'Revenue assumptions'!$D$5) -> 0 | K44: ='Base case'!K$4*'Revenue assumptions'!$D35*(1+'CDS assumptions'!$D23)*'CDS assumptions'!$F57*K$3*(1-'Revenue assumptions'!$D$5) -> 0 | L44: ='Base case'!L$4*'Revenue assumptions'!$D35*(1+'CDS assumptions'!$D23)*'CDS assumptions'!$F57*L$3*(1-'Revenue assumptions'!$D$5) -> 0 | M44: ='Base case'!M$4*'Revenue assumptions'!$D35*(1+'CDS assumptions'!$D23)*'CDS assumptions'!$F57*M$3*(1-'Revenue assumptions'!$D$5) -> 0 | N44: ='Base case'!N$4*'Revenue assumptions'!$D35*(1+'CDS assumptions'!$D23)*'CDS assumptions'!$F57*N$3*(1-'Revenue assumptions'!$D$5) -> 0 | O44: ='Base case'!O$4*'Revenue assumptions'!$D35*(1+'CDS assumptions'!$D23)*'CDS assumptions'!$F57*O$3*(1-'Revenue assumptions'!$D$5) -> 0 | P44: ='Base case'!P$4*'Revenue assumptions'!$D35*(1+'CDS assumptions'!$D23)*'CDS assumptions'!$F57*P$3*(1-'Revenue assumptions'!$D$5) -> 0 | Q44: ='Base case'!Q$4*'Revenue assumptions'!$D35*(1+'CDS assumptions'!$D23)*'CDS assumptions'!$F57*Q$3*(1-'Revenue assumptions'!$D$5) -> 0 | R44: ='Base case'!R$4*'Revenue assumptions'!$D35*(1+'CDS assumptions'!$D23)*'CDS assumptions'!$F57*R$3*(1-'Revenue assumptions'!$D$5) -> 0 | S44: ='Base case'!S$4*'Revenue assumptions'!$D35*(1+'CDS assumptions'!$D23)*'CDS assumptions'!$F57*S$3*(1-'Revenue assumptions'!$D$5) -> 0 | T44: ='Base case'!T$4*'Revenue assumptions'!$D35*(1+'CDS assumptions'!$D23)*'CDS assumptions'!$F57*T$3*(1-'Revenue assumptions'!$D$5) -> 0 | U44: ='Base case'!U$4*'Revenue assumptions'!$D35*(1+'CDS assumptions'!$D23)*'CDS assumptions'!$F57*U$3*(1-'Revenue assumptions'!$D$5) -> 0 | V44: ='Base case'!V$4*'Revenue assumptions'!$D35*(1+'CDS assumptions'!$D23)*'CDS assumptions'!$F57*V$3*(1-'Revenue assumptions'!$D$5) -> 0 | W44: ='Base case'!W$4*'Revenue assumptions'!$D35*(1+'CDS assumptions'!$D23)*'CDS assumptions'!$F57*W$3*(1-'Revenue assumptions'!$D$5) -> 0 | X44: ='Base case'!X$4*'Revenue assumptions'!$D35*(1+'CDS assumptions'!$D23)*'CDS assumptions'!$F57*X$3*(1-'Revenue assumptions'!$D$5) -> 0 | Y44: ='Base case'!Y$4*'Revenue assumptions'!$D35*(1+'CDS assumptions'!$D23)*'CDS assumptions'!$F57*Y$3*(1-'Revenue assumptions'!$D$5) -> 0 | Z44: ='Base case'!Z$4*'Revenue assumptions'!$D35*(1+'CDS assumptions'!$D23)*'CDS assumptions'!$F57*Z$3*(1-'Revenue assumptions'!$D$5) -> 0 | AA44: ='Base case'!AA$4*'Revenue assumptions'!$D35*(1+'CDS assumptions'!$D23)*'CDS assumptions'!$F57*AA$3*(1-'Revenue assumptions'!$D$5) -> 0 | AB44: ='Base case'!AB$4*'Revenue assumptions'!$D35*(1+'CDS assumptions'!$D23)*'CDS assumptions'!$F57*AB$3*(1-'Revenue assumptions'!$D$5) -> 0 | AC44: ='Base case'!AC$4*'Revenue assumptions'!$D35*(1+'CDS assumptions'!$D23)*'CDS assumptions'!$F57*AC$3*(1-'Revenue assumptions'!$D$5) -> 0 | AD44: ='Base case'!AD$4*'Revenue assumptions'!$D35*(1+'CDS assumptions'!$D23)*'CDS assumptions'!$F57*AD$3*(1-'Revenue assumptions'!$D$5) -> 0 | AE44: ='Base case'!AE$4*'Revenue assumptions'!$D35*(1+'CDS assumptions'!$D23)*'CDS assumptions'!$F57*AE$3*(1-'Revenue assumptions'!$D$5) -> 0 | AF44: ='Base case'!AF$4*'Revenue assumptions'!$D35*(1+'CDS assumptions'!$D23)*'CDS assumptions'!$F57*AF$3*(1-'Revenue assumptions'!$D$5) -> 0 | AG44: ='Base case'!AG$4*'Revenue assumptions'!$D35*(1+'CDS assumptions'!$D23)*'CDS assumptions'!$F57*AG$3*(1-'Revenue assumptions'!$D$5) -> 0 | AH44: ='Base case'!AH$4*'Revenue assumptions'!$D35*(1+'CDS assumptions'!$D23)*'CDS assumptions'!$F57*AH$3*(1-'Revenue assumptions'!$D$5) -> 0 | AI44: ='Base case'!AI$4*'Revenue assumptions'!$D35*(1+'CDS assumptions'!$D23)*'CDS assumptions'!$F57*AI$3*(1-'Revenue assumptions'!$D$5) -> 0
C45: other | D45: $m | F45: ='Base case'!F$4*'Revenue assumptions'!$D36*(1+'CDS assumptions'!$D24)*'CDS assumptions'!$F58*F$3*(1-'Revenue assumptions'!$D$5) -> 0 | G45: ='Base case'!G$4*'Revenue assumptions'!$D36*(1+'CDS assumptions'!$D24)*'CDS assumptions'!$F58*G$3*(1-'Revenue assumptions'!$D$5) -> 0 | H45: ='Base case'!H$4*'Revenue assumptions'!$D36*(1+'CDS assumptions'!$D24)*'CDS assumptions'!$F58*H$3*(1-'Revenue assumptions'!$D$5) -> 0 | I45: ='Base case'!I$4*'Revenue assumptions'!$D36*(1+'CDS assumptions'!$D24)*'CDS assumptions'!$F58*I$3*(1-'Revenue assumptions'!$D$5) -> 0 | J45: ='Base case'!J$4*'Revenue assumptions'!$D36*(1+'CDS assumptions'!$D24)*'CDS assumptions'!$F58*J$3*(1-'Revenue assumptions'!$D$5) -> 0 | K45: ='Base case'!K$4*'Revenue assumptions'!$D36*(1+'CDS assumptions'!$D24)*'CDS assumptions'!$F58*K$3*(1-'Revenue assumptions'!$D$5) -> 0 | L45: ='Base case'!L$4*'Revenue assumptions'!$D36*(1+'CDS assumptions'!$D24)*'CDS assumptions'!$F58*L$3*(1-'Revenue assumptions'!$D$5) -> 0 | M45: ='Base case'!M$4*'Revenue assumptions'!$D36*(1+'CDS assumptions'!$D24)*'CDS assumptions'!$F58*M$3*(1-'Revenue assumptions'!$D$5) -> 0 | N45: ='Base case'!N$4*'Revenue assumptions'!$D36*(1+'CDS assumptions'!$D24)*'CDS assumptions'!$F58*N$3*(1-'Revenue assumptions'!$D$5) -> 0 | O45: ='Base case'!O$4*'Revenue assumptions'!$D36*(1+'CDS assumptions'!$D24)*'CDS assumptions'!$F58*O$3*(1-'Revenue assumptions'!$D$5) -> 0 | P45: ='Base case'!P$4*'Revenue assumptions'!$D36*(1+'CDS assumptions'!$D24)*'CDS assumptions'!$F58*P$3*(1-'Revenue assumptions'!$D$5) -> 0 | Q45: ='Base case'!Q$4*'Revenue assumptions'!$D36*(1+'CDS assumptions'!$D24)*'CDS assumptions'!$F58*Q$3*(1-'Revenue assumptions'!$D$5) -> 0 | R45: ='Base case'!R$4*'Revenue assumptions'!$D36*(1+'CDS assumptions'!$D24)*'CDS assumptions'!$F58*R$3*(1-'Revenue assumptions'!$D$5) -> 0 | S45: ='Base case'!S$4*'Revenue assumptions'!$D36*(1+'CDS assumptions'!$D24)*'CDS assumptions'!$F58*S$3*(1-'Revenue assumptions'!$D$5) -> 0 | T45: ='Base case'!T$4*'Revenue assumptions'!$D36*(1+'CDS assumptions'!$D24)*'CDS assumptions'!$F58*T$3*(1-'Revenue assumptions'!$D$5) -> 0 | U45: ='Base case'!U$4*'Revenue assumptions'!$D36*(1+'CDS assumptions'!$D24)*'CDS assumptions'!$F58*U$3*(1-'Revenue assumptions'!$D$5) -> 0 | V45: ='Base case'!V$4*'Revenue assumptions'!$D36*(1+'CDS assumptions'!$D24)*'CDS assumptions'!$F58*V$3*(1-'Revenue assumptions'!$D$5) -> 0 | W45: ='Base case'!W$4*'Revenue assumptions'!$D36*(1+'CDS assumptions'!$D24)*'CDS assumptions'!$F58*W$3*(1-'Revenue assumptions'!$D$5) -> 0 | X45: ='Base case'!X$4*'Revenue assumptions'!$D36*(1+'CDS assumptions'!$D24)*'CDS assumptions'!$F58*X$3*(1-'Revenue assumptions'!$D$5) -> 0 | Y45: ='Base case'!Y$4*'Revenue assumptions'!$D36*(1+'CDS assumptions'!$D24)*'CDS assumptions'!$F58*Y$3*(1-'Revenue assumptions'!$D$5) -> 0 | Z45: ='Base case'!Z$4*'Revenue assumptions'!$D36*(1+'CDS assumptions'!$D24)*'CDS assumptions'!$F58*Z$3*(1-'Revenue assumptions'!$D$5) -> 0 | AA45: ='Base case'!AA$4*'Revenue assumptions'!$D36*(1+'CDS assumptions'!$D24)*'CDS assumptions'!$F58*AA$3*(1-'Revenue assumptions'!$D$5) -> 0 | AB45: ='Base case'!AB$4*'Revenue assumptions'!$D36*(1+'CDS assumptions'!$D24)*'CDS assumptions'!$F58*AB$3*(1-'Revenue assumptions'!$D$5) -> 0 | AC45: ='Base case'!AC$4*'Revenue assumptions'!$D36*(1+'CDS assumptions'!$D24)*'CDS assumptions'!$F58*AC$3*(1-'Revenue assumptions'!$D$5) -> 0 | AD45: ='Base case'!AD$4*'Revenue assumptions'!$D36*(1+'CDS assumptions'!$D24)*'CDS assumptions'!$F58*AD$3*(1-'Revenue assumptions'!$D$5) -> 0 | AE45: ='Base case'!AE$4*'Revenue assumptions'!$D36*(1+'CDS assumptions'!$D24)*'CDS assumptions'!$F58*AE$3*(1-'Revenue assumptions'!$D$5) -> 0 | AF45: ='Base case'!AF$4*'Revenue assumptions'!$D36*(1+'CDS assumptions'!$D24)*'CDS assumptions'!$F58*AF$3*(1-'Revenue assumptions'!$D$5) -> 0 | AG45: ='Base case'!AG$4*'Revenue assumptions'!$D36*(1+'CDS assumptions'!$D24)*'CDS assumptions'!$F58*AG$3*(1-'Revenue assumptions'!$D$5) -> 0 | AH45: ='Base case'!AH$4*'Revenue assumptions'!$D36*(1+'CDS assumptions'!$D24)*'CDS assumptions'!$F58*AH$3*(1-'Revenue assumptions'!$D$5) -> 0 | AI45: ='Base case'!AI$4*'Revenue assumptions'!$D36*(1+'CDS assumptions'!$D24)*'CDS assumptions'!$F58*AI$3*(1-'Revenue assumptions'!$D$5) -> 0
C46: Total | F46: =SUM(F8:F45) -> 0 | G46: =SUM(G8:G45) -> 0 | H46: 11.517782 | I46: 11.517782 | J46: 11.517782 | K46: 11.517782 | L46: 11.517782 | M46: 11.517782 | N46: 11.517782 | O46: 11.517782 | P46: 11.517782 | Q46: 11.517782 | R46: 11.517782 | S46: 11.517782 | T46: 11.517782 | U46: 11.517782 | V46: 11.517782 | W46: 11.517782 | X46: 11.517782 | Y46: 11.517782 | Z46: 11.517782 | AA46: 11.517782 | AB46: 11.517782 | AC46: 11.517782 | AD46: 11.517782 | AE46: 11.517782 | AF46: 11.517782 | AG46: 11.517782 | AH46: 11.517782 | AI46: 11.517782
B48: Cost items
C49: Capital costs | D49: $m | F49: =-IF(F2<'Cost assumptions'!$E$4,'Cost assumptions'!$E$9/'Cost assumptions'!$E$6*F5,0) -> -5.0625 | G49: =-IF(G2<'Cost assumptions'!$E$4,'Cost assumptions'!$E$9/'Cost assumptions'!$E$6*G5,0) -> -5.0625 | H49: =-IF(H2<'Cost assumptions'!$E$4,'Cost assumptions'!$E$9/'Cost assumptions'!$E$6*H5,0) -> 0 | I49: =-IF(I2<'Cost assumptions'!$E$4,'Cost assumptions'!$E$9/'Cost assumptions'!$E$6*I5,0) -> 0 | J49: =-IF(J2<'Cost assumptions'!$E$4,'Cost assumptions'!$E$9/'Cost assumptions'!$E$6*J5,0) -> 0 | K49: =-IF(K2<'Cost assumptions'!$E$4,'Cost assumptions'!$E$9/'Cost assumptions'!$E$6*K5,0) -> 0 | L49: =-IF(L2<'Cost assumptions'!$E$4,'Cost assumptions'!$E$9/'Cost assumptions'!$E$6*L5,0) -> 0 | M49: =-IF(M2<'Cost assumptions'!$E$4,'Cost assumptions'!$E$9/'Cost assumptions'!$E$6*M5,0) -> 0 | N49: =-IF(N2<'Cost assumptions'!$E$4,'Cost assumptions'!$E$9/'Cost assumptions'!$E$6*N5,0) -> 0 | O49: =-IF(O2<'Cost assumptions'!$E$4,'Cost assumptions'!$E$9/'Cost assumptions'!$E$6*O5,0) -> 0 | P49: =-IF(P2<'Cost assumptions'!$E$4,'Cost assumptions'!$E$9/'Cost assumptions'!$E$6*P5,0) -> 0 | Q49: =-IF(Q2<'Cost assumptions'!$E$4,'Cost assumptions'!$E$9/'Cost assumptions'!$E$6*Q5,0) -> 0 | R49: =-IF(R2<'Cost assumptions'!$E$4,'Cost assumptions'!$E$9/'Cost assumptions'!$E$6*R5,0) -> 0 | S49: =-IF(S2<'Cost assumptions'!$E$4,'Cost assumptions'!$E$9/'Cost assumptions'!$E$6*S5,0) -> 0 | T49: =-IF(T2<'Cost assumptions'!$E$4,'Cost assumptions'!$E$9/'Cost assumptions'!$E$6*T5,0) -> 0 | U49: =-IF(U2<'Cost assumptions'!$E$4,'Cost assumptions'!$E$9/'Cost assumptions'!$E$6*U5,0) -> 0 | V49: =-IF(V2<'Cost assumptions'!$E$4,'Cost assumptions'!$E$9/'Cost assumptions'!$E$6*V5,0) -> 0 | W49: =-IF(W2<'Cost assumptions'!$E$4,'Cost assumptions'!$E$9/'Cost assumptions'!$E$6*W5,0) -> 0 | X49: =-IF(X2<'Cost assumptions'!$E$4,'Cost assumptions'!$E$9/'Cost assumptions'!$E$6*X5,0) -> 0 | Y49: =-IF(Y2<'Cost assumptions'!$E$4,'Cost assumptions'!$E$9/'Cost assumptions'!$E$6*Y5,0) -> 0 | Z49: =-IF(Z2<'Cost assumptions'!$E$4,'Cost assumptions'!$E$9/'Cost assumptions'!$E$6*Z5,0) -> 0 | AA49: =-IF(AA2<'Cost assumptions'!$E$4,'Cost assumptions'!$E$9/'Cost assumptions'!$E$6*AA5,0) -> 0 | AB49: =-IF(AB2<'Cost assumptions'!$E$4,'Cost assumptions'!$E$9/'Cost assumptions'!$E$6*AB5,0) -> 0 | AC49: =-IF(AC2<'Cost assumptions'!$E$4,'Cost assumptions'!$E$9/'Cost assumptions'!$E$6*AC5,0) -> 0 | AD49: =-IF(AD2<'Cost assumptions'!$E$4,'Cost assumptions'!$E$9/'Cost assumptions'!$E$6*AD5,0) -> 0 | AE49: =-IF(AE2<'Cost assumptions'!$E$4,'Cost assumptions'!$E$9/'Cost assumptions'!$E$6*AE5,0) -> 0 | AF49: =-IF(AF2<'Cost assumptions'!$E$4,'Cost assumptions'!$E$9/'Cost assumptions'!$E$6*AF5,0) -> 0 | AG49: =-IF(AG2<'Cost assumptions'!$E$4,'Cost assumptions'!$E$9/'Cost assumptions'!$E$6*AG5,0) -> 0 | AH49: =-IF(AH2<'Cost assumptions'!$E$4,'Cost assumptions'!$E$9/'Cost assumptions'!$E$6*AH5,0) -> 0 | AI49: =-IF(AI2<'Cost assumptions'!$E$4,'Cost assumptions'!$E$9/'Cost assumptions'!$E$6*AI5,0) -> 0
C50: Operating costs
C51: fixed | D51: $m | F51: =-IF(F2<'Cost assumptions'!$E$4,0,'Cost assumptions'!$E$11*F5) -> 0 | G51: =-IF(G2<'Cost assumptions'!$E$4,0,'Cost assumptions'!$E$11*G5) -> 0 | H51: =-IF(H2<'Cost assumptions'!$E$4,0,'Cost assumptions'!$E$11*H5) -> -3 | I51: =-IF(I2<'Cost assumptions'!$E$4,0,'Cost assumptions'!$E$11*I5) -> -3 | J51: =-IF(J2<'Cost assumptions'!$E$4,0,'Cost assumptions'!$E$11*J5) -> -3 | K51: =-IF(K2<'Cost assumptions'!$E$4,0,'Cost assumptions'!$E$11*K5) -> -3 | L51: =-IF(L2<'Cost assumptions'!$E$4,0,'Cost assumptions'!$E$11*L5) -> -3 | M51: =-IF(M2<'Cost assumptions'!$E$4,0,'Cost assumptions'!$E$11*M5) -> -3 | N51: =-IF(N2<'Cost assumptions'!$E$4,0,'Cost assumptions'!$E$11*N5) -> -3 | O51: =-IF(O2<'Cost assumptions'!$E$4,0,'Cost assumptions'!$E$11*O5) -> -3 | P51: =-IF(P2<'Cost assumptions'!$E$4,0,'Cost assumptions'!$E$11*P5) -> -3 | Q51: =-IF(Q2<'Cost assumptions'!$E$4,0,'Cost assumptions'!$E$11*Q5) -> -3 | R51: =-IF(R2<'Cost assumptions'!$E$4,0,'Cost assumptions'!$E$11*R5) -> -3 | S51: =-IF(S2<'Cost assumptions'!$E$4,0,'Cost assumptions'!$E$11*S5) -> -3 | T51: =-IF(T2<'Cost assumptions'!$E$4,0,'Cost assumptions'!$E$11*T5) -> -3 | U51: =-IF(U2<'Cost assumptions'!$E$4,0,'Cost assumptions'!$E$11*U5) -> -3 | V51: =-IF(V2<'Cost assumptions'!$E$4,0,'Cost assumptions'!$E$11*V5) -> -3 | W51: =-IF(W2<'Cost assumptions'!$E$4,0,'Cost assumptions'!$E$11*W5) -> -3 | X51: =-IF(X2<'Cost assumptions'!$E$4,0,'Cost assumptions'!$E$11*X5) -> -3 | Y51: =-IF(Y2<'Cost assumptions'!$E$4,0,'Cost assumptions'!$E$11*Y5) -> -3 | Z51: =-IF(Z2<'Cost assumptions'!$E$4,0,'Cost assumptions'!$E$11*Z5) -> -3 | AA51: =-IF(AA2<'Cost assumptions'!$E$4,0,'Cost assumptions'!$E$11*AA5) -> -3 | AB51: =-IF(AB2<'Cost assumptions'!$E$4,0,'Cost assumptions'!$E$11*AB5) -> -3 | AC51: =-IF(AC2<'Cost assumptions'!$E$4,0,'Cost assumptions'!$E$11*AC5) -> -3 | AD51: =-IF(AD2<'Cost assumptions'!$E$4,0,'Cost assumptions'!$E$11*AD5) -> -3 | AE51: =-IF(AE2<'Cost assumptions'!$E$4,0,'Cost assumptions'!$E$11*AE5) -> -3 | AF51: =-IF(AF2<'Cost assumptions'!$E$4,0,'Cost assumptions'!$E$11*AF5) -> -3 | AG51: =-IF(AG2<'Cost assumptions'!$E$4,0,'Cost assumptions'!$E$11*AG5) -> -3 | AH51: =-IF(AH2<'Cost assumptions'!$E$4,0,'Cost assumptions'!$E$11*AH5) -> -3 | AI51: =-IF(AI2<'Cost assumptions'!$E$4,0,'Cost assumptions'!$E$11*AI5) -> -3
C52: variable | D52: $m | F52: =-F4*'Cost assumptions'!$E$12 -> 0 | G52: =-G4*'Cost assumptions'!$E$12 -> 0 | H52: =-H4*'Cost assumptions'!$E$12 -> -2.86539 | I52: =-I4*'Cost assumptions'!$E$12 -> -2.86539 | J52: =-J4*'Cost assumptions'!$E$12 -> -2.86539 | K52: =-K4*'Cost assumptions'!$E$12 -> -2.86539 | L52: =-L4*'Cost assumptions'!$E$12 -> -2.86539 | M52: =-M4*'Cost assumptions'!$E$12 -> -2.86539 | N52: =-N4*'Cost assumptions'!$E$12 -> -2.86539 | O52: =-O4*'Cost assumptions'!$E$12 -> -2.86539 | P52: =-P4*'Cost assumptions'!$E$12 -> -2.86539 | Q52: =-Q4*'Cost assumptions'!$E$12 -> -2.86539 | R52: =-R4*'Cost assumptions'!$E$12 -> -2.86539 | S52: =-S4*'Cost assumptions'!$E$12 -> -2.86539 | T52: =-T4*'Cost assumptions'!$E$12 -> -2.86539 | U52: =-U4*'Cost assumptions'!$E$12 -> -2.86539 | V52: =-V4*'Cost assumptions'!$E$12 -> -2.86539 | W52: =-W4*'Cost assumptions'!$E$12 -> -2.86539 | X52: =-X4*'Cost assumptions'!$E$12 -> -2.86539 | Y52: =-Y4*'Cost assumptions'!$E$12 -> -2.86539 | Z52: =-Z4*'Cost assumptions'!$E$12 -> -2.86539 | AA52: =-AA4*'Cost assumptions'!$E$12 -> -2.86539 | AB52: =-AB4*'Cost assumptions'!$E$12 -> -2.86539 | AC52: =-AC4*'Cost assumptions'!$E$12 -> -2.86539 | AD52: =-AD4*'Cost assumptions'!$E$12 -> -2.86539 | AE52: =-AE4*'Cost assumptions'!$E$12 -> -2.86539 | AF52: =-AF4*'Cost assumptions'!$E$12 -> -2.86539 | AG52: =-AG4*'Cost assumptions'!$E$12 -> -2.86539 | AH52: =-AH4*'Cost assumptions'!$E$12 -> -2.86539 | AI52: =-AI4*'Cost assumptions'!$E$12 -> -2.86539
C53: Disposal costs | D53: $m | F53: ='Base case'!F53*('Revenue assumptions'!$E$5*(1+F$3*'CDS assumptions'!$F15)+'Revenue assumptions'!$E$6*(1+F$3*'CDS assumptions'!$F25)) -> 0 | G53: ='Base case'!G53*('Revenue assumptions'!$E$5*(1+G$3*'CDS assumptions'!$F15)+'Revenue assumptions'!$E$6*(1+G$3*'CDS assumptions'!$F25)) -> 0 | H53: ='Base case'!H53*('Revenue assumptions'!$E$5*(1+H$3*'CDS assumptions'!$F15)+'Revenue assumptions'!$E$6*(1+H$3*'CDS assumptions'!$F25)) -> -1.164 | I53: ='Base case'!I53*('Revenue assumptions'!$E$5*(1+I$3*'CDS assumptions'!$F15)+'Revenue assumptions'!$E$6*(1+I$3*'CDS assumptions'!$F25)) -> -1.164 | J53: ='Base case'!J53*('Revenue assumptions'!$E$5*(1+J$3*'CDS assumptions'!$F15)+'Revenue assumptions'!$E$6*(1+J$3*'CDS assumptions'!$F25)) -> -1.164 | K53: ='Base case'!K53*('Revenue assumptions'!$E$5*(1+K$3*'CDS assumptions'!$F15)+'Revenue assumptions'!$E$6*(1+K$3*'CDS assumptions'!$F25)) -> -1.164 | L53: ='Base case'!L53*('Revenue assumptions'!$E$5*(1+L$3*'CDS assumptions'!$F15)+'Revenue assumptions'!$E$6*(1+L$3*'CDS assumptions'!$F25)) -> -1.164 | M53: ='Base case'!M53*('Revenue assumptions'!$E$5*(1+M$3*'CDS assumptions'!$F15)+'Revenue assumptions'!$E$6*(1+M$3*'CDS assumptions'!$F25)) -> -1.164 | N53: ='Base case'!N53*('Revenue assumptions'!$E$5*(1+N$3*'CDS assumptions'!$F15)+'Revenue assumptions'!$E$6*(1+N$3*'CDS assumptions'!$F25)) -> -1.164 | O53: ='Base case'!O53*('Revenue assumptions'!$E$5*(1+O$3*'CDS assumptions'!$F15)+'Revenue assumptions'!$E$6*(1+O$3*'CDS assumptions'!$F25)) -> -1.164 | P53: ='Base case'!P53*('Revenue assumptions'!$E$5*(1+P$3*'CDS assumptions'!$F15)+'Revenue assumptions'!$E$6*(1+P$3*'CDS assumptions'!$F25)) -> -1.164 | Q53: ='Base case'!Q53*('Revenue assumptions'!$E$5*(1+Q$3*'CDS assumptions'!$F15)+'Revenue assumptions'!$E$6*(1+Q$3*'CDS assumptions'!$F25)) -> -1.164 | R53: ='Base case'!R53*('Revenue assumptions'!$E$5*(1+R$3*'CDS assumptions'!$F15)+'Revenue assumptions'!$E$6*(1+R$3*'CDS assumptions'!$F25)) -> -1.164 | S53: ='Base case'!S53*('Revenue assumptions'!$E$5*(1+S$3*'CDS assumptions'!$F15)+'Revenue assumptions'!$E$6*(1+S$3*'CDS assumptions'!$F25)) -> -1.164 | T53: ='Base case'!T53*('Revenue assumptions'!$E$5*(1+T$3*'CDS assumptions'!$F15)+'Revenue assumptions'!$E$6*(1+T$3*'CDS assumptions'!$F25)) -> -1.164 | U53: ='Base case'!U53*('Revenue assumptions'!$E$5*(1+U$3*'CDS assumptions'!$F15)+'Revenue assumptions'!$E$6*(1+U$3*'CDS assumptions'!$F25)) -> -1.164 | V53: ='Base case'!V53*('Revenue assumptions'!$E$5*(1+V$3*'CDS assumptions'!$F15)+'Revenue assumptions'!$E$6*(1+V$3*'CDS assumptions'!$F25)) -> -1.164 | W53: ='Base case'!W53*('Revenue assumptions'!$E$5*(1+W$3*'CDS assumptions'!$F15)+'Revenue assumptions'!$E$6*(1+W$3*'CDS assumptions'!$F25)) -> -1.164 | X53: ='Base case'!X53*('Revenue assumptions'!$E$5*(1+X$3*'CDS assumptions'!$F15)+'Revenue assumptions'!$E$6*(1+X$3*'CDS assumptions'!$F25)) -> -1.164 | Y53: ='Base case'!Y53*('Revenue assumptions'!$E$5*(1+Y$3*'CDS assumptions'!$F15)+'Revenue assumptions'!$E$6*(1+Y$3*'CDS assumptions'!$F25)) -> -1.164 | Z53: ='Base case'!Z53*('Revenue assumptions'!$E$5*(1+Z$3*'CDS assumptions'!$F15)+'Revenue assumptions'!$E$6*(1+Z$3*'CDS assumptions'!$F25)) -> -1.164 | AA53: ='Base case'!AA53*('Revenue assumptions'!$E$5*(1+AA$3*'CDS assumptions'!$F15)+'Revenue assumptions'!$E$6*(1+AA$3*'CDS assumptions'!$F25)) -> -1.164 | AB53: ='Base case'!AB53*('Revenue assumptions'!$E$5*(1+AB$3*'CDS assumptions'!$F15)+'Revenue assumptions'!$E$6*(1+AB$3*'CDS assumptions'!$F25)) -> -1.164 | AC53: ='Base case'!AC53*('Revenue assumptions'!$E$5*(1+AC$3*'CDS assumptions'!$F15)+'Revenue assumptions'!$E$6*(1+AC$3*'CDS assumptions'!$F25)) -> -1.164 | AD53: ='Base case'!AD53*('Revenue assumptions'!$E$5*(1+AD$3*'CDS assumptions'!$F15)+'Revenue assumptions'!$E$6*(1+AD$3*'CDS assumptions'!$F25)) -> -1.164 | AE53: ='Base case'!AE53*('Revenue assumptions'!$E$5*(1+AE$3*'CDS assumptions'!$F15)+'Revenue assumptions'!$E$6*(1+AE$3*'CDS assumptions'!$F25)) -> -1.164 | AF53: ='Base case'!AF53*('Revenue assumptions'!$E$5*(1+AF$3*'CDS assumptions'!$F15)+'Revenue assumptions'!$E$6*(1+AF$3*'CDS assumptions'!$F25)) -> -1.164 | AG53: ='Base case'!AG53*('Revenue assumptions'!$E$5*(1+AG$3*'CDS assumptions'!$F15)+'Revenue assumptions'!$E$6*(1+AG$3*'CDS assumptions'!$F25)) -> -1.164 | AH53: ='Base case'!AH53*('Revenue assumptions'!$E$5*(1+AH$3*'CDS assumptions'!$F15)+'Revenue assumptions'!$E$6*(1+AH$3*'CDS assumptions'!$F25)) -> -1.164 | AI53: ='Base case'!AI53*('Revenue assumptions'!$E$5*(1+AI$3*'CDS assumptions'!$F15)+'Revenue assumptions'!$E$6*(1+AI$3*'CDS assumptions'!$F25)) -> -1.164
C54: CDS costs - fixed | D54: $m | F54: =-F$3*('CDS assumptions'!$D$30) -> 0 | G54: =-G$3*('CDS assumptions'!$D$30) -> 0 | H54: =-H$3*('CDS assumptions'!$D$30) -> -0.137 | I54: =-I$3*('CDS assumptions'!$D$30) -> -0.137 | J54: =-J$3*('CDS assumptions'!$D$30) -> -0.137 | K54: =-K$3*('CDS assumptions'!$D$30) -> -0.137 | L54: =-L$3*('CDS assumptions'!$D$30) -> -0.137 | M54: =-M$3*('CDS assumptions'!$D$30) -> -0.137 | N54: =-N$3*('CDS assumptions'!$D$30) -> -0.137 | O54: =-O$3*('CDS assumptions'!$D$30) -> -0.137 | P54: =-P$3*('CDS assumptions'!$D$30) -> -0.137 | Q54: =-Q$3*('CDS assumptions'!$D$30) -> -0.137 | R54: =-R$3*('CDS assumptions'!$D$30) -> -0.137 | S54: =-S$3*('CDS assumptions'!$D$30) -> -0.137 | T54: =-T$3*('CDS assumptions'!$D$30) -> -0.137 | U54: =-U$3*('CDS assumptions'!$D$30) -> -0.137 | V54: =-V$3*('CDS assumptions'!$D$30) -> -0.137 | W54: =-W$3*('CDS assumptions'!$D$30) -> -0.137 | X54: =-X$3*('CDS assumptions'!$D$30) -> -0.137 | Y54: =-Y$3*('CDS assumptions'!$D$30) -> -0.137 | Z54: =-Z$3*('CDS assumptions'!$D$30) -> -0.137 | AA54: =-AA$3*('CDS assumptions'!$D$30) -> -0.137 | AB54: =-AB$3*('CDS assumptions'!$D$30) -> -0.137 | AC54: =-AC$3*('CDS assumptions'!$D$30) -> -0.137 | AD54: =-AD$3*('CDS assumptions'!$D$30) -> -0.137 | AE54: =-AE$3*('CDS assumptions'!$D$30) -> -0.137 | AF54: =-AF$3*('CDS assumptions'!$D$30) -> -0.137 | AG54: =-AG$3*('CDS assumptions'!$D$30) -> -0.137 | AH54: =-AH$3*('CDS assumptions'!$D$30) -> -0.137 | AI54: =-AI$3*('CDS assumptions'!$D$30) -> -0.137
C55: CDS costs - variable council | F55: =-F$3*F$4*'CDS assumptions'!$I$4*('CDS assumptions'!$D$31+'CDS assumptions'!$D$32*'CDS assumptions'!$M$36) -> 0 | G55: =-G$3*G$4*'CDS assumptions'!$I$4*('CDS assumptions'!$D$31+'CDS assumptions'!$D$32*'CDS assumptions'!$M$36) -> 0 | H55: =-H$3*H$4*'CDS assumptions'!$I$4*('CDS assumptions'!$D$31+'CDS assumptions'!$D$32*'CDS assumptions'!$M$36) -> 0 | I55: =-I$3*I$4*'CDS assumptions'!$I$4*('CDS assumptions'!$D$31+'CDS assumptions'!$D$32*'CDS assumptions'!$M$36) -> 0 | J55: =-J$3*J$4*'CDS assumptions'!$I$4*('CDS assumptions'!$D$31+'CDS assumptions'!$D$32*'CDS assumptions'!$M$36) -> 0 | K55: =-K$3*K$4*'CDS assumptions'!$I$4*('CDS assumptions'!$D$31+'CDS assumptions'!$D$32*'CDS assumptions'!$M$36) -> 0 | L55: =-L$3*L$4*'CDS assumptions'!$I$4*('CDS assumptions'!$D$31+'CDS assumptions'!$D$32*'CDS assumptions'!$M$36) -> 0 | M55: =-M$3*M$4*'CDS assumptions'!$I$4*('CDS assumptions'!$D$31+'CDS assumptions'!$D$32*'CDS assumptions'!$M$36) -> 0 | N55: =-N$3*N$4*'CDS assumptions'!$I$4*('CDS assumptions'!$D$31+'CDS assumptions'!$D$32*'CDS assumptions'!$M$36) -> 0 | O55: =-O$3*O$4*'CDS assumptions'!$I$4*('CDS assumptions'!$D$31+'CDS assumptions'!$D$32*'CDS assumptions'!$M$36) -> 0 | P55: =-P$3*P$4*'CDS assumptions'!$I$4*('CDS assumptions'!$D$31+'CDS assumptions'!$D$32*'CDS assumptions'!$M$36) -> 0 | Q55: =-Q$3*Q$4*'CDS assumptions'!$I$4*('CDS assumptions'!$D$31+'CDS assumptions'!$D$32*'CDS assumptions'!$M$36) -> 0 | R55: =-R$3*R$4*'CDS assumptions'!$I$4*('CDS assumptions'!$D$31+'CDS assumptions'!$D$32*'CDS assumptions'!$M$36) -> 0 | S55: =-S$3*S$4*'CDS assumptions'!$I$4*('CDS assumptions'!$D$31+'CDS assumptions'!$D$32*'CDS assumptions'!$M$36) -> 0 | T55: =-T$3*T$4*'CDS assumptions'!$I$4*('CDS assumptions'!$D$31+'CDS assumptions'!$D$32*'CDS assumptions'!$M$36) -> 0 | U55: =-U$3*U$4*'CDS assumptions'!$I$4*('CDS assumptions'!$D$31+'CDS assumptions'!$D$32*'CDS assumptions'!$M$36) -> 0 | V55: =-V$3*V$4*'CDS assumptions'!$I$4*('CDS assumptions'!$D$31+'CDS assumptions'!$D$32*'CDS assumptions'!$M$36) -> 0 | W55: =-W$3*W$4*'CDS assumptions'!$I$4*('CDS assumptions'!$D$31+'CDS assumptions'!$D$32*'CDS assumptions'!$M$36) -> 0 | X55: =-X$3*X$4*'CDS assumptions'!$I$4*('CDS assumptions'!$D$31+'CDS assumptions'!$D$32*'CDS assumptions'!$M$36) -> 0 | Y55: =-Y$3*Y$4*'CDS assumptions'!$I$4*('CDS assumptions'!$D$31+'CDS assumptions'!$D$32*'CDS assumptions'!$M$36) -> 0 | Z55: =-Z$3*Z$4*'CDS assumptions'!$I$4*('CDS assumptions'!$D$31+'CDS assumptions'!$D$32*'CDS assumptions'!$M$36) -> 0 | AA55: =-AA$3*AA$4*'CDS assumptions'!$I$4*('CDS assumptions'!$D$31+'CDS assumptions'!$D$32*'CDS assumptions'!$M$36) -> 0 | AB55: =-AB$3*AB$4*'CDS assumptions'!$I$4*('CDS assumptions'!$D$31+'CDS assumptions'!$D$32*'CDS assumptions'!$M$36) -> 0 | AC55: =-AC$3*AC$4*'CDS assumptions'!$I$4*('CDS assumptions'!$D$31+'CDS assumptions'!$D$32*'CDS assumptions'!$M$36) -> 0 | AD55: =-AD$3*AD$4*'CDS assumptions'!$I$4*('CDS assumptions'!$D$31+'CDS assumptions'!$D$32*'CDS assumptions'!$M$36) -> 0 | AE55: =-AE$3*AE$4*'CDS assumptions'!$I$4*('CDS assumptions'!$D$31+'CDS assumptions'!$D$32*'CDS assumptions'!$M$36) -> 0 | AF55: =-AF$3*AF$4*'CDS assumptions'!$I$4*('CDS assumptions'!$D$31+'CDS assumptions'!$D$32*'CDS assumptions'!$M$36) -> 0 | AG55: =-AG$3*AG$4*'CDS assumptions'!$I$4*('CDS assumptions'!$D$31+'CDS assumptions'!$D$32*'CDS assumptions'!$M$36) -> 0 | AH55: =-AH$3*AH$4*'CDS assumptions'!$I$4*('CDS assumptions'!$D$31+'CDS assumptions'!$D$32*'CDS assumptions'!$M$36) -> 0 | AI55: =-AI$3*AI$4*'CDS assumptions'!$I$4*('CDS assumptions'!$D$31+'CDS assumptions'!$D$32*'CDS assumptions'!$M$36) -> 0
C56: CDS costs - variable commercial | F56: =-F$3*F$4*'CDS assumptions'!$I$5*('CDS assumptions'!$D$31+'CDS assumptions'!$D$32*'CDS assumptions'!$M$49) -> 0 | G56: =-G$3*G$4*'CDS assumptions'!$I$5*('CDS assumptions'!$D$31+'CDS assumptions'!$D$32*'CDS assumptions'!$M$49) -> 0 | H56: =-H$3*H$4*'CDS assumptions'!$I$5*('CDS assumptions'!$D$31+'CDS assumptions'!$D$32*'CDS assumptions'!$M$49) -> 0 | I56: =-I$3*I$4*'CDS assumptions'!$I$5*('CDS assumptions'!$D$31+'CDS assumptions'!$D$32*'CDS assumptions'!$M$49) -> 0 | J56: =-J$3*J$4*'CDS assumptions'!$I$5*('CDS assumptions'!$D$31+'CDS assumptions'!$D$32*'CDS assumptions'!$M$49) -> 0 | K56: =-K$3*K$4*'CDS assumptions'!$I$5*('CDS assumptions'!$D$31+'CDS assumptions'!$D$32*'CDS assumptions'!$M$49) -> 0 | L56: =-L$3*L$4*'CDS assumptions'!$I$5*('CDS assumptions'!$D$31+'CDS assumptions'!$D$32*'CDS assumptions'!$M$49) -> 0 | M56: =-M$3*M$4*'CDS assumptions'!$I$5*('CDS assumptions'!$D$31+'CDS assumptions'!$D$32*'CDS assumptions'!$M$49) -> 0 | N56: =-N$3*N$4*'CDS assumptions'!$I$5*('CDS assumptions'!$D$31+'CDS assumptions'!$D$32*'CDS assumptions'!$M$49) -> 0 | O56: =-O$3*O$4*'CDS assumptions'!$I$5*('CDS assumptions'!$D$31+'CDS assumptions'!$D$32*'CDS assumptions'!$M$49) -> 0 | P56: =-P$3*P$4*'CDS assumptions'!$I$5*('CDS assumptions'!$D$31+'CDS assumptions'!$D$32*'CDS assumptions'!$M$49) -> 0 | Q56: =-Q$3*Q$4*'CDS assumptions'!$I$5*('CDS assumptions'!$D$31+'CDS assumptions'!$D$32*'CDS assumptions'!$M$49) -> 0 | R56: =-R$3*R$4*'CDS assumptions'!$I$5*('CDS assumptions'!$D$31+'CDS assumptions'!$D$32*'CDS assumptions'!$M$49) -> 0 | S56: =-S$3*S$4*'CDS assumptions'!$I$5*('CDS assumptions'!$D$31+'CDS assumptions'!$D$32*'CDS assumptions'!$M$49) -> 0 | T56: =-T$3*T$4*'CDS assumptions'!$I$5*('CDS assumptions'!$D$31+'CDS assumptions'!$D$32*'CDS assumptions'!$M$49) -> 0 | U56: =-U$3*U$4*'CDS assumptions'!$I$5*('CDS assumptions'!$D$31+'CDS assumptions'!$D$32*'CDS assumptions'!$M$49) -> 0 | V56: =-V$3*V$4*'CDS assumptions'!$I$5*('CDS assumptions'!$D$31+'CDS assumptions'!$D$32*'CDS assumptions'!$M$49) -> 0 | W56: =-W$3*W$4*'CDS assumptions'!$I$5*('CDS assumptions'!$D$31+'CDS assumptions'!$D$32*'CDS assumptions'!$M$49) -> 0 | X56: =-X$3*X$4*'CDS assumptions'!$I$5*('CDS assumptions'!$D$31+'CDS assumptions'!$D$32*'CDS assumptions'!$M$49) -> 0 | Y56: =-Y$3*Y$4*'CDS assumptions'!$I$5*('CDS assumptions'!$D$31+'CDS assumptions'!$D$32*'CDS assumptions'!$M$49) -> 0 | Z56: =-Z$3*Z$4*'CDS assumptions'!$I$5*('CDS assumptions'!$D$31+'CDS assumptions'!$D$32*'CDS assumptions'!$M$49) -> 0 | AA56: =-AA$3*AA$4*'CDS assumptions'!$I$5*('CDS assumptions'!$D$31+'CDS assumptions'!$D$32*'CDS assumptions'!$M$49) -> 0 | AB56: =-AB$3*AB$4*'CDS assumptions'!$I$5*('CDS assumptions'!$D$31+'CDS assumptions'!$D$32*'CDS assumptions'!$M$49) -> 0 | AC56: =-AC$3*AC$4*'CDS assumptions'!$I$5*('CDS assumptions'!$D$31+'CDS assumptions'!$D$32*'CDS assumptions'!$M$49) -> 0 | AD56: =-AD$3*AD$4*'CDS assumptions'!$I$5*('CDS assumptions'!$D$31+'CDS assumptions'!$D$32*'CDS assumptions'!$M$49) -> 0 | AE56: =-AE$3*AE$4*'CDS assumptions'!$I$5*('CDS assumptions'!$D$31+'CDS assumptions'!$D$32*'CDS assumptions'!$M$49) -> 0 | AF56: =-AF$3*AF$4*'CDS assumptions'!$I$5*('CDS assumptions'!$D$31+'CDS assumptions'!$D$32*'CDS assumptions'!$M$49) -> 0 | AG56: =-AG$3*AG$4*'CDS assumptions'!$I$5*('CDS assumptions'!$D$31+'CDS assumptions'!$D$32*'CDS assumptions'!$M$49) -> 0 | AH56: =-AH$3*AH$4*'CDS assumptions'!$I$5*('CDS assumptions'!$D$31+'CDS assumptions'!$D$32*'CDS assumptions'!$M$49) -> 0 | AI56: =-AI$3*AI$4*'CDS assumptions'!$I$5*('CDS assumptions'!$D$31+'CDS assumptions'!$D$32*'CDS assumptions'!$M$49) -> 0
C57: Total costs | D57: $m | F57: =SUM(F49:F56) -> -5.0625 | G57: =SUM(G49:G56) -> -5.0625 | H57: -7.16639 | I57: -7.16639 | J57: -7.16639 | K57: -7.16639 | L57: -7.16639 | M57: -7.16639 | N57: -7.16639 | O57: -7.16639 | P57: -7.16639 | Q57: -7.16639 | R57: -7.16639 | S57: -7.16639 | T57: -7.16639 | U57: -7.16639 | V57: -7.16639 | W57: -7.16639 | X57: -7.16639 | Y57: -7.16639 | Z57: -7.16639 | AA57: -7.16639 | AB57: -7.16639 | AC57: -7.16639 | AD57: -7.16639 | AE57: -7.16639 | AF57: -7.16639 | AG57: -7.16639 | AH57: -7.16639 | AI57: -7.16639
B59: Financial metrics
C60: Net revenue | D60: $m | F60: =IF(F2<'Cost assumptions'!$E$3+'Cost assumptions'!$E$4,F46+F57,0) -> -5.0625 | G60: =IF(G2<'Cost assumptions'!$E$3+'Cost assumptions'!$E$4,G46+G57,0) -> -5.0625 | H60: =IF(H2<'Cost assumptions'!$E$3+'Cost assumptions'!$E$4,H46+H57,0) -> 4.351392 | I60: =IF(I2<'Cost assumptions'!$E$3+'Cost assumptions'!$E$4,I46+I57,0) -> 4.351392 | J60: =IF(J2<'Cost assumptions'!$E$3+'Cost assumptions'!$E$4,J46+J57,0) -> 4.351392 | K60: =IF(K2<'Cost assumptions'!$E$3+'Cost assumptions'!$E$4,K46+K57,0) -> 4.351392 | L60: =IF(L2<'Cost assumptions'!$E$3+'Cost assumptions'!$E$4,L46+L57,0) -> 4.351392 | M60: =IF(M2<'Cost assumptions'!$E$3+'Cost assumptions'!$E$4,M46+M57,0) -> 4.351392 | N60: =IF(N2<'Cost assumptions'!$E$3+'Cost assumptions'!$E$4,N46+N57,0) -> 4.351392 | O60: =IF(O2<'Cost assumptions'!$E$3+'Cost assumptions'!$E$4,O46+O57,0) -> 4.351392 | P60: =IF(P2<'Cost assumptions'!$E$3+'Cost assumptions'!$E$4,P46+P57,0) -> 4.351392 | Q60: =IF(Q2<'Cost assumptions'!$E$3+'Cost assumptions'!$E$4,Q46+Q57,0) -> 4.351392 | R60: =IF(R2<'Cost assumptions'!$E$3+'Cost assumptions'!$E$4,R46+R57,0) -> 4.351392 | S60: =IF(S2<'Cost assumptions'!$E$3+'Cost assumptions'!$E$4,S46+S57,0) -> 4.351392 | T60: =IF(T2<'Cost assumptions'!$E$3+'Cost assumptions'!$E$4,T46+T57,0) -> 0 | U60: =IF(U2<'Cost assumptions'!$E$3+'Cost assumptions'!$E$4,U46+U57,0) -> 0 | V60: =IF(V2<'Cost assumptions'!$E$3+'Cost assumptions'!$E$4,V46+V57,0) -> 0 | W60: =IF(W2<'Cost assumptions'!$E$3+'Cost assumptions'!$E$4,W46+W57,0) -> 0 | X60: =IF(X2<'Cost assumptions'!$E$3+'Cost assumptions'!$E$4,X46+X57,0) -> 0 | Y60: =IF(Y2<'Cost assumptions'!$E$3+'Cost assumptions'!$E$4,Y46+Y57,0) -> 0 | Z60: =IF(Z2<'Cost assumptions'!$E$3+'Cost assumptions'!$E$4,Z46+Z57,0) -> 0 | AA60: =IF(AA2<'Cost assumptions'!$E$3+'Cost assumptions'!$E$4,AA46+AA57,0) -> 0 | AB60: =IF(AB2<'Cost assumptions'!$E$3+'Cost assumptions'!$E$4,AB46+AB57,0) -> 0 | AC60: =IF(AC2<'Cost assumptions'!$E$3+'Cost assumptions'!$E$4,AC46+AC57,0) -> 0 | AD60: =IF(AD2<'Cost assumptions'!$E$3+'Cost assumptions'!$E$4,AD46+AD57,0) -> 0 | AE60: =IF(AE2<'Cost assumptions'!$E$3+'Cost assumptions'!$E$4,AE46+AE57,0) -> 0 | AF60: =IF(AF2<'Cost assumptions'!$E$3+'Cost assumptions'!$E$4,AF46+AF57,0) -> 0 | AG60: =IF(AG2<'Cost assumptions'!$E$3+'Cost assumptions'!$E$4,AG46+AG57,0) -> 0 | AH60: =IF(AH2<'Cost assumptions'!$E$3+'Cost assumptions'!$E$4,AH46+AH57,0) -> 0 | AI60: =IF(AI2<'Cost assumptions'!$E$3+'Cost assumptions'!$E$4,AI46+AI57,0) -> 0
C61: Internal rate of return | D61: Per cent | F61: =IRR(F60:AI60,7%) -> 0.3554262684
C62: Net profit | D62: $m, pv | F62: =NPV('Cost assumptions'!$E$5,'CDS case - no revenue share'!F60:AI60) -> 21.03447167
C63: Operating margin (year 10) | D63: Per cent | F63: =(O46+O57)/ABS(O57) -> 0.6071944173
B72: NPV summary | D72: $m, pv
C73: Revenue
C74: Gate fees | D74: =NPV('Cost assumptions'!$E$5,F74:AI74) -> 19.87849933 | F74: =IF(F$2<'Cost assumptions'!$E$3+'Cost assumptions'!$E$4,F8+F9,0) -> 0 | G74: =IF(G$2<'Cost assumptions'!$E$3+'Cost assumptions'!$E$4,G8+G9,0) -> 0 | H74: =IF(H$2<'Cost assumptions'!$E$3+'Cost assumptions'!$E$4,H8+H9,0) -> 2.86539 | I74: =IF(I$2<'Cost assumptions'!$E$3+'Cost assumptions'!$E$4,I8+I9,0) -> 2.86539 | J74: =IF(J$2<'Cost assumptions'!$E$3+'Cost assumptions'!$E$4,J8+J9,0) -> 2.86539 | K74: =IF(K$2<'Cost assumptions'!$E$3+'Cost assumptions'!$E$4,K8+K9,0) -> 2.86539 | L74: =IF(L$2<'Cost assumptions'!$E$3+'Cost assumptions'!$E$4,L8+L9,0) -> 2.86539 | M74: =IF(M$2<'Cost assumptions'!$E$3+'Cost assumptions'!$E$4,M8+M9,0) -> 2.86539 | N74: =IF(N$2<'Cost assumptions'!$E$3+'Cost assumptions'!$E$4,N8+N9,0) -> 2.86539 | O74: =IF(O$2<'Cost assumptions'!$E$3+'Cost assumptions'!$E$4,O8+O9,0) -> 2.86539 | P74: =IF(P$2<'Cost assumptions'!$E$3+'Cost assumptions'!$E$4,P8+P9,0) -> 2.86539 | Q74: =IF(Q$2<'Cost assumptions'!$E$3+'Cost assumptions'!$E$4,Q8+Q9,0) -> 2.86539 | R74: =IF(R$2<'Cost assumptions'!$E$3+'Cost assumptions'!$E$4,R8+R9,0) -> 2.86539 | S74: =IF(S$2<'Cost assumptions'!$E$3+'Cost assumptions'!$E$4,S8+S9,0) -> 2.86539 | T74: =IF(T$2<'Cost assumptions'!$E$3+'Cost assumptions'!$E$4,T8+T9,0) -> 0 | U74: =IF(U$2<'Cost assumptions'!$E$3+'Cost assumptions'!$E$4,U8+U9,0) -> 0 | V74: =IF(V$2<'Cost assumptions'!$E$3+'Cost assumptions'!$E$4,V8+V9,0) -> 0 | W74: =IF(W$2<'Cost assumptions'!$E$3+'Cost assumptions'!$E$4,W8+W9,0) -> 0 | X74: =IF(X$2<'Cost assumptions'!$E$3+'Cost assumptions'!$E$4,X8+X9,0) -> 0 | Y74: =IF(Y$2<'Cost assumptions'!$E$3+'Cost assumptions'!$E$4,Y8+Y9,0) -> 0 | Z74: =IF(Z$2<'Cost assumptions'!$E$3+'Cost assumptions'!$E$4,Z8+Z9,0) -> 0 | AA74: =IF(AA$2<'Cost assumptions'!$E$3+'Cost assumptions'!$E$4,AA8+AA9,0) -> 0 | AB74: =IF(AB$2<'Cost assumptions'!$E$3+'Cost assumptions'!$E$4,AB8+AB9,0) -> 0 | AC74: =IF(AC$2<'Cost assumptions'!$E$3+'Cost assumptions'!$E$4,AC8+AC9,0) -> 0 | AD74: =IF(AD$2<'Cost assumptions'!$E$3+'Cost assumptions'!$E$4,AD8+AD9,0) -> 0 | AE74: =IF(AE$2<'Cost assumptions'!$E$3+'Cost assumptions'!$E$4,AE8+AE9,0) -> 0 | AF74: =IF(AF$2<'Cost assumptions'!$E$3+'Cost assumptions'!$E$4,AF8+AF9,0) -> 0 | AG74: =IF(AG$2<'Cost assumptions'!$E$3+'Cost assumptions'!$E$4,AG8+AG9,0) -> 0 | AH74: =IF(AH$2<'Cost assumptions'!$E$3+'Cost assumptions'!$E$4,AH8+AH9,0) -> 0 | AI74: =IF(AI$2<'Cost assumptions'!$E$3+'Cost assumptions'!$E$4,AI8+AI9,0) -> 0
C75: Sale of outputs | D75: =NPV('Cost assumptions'!$E$5,F75:AI75) -> 9.272817425 | F75: =IF(F$2<'Cost assumptions'!$E$3+'Cost assumptions'!$E$4,SUM(F11:F27),0) -> 0 | G75: =IF(G$2<'Cost assumptions'!$E$3+'Cost assumptions'!$E$4,SUM(G11:G27),0) -> 0 | H75: =IF(H$2<'Cost assumptions'!$E$3+'Cost assumptions'!$E$4,SUM(H11:H27),0) -> 1.336632 | I75: =IF(I$2<'Cost assumptions'!$E$3+'Cost assumptions'!$E$4,SUM(I11:I27),0) -> 1.336632 | J75: =IF(J$2<'Cost assumptions'!$E$3+'Cost assumptions'!$E$4,SUM(J11:J27),0) -> 1.336632 | K75: =IF(K$2<'Cost assumptions'!$E$3+'Cost assumptions'!$E$4,SUM(K11:K27),0) -> 1.336632 | L75: =IF(L$2<'Cost assumptions'!$E$3+'Cost assumptions'!$E$4,SUM(L11:L27),0) -> 1.336632 | M75: =IF(M$2<'Cost assumptions'!$E$3+'Cost assumptions'!$E$4,SUM(M11:M27),0) -> 1.336632 | N75: =IF(N$2<'Cost assumptions'!$E$3+'Cost assumptions'!$E$4,SUM(N11:N27),0) -> 1.336632 | O75: =IF(O$2<'Cost assumptions'!$E$3+'Cost assumptions'!$E$4,SUM(O11:O27),0) -> 1.336632 | P75: =IF(P$2<'Cost assumptions'!$E$3+'Cost assumptions'!$E$4,SUM(P11:P27),0) -> 1.336632 | Q75: =IF(Q$2<'Cost assumptions'!$E$3+'Cost assumptions'!$E$4,SUM(Q11:Q27),0) -> 1.336632 | R75: =IF(R$2<'Cost assumptions'!$E$3+'Cost assumptions'!$E$4,SUM(R11:R27),0) -> 1.336632 | S75: =IF(S$2<'Cost assumptions'!$E$3+'Cost assumptions'!$E$4,SUM(S11:S27),0) -> 1.336632 | T75: =IF(T$2<'Cost assumptions'!$E$3+'Cost assumptions'!$E$4,SUM(T11:T27),0) -> 0 | U75: =IF(U$2<'Cost assumptions'!$E$3+'Cost assumptions'!$E$4,SUM(U11:U27),0) -> 0 | V75: =IF(V$2<'Cost assumptions'!$E$3+'Cost assumptions'!$E$4,SUM(V11:V27),0) -> 0 | W75: =IF(W$2<'Cost assumptions'!$E$3+'Cost assumptions'!$E$4,SUM(W11:W27),0) -> 0 | X75: =IF(X$2<'Cost assumptions'!$E$3+'Cost assumptions'!$E$4,SUM(X11:X27),0) -> 0 | Y75: =IF(Y$2<'Cost assumptions'!$E$3+'Cost assumptions'!$E$4,SUM(Y11:Y27),0) -> 0 | Z75: =IF(Z$2<'Cost assumptions'!$E$3+'Cost assumptions'!$E$4,SUM(Z11:Z27),0) -> 0 | AA75: =IF(AA$2<'Cost assumptions'!$E$3+'Cost assumptions'!$E$4,SUM(AA11:AA27),0) -> 0 | AB75: =IF(AB$2<'Cost assumptions'!$E$3+'Cost assumptions'!$E$4,SUM(AB11:AB27),0) -> 0 | AC75: =IF(AC$2<'Cost assumptions'!$E$3+'Cost assumptions'!$E$4,SUM(AC11:AC27),0) -> 0 | AD75: =IF(AD$2<'Cost assumptions'!$E$3+'Cost assumptions'!$E$4,SUM(AD11:AD27),0) -> 0 | AE75: =IF(AE$2<'Cost assumptions'!$E$3+'Cost assumptions'!$E$4,SUM(AE11:AE27),0) -> 0 | AF75: =IF(AF$2<'Cost assumptions'!$E$3+'Cost assumptions'!$E$4,SUM(AF11:AF27),0) -> 0 | AG75: =IF(AG$2<'Cost assumptions'!$E$3+'Cost assumptions'!$E$4,SUM(AG11:AG27),0) -> 0 | AH75: =IF(AH$2<'Cost assumptions'!$E$3+'Cost assumptions'!$E$4,SUM(AH11:AH27),0) -> 0 | AI75: =IF(AI$2<'Cost assumptions'!$E$3+'Cost assumptions'!$E$4,SUM(AI11:AI27),0) -> 0
C76: CDS refunds | D76: =NPV('Cost assumptions'!$E$5,F76:AI76) -> 50.75271788 | F76: =IF(F$2<'Cost assumptions'!$E$3+'Cost assumptions'!$E$4,SUM(F29:F45),0) -> 0 | G76: =IF(G$2<'Cost assumptions'!$E$3+'Cost assumptions'!$E$4,SUM(G29:G45),0) -> 0 | H76: =IF(H$2<'Cost assumptions'!$E$3+'Cost assumptions'!$E$4,SUM(H29:H45),0) -> 7.31576 | I76: =IF(I$2<'Cost assumptions'!$E$3+'Cost assumptions'!$E$4,SUM(I29:I45),0) -> 7.31576 | J76: =IF(J$2<'Cost assumptions'!$E$3+'Cost assumptions'!$E$4,SUM(J29:J45),0) -> 7.31576 | K76: =IF(K$2<'Cost assumptions'!$E$3+'Cost assumptions'!$E$4,SUM(K29:K45),0) -> 7.31576 | L76: =IF(L$2<'Cost assumptions'!$E$3+'Cost assumptions'!$E$4,SUM(L29:L45),0) -> 7.31576 | M76: =IF(M$2<'Cost assumptions'!$E$3+'Cost assumptions'!$E$4,SUM(M29:M45),0) -> 7.31576 | N76: =IF(N$2<'Cost assumptions'!$E$3+'Cost assumptions'!$E$4,SUM(N29:N45),0) -> 7.31576 | O76: =IF(O$2<'Cost assumptions'!$E$3+'Cost assumptions'!$E$4,SUM(O29:O45),0) -> 7.31576 | P76: =IF(P$2<'Cost assumptions'!$E$3+'Cost assumptions'!$E$4,SUM(P29:P45),0) -> 7.31576 | Q76: =IF(Q$2<'Cost assumptions'!$E$3+'Cost assumptions'!$E$4,SUM(Q29:Q45),0) -> 7.31576 | R76: =IF(R$2<'Cost assumptions'!$E$3+'Cost assumptions'!$E$4,SUM(R29:R45),0) -> 7.31576 | S76: =IF(S$2<'Cost assumptions'!$E$3+'Cost assumptions'!$E$4,SUM(S29:S45),0) -> 7.31576 | T76: =IF(T$2<'Cost assumptions'!$E$3+'Cost assumptions'!$E$4,SUM(T29:T45),0) -> 0 | U76: =IF(U$2<'Cost assumptions'!$E$3+'Cost assumptions'!$E$4,SUM(U29:U45),0) -> 0 | V76: =IF(V$2<'Cost assumptions'!$E$3+'Cost assumptions'!$E$4,SUM(V29:V45),0) -> 0 | W76: =IF(W$2<'Cost assumptions'!$E$3+'Cost assumptions'!$E$4,SUM(W29:W45),0) -> 0 | X76: =IF(X$2<'Cost assumptions'!$E$3+'Cost assumptions'!$E$4,SUM(X29:X45),0) -> 0 | Y76: =IF(Y$2<'Cost assumptions'!$E$3+'Cost assumptions'!$E$4,SUM(Y29:Y45),0) -> 0 | Z76: =IF(Z$2<'Cost assumptions'!$E$3+'Cost assumptions'!$E$4,SUM(Z29:Z45),0) -> 0 | AA76: =IF(AA$2<'Cost assumptions'!$E$3+'Cost assumptions'!$E$4,SUM(AA29:AA45),0) -> 0 | AB76: =IF(AB$2<'Cost assumptions'!$E$3+'Cost assumptions'!$E$4,SUM(AB29:AB45),0) -> 0 | AC76: =IF(AC$2<'Cost assumptions'!$E$3+'Cost assumptions'!$E$4,SUM(AC29:AC45),0) -> 0 | AD76: =IF(AD$2<'Cost assumptions'!$E$3+'Cost assumptions'!$E$4,SUM(AD29:AD45),0) -> 0 | AE76: =IF(AE$2<'Cost assumptions'!$E$3+'Cost assumptions'!$E$4,SUM(AE29:AE45),0) -> 0 | AF76: =IF(AF$2<'Cost assumptions'!$E$3+'Cost assumptions'!$E$4,SUM(AF29:AF45),0) -> 0 | AG76: =IF(AG$2<'Cost assumptions'!$E$3+'Cost assumptions'!$E$4,SUM(AG29:AG45),0) -> 0 | AH76: =IF(AH$2<'Cost assumptions'!$E$3+'Cost assumptions'!$E$4,SUM(AH29:AH45),0) -> 0 | AI76: =IF(AI$2<'Cost assumptions'!$E$3+'Cost assumptions'!$E$4,SUM(AI29:AI45),0) -> 0
C77: Costs
C78: Capital costs | D78: =NPV('Cost assumptions'!$E$5,F78:AI78) -> -9.153091973 | F78: =IF(F$2<'Cost assumptions'!$E$3+'Cost assumptions'!$E$4,F49,0) -> -5.0625 | G78: =IF(G$2<'Cost assumptions'!$E$3+'Cost assumptions'!$E$4,G49,0) -> -5.0625 | H78: =IF(H$2<'Cost assumptions'!$E$3+'Cost assumptions'!$E$4,H49,0) -> 0 | I78: =IF(I$2<'Cost assumptions'!$E$3+'Cost assumptions'!$E$4,I49,0) -> 0 | J78: =IF(J$2<'Cost assumptions'!$E$3+'Cost assumptions'!$E$4,J49,0) -> 0 | K78: =IF(K$2<'Cost assumptions'!$E$3+'Cost assumptions'!$E$4,K49,0) -> 0 | L78: =IF(L$2<'Cost assumptions'!$E$3+'Cost assumptions'!$E$4,L49,0) -> 0 | M78: =IF(M$2<'Cost assumptions'!$E$3+'Cost assumptions'!$E$4,M49,0) -> 0 | N78: =IF(N$2<'Cost assumptions'!$E$3+'Cost assumptions'!$E$4,N49,0) -> 0 | O78: =IF(O$2<'Cost assumptions'!$E$3+'Cost assumptions'!$E$4,O49,0) -> 0 | P78: =IF(P$2<'Cost assumptions'!$E$3+'Cost assumptions'!$E$4,P49,0) -> 0 | Q78: =IF(Q$2<'Cost assumptions'!$E$3+'Cost assumptions'!$E$4,Q49,0) -> 0 | R78: =IF(R$2<'Cost assumptions'!$E$3+'Cost assumptions'!$E$4,R49,0) -> 0 | S78: =IF(S$2<'Cost assumptions'!$E$3+'Cost assumptions'!$E$4,S49,0) -> 0 | T78: =IF(T$2<'Cost assumptions'!$E$3+'Cost assumptions'!$E$4,T49,0) -> 0 | U78: =IF(U$2<'Cost assumptions'!$E$3+'Cost assumptions'!$E$4,U49,0) -> 0 | V78: =IF(V$2<'Cost assumptions'!$E$3+'Cost assumptions'!$E$4,V49,0) -> 0 | W78: =IF(W$2<'Cost assumptions'!$E$3+'Cost assumptions'!$E$4,W49,0) -> 0 | X78: =IF(X$2<'Cost assumptions'!$E$3+'Cost assumptions'!$E$4,X49,0) -> 0 | Y78: =IF(Y$2<'Cost assumptions'!$E$3+'Cost assumptions'!$E$4,Y49,0) -> 0 | Z78: =IF(Z$2<'Cost assumptions'!$E$3+'Cost assumptions'!$E$4,Z49,0) -> 0 | AA78: =IF(AA$2<'Cost assumptions'!$E$3+'Cost assumptions'!$E$4,AA49,0) -> 0 | AB78: =IF(AB$2<'Cost assumptions'!$E$3+'Cost assumptions'!$E$4,AB49,0) -> 0 | AC78: =IF(AC$2<'Cost assumptions'!$E$3+'Cost assumptions'!$E$4,AC49,0) -> 0 | AD78: =IF(AD$2<'Cost assumptions'!$E$3+'Cost assumptions'!$E$4,AD49,0) -> 0 | AE78: =IF(AE$2<'Cost assumptions'!$E$3+'Cost assumptions'!$E$4,AE49,0) -> 0 | AF78: =IF(AF$2<'Cost assumptions'!$E$3+'Cost assumptions'!$E$4,AF49,0) -> 0 | AG78: =IF(AG$2<'Cost assumptions'!$E$3+'Cost assumptions'!$E$4,AG49,0) -> 0 | AH78: =IF(AH$2<'Cost assumptions'!$E$3+'Cost assumptions'!$E$4,AH49,0) -> 0 | AI78: =IF(AI$2<'Cost assumptions'!$E$3+'Cost assumptions'!$E$4,AI49,0) -> 0
C79: Operating costs | D79: =NPV('Cost assumptions'!$E$5,F79:AI79) -> -40.69084879 | F79: =IF(F$2<'Cost assumptions'!$E$3+'Cost assumptions'!$E$4,F51+F52,0) -> 0 | G79: =IF(G$2<'Cost assumptions'!$E$3+'Cost assumptions'!$E$4,G51+G52,0) -> 0 | H79: =IF(H$2<'Cost assumptions'!$E$3+'Cost assumptions'!$E$4,H51+H52,0) -> -5.86539 | I79: =IF(I$2<'Cost assumptions'!$E$3+'Cost assumptions'!$E$4,I51+I52,0) -> -5.86539 | J79: =IF(J$2<'Cost assumptions'!$E$3+'Cost assumptions'!$E$4,J51+J52,0) -> -5.86539 | K79: =IF(K$2<'Cost assumptions'!$E$3+'Cost assumptions'!$E$4,K51+K52,0) -> -5.86539 | L79: =IF(L$2<'Cost assumptions'!$E$3+'Cost assumptions'!$E$4,L51+L52,0) -> -5.86539 | M79: =IF(M$2<'Cost assumptions'!$E$3+'Cost assumptions'!$E$4,M51+M52,0) -> -5.86539 | N79: =IF(N$2<'Cost assumptions'!$E$3+'Cost assumptions'!$E$4,N51+N52,0) -> -5.86539 | O79: =IF(O$2<'Cost assumptions'!$E$3+'Cost assumptions'!$E$4,O51+O52,0) -> -5.86539 | P79: =IF(P$2<'Cost assumptions'!$E$3+'Cost assumptions'!$E$4,P51+P52,0) -> -5.86539 | Q79: =IF(Q$2<'Cost assumptions'!$E$3+'Cost assumptions'!$E$4,Q51+Q52,0) -> -5.86539 | R79: =IF(R$2<'Cost assumptions'!$E$3+'Cost assumptions'!$E$4,R51+R52,0) -> -5.86539 | S79: =IF(S$2<'Cost assumptions'!$E$3+'Cost assumptions'!$E$4,S51+S52,0) -> -5.86539 | T79: =IF(T$2<'Cost assumptions'!$E$3+'Cost assumptions'!$E$4,T51+T52,0) -> 0 | U79: =IF(U$2<'Cost assumptions'!$E$3+'Cost assumptions'!$E$4,U51+U52,0) -> 0 | V79: =IF(V$2<'Cost assumptions'!$E$3+'Cost assumptions'!$E$4,V51+V52,0) -> 0 | W79: =IF(W$2<'Cost assumptions'!$E$3+'Cost assumptions'!$E$4,W51+W52,0) -> 0 | X79: =IF(X$2<'Cost assumptions'!$E$3+'Cost assumptions'!$E$4,X51+X52,0) -> 0 | Y79: =IF(Y$2<'Cost assumptions'!$E$3+'Cost assumptions'!$E$4,Y51+Y52,0) -> 0 | Z79: =IF(Z$2<'Cost assumptions'!$E$3+'Cost assumptions'!$E$4,Z51+Z52,0) -> 0 | AA79: =IF(AA$2<'Cost assumptions'!$E$3+'Cost assumptions'!$E$4,AA51+AA52,0) -> 0 | AB79: =IF(AB$2<'Cost assumptions'!$E$3+'Cost assumptions'!$E$4,AB51+AB52,0) -> 0 | AC79: =IF(AC$2<'Cost assumptions'!$E$3+'Cost assumptions'!$E$4,AC51+AC52,0) -> 0 | AD79: =IF(AD$2<'Cost assumptions'!$E$3+'Cost assumptions'!$E$4,AD51+AD52,0) -> 0 | AE79: =IF(AE$2<'Cost assumptions'!$E$3+'Cost assumptions'!$E$4,AE51+AE52,0) -> 0 | AF79: =IF(AF$2<'Cost assumptions'!$E$3+'Cost assumptions'!$E$4,AF51+AF52,0) -> 0 | AG79: =IF(AG$2<'Cost assumptions'!$E$3+'Cost assumptions'!$E$4,AG51+AG52,0) -> 0 | AH79: =IF(AH$2<'Cost assumptions'!$E$3+'Cost assumptions'!$E$4,AH51+AH52,0) -> 0 | AI79: =IF(AI$2<'Cost assumptions'!$E$3+'Cost assumptions'!$E$4,AI51+AI52,0) -> 0
C80: Disposal costs | D80: =NPV('Cost assumptions'!$E$5,F80:AI80) -> -8.075191588 | F80: =IF(F$2<'Cost assumptions'!$E$3+'Cost assumptions'!$E$4,F53,0) -> 0 | G80: =IF(G$2<'Cost assumptions'!$E$3+'Cost assumptions'!$E$4,G53,0) -> 0 | H80: =IF(H$2<'Cost assumptions'!$E$3+'Cost assumptions'!$E$4,H53,0) -> -1.164 | I80: =IF(I$2<'Cost assumptions'!$E$3+'Cost assumptions'!$E$4,I53,0) -> -1.164 | J80: =IF(J$2<'Cost assumptions'!$E$3+'Cost assumptions'!$E$4,J53,0) -> -1.164 | K80: =IF(K$2<'Cost assumptions'!$E$3+'Cost assumptions'!$E$4,K53,0) -> -1.164 | L80: =IF(L$2<'Cost assumptions'!$E$3+'Cost assumptions'!$E$4,L53,0) -> -1.164 | M80: =IF(M$2<'Cost assumptions'!$E$3+'Cost assumptions'!$E$4,M53,0) -> -1.164 | N80: =IF(N$2<'Cost assumptions'!$E$3+'Cost assumptions'!$E$4,N53,0) -> -1.164 | O80: =IF(O$2<'Cost assumptions'!$E$3+'Cost assumptions'!$E$4,O53,0) -> -1.164 | P80: =IF(P$2<'Cost assumptions'!$E$3+'Cost assumptions'!$E$4,P53,0) -> -1.164 | Q80: =IF(Q$2<'Cost assumptions'!$E$3+'Cost assumptions'!$E$4,Q53,0) -> -1.164 | R80: =IF(R$2<'Cost assumptions'!$E$3+'Cost assumptions'!$E$4,R53,0) -> -1.164 | S80: =IF(S$2<'Cost assumptions'!$E$3+'Cost assumptions'!$E$4,S53,0) -> -1.164 | T80: =IF(T$2<'Cost assumptions'!$E$3+'Cost assumptions'!$E$4,T53,0) -> 0 | U80: =IF(U$2<'Cost assumptions'!$E$3+'Cost assumptions'!$E$4,U53,0) -> 0 | V80: =IF(V$2<'Cost assumptions'!$E$3+'Cost assumptions'!$E$4,V53,0) -> 0 | W80: =IF(W$2<'Cost assumptions'!$E$3+'Cost assumptions'!$E$4,W53,0) -> 0 | X80: =IF(X$2<'Cost assumptions'!$E$3+'Cost assumptions'!$E$4,X53,0) -> 0 | Y80: =IF(Y$2<'Cost assumptions'!$E$3+'Cost assumptions'!$E$4,Y53,0) -> 0 | Z80: =IF(Z$2<'Cost assumptions'!$E$3+'Cost assumptions'!$E$4,Z53,0) -> 0 | AA80: =IF(AA$2<'Cost assumptions'!$E$3+'Cost assumptions'!$E$4,AA53,0) -> 0 | AB80: =IF(AB$2<'Cost assumptions'!$E$3+'Cost assumptions'!$E$4,AB53,0) -> 0 | AC80: =IF(AC$2<'Cost assumptions'!$E$3+'Cost assumptions'!$E$4,AC53,0) -> 0 | AD80: =IF(AD$2<'Cost assumptions'!$E$3+'Cost assumptions'!$E$4,AD53,0) -> 0 | AE80: =IF(AE$2<'Cost assumptions'!$E$3+'Cost assumptions'!$E$4,AE53,0) -> 0 | AF80: =IF(AF$2<'Cost assumptions'!$E$3+'Cost assumptions'!$E$4,AF53,0) -> 0 | AG80: =IF(AG$2<'Cost assumptions'!$E$3+'Cost assumptions'!$E$4,AG53,0) -> 0 | AH80: =IF(AH$2<'Cost assumptions'!$E$3+'Cost assumptions'!$E$4,AH53,0) -> 0 | AI80: =IF(AI$2<'Cost assumptions'!$E$3+'Cost assumptions'!$E$4,AI53,0) -> 0
C81: CDS costs | D81: =NPV('Cost assumptions'!$E$5,F81:AI81) -> -0.9504306251 | F81: =IF(F$2<'Cost assumptions'!$E$3+'Cost assumptions'!$E$4,F54+F55+F56,0) -> 0 | G81: =IF(G$2<'Cost assumptions'!$E$3+'Cost assumptions'!$E$4,G54+G55+G56,0) -> 0 | H81: =IF(H$2<'Cost assumptions'!$E$3+'Cost assumptions'!$E$4,H54+H55+H56,0) -> -0.137 | I81: =IF(I$2<'Cost assumptions'!$E$3+'Cost assumptions'!$E$4,I54+I55+I56,0) -> -0.137 | J81: =IF(J$2<'Cost assumptions'!$E$3+'Cost assumptions'!$E$4,J54+J55+J56,0) -> -0.137 | K81: =IF(K$2<'Cost assumptions'!$E$3+'Cost assumptions'!$E$4,K54+K55+K56,0) -> -0.137 | L81: =IF(L$2<'Cost assumptions'!$E$3+'Cost assumptions'!$E$4,L54+L55+L56,0) -> -0.137 | M81: =IF(M$2<'Cost assumptions'!$E$3+'Cost assumptions'!$E$4,M54+M55+M56,0) -> -0.137 | N81: =IF(N$2<'Cost assumptions'!$E$3+'Cost assumptions'!$E$4,N54+N55+N56,0) -> -0.137 | O81: =IF(O$2<'Cost assumptions'!$E$3+'Cost assumptions'!$E$4,O54+O55+O56,0) -> -0.137 | P81: =IF(P$2<'Cost assumptions'!$E$3+'Cost assumptions'!$E$4,P54+P55+P56,0) -> -0.137 | Q81: =IF(Q$2<'Cost assumptions'!$E$3+'Cost assumptions'!$E$4,Q54+Q55+Q56,0) -> -0.137 | R81: =IF(R$2<'Cost assumptions'!$E$3+'Cost assumptions'!$E$4,R54+R55+R56,0) -> -0.137 | S81: =IF(S$2<'Cost assumptions'!$E$3+'Cost assumptions'!$E$4,S54+S55+S56,0) -> -0.137 | T81: =IF(T$2<'Cost assumptions'!$E$3+'Cost assumptions'!$E$4,T54+T55+T56,0) -> 0 | U81: =IF(U$2<'Cost assumptions'!$E$3+'Cost assumptions'!$E$4,U54+U55+U56,0) -> 0 | V81: =IF(V$2<'Cost assumptions'!$E$3+'Cost assumptions'!$E$4,V54+V55+V56,0) -> 0 | W81: =IF(W$2<'Cost assumptions'!$E$3+'Cost assumptions'!$E$4,W54+W55+W56,0) -> 0 | X81: =IF(X$2<'Cost assumptions'!$E$3+'Cost assumptions'!$E$4,X54+X55+X56,0) -> 0 | Y81: =IF(Y$2<'Cost assumptions'!$E$3+'Cost assumptions'!$E$4,Y54+Y55+Y56,0) -> 0 | Z81: =IF(Z$2<'Cost assumptions'!$E$3+'Cost assumptions'!$E$4,Z54+Z55+Z56,0) -> 0 | AA81: =IF(AA$2<'Cost assumptions'!$E$3+'Cost assumptions'!$E$4,AA54+AA55+AA56,0) -> 0 | AB81: =IF(AB$2<'Cost assumptions'!$E$3+'Cost assumptions'!$E$4,AB54+AB55+AB56,0) -> 0 | AC81: =IF(AC$2<'Cost assumptions'!$E$3+'Cost assumptions'!$E$4,AC54+AC55+AC56,0) -> 0 | AD81: =IF(AD$2<'Cost assumptions'!$E$3+'Cost assumptions'!$E$4,AD54+AD55+AD56,0) -> 0 | AE81: =IF(AE$2<'Cost assumptions'!$E$3+'Cost assumptions'!$E$4,AE54+AE55+AE56,0) -> 0 | AF81: =IF(AF$2<'Cost assumptions'!$E$3+'Cost assumptions'!$E$4,AF54+AF55+AF56,0) -> 0 | AG81: =IF(AG$2<'Cost assumptions'!$E$3+'Cost assumptions'!$E$4,AG54+AG55+AG56,0) -> 0 | AH81: =IF(AH$2<'Cost assumptions'!$E$3+'Cost assumptions'!$E$4,AH54+AH55+AH56,0) -> 0 | AI81: =IF(AI$2<'Cost assumptions'!$E$3+'Cost assumptions'!$E$4,AI54+AI55+AI56,0) -> 0
C82: Check | F82: =SUM(F74:F81)-F60 -> 0 | G82: =SUM(G74:G81)-G60 -> 0 | H82: 0 | I82: 0 | J82: 0 | K82: 0 | L82: 0 | M82: 0 | N82: 0 | O82: 0 | P82: 0 | Q82: 0 | R82: 0 | S82: 0 | T82: 0 | U82: 0 | V82: 0 | W82: 0 | X82: 0 | Y82: 0 | Z82: 0 | AA82: 0 | AB82: 0 | AC82: 0 | AD82: 0 | AE82: 0 | AF82: 0 | AG82: 0 | AH82: 0 | AI82: 0
B84: Comemrcial neutrality calculations
C86: Revenue
C87: Gate fees | D87: $m | F87: =SUM(F9) -> 0 | G87: =SUM(G9) -> 0 | H87: 0 | I87: 0 | J87: 0 | K87: 0 | L87: 0 | M87: 0 | N87: 0 | O87: 0 | P87: 0 | Q87: 0 | R87: 0 | S87: 0 | T87: 0 | U87: 0 | V87: 0 | W87: 0 | X87: 0 | Y87: 0 | Z87: 0 | AA87: 0 | AB87: 0 | AC87: 0 | AD87: 0 | AE87: 0 | AF87: 0 | AG87: 0 | AH87: 0 | AI87: 0
C88: Product sales | D88: $m | F88: =SUM(F20:F27) -> 0 | G88: =SUM(G20:G27) -> 0 | H88: 0 | I88: 0 | J88: 0 | K88: 0 | L88: 0 | M88: 0 | N88: 0 | O88: 0 | P88: 0 | Q88: 0 | R88: 0 | S88: 0 | T88: 0 | U88: 0 | V88: 0 | W88: 0 | X88: 0 | Y88: 0 | Z88: 0 | AA88: 0 | AB88: 0 | AC88: 0 | AD88: 0 | AE88: 0 | AF88: 0 | AG88: 0 | AH88: 0 | AI88: 0
C89: CDS | D89: $m | F89: =SUM(F38:F45) -> 0 | G89: =SUM(G38:G45) -> 0 | H89: 0 | I89: 0 | J89: 0 | K89: 0 | L89: 0 | M89: 0 | N89: 0 | O89: 0 | P89: 0 | Q89: 0 | R89: 0 | S89: 0 | T89: 0 | U89: 0 | V89: 0 | W89: 0 | X89: 0 | Y89: 0 | Z89: 0 | AA89: 0 | AB89: 0 | AC89: 0 | AD89: 0 | AE89: 0 | AF89: 0 | AG89: 0 | AH89: 0 | AI89: 0
C91: Costs
C92: Operating costs | D92: $m | F92: =F52*((1-F$3)*'Revenue assumptions'!$D$6+F$3*'CDS assumptions'!$I$5) -> 0 | G92: =G52*((1-G$3)*'Revenue assumptions'!$D$6+G$3*'CDS assumptions'!$I$5) -> 0 | H92: =H52*((1-H$3)*'Revenue assumptions'!$D$6+H$3*'CDS assumptions'!$I$5) -> 0 | I92: =I52*((1-I$3)*'Revenue assumptions'!$D$6+I$3*'CDS assumptions'!$I$5) -> 0 | J92: =J52*((1-J$3)*'Revenue assumptions'!$D$6+J$3*'CDS assumptions'!$I$5) -> 0 | K92: =K52*((1-K$3)*'Revenue assumptions'!$D$6+K$3*'CDS assumptions'!$I$5) -> 0 | L92: =L52*((1-L$3)*'Revenue assumptions'!$D$6+L$3*'CDS assumptions'!$I$5) -> 0 | M92: =M52*((1-M$3)*'Revenue assumptions'!$D$6+M$3*'CDS assumptions'!$I$5) -> 0 | N92: =N52*((1-N$3)*'Revenue assumptions'!$D$6+N$3*'CDS assumptions'!$I$5) -> 0 | O92: =O52*((1-O$3)*'Revenue assumptions'!$D$6+O$3*'CDS assumptions'!$I$5) -> 0 | P92: =P52*((1-P$3)*'Revenue assumptions'!$D$6+P$3*'CDS assumptions'!$I$5) -> 0 | Q92: =Q52*((1-Q$3)*'Revenue assumptions'!$D$6+Q$3*'CDS assumptions'!$I$5) -> 0 | R92: =R52*((1-R$3)*'Revenue assumptions'!$D$6+R$3*'CDS assumptions'!$I$5) -> 0 | S92: =S52*((1-S$3)*'Revenue assumptions'!$D$6+S$3*'CDS assumptions'!$I$5) -> 0 | T92: =T52*((1-T$3)*'Revenue assumptions'!$D$6+T$3*'CDS assumptions'!$I$5) -> 0 | U92: =U52*((1-U$3)*'Revenue assumptions'!$D$6+U$3*'CDS assumptions'!$I$5) -> 0 | V92: =V52*((1-V$3)*'Revenue assumptions'!$D$6+V$3*'CDS assumptions'!$I$5) -> 0 | W92: =W52*((1-W$3)*'Revenue assumptions'!$D$6+W$3*'CDS assumptions'!$I$5) -> 0 | X92: =X52*((1-X$3)*'Revenue assumptions'!$D$6+X$3*'CDS assumptions'!$I$5) -> 0 | Y92: =Y52*((1-Y$3)*'Revenue assumptions'!$D$6+Y$3*'CDS assumptions'!$I$5) -> 0 | Z92: =Z52*((1-Z$3)*'Revenue assumptions'!$D$6+Z$3*'CDS assumptions'!$I$5) -> 0 | AA92: =AA52*((1-AA$3)*'Revenue assumptions'!$D$6+AA$3*'CDS assumptions'!$I$5) -> 0 | AB92: =AB52*((1-AB$3)*'Revenue assumptions'!$D$6+AB$3*'CDS assumptions'!$I$5) -> 0 | AC92: =AC52*((1-AC$3)*'Revenue assumptions'!$D$6+AC$3*'CDS assumptions'!$I$5) -> 0 | AD92: =AD52*((1-AD$3)*'Revenue assumptions'!$D$6+AD$3*'CDS assumptions'!$I$5) -> 0 | AE92: =AE52*((1-AE$3)*'Revenue assumptions'!$D$6+AE$3*'CDS assumptions'!$I$5) -> 0 | AF92: =AF52*((1-AF$3)*'Revenue assumptions'!$D$6+AF$3*'CDS assumptions'!$I$5) -> 0 | AG92: =AG52*((1-AG$3)*'Revenue assumptions'!$D$6+AG$3*'CDS assumptions'!$I$5) -> 0 | AH92: =AH52*((1-AH$3)*'Revenue assumptions'!$D$6+AH$3*'CDS assumptions'!$I$5) -> 0 | AI92: =AI52*((1-AI$3)*'Revenue assumptions'!$D$6+AI$3*'CDS assumptions'!$I$5) -> 0
C93: Disposal costs | D93: $m | F93: =F53*((1-F$3)*'Revenue assumptions'!$E$6+F$3*'CDS assumptions'!$J$5) -> 0 | G93: =G53*((1-G$3)*'Revenue assumptions'!$E$6+G$3*'CDS assumptions'!$J$5) -> 0 | H93: =H53*((1-H$3)*'Revenue assumptions'!$E$6+H$3*'CDS assumptions'!$J$5) -> 0 | I93: =I53*((1-I$3)*'Revenue assumptions'!$E$6+I$3*'CDS assumptions'!$J$5) -> 0 | J93: =J53*((1-J$3)*'Revenue assumptions'!$E$6+J$3*'CDS assumptions'!$J$5) -> 0 | K93: =K53*((1-K$3)*'Revenue assumptions'!$E$6+K$3*'CDS assumptions'!$J$5) -> 0 | L93: =L53*((1-L$3)*'Revenue assumptions'!$E$6+L$3*'CDS assumptions'!$J$5) -> 0 | M93: =M53*((1-M$3)*'Revenue assumptions'!$E$6+M$3*'CDS assumptions'!$J$5) -> 0 | N93: =N53*((1-N$3)*'Revenue assumptions'!$E$6+N$3*'CDS assumptions'!$J$5) -> 0 | O93: =O53*((1-O$3)*'Revenue assumptions'!$E$6+O$3*'CDS assumptions'!$J$5) -> 0 | P93: =P53*((1-P$3)*'Revenue assumptions'!$E$6+P$3*'CDS assumptions'!$J$5) -> 0 | Q93: =Q53*((1-Q$3)*'Revenue assumptions'!$E$6+Q$3*'CDS assumptions'!$J$5) -> 0 | R93: =R53*((1-R$3)*'Revenue assumptions'!$E$6+R$3*'CDS assumptions'!$J$5) -> 0 | S93: =S53*((1-S$3)*'Revenue assumptions'!$E$6+S$3*'CDS assumptions'!$J$5) -> 0 | T93: =T53*((1-T$3)*'Revenue assumptions'!$E$6+T$3*'CDS assumptions'!$J$5) -> 0 | U93: =U53*((1-U$3)*'Revenue assumptions'!$E$6+U$3*'CDS assumptions'!$J$5) -> 0 | V93: =V53*((1-V$3)*'Revenue assumptions'!$E$6+V$3*'CDS assumptions'!$J$5) -> 0 | W93: =W53*((1-W$3)*'Revenue assumptions'!$E$6+W$3*'CDS assumptions'!$J$5) -> 0 | X93: =X53*((1-X$3)*'Revenue assumptions'!$E$6+X$3*'CDS assumptions'!$J$5) -> 0 | Y93: =Y53*((1-Y$3)*'Revenue assumptions'!$E$6+Y$3*'CDS assumptions'!$J$5) -> 0 | Z93: =Z53*((1-Z$3)*'Revenue assumptions'!$E$6+Z$3*'CDS assumptions'!$J$5) -> 0 | AA93: =AA53*((1-AA$3)*'Revenue assumptions'!$E$6+AA$3*'CDS assumptions'!$J$5) -> 0 | AB93: =AB53*((1-AB$3)*'Revenue assumptions'!$E$6+AB$3*'CDS assumptions'!$J$5) -> 0 | AC93: =AC53*((1-AC$3)*'Revenue assumptions'!$E$6+AC$3*'CDS assumptions'!$J$5) -> 0 | AD93: =AD53*((1-AD$3)*'Revenue assumptions'!$E$6+AD$3*'CDS assumptions'!$J$5) -> 0 | AE93: =AE53*((1-AE$3)*'Revenue assumptions'!$E$6+AE$3*'CDS assumptions'!$J$5) -> 0 | AF93: =AF53*((1-AF$3)*'Revenue assumptions'!$E$6+AF$3*'CDS assumptions'!$J$5) -> 0 | AG93: =AG53*((1-AG$3)*'Revenue assumptions'!$E$6+AG$3*'CDS assumptions'!$J$5) -> 0 | AH93: =AH53*((1-AH$3)*'Revenue assumptions'!$E$6+AH$3*'CDS assumptions'!$J$5) -> 0 | AI93: =AI53*((1-AI$3)*'Revenue assumptions'!$E$6+AI$3*'CDS assumptions'!$J$5) -> 0
C94: CDS variable costs | D94: $m | F94: =F56 -> 0 | G94: =G56 -> 0 | H94: 0 | I94: 0 | J94: 0 | K94: 0 | L94: 0 | M94: 0 | N94: 0 | O94: 0 | P94: 0 | Q94: 0 | R94: 0 | S94: 0 | T94: 0 | U94: 0 | V94: 0 | W94: 0 | X94: 0 | Y94: 0 | Z94: 0 | AA94: 0 | AB94: 0 | AC94: 0 | AD94: 0 | AE94: 0 | AF94: 0 | AG94: 0 | AH94: 0 | AI94: 0
D95: $m, pv
C96: Net operating profit (excl fixed operating costs) | D96: =NPV('Cost assumptions'!$E$5,F96:AI96) -> 0 | F96: =IF(F$2<'Cost assumptions'!$E$3+'Cost assumptions'!$E$4,SUM(F87:F94),0) -> 0 | G96: =IF(G$2<'Cost assumptions'!$E$3+'Cost assumptions'!$E$4,SUM(G87:G94),0) -> 0 | H96: =IF(H$2<'Cost assumptions'!$E$3+'Cost assumptions'!$E$4,SUM(H87:H94),0) -> 0 | I96: =IF(I$2<'Cost assumptions'!$E$3+'Cost assumptions'!$E$4,SUM(I87:I94),0) -> 0 | J96: =IF(J$2<'Cost assumptions'!$E$3+'Cost assumptions'!$E$4,SUM(J87:J94),0) -> 0 | K96: =IF(K$2<'Cost assumptions'!$E$3+'Cost assumptions'!$E$4,SUM(K87:K94),0) -> 0 | L96: =IF(L$2<'Cost assumptions'!$E$3+'Cost assumptions'!$E$4,SUM(L87:L94),0) -> 0 | M96: =IF(M$2<'Cost assumptions'!$E$3+'Cost assumptions'!$E$4,SUM(M87:M94),0) -> 0 | N96: =IF(N$2<'Cost assumptions'!$E$3+'Cost assumptions'!$E$4,SUM(N87:N94),0) -> 0 | O96: =IF(O$2<'Cost assumptions'!$E$3+'Cost assumptions'!$E$4,SUM(O87:O94),0) -> 0 | P96: =IF(P$2<'Cost assumptions'!$E$3+'Cost assumptions'!$E$4,SUM(P87:P94),0) -> 0 | Q96: =IF(Q$2<'Cost assumptions'!$E$3+'Cost assumptions'!$E$4,SUM(Q87:Q94),0) -> 0 | R96: =IF(R$2<'Cost assumptions'!$E$3+'Cost assumptions'!$E$4,SUM(R87:R94),0) -> 0 | S96: =IF(S$2<'Cost assumptions'!$E$3+'Cost assumptions'!$E$4,SUM(S87:S94),0) -> 0 | T96: =IF(T$2<'Cost assumptions'!$E$3+'Cost assumptions'!$E$4,SUM(T87:T94),0) -> 0 | U96: =IF(U$2<'Cost assumptions'!$E$3+'Cost assumptions'!$E$4,SUM(U87:U94),0) -> 0 | V96: =IF(V$2<'Cost assumptions'!$E$3+'Cost assumptions'!$E$4,SUM(V87:V94),0) -> 0 | W96: =IF(W$2<'Cost assumptions'!$E$3+'Cost assumptions'!$E$4,SUM(W87:W94),0) -> 0 | X96: =IF(X$2<'Cost assumptions'!$E$3+'Cost assumptions'!$E$4,SUM(X87:X94),0) -> 0 | Y96: =IF(Y$2<'Cost assumptions'!$E$3+'Cost assumptions'!$E$4,SUM(Y87:Y94),0) -> 0 | Z96: =IF(Z$2<'Cost assumptions'!$E$3+'Cost assumptions'!$E$4,SUM(Z87:Z94),0) -> 0 | AA96: =IF(AA$2<'Cost assumptions'!$E$3+'Cost assumptions'!$E$4,SUM(AA87:AA94),0) -> 0 | AB96: =IF(AB$2<'Cost assumptions'!$E$3+'Cost assumptions'!$E$4,SUM(AB87:AB94),0) -> 0 | AC96: =IF(AC$2<'Cost assumptions'!$E$3+'Cost assumptions'!$E$4,SUM(AC87:AC94),0) -> 0 | AD96: =IF(AD$2<'Cost assumptions'!$E$3+'Cost assumptions'!$E$4,SUM(AD87:AD94),0) -> 0 | AE96: =IF(AE$2<'Cost assumptions'!$E$3+'Cost assumptions'!$E$4,SUM(AE87:AE94),0) -> 0 | AF96: =IF(AF$2<'Cost assumptions'!$E$3+'Cost assumptions'!$E$4,SUM(AF87:AF94),0) -> 0 | AG96: =IF(AG$2<'Cost assumptions'!$E$3+'Cost assumptions'!$E$4,SUM(AG87:AG94),0) -> 0 | AH96: =IF(AH$2<'Cost assumptions'!$E$3+'Cost assumptions'!$E$4,SUM(AH87:AH94),0) -> 0 | AI96: =IF(AI$2<'Cost assumptions'!$E$3+'Cost assumptions'!$E$4,SUM(AI87:AI94),0) -> 0
D107: No revenue share | E107: =D107 -> No revenue share | F107: Year for look-up | G107: =INDEX(F2:AI2,1,MATCH(1,F3:AI3,0)) -> 3
D108: % change | E108: $m
C110: Revenue | D110: =INDEX($F$46:$AI$46,1,$G$107)/INDEX('Base case'!$F$46:$AI$46,1,$G$107)-1 -> 1.682546581 | E110: =INDEX($F$46:$AI$46,1,$G$107) -> 11.517782
C111: Operating costs (all) | D111: =INDEX($F$57:$AI$57,1,$G$107)/INDEX('Base case'!$F$57:$AI$57,1,$G$107)-1 -> 0.000333612507 | E111: =INDEX($F$57:$AI$57,1,$G$107) -> -7.16639
C112: Operating profit | D112: =INDEX($F$60:$AI$60,1,$G$107)/INDEX('Base case'!$F$60:$AI$60,1,$G$107)-1 -> -2.515953177 | E112: =INDEX($F$60:$AI$60,1,$G$107) -> 4.351392
C117: CDS revenue per input tonne | F117: =SUM(F29:F36)/(F4*'CDS assumptions'!$I$4) ->  | G117: =SUM(G29:G36)/(G4*'CDS assumptions'!$I$4) ->  | H117: =SUM(H29:H36)/(H4*'CDS assumptions'!$I$4) -> 127.6573172 | I117: =SUM(I29:I36)/(I4*'CDS assumptions'!$I$4) -> 127.6573172 | J117: =SUM(J29:J36)/(J4*'CDS assumptions'!$I$4) -> 127.6573172 | K117: =SUM(K29:K36)/(K4*'CDS assumptions'!$I$4) -> 127.6573172 | L117: =SUM(L29:L36)/(L4*'CDS assumptions'!$I$4) -> 127.6573172 | M117: =SUM(M29:M36)/(M4*'CDS assumptions'!$I$4) -> 127.6573172 | N117: =SUM(N29:N36)/(N4*'CDS assumptions'!$I$4) -> 127.6573172 | O117: =SUM(O29:O36)/(O4*'CDS assumptions'!$I$4) -> 127.6573172 | P117: =SUM(P29:P36)/(P4*'CDS assumptions'!$I$4) -> 127.6573172 | Q117: =SUM(Q29:Q36)/(Q4*'CDS assumptions'!$I$4) -> 127.6573172 | R117: =SUM(R29:R36)/(R4*'CDS assumptions'!$I$4) -> 127.6573172 | S117: =SUM(S29:S36)/(S4*'CDS assumptions'!$I$4) -> 127.6573172 | T117: =SUM(T29:T36)/(T4*'CDS assumptions'!$I$4) -> 127.6573172 | U117: =SUM(U29:U36)/(U4*'CDS assumptions'!$I$4) -> 127.6573172 | V117: =SUM(V29:V36)/(V4*'CDS assumptions'!$I$4) -> 127.6573172 | W117: =SUM(W29:W36)/(W4*'CDS assumptions'!$I$4) -> 127.6573172 | X117: =SUM(X29:X36)/(X4*'CDS assumptions'!$I$4) -> 127.6573172 | Y117: =SUM(Y29:Y36)/(Y4*'CDS assumptions'!$I$4) -> 127.6573172 | Z117: =SUM(Z29:Z36)/(Z4*'CDS assumptions'!$I$4) -> 127.6573172 | AA117: =SUM(AA29:AA36)/(AA4*'CDS assumptions'!$I$4) -> 127.6573172 | AB117: =SUM(AB29:AB36)/(AB4*'CDS assumptions'!$I$4) -> 127.6573172 | AC117: =SUM(AC29:AC36)/(AC4*'CDS assumptions'!$I$4) -> 127.6573172 | AD117: =SUM(AD29:AD36)/(AD4*'CDS assumptions'!$I$4) -> 127.6573172 | AE117: =SUM(AE29:AE36)/(AE4*'CDS assumptions'!$I$4) -> 127.6573172 | AF117: =SUM(AF29:AF36)/(AF4*'CDS assumptions'!$I$4) -> 127.6573172 | AG117: =SUM(AG29:AG36)/(AG4*'CDS assumptions'!$I$4) -> 127.6573172 | AH117: =SUM(AH29:AH36)/(AH4*'CDS assumptions'!$I$4) -> 127.6573172 | AI117: =SUM(AI29:AI36)/(AI4*'CDS assumptions'!$I$4) -> 127.6573172
C120: Product sales at unchanged prices
C121: =C10 -> Product sales - council
